Workbook

Sheet Formato2020
A2: VEEDURIA DISTRITAL - RENDICION DE CUENTAS DE LA GESTION CONTRACTUAL EN EL DISTRITO CAPITAL (Acuerdo 380 de 2009)
A3: INFORMACION GENERAL DE CONTRATACION ENTIDADES DISTRITALES - ENERO 1 A 31 DICIEMBRE DE 2020
A5: 1. Entidad | E5: FONDO DE DESARROLLO LOCAL LA CANDELARIA | H5: 2. Sector | I5: Gobierno
A6: 3. Presupuesto Disponible Inversión Directa PREDIS | E6: =11749185174-E7 -> 1572098883 | H6: 5. Presupuesto Disponible Funcionamiento PREDIS | I6: =2525795523-I7 -> 180815230 | AD6: 9. Nombre de quien diligencia el formato | AF6: Paula Villota
A7: 4. Presupuesto Comprometido de Inversión Directa según PREDIS | E7: 10177086291 | H7: 6. Presupuesto Comprometido Funcionamiento según PREDIS | I7: 2344980293 | AD7: Cargo
AD8: Dependencia | AF8: Contratación
A9: 7. Presupuesto Disponible Operación (Régimen Privado) | V9: =+SUBTOTAL(9,V14:V501) -> 12522066584 | W9: =+SUBTOTAL(9,W14:W501) -> 7229871864 | AD9: Teléfono
A10: 8. Presupuesto Comprometido Operación mediante contratos | AD10: Correo Electrónico
A11: 1- INFORMACION GENERAL | Q11: 2- INFORMACION FINANCIERA | X11: 3 - PLAZOS | AD11: 4. CESION | AL11: 5. % Avance y/o cumplimiento
A12: 1 | B12: 2 | C12: 3 | E12: 4 | F12: 5 | G12: 6 | H12: 7 | I12: 8 | N12: 9 | O12: 10 | Q12: 11 | R12: 12 | S12: 13 | T12: 14 | U12: 15 | V12: 16 | W12: 17 | X12: 18 | Y12: 19 | Z12: 20 | AA12: 21 | AB12: 22 | AC12: 23 | AD12: 24 | AE12: 25 | AF12: 26 | AG12: 27 | AL12: 29
A13: Número Contrato | B13: Año | C13: Proceso Publicado en | D13: Número de proceso contractual SECOP | E13: Tipo de contrato | F13: Modalidad de Selección | G13: Procedimiento o causal | H13: Objeto | I13: Afectación | J13: Plan de Desarrollo Distrital | K13: Número Programa | L13: Equivalencia número de programa | M13: Eje / Pilar / Propósito | N13: Número Proyecto | O13: Número de Identificación del contratista (NIT con digito de verificación) | P13: Nombre del contratista | Q13: Valor Inicial del contrato | R13: Número de reducciones | S13: Valor total reducciones (En valor negativo) | T13: Número de adiciones | U13: Valor total de adiciones | V13: Valor Final | W13: Giros (valor en pesos) | X13: Fecha de suscripción (DD/MM/AAAA) | Y13: Fecha de inicio (DD/MM/AAAA) | Z13: Fecha de terminación (DD/MM/AAAA) | AA13: Plazo en días | AB13: Número de prórrogas | AC13: Prorroga en días | AD13: Número de Identificación del cesionario (NIT con digito de verificación) | AE13: Nombre cesionario | AF13: Fecha cesión (DD/MM/AAAA) | AG13: Valor cesión | AH13: Celebrado o por iniciar | AI13: En Ejecución | AJ13: Terminado | AK13: Liquidado | AL13: % Avance y/o Cumplimiento | AM13: Total Contratos | AN13: Validación Tipo | AO13: Validación Modalidad | AP13: Validación procedimiento | AQ13: Validación afectación | AR13: Validación programa | AS13: secop | AT13: Fecha suscripción | AU13: PDD
A14: 1 | B14: 2020 | C14: SECOP I | D14: ORDEN DE COMPRA 44279 | E14: Suministro | F14: Selección abreviada | G14: Acuerdo marco de precios | H14: CONTRATAR A MONTO AGOTABLE EL SUMINISTRO DE SERVICIO DE COMBUSTIBLE GASOLINA Y DIÉSEL PARA LOS VEHÍCULOS DE PROPIEDAD DEL FONDO DE DESARROLLO LOCAL DE LA CANDELARIA | I14: Funcionamiento | J14: Bogotá Mejor para Todos | K14: No aplica | L14: No Aplica | M14: No Aplica | N14: No Aplica | O14: 900459737-5 | P14: GRUPO EDS AUTOGAS S.A.S | Q14: 20000000 | T14: 1 | U14: 3000000 | V14: =+Q14+S14+U14 -> 23000000 | W14: 18967996 | X14: 2020-01-10 | Y14: 2020-01-13 | Z14: 2021-01-12 | AA14: 360 | AJ14: X | AL14: =IF(ISERROR(W14/V14),"-",(W14/V14)) -> 0.8246954783 | AM14: =IF(SUMPRODUCT((A$14:A14=A14)*(B$14:B14=B14)*(D$14:D14=D14))>1,0,1) -> 1 | AN14: =IF(ISBLANK(E14),1,IFERROR(VLOOKUP(E14,tipo,1,FALSE),"NO")) -> Suministro | AO14: =IF(ISBLANK(F14),1,IFERROR(VLOOKUP(F14,modal,1,FALSE),"NO")) -> Selección abreviada | AP14: =IF(ISBLANK(G14),1,IFERROR(VLOOKUP(G14,Tipo!$C$12:$C$27,1,FALSE),"NO")) -> Acuerdo marco de precios | AQ14: =IF(ISBLANK(I14),1,IFERROR(VLOOKUP(I14,afectacion,1,FALSE),"NO")) -> Funcionamiento | AR14: =IF(ISBLANK(K14),1,IFERROR(VLOOKUP(K14,Eje_Pilar_Prop!C3:C104,1,FALSE),"NO")) -> NO | AS14: =IF(ISBLANK(C14),1,IFERROR(VLOOKUP(C14,SECOP,1,FALSE),"NO")) -> SECOP I | AT14: =IF(OR(YEAR(X14)=2020,ISBLANK(X14)),1,"NO") -> 1 | AU14: =IF(ISBLANK(J14),1,IFERROR(VLOOKUP(J14,pdd,1,FALSE),"NO")) -> Bogotá Mejor para Todos
A15: 2 | B15: 2020 | C15: SECOP II | D15: FDLC-IMC-001-2020 | E15: Interventoría | F15: Contratación mínima cuantia | G15: No aplica | H15: INTERVENTORÍA TÉCNICA, ADMINISTRATIVA Y FINANCIERA DE LA CONTINUACIÓN DEL CONTRATO DE OBRA 101 DE 2018, QUE TIENE POR OBJETO: “REALIZAR A PRECIO GLOBAL FIJO LA ACTUALIZACIÓN, AJUSTES Y/O COMPLEMENTACIÓN DE LOS ESTUDIOS Y DISEÑOS Y A MONTO AGOTABLE LA CONSTRUCCIÓN DEL TRAMO FALTANTE DEL PROYECTO RAPS NIEVES UBICADO EN LA CARRERA 4 ENTRE CALLES 13 Y 10 EN LA LOCALIDAD DE LA CANDELARIA, EN BOGOTÁ D.C. | I15: Inversión | J15: Bogotá Mejor para Todos | K15: 18 | L15: =IF(ISERROR(VLOOKUP(K15,Eje_Pilar_Prop!$C$2:$E$104,2,FALSE))," ",VLOOKUP(K15,Eje_Pilar_Prop!$C$2:$E$104,2,FALSE)) -> Mejor movilidad para todos | M15: =IF(ISERROR(VLOOKUP(K15,Eje_Pilar_Prop!$C$2:$E$104,3,FALSE))," ",VLOOKUP(K15,Eje_Pilar_Prop!$C$2:$E$104,3,FALSE)) -> Pilar 2 Democracía Urbana | N15: 1391 | O15: 900866325 | P15: JMELO INGENIERIA DE PROYECTOS S.A.S | Q15: 24184587 | T15: 0 | V15: =+Q15+S15+U15 -> 24184587 | W15: 12092293 | X15: 2020-01-30 | Y15: 2020-02-05 | Z15: 2020-07-21 | AA15: 60 | AJ15: X | AL15: =IF(ISERROR(W15/V15),"-",(W15/V15)) -> 0.4999999793 | AM15: =IF(SUMPRODUCT((A$14:A15=A15)*(B$14:B15=B15)*(D$14:D15=D15))>1,0,1) -> 1 | AN15: Interventoría | AO15: Contratación mínima cuantia | AP15: =IF(ISBLANK(G15),1,IFERROR(VLOOKUP(G15,Tipo!$C$12:$C$27,1,FALSE),"NO")) -> NO | AQ15: Inversión | AR15: =IF(ISBLANK(K15),1,IFERROR(VLOOKUP(K15,Eje_Pilar_Prop!C4:C105,1,FALSE),"NO")) -> 18 | AS15: SECOP II | AT15: 1 | AU15: Bogotá Mejor para Todos
A16: 3 | B16: 2020 | C16: SECOP II | D16: FDLC-CPS-003-2020 | E16: Contratos de prestación de servicios profesionales y de apoyo a la gestión | F16: Contratación directa | G16: Prestación de servicios profesionales y de apoyo a la gestión, o para la ejecución de trabajos artísticos que sólo puedan encomendarse a determinadas personas naturales; | H16: PRESTACIÓN DE SERVICIOS DE APOYO ASISTENCIAL A LA GESTIÓN DEL DESPACHO Y LAS DIFERENTES ÁREAS DEL FONDO DE DESARROLLO LOCAL DE LA CANDELARIA | I16: Inversión | J16: Bogotá Mejor para Todos | K16: 45 | L16: =IF(ISERROR(VLOOKUP(K16,Eje_Pilar_Prop!$C$2:$E$104,2,FALSE))," ",VLOOKUP(K16,Eje_Pilar_Prop!$C$2:$E$104,2,FALSE)) -> Gobernanza e influencia local, regional e internacional | M16: =IF(ISERROR(VLOOKUP(K16,Eje_Pilar_Prop!$C$2:$E$104,3,FALSE))," ",VLOOKUP(K16,Eje_Pilar_Prop!$C$2:$E$104,3,FALSE)) -> Eje Transversal 4 Gobierno Legitimo, Fortalecimiento Local y Eficiencia | N16: 1395 | O16: 52305372-4 | P16: ELCY JANETH PULIDO AMORTEGUI | Q16: 4342198 | T16: 1 | U16: 2130134 | V16: =+Q16+S16+U16 -> 6472332 | W16: 6390404 | X16: 2020-02-07 | Y16: 2020-02-07 | Z16: 2020-04-24 | AA16: 53 | AB16: 1 | AC16: 26 | AK16: X | AL16: 0.9873418113 | AM16: =IF(SUMPRODUCT((A$14:A16=A16)*(B$14:B16=B16)*(D$14:D16=D16))>1,0,1) -> 1 | AN16: Contratos de prestación de servicios profesionales y de apoyo a la gestión | AO16: Contratación directa | AP16: =IF(ISBLANK(G16),1,IFERROR(VLOOKUP(G16,Tipo!$C$12:$C$27,1,FALSE),"NO")) -> Prestación de servicios profesionales y de apoyo a la gestión, o para la ejecución de trabajos artísticos que sólo puedan encomendarse a determinadas personas naturales; | AQ16: Inversión | AR16: =IF(ISBLANK(K16),1,IFERROR(VLOOKUP(K16,Eje_Pilar_Prop!C5:C106,1,FALSE),"NO")) -> 45 | AS16: SECOP II | AT16: 1 | AU16: Bogotá Mejor para Todos
A17: 4 | B17: 2020 | C17: SECOP II | D17: FDLC-CPS-004-2020 | E17: Contratos de prestación de servicios profesionales y de apoyo a la gestión | F17: Contratación directa | G17: Prestación de servicios profesionales y de apoyo a la gestión, o para la ejecución de trabajos artísticos que sólo puedan encomendarse a determinadas personas naturales; | H17: PRESTACIÓN DE SERVICIOS DE APOYO Y ASISTENCIA ADMINISTRATIVA A LA GESTION DE LA JUNTA ADMINISTRADORA LOCAL DE LA CANDELARIA | I17: Inversión | J17: Bogotá Mejor para Todos | K17: 45 | L17: =IF(ISERROR(VLOOKUP(K17,Eje_Pilar_Prop!$C$2:$E$104,2,FALSE))," ",VLOOKUP(K17,Eje_Pilar_Prop!$C$2:$E$104,2,FALSE)) -> Gobernanza e influencia local, regional e internacional | M17: =IF(ISERROR(VLOOKUP(K17,Eje_Pilar_Prop!$C$2:$E$104,3,FALSE))," ",VLOOKUP(K17,Eje_Pilar_Prop!$C$2:$E$104,3,FALSE)) -> Eje Transversal 4 Gobierno Legitimo, Fortalecimiento Local y Eficiencia | N17: 1395 | O17: 51879946 | P17: ISABEL CRISTINA BULLA RODRIGUEZ | Q17: 9831392 | T17: 0 | V17: =+Q17+S17+U17 -> 9831392 | W17: 9620977 | X17: 2020-02-11 | Y17: 2020-02-11 | Z17: 2020-06-10 | AA17: 120 | AK17: X | AL17: 0.9785976391 | AM17: =IF(SUMPRODUCT((A$14:A17=A17)*(B$14:B17=B17)*(D$14:D17=D17))>1,0,1) -> 1 | AN17: Contratos de prestación de servicios profesionales y de apoyo a la gestión | AO17: Contratación directa | AP17: =IF(ISBLANK(G17),1,IFERROR(VLOOKUP(G17,Tipo!$C$12:$C$27,1,FALSE),"NO")) -> Prestación de servicios profesionales y de apoyo a la gestión, o para la ejecución de trabajos artísticos que sólo puedan encomendarse a determinadas personas naturales; | AQ17: Inversión | AR17: =IF(ISBLANK(K17),1,IFERROR(VLOOKUP(K17,Eje_Pilar_Prop!C6:C107,1,FALSE),"NO")) -> 45 | AS17: SECOP II | AT17: 1 | AU17: Bogotá Mejor para Todos
A18: 5 | B18: 2020 | C18: SECOP II | D18: FDLC-CPS-005-2020 | E18: Contratos de prestación de servicios profesionales y de apoyo a la gestión | F18: Contratación directa | G18: Prestación de servicios profesionales y de apoyo a la gestión, o para la ejecución de trabajos artísticos que sólo puedan encomendarse a determinadas personas naturales; | H18: PRESTACIÓN DE SERVICIOS PROFESIONALES COMO ADMINISTRADOR DE RED LOCAL, ENLACE CON LA SECRETARÍA DISTRITAL DE GOBIERNO, BRINDANDO SOPORTE EN MATERIA DE SISTEMAS (SOFTWARE Y HARDWARE) A LOS USUARIOS INTERNOS Y EXTERNOS DE LAS DIFERENTES ÁREAS DE LA ALCALDÍA LOCAL DE LA CANDELARIA | I18: Inversión | J18: Bogotá Mejor para Todos | K18: 45 | L18: =IF(ISERROR(VLOOKUP(K18,Eje_Pilar_Prop!$C$2:$E$104,2,FALSE))," ",VLOOKUP(K18,Eje_Pilar_Prop!$C$2:$E$104,2,FALSE)) -> Gobernanza e influencia local, regional e internacional | M18: =IF(ISERROR(VLOOKUP(K18,Eje_Pilar_Prop!$C$2:$E$104,3,FALSE))," ",VLOOKUP(K18,Eje_Pilar_Prop!$C$2:$E$104,3,FALSE)) -> Eje Transversal 4 Gobierno Legitimo, Fortalecimiento Local y Eficiencia | N18: 1395 | O18: 79814029 | P18: AGUSTIN LARA BELTRAN | Q18: 21067272 | T18: 0 | V18: 21067272 | W18: 21067272 | X18: 2020-02-10 | Y18: 2020-02-10 | Z18: 2020-06-09 | AA18: 120 | AK18: X | AL18: 1 | AM18: =IF(SUMPRODUCT((A$14:A18=A18)*(B$14:B18=B18)*(D$14:D18=D18))>1,0,1) -> 1 | AN18: Contratos de prestación de servicios profesionales y de apoyo a la gestión | AO18: Contratación directa | AP18: =IF(ISBLANK(G18),1,IFERROR(VLOOKUP(G18,Tipo!$C$12:$C$27,1,FALSE),"NO")) -> Prestación de servicios profesionales y de apoyo a la gestión, o para la ejecución de trabajos artísticos que sólo puedan encomendarse a determinadas personas naturales; | AQ18: Inversión | AR18: =IF(ISBLANK(K18),1,IFERROR(VLOOKUP(K18,Eje_Pilar_Prop!C7:C108,1,FALSE),"NO")) -> 45 | AS18: SECOP II | AT18: 1 | AU18: Bogotá Mejor para Todos
A19: 6 | B19: 2020 | C19: SECOP II | D19: FDLC-CPS-006-2020 | E19: Contratos de prestación de servicios profesionales y de apoyo a la gestión | F19: Contratación directa | G19: Prestación de servicios profesionales y de apoyo a la gestión, o para la ejecución de trabajos artísticos que sólo puedan encomendarse a determinadas personas naturales; | H19: PRESTACIÓN DE SERVICIOS DE APOYO PROFESIONAL EN LA GESTIÓN DEL ÁREA DE PLANEACIÓN PARA LA PRESENTACIÓN Y SEGUIMIENTO DE LOS PROYECTOS ENCAMINADOS A LA GESTIÓN DE RIESGOS Y CAMBIO CLIMÁTICO, ASI COMO BRINDAR APOYO A DICHO COMITÉ | I19: Inversión | J19: Bogotá Mejor para Todos | K19: 45 | L19: =IF(ISERROR(VLOOKUP(K19,Eje_Pilar_Prop!$C$2:$E$104,2,FALSE))," ",VLOOKUP(K19,Eje_Pilar_Prop!$C$2:$E$104,2,FALSE)) -> Gobernanza e influencia local, regional e internacional | M19: =IF(ISERROR(VLOOKUP(K19,Eje_Pilar_Prop!$C$2:$E$104,3,FALSE))," ",VLOOKUP(K19,Eje_Pilar_Prop!$C$2:$E$104,3,FALSE)) -> Eje Transversal 4 Gobierno Legitimo, Fortalecimiento Local y Eficiencia | N19: 1395 | O19: 52790286 | P19: JESYCA ROSY ORJUELA AYA | Q19: 21067272 | T19: 0 | V19: 21067272 | W19: 21067272 | X19: 2020-02-11 | Y19: 2020-02-11 | Z19: 2020-06-10 | AA19: 120 | AK19: X | AL19: 1 | AM19: =IF(SUMPRODUCT((A$14:A19=A19)*(B$14:B19=B19)*(D$14:D19=D19))>1,0,1) -> 1 | AN19: Contratos de prestación de servicios profesionales y de apoyo a la gestión | AO19: Contratación directa | AP19: =IF(ISBLANK(G19),1,IFERROR(VLOOKUP(G19,Tipo!$C$12:$C$27,1,FALSE),"NO")) -> Prestación de servicios profesionales y de apoyo a la gestión, o para la ejecución de trabajos artísticos que sólo puedan encomendarse a determinadas personas naturales; | AQ19: Inversión | AR19: =IF(ISBLANK(K19),1,IFERROR(VLOOKUP(K19,Eje_Pilar_Prop!C8:C109,1,FALSE),"NO")) -> 45 | AS19: SECOP II | AT19: 1 | AU19: Bogotá Mejor para Todos
A20: 7 | B20: 2020 | C20: SECOP II | D20: FDLC-CPS-007-2020 | E20: Contratos de prestación de servicios profesionales y de apoyo a la gestión | F20: Contratación directa | G20: Prestación de servicios profesionales y de apoyo a la gestión, o para la ejecución de trabajos artísticos que sólo puedan encomendarse a determinadas personas naturales; | H20: PRESTACIÓN DE SERVICIOS PROFESIONALES PARA APOYAR JURÍDICAMENTE LA EJECUCIÓN DE LAS ACCIONES REQUERIDAS PARA LA DEPURACIÓN DE LAS ACTUACIONES ADMINISTRATIVAS QUE CURSAN EN LA ALCALDIA LOCAL | I20: Inversión | J20: Bogotá Mejor para Todos | K20: 45 | L20: =IF(ISERROR(VLOOKUP(K20,Eje_Pilar_Prop!$C$2:$E$104,2,FALSE))," ",VLOOKUP(K20,Eje_Pilar_Prop!$C$2:$E$104,2,FALSE)) -> Gobernanza e influencia local, regional e internacional | M20: =IF(ISERROR(VLOOKUP(K20,Eje_Pilar_Prop!$C$2:$E$104,3,FALSE))," ",VLOOKUP(K20,Eje_Pilar_Prop!$C$2:$E$104,3,FALSE)) -> Eje Transversal 4 Gobierno Legitimo, Fortalecimiento Local y Eficiencia | N20: 1395 | O20: 1022973767 | P20: CAROLINA ROJAS CARVAJAL | Q20: 17907180 | T20: 0 | V20: 17907180 | W20: 17757953 | X20: 2020-02-11 | Y20: 2020-02-11 | Z20: 2020-06-10 | AA20: 120 | AK20: X | AL20: 0.9916666387 | AM20: =IF(SUMPRODUCT((A$14:A20=A20)*(B$14:B20=B20)*(D$14:D20=D20))>1,0,1) -> 1 | AN20: Contratos de prestación de servicios profesionales y de apoyo a la gestión | AO20: Contratación directa | AP20: =IF(ISBLANK(G20),1,IFERROR(VLOOKUP(G20,Tipo!$C$12:$C$27,1,FALSE),"NO")) -> Prestación de servicios profesionales y de apoyo a la gestión, o para la ejecución de trabajos artísticos que sólo puedan encomendarse a determinadas personas naturales; | AQ20: Inversión | AR20: =IF(ISBLANK(K20),1,IFERROR(VLOOKUP(K20,Eje_Pilar_Prop!C9:C110,1,FALSE),"NO")) -> 45 | AS20: SECOP II | AT20: 1 | AU20: Bogotá Mejor para Todos
A21: 8 | B21: 2020 | C21: SECOP II | D21: FDLC-CPS-008-2020 | E21: Contratos de prestación de servicios profesionales y de apoyo a la gestión | F21: Contratación directa | G21: Prestación de servicios profesionales y de apoyo a la gestión, o para la ejecución de trabajos artísticos que sólo puedan encomendarse a determinadas personas naturales; | H21: PRESTAR SERVICIOS DE APOYO COMO CONDUCTOR DE LOS VEHICULOS QUE SE ENCUENTRAN A CARGO DEL FONDO DE DESARROLLO LOCAL LA CANDELARIA | I21: Inversión | J21: Bogotá Mejor para Todos | K21: 45 | L21: =IF(ISERROR(VLOOKUP(K21,Eje_Pilar_Prop!$C$2:$E$104,2,FALSE))," ",VLOOKUP(K21,Eje_Pilar_Prop!$C$2:$E$104,2,FALSE)) -> Gobernanza e influencia local, regional e internacional | M21: =IF(ISERROR(VLOOKUP(K21,Eje_Pilar_Prop!$C$2:$E$104,3,FALSE))," ",VLOOKUP(K21,Eje_Pilar_Prop!$C$2:$E$104,3,FALSE)) -> Eje Transversal 4 Gobierno Legitimo, Fortalecimiento Local y Eficiencia | N21: 1395 | O21: 1010187694 | P21: CHRISTIAM CAMILO ROMERO WALTEROS | Q21: 9831392 | T21: 0 | V21: 9831392 | W21: 9831392 | X21: 2020-02-12 | Y21: 2020-02-13 | Z21: 2020-06-12 | AA21: 120 | AK21: X | AL21: 1 | AM21: =IF(SUMPRODUCT((A$14:A21=A21)*(B$14:B21=B21)*(D$14:D21=D21))>1,0,1) -> 1 | AN21: Contratos de prestación de servicios profesionales y de apoyo a la gestión | AO21: Contratación directa | AP21: =IF(ISBLANK(G21),1,IFERROR(VLOOKUP(G21,Tipo!$C$12:$C$27,1,FALSE),"NO")) -> Prestación de servicios profesionales y de apoyo a la gestión, o para la ejecución de trabajos artísticos que sólo puedan encomendarse a determinadas personas naturales; | AQ21: Inversión | AR21: =IF(ISBLANK(K21),1,IFERROR(VLOOKUP(K21,Eje_Pilar_Prop!C10:C111,1,FALSE),"NO")) -> 45 | AS21: SECOP II | AT21: 1 | AU21: Bogotá Mejor para Todos
A22: 9 | B22: 2020 | C22: SECOP II | D22: FDLC-CPS-009-2020 | E22: Contratos de prestación de servicios profesionales y de apoyo a la gestión | F22: Contratación directa | G22: Prestación de servicios profesionales y de apoyo a la gestión, o para la ejecución de trabajos artísticos que sólo puedan encomendarse a determinadas personas naturales; | H22: PRESTAR SERVICIOS DE APOYO COMO CONDUCTOR DE LOS VEHICULOS QUE SE ENCUENTRAN A CARGO DEL FONDO DE DESARROLLO LOCAL LA CANDELARIA | I22: Inversión | J22: Bogotá Mejor para Todos | K22: 45 | L22: =IF(ISERROR(VLOOKUP(K22,Eje_Pilar_Prop!$C$2:$E$104,2,FALSE))," ",VLOOKUP(K22,Eje_Pilar_Prop!$C$2:$E$104,2,FALSE)) -> Gobernanza e influencia local, regional e internacional | M22: =IF(ISERROR(VLOOKUP(K22,Eje_Pilar_Prop!$C$2:$E$104,3,FALSE))," ",VLOOKUP(K22,Eje_Pilar_Prop!$C$2:$E$104,3,FALSE)) -> Eje Transversal 4 Gobierno Legitimo, Fortalecimiento Local y Eficiencia | N22: 1395 | O22: 79714948 | P22: OSCAR ANTONIO ZAMBRANO GUTIERREZ | Q22: 9831392 | T22: 0 | V22: 9831392 | W22: 9831392 | X22: 2020-02-12 | Y22: 2020-02-13 | Z22: 2020-06-12 | AA22: 120 | AK22: X | AL22: =IF(ISERROR(W22/V22),"-",(W22/V22)) -> 1 | AM22: =IF(SUMPRODUCT((A$14:A22=A22)*(B$14:B22=B22)*(D$14:D22=D22))>1,0,1) -> 1 | AN22: Contratos de prestación de servicios profesionales y de apoyo a la gestión | AO22: Contratación directa | AP22: =IF(ISBLANK(G22),1,IFERROR(VLOOKUP(G22,Tipo!$C$12:$C$27,1,FALSE),"NO")) -> Prestación de servicios profesionales y de apoyo a la gestión, o para la ejecución de trabajos artísticos que sólo puedan encomendarse a determinadas personas naturales; | AQ22: Inversión | AR22: =IF(ISBLANK(K22),1,IFERROR(VLOOKUP(K22,Eje_Pilar_Prop!C4:C105,1,FALSE),"NO")) -> 45 | AS22: SECOP II | AT22: 1 | AU22: Bogotá Mejor para Todos
A23: 10 | B23: 2020 | C23: SECOP II | D23: FDLC-CPS-010-2020 | E23: Contratos de prestación de servicios profesionales y de apoyo a la gestión | F23: Contratación directa | G23: Prestación de servicios profesionales y de apoyo a la gestión, o para la ejecución de trabajos artísticos que sólo puedan encomendarse a determinadas personas naturales; | H23: PRESTACIÓN DE SERVICIOS DE APOYO TÉCNICO EN LA ADMINISTRACIÓN DE LAS CASAS COMUNITARIAS DE LA LOCALIDAD DE LA CANDELARIA DE CONFORMIDAD CON EL ACUERDO LOCAL 006 DE 2013 | I23: Inversión | J23: Bogotá Mejor para Todos | K23: 45 | L23: =IF(ISERROR(VLOOKUP(K23,Eje_Pilar_Prop!$C$2:$E$104,2,FALSE))," ",VLOOKUP(K23,Eje_Pilar_Prop!$C$2:$E$104,2,FALSE)) -> Gobernanza e influencia local, regional e internacional | M23: =IF(ISERROR(VLOOKUP(K23,Eje_Pilar_Prop!$C$2:$E$104,3,FALSE))," ",VLOOKUP(K23,Eje_Pilar_Prop!$C$2:$E$104,3,FALSE)) -> Eje Transversal 4 Gobierno Legitimo, Fortalecimiento Local y Eficiencia | N23: 1395 | O23: 41621560 | P23: NELLY PARRA TOCORA | Q23: 11587000 | T23: 0 | V23: 11587000 | W23: 11587000 | X23: 2020-02-12 | Y23: 2020-02-12 | Z23: 2020-06-11 | AA23: 120 | AK23: X | AL23: =IF(ISERROR(W23/V23),"-",(W23/V23)) -> 1 | AM23: =IF(SUMPRODUCT((A$14:A23=A23)*(B$14:B23=B23)*(D$14:D23=D23))>1,0,1) -> 1 | AN23: Contratos de prestación de servicios profesionales y de apoyo a la gestión | AO23: Contratación directa | AP23: =IF(ISBLANK(G23),1,IFERROR(VLOOKUP(G23,Tipo!$C$12:$C$27,1,FALSE),"NO")) -> Prestación de servicios profesionales y de apoyo a la gestión, o para la ejecución de trabajos artísticos que sólo puedan encomendarse a determinadas personas naturales; | AQ23: Inversión | AR23: =IF(ISBLANK(K23),1,IFERROR(VLOOKUP(K23,Eje_Pilar_Prop!C5:C106,1,FALSE),"NO")) -> 45 | AS23: SECOP II | AT23: 1 | AU23: Bogotá Mejor para Todos
A24: 11 | B24: 2020 | C24: SECOP II | D24: FDLC-CPS-011-2020 | E24: Contratos de prestación de servicios profesionales y de apoyo a la gestión | F24: Contratación directa | G24: Prestación de servicios profesionales y de apoyo a la gestión, o para la ejecución de trabajos artísticos que sólo puedan encomendarse a determinadas personas naturales; | H24: PRESTAR SERVICIO ASISTENCIAL DE APOYO EN EL ÁREA DE GESTIÓN DE DESARROLLO LOCAL—CDI, PARA LA NOTIFICACIÓN DE CORRESPONDENCIA EN GENERAL | I24: Inversión | J24: Bogotá Mejor para Todos | K24: 45 | L24: =IF(ISERROR(VLOOKUP(K24,Eje_Pilar_Prop!$C$2:$E$104,2,FALSE))," ",VLOOKUP(K24,Eje_Pilar_Prop!$C$2:$E$104,2,FALSE)) -> Gobernanza e influencia local, regional e internacional | M24: =IF(ISERROR(VLOOKUP(K24,Eje_Pilar_Prop!$C$2:$E$104,3,FALSE))," ",VLOOKUP(K24,Eje_Pilar_Prop!$C$2:$E$104,3,FALSE)) -> Eje Transversal 4 Gobierno Legitimo, Fortalecimiento Local y Eficiencia | N24: 1395 | O24: 1121855155 | P24: HERNAN EDUARDO RODRIGUEZ BEDOYA | Q24: 9831392 | T24: 0 | V24: 9831392 | W24: 9831392 | X24: 2020-02-14 | Y24: 2020-02-17 | Z24: 2020-06-16 | AA24: 120 | AK24: X | AL24: =IF(ISERROR(W24/V24),"-",(W24/V24)) -> 1 | AM24: =IF(SUMPRODUCT((A$14:A24=A24)*(B$14:B24=B24)*(D$14:D24=D24))>1,0,1) -> 1 | AN24: Contratos de prestación de servicios profesionales y de apoyo a la gestión | AO24: Contratación directa | AP24: =IF(ISBLANK(G24),1,IFERROR(VLOOKUP(G24,Tipo!$C$12:$C$27,1,FALSE),"NO")) -> Prestación de servicios profesionales y de apoyo a la gestión, o para la ejecución de trabajos artísticos que sólo puedan encomendarse a determinadas personas naturales; | AQ24: Inversión | AR24: =IF(ISBLANK(K24),1,IFERROR(VLOOKUP(K24,Eje_Pilar_Prop!C6:C107,1,FALSE),"NO")) -> 45 | AS24: SECOP II | AT24: 1 | AU24: Bogotá Mejor para Todos
A25: 13 | B25: 2020 | C25: SECOP II | D25: FDLC-IMC-002-2020 | E25: Seguros | F25: Contratación mínima cuantia | G25: No aplica | H25: CONTRATAR LOS SEGUROS QUE AMPAREN LOS INTERESES PATRIMONIALES ACTUALES Y FUTUROS, ASÍ COMO LOS BIENES DE PROPIEDAD DE EL FONDO DE DESARROLLO LOCAL DE LA CANDELARIA, QUE ESTÉN BAJO SU RESPONSABILIDAD Y CUSTODIA Y AQUELLOS QUE SEAN ADQUIRIDOS PARA DESARROLLAR LAS FUNCIONES INHERENTES A SU ACTIVIDAD Y CUALQUIER OTRA PÓLIZA DE SEGUROS QUE REQUIERA LA ENTIDAD EN EL DESARROLLO DE SU ACTIVIDAD | I25: Funcionamiento | J25: Bogotá Mejor para Todos | K25: No aplica | L25: No Aplica | M25: No Aplica | N25: No Aplica | O25: 8600024002 | P25: LA PREVISORA S.A. COMPAÑÍA DE SEGUROS | Q25: 23511213 | T25: 1 | U25: 2036651 | V25: =+Q25+S25+U25 -> 25547864 | W25: 25426670 | X25: 2020-02-13 | Y25: 2020-02-16 | Z25: 2020-06-17 | AA25: 111 | AB25: 1 | AC25: 10 | AJ25: X | AL25: =IF(ISERROR(W25/V25),"-",(W25/V25)) -> 0.9952561983 | AM25: =IF(SUMPRODUCT((A$14:A25=A25)*(B$14:B25=B25)*(D$14:D25=D25))>1,0,1) -> 1 | AN25: Seguros | AO25: Contratación mínima cuantia | AP25: =IF(ISBLANK(G25),1,IFERROR(VLOOKUP(G25,Tipo!$C$12:$C$27,1,FALSE),"NO")) -> NO | AQ25: Funcionamiento | AR25: =IF(ISBLANK(K25),1,IFERROR(VLOOKUP(K25,Eje_Pilar_Prop!C8:C109,1,FALSE),"NO")) -> NO | AS25: SECOP II | AT25: 1 | AU25: Bogotá Mejor para Todos
A26: 14 | B26: 2020 | C26: SECOP II | D26: FDLC-CPS-014-2020 | E26: Contratos de prestación de servicios profesionales y de apoyo a la gestión | F26: Contratación directa | G26: Prestación de servicios profesionales y de apoyo a la gestión, o para la ejecución de trabajos artísticos que sólo puedan encomendarse a determinadas personas naturales; | H26: PRESTAR SERVICIOS PROFESIONALES ESPECIALIZADOS PARA BRINDAR LINEAMIENTOS JURIDICOS, EVALUAR Y ORIENTAR TEMAS PRIORITARIOS DEL DESPACHO DE LA LACALDIA LOCAL DE LA CANDELARIA. | I26: Inversión | J26: Bogotá Mejor para Todos | K26: 45 | L26: =IF(ISERROR(VLOOKUP(K26,Eje_Pilar_Prop!$C$2:$E$104,2,FALSE))," ",VLOOKUP(K26,Eje_Pilar_Prop!$C$2:$E$104,2,FALSE)) -> Gobernanza e influencia local, regional e internacional | M26: =IF(ISERROR(VLOOKUP(K26,Eje_Pilar_Prop!$C$2:$E$104,3,FALSE))," ",VLOOKUP(K26,Eje_Pilar_Prop!$C$2:$E$104,3,FALSE)) -> Eje Transversal 4 Gobierno Legitimo, Fortalecimiento Local y Eficiencia | N26: 1395 | O26: 50917355 | P26: FLORALBA ALEJANDRINA PADRON PARDO | Q26: 38000000 | V26: 38000000 | W26: 37999998 | X26: 2020-02-18 | Y26: 2020-02-20 | Z26: 2020-06-19 | AA26: 120 | AD26: 16934608 | AE26: WILLIAM MEJIA | AF26: 2020-05-15 | AG26: 11716666 | AK26: X | AL26: 0.9999999474
A27: 15 | B27: 2020 | C27: SECOP II | D27: FDLC-CPS-015-2020 | E27: Contratos de prestación de servicios profesionales y de apoyo a la gestión | F27: Contratación directa | G27: Prestación de servicios profesionales y de apoyo a la gestión, o para la ejecución de trabajos artísticos que sólo puedan encomendarse a determinadas personas naturales; | H27: PRESTACIÓN DE SERVICIOS TECNICOS DE APOYO A LA OFICINA DEL ALMACEN DEL FONDO DE DESARROLLO LOCAL LA CANDELARIA | I27: Inversión | J27: Bogotá Mejor para Todos | K27: 45 | L27: =IF(ISERROR(VLOOKUP(K27,Eje_Pilar_Prop!$C$2:$E$104,2,FALSE))," ",VLOOKUP(K27,Eje_Pilar_Prop!$C$2:$E$104,2,FALSE)) -> Gobernanza e influencia local, regional e internacional | M27: =IF(ISERROR(VLOOKUP(K27,Eje_Pilar_Prop!$C$2:$E$104,3,FALSE))," ",VLOOKUP(K27,Eje_Pilar_Prop!$C$2:$E$104,3,FALSE)) -> Eje Transversal 4 Gobierno Legitimo, Fortalecimiento Local y Eficiencia | N27: 1395 | O27: 79277986 | P27: JOSE EDYS ROJAS ROJAS | Q27: 12991484 | T27: 0 | U27: 0 | V27: 12991484 | W27: 12985484 | X27: 2020-02-19 | Y27: 2020-02-19 | Z27: 2020-06-18 | AA27: 120 | AK27: X | AL27: 0.999538159 | AM27: =IF(SUMPRODUCT((A$14:A27=A27)*(B$14:B27=B27)*(D$14:D27=D27))>1,0,1) -> 1 | AO27: Contratación directa | AP27: =IF(ISBLANK(G27),1,IFERROR(VLOOKUP(G27,Tipo!$C$12:$C$27,1,FALSE),"NO")) -> Prestación de servicios profesionales y de apoyo a la gestión, o para la ejecución de trabajos artísticos que sólo puedan encomendarse a determinadas personas naturales; | AQ27: Inversión | AR27: =IF(ISBLANK(K27),1,IFERROR(VLOOKUP(K27,Eje_Pilar_Prop!C9:C110,1,FALSE),"NO")) -> 45 | AS27: SECOP II | AT27: =IF(OR(YEAR(X27)=2020,ISBLANK(X27)),1,"NO") -> 1 | AU27: Bogotá Mejor para Todos
A28: 16 | B28: 2020 | C28: SECOP II | D28: FDLC-CPS-016-2020 | E28: Contratos de prestación de servicios profesionales y de apoyo a la gestión | F28: Contratación directa | G28: Prestación de servicios profesionales y de apoyo a la gestión, o para la ejecución de trabajos artísticos que sólo puedan encomendarse a determinadas personas naturales; | H28: PRESTAR SERVICIOS PROFESIONALES AL ÁREA DE GESTIÓN POLICIVA DEL FONDO DE DESARROLLO LOCAL LA CANDELARIA, PARA FORTALECER Y PROMOVER ESTRATEGIAS DE IMPLEMENTACIÓN, APLICACIÓN Y CAPACITACION A LA COMUNIDAD Y DIFERENTES SECTORES, EN MATERIA DE NORMATIVIDAD REFERENTE AL CODIGO DE POLICIA Y FRENTES LOCALES DE SEGURIDAD | I28: Inversión | J28: Bogotá Mejor para Todos | K28: 45 | L28: =IF(ISERROR(VLOOKUP(K28,Eje_Pilar_Prop!$C$2:$E$104,2,FALSE))," ",VLOOKUP(K28,Eje_Pilar_Prop!$C$2:$E$104,2,FALSE)) -> Gobernanza e influencia local, regional e internacional | M28: =IF(ISERROR(VLOOKUP(K28,Eje_Pilar_Prop!$C$2:$E$104,3,FALSE))," ",VLOOKUP(K28,Eje_Pilar_Prop!$C$2:$E$104,3,FALSE)) -> Eje Transversal 4 Gobierno Legitimo, Fortalecimiento Local y Eficiencia | N28: 1395 | O28: 1077967370 | P28: EMERSON LINARES GORDILLO | Q28: 16000000 | T28: 0 | U28: 0 | V28: 16000000 | W28: 15998000 | X28: 2020-02-18 | Y28: 2020-02-19 | Z28: 2020-06-18 | AA28: 120 | AK28: X | AL28: 0.999875 | AM28: =IF(SUMPRODUCT((A$14:A28=A28)*(B$14:B28=B28)*(D$14:D28=D28))>1,0,1) -> 1 | AN28: Contratos de prestación de servicios profesionales y de apoyo a la gestión | AO28: Contratación directa | AP28: =IF(ISBLANK(G28),1,IFERROR(VLOOKUP(G28,Tipo!$C$12:$C$27,1,FALSE),"NO")) -> Prestación de servicios profesionales y de apoyo a la gestión, o para la ejecución de trabajos artísticos que sólo puedan encomendarse a determinadas personas naturales; | AQ28: Inversión | AR28: =IF(ISBLANK(K28),1,IFERROR(VLOOKUP(K28,Eje_Pilar_Prop!C10:C111,1,FALSE),"NO")) -> 45 | AS28: SECOP II | AT28: 1 | AU28: Bogotá Mejor para Todos
A29: 17 | B29: 2020 | C29: SECOP II | D29: FDLC-CPS-017-2020 | E29: Contratos de prestación de servicios profesionales y de apoyo a la gestión | F29: Contratación directa | G29: Prestación de servicios profesionales y de apoyo a la gestión, o para la ejecución de trabajos artísticos que sólo puedan encomendarse a determinadas personas naturales; | H29: PRESTACIÓN DE SERVICIOS ASISTENCIALES DE APOYO A LA GESTIÓN DEL FONDO DE DESARROLLO LOCAL DE LA CANDELARIA - CDI PARA EL MANEJO Y PROCESO DE DISTRIBUCION DE CORRESPONDENCIA EN GENERAL | I29: Inversión | J29: Bogotá Mejor para Todos | K29: 45 | L29: =IF(ISERROR(VLOOKUP(K29,Eje_Pilar_Prop!$C$2:$E$104,2,FALSE))," ",VLOOKUP(K29,Eje_Pilar_Prop!$C$2:$E$104,2,FALSE)) -> Gobernanza e influencia local, regional e internacional | M29: =IF(ISERROR(VLOOKUP(K29,Eje_Pilar_Prop!$C$2:$E$104,3,FALSE))," ",VLOOKUP(K29,Eje_Pilar_Prop!$C$2:$E$104,3,FALSE)) -> Eje Transversal 4 Gobierno Legitimo, Fortalecimiento Local y Eficiencia | N29: 1395 | O29: 1010227910 | P29: CARLOS ARMANDO GONZÁLEZ RASGO | Q29: 9831392 | T29: 0 | U29: 0 | V29: 9831392 | W29: 8280126 | X29: 2020-02-19 | Y29: 2020-02-19 | Z29: 2020-06-18 | AA29: 120 | AJ29: X | AL29: 0.8422129847 | AM29: =IF(SUMPRODUCT((A$14:A29=A29)*(B$14:B29=B29)*(D$14:D29=D29))>1,0,1) -> 1 | AN29: Contratos de prestación de servicios profesionales y de apoyo a la gestión | AO29: Contratación directa | AP29: =IF(ISBLANK(G29),1,IFERROR(VLOOKUP(G29,Tipo!$C$12:$C$27,1,FALSE),"NO")) -> Prestación de servicios profesionales y de apoyo a la gestión, o para la ejecución de trabajos artísticos que sólo puedan encomendarse a determinadas personas naturales; | AQ29: Inversión | AR29: =IF(ISBLANK(K29),1,IFERROR(VLOOKUP(K29,Eje_Pilar_Prop!C11:C112,1,FALSE),"NO")) -> 45 | AS29: SECOP II | AT29: 1 | AU29: Bogotá Mejor para Todos
A30: 18 | B30: 2020 | C30: SECOP II | D30: FDLC-CPS-018-2020 | E30: Contratos de prestación de servicios profesionales y de apoyo a la gestión | F30: Contratación directa | G30: Prestación de servicios profesionales y de apoyo a la gestión, o para la ejecución de trabajos artísticos que sólo puedan encomendarse a determinadas personas naturales; | H30: PRESTACIÓN DE SERVICIOS PROFESIONALES PARA APOYAR AL ÁREA DE GESTIÓN DE DESARROLLO LOCAL, EN TEMAS SEGUIMIENTO DE LOS PROGRAMAS Y PROYECTOS DEL PLAN DE DESARROLLO LOCAL, ASÍ COMO DE LOS PROCESOS DE OBLIGACIONES POR PAGAR DEL FDLC | I30: Inversión | J30: Bogotá Mejor para Todos | K30: 45 | L30: =IF(ISERROR(VLOOKUP(K30,Eje_Pilar_Prop!$C$2:$E$104,2,FALSE))," ",VLOOKUP(K30,Eje_Pilar_Prop!$C$2:$E$104,2,FALSE)) -> Gobernanza e influencia local, regional e internacional | M30: =IF(ISERROR(VLOOKUP(K30,Eje_Pilar_Prop!$C$2:$E$104,3,FALSE))," ",VLOOKUP(K30,Eje_Pilar_Prop!$C$2:$E$104,3,FALSE)) -> Eje Transversal 4 Gobierno Legitimo, Fortalecimiento Local y Eficiencia | N30: 1395 | O30: 1010216582 | P30: WILSON ENRIQUE GARCIA VALDERRAMA | Q30: 15452000 | T30: 0 | U30: 0 | V30: 15452000 | W30: 15452000 | X30: 2020-02-20 | Y30: 2020-02-20 | Z30: 2020-06-19 | AA30: 120 | AK30: X | AL30: 1 | AM30: =IF(SUMPRODUCT((A$14:A30=A30)*(B$14:B30=B30)*(D$14:D30=D30))>1,0,1) -> 1 | AN30: Contratos de prestación de servicios profesionales y de apoyo a la gestión | AO30: Contratación directa | AP30: =IF(ISBLANK(G30),1,IFERROR(VLOOKUP(G30,Tipo!$C$12:$C$27,1,FALSE),"NO")) -> Prestación de servicios profesionales y de apoyo a la gestión, o para la ejecución de trabajos artísticos que sólo puedan encomendarse a determinadas personas naturales; | AQ30: Inversión | AR30: =IF(ISBLANK(K30),1,IFERROR(VLOOKUP(K30,Eje_Pilar_Prop!C12:C113,1,FALSE),"NO")) -> 45 | AS30: SECOP II | AT30: 1 | AU30: Bogotá Mejor para Todos
A31: 19 | B31: 2020 | C31: SECOP II | D31: FDLC-CPS-019-2020 | E31: Contratos de prestación de servicios profesionales y de apoyo a la gestión | F31: Contratación directa | G31: Prestación de servicios profesionales y de apoyo a la gestión, o para la ejecución de trabajos artísticos que sólo puedan encomendarse a determinadas personas naturales; | H31: PRESTAR SERVICIO ASISTENCIAL DE APOYO EN EL ÁREA DE GESTIÓN DE DESARROLLO LOCAL—CDI, PARA LA NOTIFICACIÓN DE CORRESPONDENCIA EN GENERAL | I31: Inversión | J31: Bogotá Mejor para Todos | K31: 45 | L31: =IF(ISERROR(VLOOKUP(K31,Eje_Pilar_Prop!$C$2:$E$104,2,FALSE))," ",VLOOKUP(K31,Eje_Pilar_Prop!$C$2:$E$104,2,FALSE)) -> Gobernanza e influencia local, regional e internacional | M31: =IF(ISERROR(VLOOKUP(K31,Eje_Pilar_Prop!$C$2:$E$104,3,FALSE))," ",VLOOKUP(K31,Eje_Pilar_Prop!$C$2:$E$104,3,FALSE)) -> Eje Transversal 4 Gobierno Legitimo, Fortalecimiento Local y Eficiencia | N31: 1395 | O31: 1122727530 | P31: JESSE JOSE VILLEGAS CABRERA | Q31: 9831392 | T31: 0 | U31: 0 | V31: 9831392 | W31: 9831392 | X31: 2020-02-21 | Y31: 2020-02-21 | Z31: 2020-06-20 | AA31: 120 | AK31: X | AL31: 1 | AM31: =IF(SUMPRODUCT((A$14:A31=A31)*(B$14:B31=B31)*(D$14:D31=D31))>1,0,1) -> 1 | AN31: Contratos de prestación de servicios profesionales y de apoyo a la gestión | AO31: Contratación directa | AP31: =IF(ISBLANK(G31),1,IFERROR(VLOOKUP(G31,Tipo!$C$12:$C$27,1,FALSE),"NO")) -> Prestación de servicios profesionales y de apoyo a la gestión, o para la ejecución de trabajos artísticos que sólo puedan encomendarse a determinadas personas naturales; | AQ31: Inversión | AR31: =IF(ISBLANK(K31),1,IFERROR(VLOOKUP(K31,Eje_Pilar_Prop!C13:C114,1,FALSE),"NO")) -> 45 | AS31: SECOP II | AT31: 1 | AU31: Bogotá Mejor para Todos
A32: 20 | B32: 2020 | C32: SECOP II | D32: FDLC-CPS-020-2020 | E32: Contratos de prestación de servicios profesionales y de apoyo a la gestión | F32: Contratación directa | G32: Prestación de servicios profesionales y de apoyo a la gestión, o para la ejecución de trabajos artísticos que sólo puedan encomendarse a determinadas personas naturales; | H32: PRESTACIÓN DE SERVICIOS PROFESIONALES PARA APOYAR TÉCNICAMENTE LAS DISTINTAS ETAPAS DE LOS PROCESOS DE COMPETENCIA DE LA ALCALDÍA LOCAL PARA LA DEPURACIÓN DE ACTUACIONES ADMINISTRATIVAS | I32: Inversión | J32: Bogotá Mejor para Todos | K32: 45 | L32: =IF(ISERROR(VLOOKUP(K32,Eje_Pilar_Prop!$C$2:$E$104,2,FALSE))," ",VLOOKUP(K32,Eje_Pilar_Prop!$C$2:$E$104,2,FALSE)) -> Gobernanza e influencia local, regional e internacional | M32: =IF(ISERROR(VLOOKUP(K32,Eje_Pilar_Prop!$C$2:$E$104,3,FALSE))," ",VLOOKUP(K32,Eje_Pilar_Prop!$C$2:$E$104,3,FALSE)) -> Eje Transversal 4 Gobierno Legitimo, Fortalecimiento Local y Eficiencia | N32: 1395 | O32: 79507928 | P32: FRANCISCO JAVIER HIGUERA NOVA | Q32: 17907180 | T32: 0 | U32: 0 | V32: 17907180 | W32: 17757950 | X32: 2020-02-21 | Y32: 2020-02-24 | Z32: 2020-06-23 | AA32: 120 | AK32: X | AL32: 0.9916664712 | AM32: =IF(SUMPRODUCT((A$14:A32=A32)*(B$14:B32=B32)*(D$14:D32=D32))>1,0,1) -> 1 | AN32: Contratos de prestación de servicios profesionales y de apoyo a la gestión | AO32: Contratación directa | AP32: =IF(ISBLANK(G32),1,IFERROR(VLOOKUP(G32,Tipo!$C$12:$C$27,1,FALSE),"NO")) -> Prestación de servicios profesionales y de apoyo a la gestión, o para la ejecución de trabajos artísticos que sólo puedan encomendarse a determinadas personas naturales; | AQ32: Inversión | AR32: =IF(ISBLANK(K32),1,IFERROR(VLOOKUP(K32,Eje_Pilar_Prop!C14:C115,1,FALSE),"NO")) -> 45 | AS32: SECOP II | AT32: 1 | AU32: Bogotá Mejor para Todos
A33: 21 | B33: 2020 | C33: SECOP II | D33: FDLC-CPS-021-2020 | E33: Contratos de prestación de servicios profesionales y de apoyo a la gestión | F33: Contratación directa | G33: Prestación de servicios profesionales y de apoyo a la gestión, o para la ejecución de trabajos artísticos que sólo puedan encomendarse a determinadas personas naturales; | H33: PRESTAR SUS SERVICIOS PROFESIONALES PARA APOYAR TÉCNICAMENTE A LOS RESPONSABLES E INTEGRANTES DE LOS PROCESOS EN LA IMPLEMENTACIÓN DE HERRAMIENTAS DE GESTIÓN, SIGUIENDO LOS LINEAMIENTOS METODOLÓGICOS ESTABLECIDOS POR LA OFICINA ASESORA DE PLANEACIÓN DE LA SECRETARÍA DISTRITAL DE GOBIERNO | I33: Inversión | J33: Bogotá Mejor para Todos | K33: 45 | L33: =IF(ISERROR(VLOOKUP(K33,Eje_Pilar_Prop!$C$2:$E$104,2,FALSE))," ",VLOOKUP(K33,Eje_Pilar_Prop!$C$2:$E$104,2,FALSE)) -> Gobernanza e influencia local, regional e internacional | M33: =IF(ISERROR(VLOOKUP(K33,Eje_Pilar_Prop!$C$2:$E$104,3,FALSE))," ",VLOOKUP(K33,Eje_Pilar_Prop!$C$2:$E$104,3,FALSE)) -> Eje Transversal 4 Gobierno Legitimo, Fortalecimiento Local y Eficiencia | N33: 1395 | O33: 67031659 | P33: DIANA CAROLINA GUAPACHA TOVAR | Q33: 16800000 | T33: 0 | V33: 16800000 | W33: 16800000 | X33: 2020-02-27 | Y33: 2020-02-27 | Z33: 2020-06-26 | AA33: 120 | AK33: X | AL33: 1 | AM33: =IF(SUMPRODUCT((A$14:A33=A33)*(B$14:B33=B33)*(D$14:D33=D33))>1,0,1) -> 1 | AN33: Contratos de prestación de servicios profesionales y de apoyo a la gestión | AO33: Contratación directa | AP33: =IF(ISBLANK(G33),1,IFERROR(VLOOKUP(G33,Tipo!$C$12:$C$27,1,FALSE),"NO")) -> Prestación de servicios profesionales y de apoyo a la gestión, o para la ejecución de trabajos artísticos que sólo puedan encomendarse a determinadas personas naturales; | AQ33: Inversión | AR33: =IF(ISBLANK(K33),1,IFERROR(VLOOKUP(K33,Eje_Pilar_Prop!C15:C116,1,FALSE),"NO")) -> 45 | AS33: SECOP II | AT33: 1 | AU33: Bogotá Mejor para Todos
A34: 22 | B34: 2020 | C34: SECOP II | D34: FDLC-CPS-022*-2020 | E34: Contratos de prestación de servicios profesionales y de apoyo a la gestión | F34: Contratación directa | G34: Prestación de servicios profesionales y de apoyo a la gestión, o para la ejecución de trabajos artísticos que sólo puedan encomendarse a determinadas personas naturales; | H34: PRESTAR SERVICIO ASISTENCIAL DE APOYO EN EL ÁREA DE GESTIÓN DE DESARROLLO LOCAL—CDI, PARA LA NOTIFICACIÓN DE CORRESPONDENCIA EN GENERAL | I34: Inversión | J34: Bogotá Mejor para Todos | K34: 45 | L34: =IF(ISERROR(VLOOKUP(K34,Eje_Pilar_Prop!$C$2:$E$104,2,FALSE))," ",VLOOKUP(K34,Eje_Pilar_Prop!$C$2:$E$104,2,FALSE)) -> Gobernanza e influencia local, regional e internacional | M34: =IF(ISERROR(VLOOKUP(K34,Eje_Pilar_Prop!$C$2:$E$104,3,FALSE))," ",VLOOKUP(K34,Eje_Pilar_Prop!$C$2:$E$104,3,FALSE)) -> Eje Transversal 4 Gobierno Legitimo, Fortalecimiento Local y Eficiencia | N34: 1395 | O34: 51940511 | P34: ALEIDA CRUZ GRANADA | Q34: 9831392 | T34: 0 | V34: 9831392 | W34: 9831384 | X34: 2020-03-02 | Y34: 2020-03-04 | Z34: 2020-07-03 | AA34: 120 | AK34: X | AL34: 0.9999991863 | AM34: =IF(SUMPRODUCT((A$14:A34=A34)*(B$14:B34=B34)*(D$14:D34=D34))>1,0,1) -> 1 | AN34: Contratos de prestación de servicios profesionales y de apoyo a la gestión | AO34: Contratación directa | AP34: =IF(ISBLANK(G34),1,IFERROR(VLOOKUP(G34,Tipo!$C$12:$C$27,1,FALSE),"NO")) -> Prestación de servicios profesionales y de apoyo a la gestión, o para la ejecución de trabajos artísticos que sólo puedan encomendarse a determinadas personas naturales; | AQ34: Inversión | AR34: =IF(ISBLANK(K34),1,IFERROR(VLOOKUP(K34,Eje_Pilar_Prop!C16:C117,1,FALSE),"NO")) -> 45 | AS34: SECOP II | AU34: Bogotá Mejor para Todos
A35: 23 | B35: 2020 | C35: SECOP II | D35: FDLC-CPS-023-2020 | E35: Contratos de prestación de servicios profesionales y de apoyo a la gestión | F35: Contratación directa | G35: Prestación de servicios profesionales y de apoyo a la gestión, o para la ejecución de trabajos artísticos que sólo puedan encomendarse a determinadas personas naturales; | H35: PRESTACIÓN DE SERVICIOS PARA APOYAR LAS LABORES DE ENTREGA Y RECIBO DE LAS COMUNICACIONES EMITIDAS POR LA INSPECCIÓN DE POLICÍA DE LA LOCALIDAD | I35: Inversión | J35: Bogotá Mejor para Todos | K35: 45 | L35: =IF(ISERROR(VLOOKUP(K35,Eje_Pilar_Prop!$C$2:$E$104,2,FALSE))," ",VLOOKUP(K35,Eje_Pilar_Prop!$C$2:$E$104,2,FALSE)) -> Gobernanza e influencia local, regional e internacional | M35: =IF(ISERROR(VLOOKUP(K35,Eje_Pilar_Prop!$C$2:$E$104,3,FALSE))," ",VLOOKUP(K35,Eje_Pilar_Prop!$C$2:$E$104,3,FALSE)) -> Eje Transversal 4 Gobierno Legitimo, Fortalecimiento Local y Eficiencia | N35: 1395 | O35: 1022956077 | P35: JARRY EMERSON RIAÑO DELGADO | Q35: 9831393 | T35: 0 | V35: 9831393 | W35: 9749464 | X35: 2020-02-28 | Y35: 2020-02-28 | Z35: 2020-06-27 | AA35: 120 | AK35: X | AL35: 0.9916665929 | AM35: =IF(SUMPRODUCT((A$14:A35=A35)*(B$14:B35=B35)*(D$14:D35=D35))>1,0,1) -> 1 | AN35: Contratos de prestación de servicios profesionales y de apoyo a la gestión | AO35: Contratación directa | AP35: =IF(ISBLANK(G35),1,IFERROR(VLOOKUP(G35,Tipo!$C$12:$C$27,1,FALSE),"NO")) -> Prestación de servicios profesionales y de apoyo a la gestión, o para la ejecución de trabajos artísticos que sólo puedan encomendarse a determinadas personas naturales; | AQ35: Inversión | AR35: =IF(ISBLANK(K35),1,IFERROR(VLOOKUP(K35,Eje_Pilar_Prop!C17:C118,1,FALSE),"NO")) -> 45 | AS35: SECOP II | AT35: 1 | AU35: Bogotá Mejor para Todos
A36: 24 | B36: 2020 | C36: SECOP II | D36: FDLC-CPS-024-2020 | E36: Contratos de prestación de servicios profesionales y de apoyo a la gestión | F36: Contratación directa | G36: Prestación de servicios profesionales y de apoyo a la gestión, o para la ejecución de trabajos artísticos que sólo puedan encomendarse a determinadas personas naturales; | H36: PRESTACIÓN DE SERVICIOS PROFESIONALES PARA APOYAR TÉCNICAMENTE LAS DISTINTAS ETAPAS DE LOS PROCESOS DE COMPETENCIA DE LA ALCALDÍA LOCAL PARA LA DEPURACIÓN DE ACTUACIONES ADMINISTRATIVAS | I36: Inversión | J36: Bogotá Mejor para Todos | K36: 45 | L36: =IF(ISERROR(VLOOKUP(K36,Eje_Pilar_Prop!$C$2:$E$104,2,FALSE))," ",VLOOKUP(K36,Eje_Pilar_Prop!$C$2:$E$104,2,FALSE)) -> Gobernanza e influencia local, regional e internacional | M36: =IF(ISERROR(VLOOKUP(K36,Eje_Pilar_Prop!$C$2:$E$104,3,FALSE))," ",VLOOKUP(K36,Eje_Pilar_Prop!$C$2:$E$104,3,FALSE)) -> Eje Transversal 4 Gobierno Legitimo, Fortalecimiento Local y Eficiencia | N36: 1395 | O36: 13718198 | P36: OSCAR JULIAN DUARTE CUBILLOS | Q36: 17907180 | T36: 0 | V36: 17907180 | W36: 17907180 | X36: 2020-02-28 | Y36: 2020-03-02 | Z36: 2020-07-01 | AA36: 120 | AK36: X | AL36: 1 | AM36: =IF(SUMPRODUCT((A$14:A36=A36)*(B$14:B36=B36)*(D$14:D36=D36))>1,0,1) -> 1 | AN36: Contratos de prestación de servicios profesionales y de apoyo a la gestión | AO36: Contratación directa | AP36: =IF(ISBLANK(G36),1,IFERROR(VLOOKUP(G36,Tipo!$C$12:$C$27,1,FALSE),"NO")) -> Prestación de servicios profesionales y de apoyo a la gestión, o para la ejecución de trabajos artísticos que sólo puedan encomendarse a determinadas personas naturales; | AQ36: Inversión | AR36: =IF(ISBLANK(K36),1,IFERROR(VLOOKUP(K36,Eje_Pilar_Prop!C18:C119,1,FALSE),"NO")) -> 45 | AS36: SECOP II | AT36: 1 | AU36: Bogotá Mejor para Todos
A37: 25 | B37: 2020 | C37: SECOP II | D37: FDLC-CPS-025-2020 | E37: Contratos de prestación de servicios profesionales y de apoyo a la gestión | F37: Contratación directa | G37: Prestación de servicios profesionales y de apoyo a la gestión, o para la ejecución de trabajos artísticos que sólo puedan encomendarse a determinadas personas naturales; | H37: PRESTAR SERVICIOS DE APOYO COMO CONDUCTOR DE LOS VEHICULOS QUE SE ENCUENTRAN A CARGO DEL FONDO DE DESARROLLO LOCAL LA CANDELARIA | I37: Inversión | J37: Bogotá Mejor para Todos | K37: 45 | L37: =IF(ISERROR(VLOOKUP(K37,Eje_Pilar_Prop!$C$2:$E$104,2,FALSE))," ",VLOOKUP(K37,Eje_Pilar_Prop!$C$2:$E$104,2,FALSE)) -> Gobernanza e influencia local, regional e internacional | M37: =IF(ISERROR(VLOOKUP(K37,Eje_Pilar_Prop!$C$2:$E$104,3,FALSE))," ",VLOOKUP(K37,Eje_Pilar_Prop!$C$2:$E$104,3,FALSE)) -> Eje Transversal 4 Gobierno Legitimo, Fortalecimiento Local y Eficiencia | N37: 1395 | O37: 79951133 | P37: WILSON HAISBER RAMIREZ REINA | Q37: 9831392 | T37: 0 | V37: 9831392 | W37: 9831392 | X37: 2020-03-02 | Y37: 2020-03-03 | Z37: 2020-07-02 | AA37: 120 | AK37: X | AL37: 1 | AM37: =IF(SUMPRODUCT((A$14:A37=A37)*(B$14:B37=B37)*(D$14:D37=D37))>1,0,1) -> 1 | AN37: Contratos de prestación de servicios profesionales y de apoyo a la gestión | AO37: Contratación directa | AP37: =IF(ISBLANK(G37),1,IFERROR(VLOOKUP(G37,Tipo!$C$12:$C$27,1,FALSE),"NO")) -> Prestación de servicios profesionales y de apoyo a la gestión, o para la ejecución de trabajos artísticos que sólo puedan encomendarse a determinadas personas naturales; | AQ37: Inversión | AR37: =IF(ISBLANK(K37),1,IFERROR(VLOOKUP(K37,Eje_Pilar_Prop!C19:C120,1,FALSE),"NO")) -> 45 | AS37: SECOP II | AT37: 1 | AU37: Bogotá Mejor para Todos
A38: 26 | B38: 2020 | C38: SECOP II | D38: FDLC-CPS-026-2020 | E38: Contratos de prestación de servicios profesionales y de apoyo a la gestión | F38: Contratación directa | G38: Prestación de servicios profesionales y de apoyo a la gestión, o para la ejecución de trabajos artísticos que sólo puedan encomendarse a determinadas personas naturales; | H38: PRESTACIÓN DE SERVICIOS PROFESIONALES PARA APOYAR JURÍDICAMENTE LA EJECUCIÓN DE LAS ACCIONES REQUERIDAS PARA LA DEPURACIÓN DE LAS ACTUACIONES ADMINISTRATIVAS QUE CURSAN EN LA ALCALDÍA LOCAL | I38: Inversión | J38: Bogotá Mejor para Todos | K38: 45 | L38: =IF(ISERROR(VLOOKUP(K38,Eje_Pilar_Prop!$C$2:$E$104,2,FALSE))," ",VLOOKUP(K38,Eje_Pilar_Prop!$C$2:$E$104,2,FALSE)) -> Gobernanza e influencia local, regional e internacional | M38: =IF(ISERROR(VLOOKUP(K38,Eje_Pilar_Prop!$C$2:$E$104,3,FALSE))," ",VLOOKUP(K38,Eje_Pilar_Prop!$C$2:$E$104,3,FALSE)) -> Eje Transversal 4 Gobierno Legitimo, Fortalecimiento Local y Eficiencia | N38: 1395 | O38: 79691880 | P38: JORGE ELIECER DURAN CONSUEGRA | Q38: 17907181 | T38: 0 | V38: 17907181 | W38: 17907180 | X38: 2020-03-03 | Y38: 2020-03-03 | Z38: 2020-07-02 | AA38: 120 | AK38: X | AL38: 0.9999999442 | AM38: =IF(SUMPRODUCT((A$14:A38=A38)*(B$14:B38=B38)*(D$14:D38=D38))>1,0,1) -> 1 | AN38: Contratos de prestación de servicios profesionales y de apoyo a la gestión | AO38: Contratación directa | AP38: =IF(ISBLANK(G38),1,IFERROR(VLOOKUP(G38,Tipo!$C$12:$C$27,1,FALSE),"NO")) -> Prestación de servicios profesionales y de apoyo a la gestión, o para la ejecución de trabajos artísticos que sólo puedan encomendarse a determinadas personas naturales; | AQ38: Inversión | AR38: =IF(ISBLANK(K38),1,IFERROR(VLOOKUP(K38,Eje_Pilar_Prop!C20:C121,1,FALSE),"NO")) -> 45 | AS38: SECOP II | AT38: 1 | AU38: Bogotá Mejor para Todos
A39: 27 | B39: 2020 | C39: SECOP II | D39: FDCLC-CPS-027-2020 | E39: Contratos de prestación de servicios profesionales y de apoyo a la gestión | F39: Contratación directa | G39: Prestación de servicios profesionales y de apoyo a la gestión, o para la ejecución de trabajos artísticos que sólo puedan encomendarse a determinadas personas naturales; | H39: PRESTACIÓN DE SERVICIOS DE APOYO TÉCNICO EN LA ADMINISTRACIÓN DE LAS CASAS COMUNITARIAS DE LA LOCALIDAD DE LA CANDELARIA DE CONFORMIDAD CON EL ACUERDO LOCAL 006 DE 2013 | I39: Inversión | J39: Bogotá Mejor para Todos | K39: 45 | L39: =IF(ISERROR(VLOOKUP(K39,Eje_Pilar_Prop!$C$2:$E$104,2,FALSE))," ",VLOOKUP(K39,Eje_Pilar_Prop!$C$2:$E$104,2,FALSE)) -> Gobernanza e influencia local, regional e internacional | M39: =IF(ISERROR(VLOOKUP(K39,Eje_Pilar_Prop!$C$2:$E$104,3,FALSE))," ",VLOOKUP(K39,Eje_Pilar_Prop!$C$2:$E$104,3,FALSE)) -> Eje Transversal 4 Gobierno Legitimo, Fortalecimiento Local y Eficiencia | N39: 1395 | O39: 51653505 | P39: DORA CECILIA JIMENEZ MORENO | Q39: 11587000 | T39: 0 | V39: 11587000 | W39: 11393393 | X39: 2020-03-03 | Y39: 2020-03-03 | Z39: 2020-07-02 | AA39: 120 | AJ39: X | AL39: 0.9832910158 | AM39: =IF(SUMPRODUCT((A$14:A39=A39)*(B$14:B39=B39)*(D$14:D39=D39))>1,0,1) -> 1 | AN39: Contratos de prestación de servicios profesionales y de apoyo a la gestión | AO39: Contratación directa | AP39: =IF(ISBLANK(G39),1,IFERROR(VLOOKUP(G39,Tipo!$C$12:$C$27,1,FALSE),"NO")) -> Prestación de servicios profesionales y de apoyo a la gestión, o para la ejecución de trabajos artísticos que sólo puedan encomendarse a determinadas personas naturales; | AQ39: Inversión | AR39: =IF(ISBLANK(K39),1,IFERROR(VLOOKUP(K39,Eje_Pilar_Prop!C21:C122,1,FALSE),"NO")) -> 45 | AS39: SECOP II | AT39: 1 | AU39: Bogotá Mejor para Todos
A40: 28 | B40: 2020 | C40: SECOP II | D40: FDLC-CPS-028-2020 | E40: Contratos de prestación de servicios profesionales y de apoyo a la gestión | F40: Contratación directa | G40: Prestación de servicios profesionales y de apoyo a la gestión, o para la ejecución de trabajos artísticos que sólo puedan encomendarse a determinadas personas naturales; | H40: PRESTACIÓN DE SERVICIOS DE APOYO TÉCNICO EN LA ADMINISTRACIÓN DE LAS CASAS COMUNITARIAS DE LA LOCALIDAD DE LA CANDELARIA DE CONFORMIDAD CON EL ACUERDO LOCAL 006 DE 2013 | I40: Inversión | J40: Bogotá Mejor para Todos | K40: 45 | L40: =IF(ISERROR(VLOOKUP(K40,Eje_Pilar_Prop!$C$2:$E$104,2,FALSE))," ",VLOOKUP(K40,Eje_Pilar_Prop!$C$2:$E$104,2,FALSE)) -> Gobernanza e influencia local, regional e internacional | M40: =IF(ISERROR(VLOOKUP(K40,Eje_Pilar_Prop!$C$2:$E$104,3,FALSE))," ",VLOOKUP(K40,Eje_Pilar_Prop!$C$2:$E$104,3,FALSE)) -> Eje Transversal 4 Gobierno Legitimo, Fortalecimiento Local y Eficiencia | N40: 1395 | O40: 52219649 | P40: INDIRA BETANCOURT MACUASE | Q40: 11587000 | T40: 0 | V40: 11587000 | W40: 11587000 | X40: 2020-03-03 | Y40: 2020-03-03 | Z40: 2020-07-02 | AA40: 120 | AK40: X | AL40: 1 | AM40: =IF(SUMPRODUCT((A$14:A40=A40)*(B$14:B40=B40)*(D$14:D40=D40))>1,0,1) -> 1 | AN40: Contratos de prestación de servicios profesionales y de apoyo a la gestión | AO40: Contratación directa | AP40: =IF(ISBLANK(G40),1,IFERROR(VLOOKUP(G40,Tipo!$C$12:$C$27,1,FALSE),"NO")) -> Prestación de servicios profesionales y de apoyo a la gestión, o para la ejecución de trabajos artísticos que sólo puedan encomendarse a determinadas personas naturales; | AQ40: Inversión | AR40: =IF(ISBLANK(K40),1,IFERROR(VLOOKUP(K40,Eje_Pilar_Prop!C22:C123,1,FALSE),"NO")) -> 45 | AS40: SECOP II | AT40: 1 | AU40: Bogotá Mejor para Todos
A41: 29 | B41: 2020 | C41: SECOP II | D41: FDLC-CPS-029-2020 | E41: Contratos de prestación de servicios profesionales y de apoyo a la gestión | F41: Contratación directa | G41: Prestación de servicios profesionales y de apoyo a la gestión, o para la ejecución de trabajos artísticos que sólo puedan encomendarse a determinadas personas naturales; | H41: PRESTACIÓN DE SERVICIOS PROFESIONALES PARA APOYAR JURÍDICAMENTE LA EJECUCIÓN DE LAS ACCIONES REQUERIDAS PARA LA DEPURACIÓN DE LAS ACTUACIONES ADMINISTRATIVAS QUE CURSAN EN LA ALCALDÍA LOCAL | I41: Inversión | J41: Bogotá Mejor para Todos | K41: 45 | L41: =IF(ISERROR(VLOOKUP(K41,Eje_Pilar_Prop!$C$2:$E$104,2,FALSE))," ",VLOOKUP(K41,Eje_Pilar_Prop!$C$2:$E$104,2,FALSE)) -> Gobernanza e influencia local, regional e internacional | M41: =IF(ISERROR(VLOOKUP(K41,Eje_Pilar_Prop!$C$2:$E$104,3,FALSE))," ",VLOOKUP(K41,Eje_Pilar_Prop!$C$2:$E$104,3,FALSE)) -> Eje Transversal 4 Gobierno Legitimo, Fortalecimiento Local y Eficiencia | N41: 1395 | O41: 41794885 | P41: TERESA HERREÑO SOLANO | Q41: 17907180 | T41: 0 | V41: 17907180 | W41: 17907180 | X41: 2020-03-03 | Y41: 2020-03-03 | Z41: 2020-07-02 | AA41: 120 | AK41: X | AL41: 1 | AM41: =IF(SUMPRODUCT((A$14:A41=A41)*(B$14:B41=B41)*(D$14:D41=D41))>1,0,1) -> 1 | AN41: Contratos de prestación de servicios profesionales y de apoyo a la gestión | AO41: Contratación directa | AP41: =IF(ISBLANK(G41),1,IFERROR(VLOOKUP(G41,Tipo!$C$12:$C$27,1,FALSE),"NO")) -> Prestación de servicios profesionales y de apoyo a la gestión, o para la ejecución de trabajos artísticos que sólo puedan encomendarse a determinadas personas naturales; | AQ41: Inversión | AR41: =IF(ISBLANK(K41),1,IFERROR(VLOOKUP(K41,Eje_Pilar_Prop!C23:C124,1,FALSE),"NO")) -> 45 | AS41: SECOP II | AT41: 1 | AU41: Bogotá Mejor para Todos
A42: 30 | B42: 2020 | C42: SECOP II | D42: FDLC-CPS-030-2020 | E42: Contratos de prestación de servicios profesionales y de apoyo a la gestión | F42: Contratación directa | G42: Prestación de servicios profesionales y de apoyo a la gestión, o para la ejecución de trabajos artísticos que sólo puedan encomendarse a determinadas personas naturales; | H42: PRESTACIÓN DE SERVICIOS PROFESIONALES PARA APOYAR JURÍDICAMENTE LA EJECUCIÓN DE LAS ACCIONES REQUERIDAS PARA LA DEPURACIÓN DE LAS ACTUACIONES ADMINISTRATIVAS QUE CURSAN EN LA ALCALDÍA LOCAL | I42: Inversión | J42: Bogotá Mejor para Todos | K42: 45 | L42: =IF(ISERROR(VLOOKUP(K42,Eje_Pilar_Prop!$C$2:$E$104,2,FALSE))," ",VLOOKUP(K42,Eje_Pilar_Prop!$C$2:$E$104,2,FALSE)) -> Gobernanza e influencia local, regional e internacional | M42: =IF(ISERROR(VLOOKUP(K42,Eje_Pilar_Prop!$C$2:$E$104,3,FALSE))," ",VLOOKUP(K42,Eje_Pilar_Prop!$C$2:$E$104,3,FALSE)) -> Eje Transversal 4 Gobierno Legitimo, Fortalecimiento Local y Eficiencia | N42: 1395 | O42: 1018433933 51875915 | P42: CINDY MERCEDES GOMEZ GUERRERO CEDIDO A LUZ SOFIA AMAYA CASTAÑEDA A PARTIR DEL 1 DE JUNIO DE 2020 | Q42: 17907181 | T42: 0 | V42: 17907181 | W42: 17907181 | X42: 2020-03-03 | Y42: 2020-03-03 | Z42: 2020-07-02 | AA42: 120 | AD42: 51875915 | AE42: LUZ SOFIA AMAYA | AF42: 2020-06-01 | AG42: 4476795 | AK42: X | AL42: 1 | AM42: =IF(SUMPRODUCT((A$14:A42=A42)*(B$14:B42=B42)*(D$14:D42=D42))>1,0,1) -> 1 | AN42: Contratos de prestación de servicios profesionales y de apoyo a la gestión | AO42: Contratación directa | AP42: =IF(ISBLANK(G42),1,IFERROR(VLOOKUP(G42,Tipo!$C$12:$C$27,1,FALSE),"NO")) -> Prestación de servicios profesionales y de apoyo a la gestión, o para la ejecución de trabajos artísticos que sólo puedan encomendarse a determinadas personas naturales; | AQ42: Inversión | AR42: =IF(ISBLANK(K42),1,IFERROR(VLOOKUP(K42,Eje_Pilar_Prop!C24:C125,1,FALSE),"NO")) -> 45 | AS42: SECOP II | AT42: 1 | AU42: Bogotá Mejor para Todos
A43: 31 | B43: 2020 | C43: SECOP II | D43: FDLC-CPS-031-2020 | E43: Contratos de prestación de servicios profesionales y de apoyo a la gestión | F43: Contratación directa | G43: Prestación de servicios profesionales y de apoyo a la gestión, o para la ejecución de trabajos artísticos que sólo puedan encomendarse a determinadas personas naturales; | H43: PRESTAR SERVICIOS DE APOYO ADMINISTRATIVO Y ASISTENCIAL AL ÁREA DE GESTIÓN DE DESARROLLO LOCAL, EN LOS PROCESOS DE COMPETENCIA DE LA OFICINA DE PLANEACIÓN DE LA ALCALDÍA LOCAL DE LA CANDELARIA | I43: Inversión | J43: Bogotá Mejor para Todos | K43: 45 | L43: =IF(ISERROR(VLOOKUP(K43,Eje_Pilar_Prop!$C$2:$E$104,2,FALSE))," ",VLOOKUP(K43,Eje_Pilar_Prop!$C$2:$E$104,2,FALSE)) -> Gobernanza e influencia local, regional e internacional | M43: =IF(ISERROR(VLOOKUP(K43,Eje_Pilar_Prop!$C$2:$E$104,3,FALSE))," ",VLOOKUP(K43,Eje_Pilar_Prop!$C$2:$E$104,3,FALSE)) -> Eje Transversal 4 Gobierno Legitimo, Fortalecimiento Local y Eficiencia | N43: 1395 | O43: 1010198763 | P43: Carlos Mauricio Palomar Covaleda | Q43: 7020000 | T43: 0 | U43: 0 | V43: 7020000 | W43: 7019500 | X43: 2020-03-04 | Y43: 2020-03-04 | Z43: 2020-07-03 | AA43: 120 | AK43: X | AL43: 0.9999287749 | AM43: =IF(SUMPRODUCT((A$14:A43=A43)*(B$14:B43=B43)*(D$14:D43=D43))>1,0,1) -> 1 | AN43: Contratos de prestación de servicios profesionales y de apoyo a la gestión | AO43: Contratación directa | AP43: =IF(ISBLANK(G43),1,IFERROR(VLOOKUP(G43,Tipo!$C$12:$C$27,1,FALSE),"NO")) -> Prestación de servicios profesionales y de apoyo a la gestión, o para la ejecución de trabajos artísticos que sólo puedan encomendarse a determinadas personas naturales; | AQ43: Inversión | AR43: =IF(ISBLANK(K43),1,IFERROR(VLOOKUP(K43,Eje_Pilar_Prop!C25:C126,1,FALSE),"NO")) -> 45 | AS43: SECOP II | AT43: 1 | AU43: Bogotá Mejor para Todos
A44: 32 | B44: 2020 | C44: SECOP II | D44: FDLC-CPS-032-2020 | E44: Contratos de prestación de servicios | F44: Contratación directa | G44: Prestación de servicios profesionales y de apoyo a la gestión, o para la ejecución de trabajos artísticos que sólo puedan encomendarse a determinadas personas naturales; | H44: PRESTAR SERVICIOS DE APOYO ADMINISTRATIVO Y ASISTENCIAL AL ÁREA DE GESTIÓN DE DESARROLLO LOCAL, EN LOS PROCESOS DE COMPETENCIA DE LA OFICINA DE PLANEACIÓN DE LA ALCALDÍA LOCAL DE LA CANDELARIA | I44: Inversión | J44: Bogotá Mejor para Todos | K44: 45 | L44: =IF(ISERROR(VLOOKUP(K44,Eje_Pilar_Prop!$C$2:$E$104,2,FALSE))," ",VLOOKUP(K44,Eje_Pilar_Prop!$C$2:$E$104,2,FALSE)) -> Gobernanza e influencia local, regional e internacional | M44: =IF(ISERROR(VLOOKUP(K44,Eje_Pilar_Prop!$C$2:$E$104,3,FALSE))," ",VLOOKUP(K44,Eje_Pilar_Prop!$C$2:$E$104,3,FALSE)) -> Eje Transversal 4 Gobierno Legitimo, Fortalecimiento Local y Eficiencia | N44: 1395 | O44: 1000575536 | P44: JUAN CAMILO HERRERA FRANCO | Q44: 7020000 | T44: 0 | V44: 7020000 | W44: 6844500 | X44: 2020-03-04 | Y44: 2020-03-04 | Z44: 2020-07-03 | AA44: 120 | AK44: X | AL44: 0.975 | AM44: =IF(SUMPRODUCT((A$14:A44=A44)*(B$14:B44=B44)*(D$14:D44=D44))>1,0,1) -> 1 | AN44: Contratos de prestación de servicios | AO44: Contratación directa | AP44: =IF(ISBLANK(G44),1,IFERROR(VLOOKUP(G44,Tipo!$C$12:$C$27,1,FALSE),"NO")) -> Prestación de servicios profesionales y de apoyo a la gestión, o para la ejecución de trabajos artísticos que sólo puedan encomendarse a determinadas personas naturales; | AQ44: Inversión | AR44: =IF(ISBLANK(K44),1,IFERROR(VLOOKUP(K44,Eje_Pilar_Prop!C26:C127,1,FALSE),"NO")) -> 45 | AS44: SECOP II | AT44: 1 | AU44: Bogotá Mejor para Todos
A45: 33 | B45: 2020 | C45: SECOP II | D45: FDLC-CPS-033-2020 | E45: Contratos de prestación de servicios profesionales y de apoyo a la gestión | F45: Contratación directa | G45: Prestación de servicios profesionales y de apoyo a la gestión, o para la ejecución de trabajos artísticos que sólo puedan encomendarse a determinadas personas naturales; | H45: PRESTAR SERVICIOS DE APOYO COMO CONDUCTOR DE LOS VEHICULOS QUE SE ENCUENTRAN A CARGO DEL FONDO DE DESARROLLO LOCAL LA CANDELARIA | I45: Inversión | J45: Bogotá Mejor para Todos | K45: 45 | L45: =IF(ISERROR(VLOOKUP(K45,Eje_Pilar_Prop!$C$2:$E$104,2,FALSE))," ",VLOOKUP(K45,Eje_Pilar_Prop!$C$2:$E$104,2,FALSE)) -> Gobernanza e influencia local, regional e internacional | M45: =IF(ISERROR(VLOOKUP(K45,Eje_Pilar_Prop!$C$2:$E$104,3,FALSE))," ",VLOOKUP(K45,Eje_Pilar_Prop!$C$2:$E$104,3,FALSE)) -> Eje Transversal 4 Gobierno Legitimo, Fortalecimiento Local y Eficiencia | N45: 1395 | O45: 79381970 | P45: FERNANDO FORERO BRESNEIDER | Q45: 9831392 | T45: 0 | V45: 9831392 | W45: 9831392 | X45: 2020-03-04 | Y45: 2020-03-04 | Z45: 2020-07-03 | AA45: 120 | AK45: X | AL45: 1 | AM45: =IF(SUMPRODUCT((A$14:A45=A45)*(B$14:B45=B45)*(D$14:D45=D45))>1,0,1) -> 1 | AN45: Contratos de prestación de servicios profesionales y de apoyo a la gestión | AO45: Contratación directa | AP45: =IF(ISBLANK(G45),1,IFERROR(VLOOKUP(G45,Tipo!$C$12:$C$27,1,FALSE),"NO")) -> Prestación de servicios profesionales y de apoyo a la gestión, o para la ejecución de trabajos artísticos que sólo puedan encomendarse a determinadas personas naturales; | AQ45: Inversión | AR45: =IF(ISBLANK(K45),1,IFERROR(VLOOKUP(K45,Eje_Pilar_Prop!C27:C128,1,FALSE),"NO")) -> 45 | AS45: SECOP II | AT45: 1 | AU45: Bogotá Mejor para Todos
A46: 34 | B46: 2020 | C46: SECOP II | D46: FDLC-CPS-034-2020 | E46: Contratos de prestación de servicios profesionales y de apoyo a la gestión | F46: Contratación directa | G46: Prestación de servicios profesionales y de apoyo a la gestión, o para la ejecución de trabajos artísticos que sólo puedan encomendarse a determinadas personas naturales; | H46: PRESTACIÓN DE SERVICIOS PROFESIONALES PARA APOYAR JURÍDICAMENTE LA EJECUCIÓN DE LAS ACCIONES REQUERIDAS PARA LA DEPURACIÓN DE LAS ACTUACIONES ADMINISTRATIVAS QUE CURSAN EN LA ALCALDÍA LOCAL | I46: Inversión | J46: Bogotá Mejor para Todos | K46: 45 | L46: =IF(ISERROR(VLOOKUP(K46,Eje_Pilar_Prop!$C$2:$E$104,2,FALSE))," ",VLOOKUP(K46,Eje_Pilar_Prop!$C$2:$E$104,2,FALSE)) -> Gobernanza e influencia local, regional e internacional | M46: =IF(ISERROR(VLOOKUP(K46,Eje_Pilar_Prop!$C$2:$E$104,3,FALSE))," ",VLOOKUP(K46,Eje_Pilar_Prop!$C$2:$E$104,3,FALSE)) -> Eje Transversal 4 Gobierno Legitimo, Fortalecimiento Local y Eficiencia | N46: 1395 | O46: 32645897 | P46: Miryam Esther Lopez Rodriguez | Q46: 17907180 | T46: 0 | U46: 0 | V46: 17907180 | W46: 17906580 | X46: 2020-03-05 | Y46: 2020-03-05 | Z46: 2020-07-04 | AA46: 120 | AK46: X | AL46: 0.9999664939 | AM46: =IF(SUMPRODUCT((A$14:A46=A46)*(B$14:B46=B46)*(D$14:D46=D46))>1,0,1) -> 1 | AN46: Contratos de prestación de servicios profesionales y de apoyo a la gestión | AO46: Contratación directa | AP46: =IF(ISBLANK(G46),1,IFERROR(VLOOKUP(G46,Tipo!$C$12:$C$27,1,FALSE),"NO")) -> Prestación de servicios profesionales y de apoyo a la gestión, o para la ejecución de trabajos artísticos que sólo puedan encomendarse a determinadas personas naturales; | AQ46: Inversión | AR46: =IF(ISBLANK(K46),1,IFERROR(VLOOKUP(K46,Eje_Pilar_Prop!C28:C129,1,FALSE),"NO")) -> 45 | AS46: SECOP II | AT46: 1 | AU46: Bogotá Mejor para Todos
A47: 35 | B47: 2020 | C47: SECOP II | D47: FDLC-CPS-035-2020 | E47: Contratos de prestación de servicios profesionales y de apoyo a la gestión | F47: Contratación directa | G47: Prestación de servicios profesionales y de apoyo a la gestión, o para la ejecución de trabajos artísticos que sólo puedan encomendarse a determinadas personas naturales; | H47: PRESTACIÓN DE SERVICIOS DE APOYO TÉCNICO EN LA ADMINISTRACIÓN DE LAS CASAS COMUNITARIAS DE LA LOCALIDAD DE LA CANDELARIA DE CONFORMIDAD CON EL ACUERDO LOCAL 006 DE 2013 | I47: Inversión | J47: Bogotá Mejor para Todos | K47: 45 | L47: =IF(ISERROR(VLOOKUP(K47,Eje_Pilar_Prop!$C$2:$E$104,2,FALSE))," ",VLOOKUP(K47,Eje_Pilar_Prop!$C$2:$E$104,2,FALSE)) -> Gobernanza e influencia local, regional e internacional | M47: =IF(ISERROR(VLOOKUP(K47,Eje_Pilar_Prop!$C$2:$E$104,3,FALSE))," ",VLOOKUP(K47,Eje_Pilar_Prop!$C$2:$E$104,3,FALSE)) -> Eje Transversal 4 Gobierno Legitimo, Fortalecimiento Local y Eficiencia | N47: 1395 | O47: 41503480 | P47: AURA ALICIA ZAMBRANO LOPEZ | Q47: 11587000 | T47: 0 | V47: 11587000 | W47: 11104215 | X47: 2020-03-06 | Y47: 2020-03-06 | Z47: 2020-07-05 | AA47: 120 | AK47: X | AL47: 0.9583339087 | AM47: =IF(SUMPRODUCT((A$14:A47=A47)*(B$14:B47=B47)*(D$14:D47=D47))>1,0,1) -> 1 | AN47: Contratos de prestación de servicios profesionales y de apoyo a la gestión | AO47: Contratación directa | AP47: =IF(ISBLANK(G47),1,IFERROR(VLOOKUP(G47,Tipo!$C$12:$C$27,1,FALSE),"NO")) -> Prestación de servicios profesionales y de apoyo a la gestión, o para la ejecución de trabajos artísticos que sólo puedan encomendarse a determinadas personas naturales; | AQ47: Inversión | AR47: =IF(ISBLANK(K47),1,IFERROR(VLOOKUP(K47,Eje_Pilar_Prop!C29:C130,1,FALSE),"NO")) -> 45 | AS47: SECOP II | AT47: 1 | AU47: Bogotá Mejor para Todos
A48: 36 | B48: 2020 | C48: SECOP II | D48: FDLC-CPS-036-2020 | E48: Contratos de prestación de servicios profesionales y de apoyo a la gestión | F48: Contratación directa | G48: Prestación de servicios profesionales y de apoyo a la gestión, o para la ejecución de trabajos artísticos que sólo puedan encomendarse a determinadas personas naturales; | H48: PRESTAR LOS SERVICIOS DE APOYO LOGÍSTICO EN TODOS LOS EVENTOS Y ACTIVIDADES DE LA ADMINISTRACIÓN LOCAL DE LA LOCALIDAD 17 DE LA CANDELARIA | I48: Inversión | J48: Bogotá Mejor para Todos | K48: 45 | L48: =IF(ISERROR(VLOOKUP(K48,Eje_Pilar_Prop!$C$2:$E$104,2,FALSE))," ",VLOOKUP(K48,Eje_Pilar_Prop!$C$2:$E$104,2,FALSE)) -> Gobernanza e influencia local, regional e internacional | M48: =IF(ISERROR(VLOOKUP(K48,Eje_Pilar_Prop!$C$2:$E$104,3,FALSE))," ",VLOOKUP(K48,Eje_Pilar_Prop!$C$2:$E$104,3,FALSE)) -> Eje Transversal 4 Gobierno Legitimo, Fortalecimiento Local y Eficiencia | N48: 1395 | O48: 1010200869 | P48: JOHAN STEVEN ROBLES SANDOVAL | Q48: 9831393 | T48: 0 | U48: 0 | V48: 9831393 | W48: 9831392 | X48: 2020-03-09 | Y48: 2020-03-10 | Z48: 2020-07-09 | AA48: 120 | AK48: X | AL48: 0.9999998983 | AM48: =IF(SUMPRODUCT((A$14:A48=A48)*(B$14:B48=B48)*(D$14:D48=D48))>1,0,1) -> 1 | AN48: Contratos de prestación de servicios profesionales y de apoyo a la gestión | AO48: Contratación directa | AP48: =IF(ISBLANK(G48),1,IFERROR(VLOOKUP(G48,Tipo!$C$12:$C$27,1,FALSE),"NO")) -> Prestación de servicios profesionales y de apoyo a la gestión, o para la ejecución de trabajos artísticos que sólo puedan encomendarse a determinadas personas naturales; | AQ48: Inversión | AR48: =IF(ISBLANK(K48),1,IFERROR(VLOOKUP(K48,Eje_Pilar_Prop!C30:C131,1,FALSE),"NO")) -> 45 | AS48: SECOP II | AT48: 1 | AU48: Bogotá Mejor para Todos
A49: 37 | B49: 2020 | C49: SECOP II | D49: FDLC-CPS-037-2020 | E49: Contratos de prestación de servicios profesionales y de apoyo a la gestión | F49: Contratación directa | G49: Prestación de servicios profesionales y de apoyo a la gestión, o para la ejecución de trabajos artísticos que sólo puedan encomendarse a determinadas personas naturales; | H49: PRESTAR LOS SERVICIOS DE APOYO LOGÍSTICO EN TODOS LOS EVENTOS Y ACTIVIDADES DE LA ADMINISTRACIÓN LOCAL DE LA LOCALIDAD 17 DE LA CANDELARIA | I49: Inversión | J49: Bogotá Mejor para Todos | K49: 45 | L49: =IF(ISERROR(VLOOKUP(K49,Eje_Pilar_Prop!$C$2:$E$104,2,FALSE))," ",VLOOKUP(K49,Eje_Pilar_Prop!$C$2:$E$104,2,FALSE)) -> Gobernanza e influencia local, regional e internacional | M49: =IF(ISERROR(VLOOKUP(K49,Eje_Pilar_Prop!$C$2:$E$104,3,FALSE))," ",VLOOKUP(K49,Eje_Pilar_Prop!$C$2:$E$104,3,FALSE)) -> Eje Transversal 4 Gobierno Legitimo, Fortalecimiento Local y Eficiencia | N49: 1395 | O49: 1085280532 | P49: DEIVIS ARAVIT GORDILLO GUTIERREZ | Q49: 9831393 | T49: 0 | U49: 0 | V49: 9831393 | W49: 9831393 | X49: 2020-03-09 | Y49: 2020-03-10 | Z49: 2020-07-09 | AA49: 120 | AK49: X | AL49: 1 | AM49: =IF(SUMPRODUCT((A$14:A49=A49)*(B$14:B49=B49)*(D$14:D49=D49))>1,0,1) -> 1 | AN49: Contratos de prestación de servicios profesionales y de apoyo a la gestión | AO49: Contratación directa | AP49: =IF(ISBLANK(G49),1,IFERROR(VLOOKUP(G49,Tipo!$C$12:$C$27,1,FALSE),"NO")) -> Prestación de servicios profesionales y de apoyo a la gestión, o para la ejecución de trabajos artísticos que sólo puedan encomendarse a determinadas personas naturales; | AQ49: Inversión | AR49: =IF(ISBLANK(K49),1,IFERROR(VLOOKUP(K49,Eje_Pilar_Prop!C31:C132,1,FALSE),"NO")) -> 45 | AS49: SECOP II | AT49: 1 | AU49: Bogotá Mejor para Todos
A50: 38 | B50: 2020 | C50: SECOP II | D50: FDLC-CPS-038-2020 | E50: Contratos de prestación de servicios profesionales y de apoyo a la gestión | F50: Contratación directa | G50: Prestación de servicios profesionales y de apoyo a la gestión, o para la ejecución de trabajos artísticos que sólo puedan encomendarse a determinadas personas naturales; | H50: PRESTAR LOS SERVICIOS DE APOYO LOGÍSTICO EN TODOS LOS EVENTOS Y ACTIVIDADES DE LA ADMINISTRACIÓN LOCAL DE LA LOCALIDAD 17 DE LA CANDELARIA | I50: Inversión | J50: Bogotá Mejor para Todos | K50: 45 | L50: =IF(ISERROR(VLOOKUP(K50,Eje_Pilar_Prop!$C$2:$E$104,2,FALSE))," ",VLOOKUP(K50,Eje_Pilar_Prop!$C$2:$E$104,2,FALSE)) -> Gobernanza e influencia local, regional e internacional | M50: =IF(ISERROR(VLOOKUP(K50,Eje_Pilar_Prop!$C$2:$E$104,3,FALSE))," ",VLOOKUP(K50,Eje_Pilar_Prop!$C$2:$E$104,3,FALSE)) -> Eje Transversal 4 Gobierno Legitimo, Fortalecimiento Local y Eficiencia | N50: 1395 | O50: 65788328 | P50: Emperatriz Gonzalez Palencia | Q50: 9831393 | T50: 0 | U50: 0 | V50: 9831393 | W50: 9831392 | X50: 2020-03-09 | Y50: 2020-03-10 | Z50: 2020-07-09 | AA50: 120 | AK50: X | AL50: 0.9999998983 | AM50: =IF(SUMPRODUCT((A$14:A50=A50)*(B$14:B50=B50)*(D$14:D50=D50))>1,0,1) -> 1 | AN50: Contratos de prestación de servicios profesionales y de apoyo a la gestión | AO50: Contratación directa | AP50: =IF(ISBLANK(G50),1,IFERROR(VLOOKUP(G50,Tipo!$C$12:$C$27,1,FALSE),"NO")) -> Prestación de servicios profesionales y de apoyo a la gestión, o para la ejecución de trabajos artísticos que sólo puedan encomendarse a determinadas personas naturales; | AQ50: Inversión | AR50: =IF(ISBLANK(K50),1,IFERROR(VLOOKUP(K50,Eje_Pilar_Prop!C32:C133,1,FALSE),"NO")) -> 45 | AS50: SECOP II | AT50: 1 | AU50: Bogotá Mejor para Todos
A51: 39 | B51: 2020 | C51: SECOP II | D51: FDLC-CPS-039-2020 | E51: Contratos de prestación de servicios profesionales y de apoyo a la gestión | F51: Contratación directa | G51: Prestación de servicios profesionales y de apoyo a la gestión, o para la ejecución de trabajos artísticos que sólo puedan encomendarse a determinadas personas naturales; | H51: APOYAR LA FORMULACIÓN, EJECUCIÓN, SEGUIMIENTO Y MEJORA CONTINUA DE LAS HERRAMIENTAS QUE CONFORMAN LA GESTIÓN AMBIENTAL INSTITUCIONAL DE LA ALCALDÍA LOCAL | I51: Inversión | J51: Bogotá Mejor para Todos | K51: 38 | L51: =IF(ISERROR(VLOOKUP(K51,Eje_Pilar_Prop!$C$2:$E$104,2,FALSE))," ",VLOOKUP(K51,Eje_Pilar_Prop!$C$2:$E$104,2,FALSE)) -> Recuperación y manejo de la Estructura Ecológica Principal | M51: =IF(ISERROR(VLOOKUP(K51,Eje_Pilar_Prop!$C$2:$E$104,3,FALSE))," ",VLOOKUP(K51,Eje_Pilar_Prop!$C$2:$E$104,3,FALSE)) -> Eje Transversal 3 Sostenibilidad Ambiental basada en la eficiencia energética | N51: 1393 | O51: 1066727887 | P51: ENIRIS ESTER ACOSTA ESQUIVEL | Q51: 36000000 | T51: 0 | U51: 0 | V51: 36000000 | W51: 21922775 | X51: 2020-03-11 | Y51: 2020-03-12 | Z51: 2020-12-11 | AA51: 270 | AJ51: X | AL51: 0.6089659722 | AM51: =IF(SUMPRODUCT((A$14:A51=A51)*(B$14:B51=B51)*(D$14:D51=D51))>1,0,1) -> 1 | AN51: Contratos de prestación de servicios profesionales y de apoyo a la gestión | AO51: Contratación directa | AP51: =IF(ISBLANK(G51),1,IFERROR(VLOOKUP(G51,Tipo!$C$12:$C$27,1,FALSE),"NO")) -> Prestación de servicios profesionales y de apoyo a la gestión, o para la ejecución de trabajos artísticos que sólo puedan encomendarse a determinadas personas naturales; | AQ51: Inversión | AR51: =IF(ISBLANK(K51),1,IFERROR(VLOOKUP(K51,Eje_Pilar_Prop!C33:C134,1,FALSE),"NO")) -> 38 | AS51: SECOP II | AT51: 1 | AU51: Bogotá Mejor para Todos
A52: 40 | B52: 2020 | C52: SECOP II | D52: FDLC-CPS-040-2020 | E52: Contratos de prestación de servicios profesionales y de apoyo a la gestión | F52: Contratación directa | G52: Prestación de servicios profesionales y de apoyo a la gestión, o para la ejecución de trabajos artísticos que sólo puedan encomendarse a determinadas personas naturales; | H52: PRESTACIÓN DE SERVICIOS PROFESIONALES PARA LA IMPLEMENTACIÓN Y FORTALECIMIENTO DEL TURISMO CULTURAL EN LA LOCALIDAD 17 DE LA CANDELARIA A TRAVÉS DE LA GESTIÓN, ARTICULACIÓN E INTERLOCUCIÓN CON CIUDADANÍA Y ENTIDADES PÚBLICAS Y PRIVADAS | I52: Inversión | J52: Bogotá Mejor para Todos | K52: 45 | L52: =IF(ISERROR(VLOOKUP(K52,Eje_Pilar_Prop!$C$2:$E$104,2,FALSE))," ",VLOOKUP(K52,Eje_Pilar_Prop!$C$2:$E$104,2,FALSE)) -> Gobernanza e influencia local, regional e internacional | M52: =IF(ISERROR(VLOOKUP(K52,Eje_Pilar_Prop!$C$2:$E$104,3,FALSE))," ",VLOOKUP(K52,Eje_Pilar_Prop!$C$2:$E$104,3,FALSE)) -> Eje Transversal 4 Gobierno Legitimo, Fortalecimiento Local y Eficiencia | N52: 1395 | O52: 1026580236 | P52: Laura Esther Nieto Romero | Q52: 15452000 | T52: 0 | V52: 15452000 | W52: 15451999 | X52: 2020-03-11 | Y52: 2020-03-12 | Z52: 2020-07-11 | AA52: 120 | AK52: X | AL52: 0.9999999353 | AM52: =IF(SUMPRODUCT((A$14:A52=A52)*(B$14:B52=B52)*(D$14:D52=D52))>1,0,1) -> 1 | AN52: Contratos de prestación de servicios profesionales y de apoyo a la gestión | AO52: Contratación directa | AP52: =IF(ISBLANK(G52),1,IFERROR(VLOOKUP(G52,Tipo!$C$12:$C$27,1,FALSE),"NO")) -> Prestación de servicios profesionales y de apoyo a la gestión, o para la ejecución de trabajos artísticos que sólo puedan encomendarse a determinadas personas naturales; | AQ52: Inversión | AR52: =IF(ISBLANK(K52),1,IFERROR(VLOOKUP(K52,Eje_Pilar_Prop!C34:C135,1,FALSE),"NO")) -> 45 | AS52: SECOP II | AT52: 1 | AU52: Bogotá Mejor para Todos
A53: 41 | B53: 2020 | C53: SECOP II | D53: FDLC-CPS-041-2020 | E53: Contratos de prestación de servicios profesionales y de apoyo a la gestión | F53: Contratación directa | G53: Prestación de servicios profesionales y de apoyo a la gestión, o para la ejecución de trabajos artísticos que sólo puedan encomendarse a determinadas personas naturales; | H53: PRESTAR SUS SERVICIOS PARA APOYAR EN LAS TAREAS OPERATIVAS DE CARÁCTER ARCHIVÍSTICO DESARROLLADAS EN LA ALCALDÍA LOCAL PARA GARANTIZAR LA APLICACIÓN CORRECTA DE LOS PROCEDIMIENTOS TÉCNICOS | I53: Inversión | J53: Bogotá Mejor para Todos | K53: 45 | L53: =IF(ISERROR(VLOOKUP(K53,Eje_Pilar_Prop!$C$2:$E$104,2,FALSE))," ",VLOOKUP(K53,Eje_Pilar_Prop!$C$2:$E$104,2,FALSE)) -> Gobernanza e influencia local, regional e internacional | M53: =IF(ISERROR(VLOOKUP(K53,Eje_Pilar_Prop!$C$2:$E$104,3,FALSE))," ",VLOOKUP(K53,Eje_Pilar_Prop!$C$2:$E$104,3,FALSE)) -> Eje Transversal 4 Gobierno Legitimo, Fortalecimiento Local y Eficiencia | N53: 1395 | O53: 1010175770 | P53: TEOFILO LEONARDO RAMIREZ HERNANDEZ | Q53: 12600000 | T53: 0 | V53: 12600000 | W53: 12555000 | X53: 2020-03-11 | Y53: 2020-03-11 | Z53: 2020-07-10 | AA53: 120 | AK53: X | AL53: 0.9964285714 | AM53: =IF(SUMPRODUCT((A$14:A53=A53)*(B$14:B53=B53)*(D$14:D53=D53))>1,0,1) -> 1 | AN53: Contratos de prestación de servicios profesionales y de apoyo a la gestión | AO53: Contratación directa | AP53: =IF(ISBLANK(G53),1,IFERROR(VLOOKUP(G53,Tipo!$C$12:$C$27,1,FALSE),"NO")) -> Prestación de servicios profesionales y de apoyo a la gestión, o para la ejecución de trabajos artísticos que sólo puedan encomendarse a determinadas personas naturales; | AQ53: Inversión | AR53: =IF(ISBLANK(K53),1,IFERROR(VLOOKUP(K53,Eje_Pilar_Prop!C35:C136,1,FALSE),"NO")) -> 45 | AS53: SECOP II | AT53: 1 | AU53: Bogotá Mejor para Todos
A54: 42 | B54: 2020 | C54: SECOP II | D54: FDLC-CPS-042-2020 | E54: Contratos de prestación de servicios profesionales y de apoyo a la gestión | F54: Contratación directa | G54: Prestación de servicios profesionales y de apoyo a la gestión, o para la ejecución de trabajos artísticos que sólo puedan encomendarse a determinadas personas naturales; | H54: PRESTACIÓN DE SERVICIOS PROFESIONALES AL FONDO DE DESARROLLO LOCAL DE LA CANDELARIA, EN LOS TRÁMITES RELACIONADOS CON LOS PROCESOS PRECONTRACTUALES, CONTRACTUALES Y POS CONTRACTUALES Y EN LAS DEMÁS ACTIVIDADES QUE ALLÍ SE REQUIERAN, DE CONFORMIDAD CON LOS ESTUDIOS PREVIOS | I54: Inversión | J54: Bogotá Mejor para Todos | K54: 45 | L54: =IF(ISERROR(VLOOKUP(K54,Eje_Pilar_Prop!$C$2:$E$104,2,FALSE))," ",VLOOKUP(K54,Eje_Pilar_Prop!$C$2:$E$104,2,FALSE)) -> Gobernanza e influencia local, regional e internacional | M54: =IF(ISERROR(VLOOKUP(K54,Eje_Pilar_Prop!$C$2:$E$104,3,FALSE))," ",VLOOKUP(K54,Eje_Pilar_Prop!$C$2:$E$104,3,FALSE)) -> Eje Transversal 4 Gobierno Legitimo, Fortalecimiento Local y Eficiencia | N54: 1395 | O54: 1032363826 | P54: PAOLA ANDREA PADILLA AYARZA | Q54: 16000000 | T54: 0 | V54: 16000000 | W54: 16000000 | X54: 2020-03-11 | Y54: 2020-03-12 | Z54: 2020-07-11 | AA54: 120 | AK54: X | AL54: 1 | AM54: =IF(SUMPRODUCT((A$14:A54=A54)*(B$14:B54=B54)*(D$14:D54=D54))>1,0,1) -> 1 | AN54: Contratos de prestación de servicios profesionales y de apoyo a la gestión | AO54: Contratación directa | AP54: =IF(ISBLANK(G54),1,IFERROR(VLOOKUP(G54,Tipo!$C$12:$C$27,1,FALSE),"NO")) -> Prestación de servicios profesionales y de apoyo a la gestión, o para la ejecución de trabajos artísticos que sólo puedan encomendarse a determinadas personas naturales; | AQ54: Inversión | AR54: =IF(ISBLANK(K54),1,IFERROR(VLOOKUP(K54,Eje_Pilar_Prop!C36:C137,1,FALSE),"NO")) -> 45 | AS54: SECOP II | AT54: 1 | AU54: Bogotá Mejor para Todos
A55: 43 | B55: 2020 | C55: SECOP II | D55: FDLC-CPS-043-2020 | E55: Contratos de prestación de servicios profesionales y de apoyo a la gestión | F55: Contratación directa | G55: Prestación de servicios profesionales y de apoyo a la gestión, o para la ejecución de trabajos artísticos que sólo puedan encomendarse a determinadas personas naturales; | H55: PRESTACIÓN DE SERVICIOS PROFESIONALES PARA FORTALECER LA ETAPA CONTRACTUAL Y POSCONTRACTUAL DE LOS CONTRATOS CELEBRADOS POR EL FONDO DE DESARROLLO LOCAL DE LA CANDELARIA, APOYANDO SU SUPERVISIÓN Y LIQUIDACIÓN DE ACUERDO CON LOS PROCEDIMIENTOS ESTABLECIDOS EN LA NORMATIVIDAD VIGENTE. | I55: Inversión | J55: Bogotá Mejor para Todos | K55: 45 | L55: =IF(ISERROR(VLOOKUP(K55,Eje_Pilar_Prop!$C$2:$E$104,2,FALSE))," ",VLOOKUP(K55,Eje_Pilar_Prop!$C$2:$E$104,2,FALSE)) -> Gobernanza e influencia local, regional e internacional | M55: =IF(ISERROR(VLOOKUP(K55,Eje_Pilar_Prop!$C$2:$E$104,3,FALSE))," ",VLOOKUP(K55,Eje_Pilar_Prop!$C$2:$E$104,3,FALSE)) -> Eje Transversal 4 Gobierno Legitimo, Fortalecimiento Local y Eficiencia | N55: 1395 | O55: 92512746 | P55: REINALDO DE JESUS FUNEZ RIVERA | Q55: 16000000 | T55: 0 | U55: 0 | V55: 16000000 | W55: 15733333 | X55: 2020-03-16 | Y55: 2020-04-03 | Z55: 2020-08-02 | AA55: 120 | AK55: X | AL55: 0.9833333125 | AM55: =IF(SUMPRODUCT((A$14:A55=A55)*(B$14:B55=B55)*(D$14:D55=D55))>1,0,1) -> 1 | AN55: Contratos de prestación de servicios profesionales y de apoyo a la gestión | AO55: Contratación directa | AP55: =IF(ISBLANK(G55),1,IFERROR(VLOOKUP(G55,Tipo!$C$12:$C$27,1,FALSE),"NO")) -> Prestación de servicios profesionales y de apoyo a la gestión, o para la ejecución de trabajos artísticos que sólo puedan encomendarse a determinadas personas naturales; | AQ55: Inversión | AR55: =IF(ISBLANK(K55),1,IFERROR(VLOOKUP(K55,Eje_Pilar_Prop!C37:C138,1,FALSE),"NO")) -> 45 | AS55: SECOP II | AT55: 1 | AU55: Bogotá Mejor para Todos
A56: 44 | B56: 2020 | C56: SECOP II | D56: FDLC-CIA-044-2020 | E56: Contratos interadministrativos | F56: Contratación directa | G56: Contratos interadministrativos | H56: REALIZAR ACCIONES DE MANTENIMIENTO, REHABILITACIÓN Y EMBELLECIMIENTO DE ÁREAS VERDES, PUNTOS CRÍTICOS, Y DE ACUMULACIÓN EN LA LOCALIDAD DE LA CANDELARIA | I56: Inversión | J56: Bogotá Mejor para Todos | K56: 38 | L56: =IF(ISERROR(VLOOKUP(K56,Eje_Pilar_Prop!$C$2:$E$104,2,FALSE))," ",VLOOKUP(K56,Eje_Pilar_Prop!$C$2:$E$104,2,FALSE)) -> Recuperación y manejo de la Estructura Ecológica Principal | M56: =IF(ISERROR(VLOOKUP(K56,Eje_Pilar_Prop!$C$2:$E$104,3,FALSE))," ",VLOOKUP(K56,Eje_Pilar_Prop!$C$2:$E$104,3,FALSE)) -> Eje Transversal 3 Sostenibilidad Ambiental basada en la eficiencia energética | N56: 1393 | O56: 830128286 | P56: AGUAS DE BOGOTA S.A. E.S.P. | Q56: 172.051.096 | T56: 0 | U56: 0 | V56: 172051096 | W56: 0 | X56: 2020-03-17 | Y56: 2020-07-21 | Z56: 2020-11-20 | AA56: 120 | AH56: X | AL56: 0 | AM56: =IF(SUMPRODUCT((A$14:A56=A56)*(B$14:B56=B56)*(D$14:D56=D56))>1,0,1) -> 1 | AN56: Contratos interadministrativos | AO56: Contratación directa | AP56: =IF(ISBLANK(G56),1,IFERROR(VLOOKUP(G56,Tipo!$C$12:$C$27,1,FALSE),"NO")) -> Contratos interadministrativos | AQ56: Inversión | AR56: =IF(ISBLANK(K56),1,IFERROR(VLOOKUP(K56,Eje_Pilar_Prop!C38:C139,1,FALSE),"NO")) -> 38 | AS56: SECOP II | AT56: 1 | AU56: Bogotá Mejor para Todos
A57: 45 | B57: 2020 | C57: SECOP II | D57: FDLC-CPS-045-2020 | E57: Contratos de prestación de servicios profesionales y de apoyo a la gestión | F57: Contratación directa | G57: Prestación de servicios profesionales y de apoyo a la gestión, o para la ejecución de trabajos artísticos que sólo puedan encomendarse a determinadas personas naturales; | H57: PRESTAR SUS SERVICIOS PARA APOYAR EN LAS TAREAS OPERATIVAS DE CARÁCTER ARCHIVÍSTICO DESARROLLADAS EN LA ALCALDÍA LOCAL PARA GARANTIZAR LA APLICACIÓN CORRECTA DE LOS PROCEDIMIENTOS TÉCNICOS | I57: Inversión | J57: Bogotá Mejor para Todos | K57: 45 | L57: =IF(ISERROR(VLOOKUP(K57,Eje_Pilar_Prop!$C$2:$E$104,2,FALSE))," ",VLOOKUP(K57,Eje_Pilar_Prop!$C$2:$E$104,2,FALSE)) -> Gobernanza e influencia local, regional e internacional | M57: =IF(ISERROR(VLOOKUP(K57,Eje_Pilar_Prop!$C$2:$E$104,3,FALSE))," ",VLOOKUP(K57,Eje_Pilar_Prop!$C$2:$E$104,3,FALSE)) -> Eje Transversal 4 Gobierno Legitimo, Fortalecimiento Local y Eficiencia | N57: 1395 | O57: 79984961 | P57: JOHN TIMBERLAKE OSORIO | Q57: 12600000 | T57: 0 | U57: 0 | V57: =+Q57+S57+U57 -> 12600000 | W57: 12600000 | X57: 2020-03-11 | Y57: 2020-03-30 | Z57: 2020-07-29 | AA57: 120 | AK57: X | AL57: 1 | AM57: =IF(SUMPRODUCT((A$14:A57=A57)*(B$14:B57=B57)*(D$14:D57=D57))>1,0,1) -> 1 | AN57: Contratos de prestación de servicios profesionales y de apoyo a la gestión | AO57: Contratación directa | AP57: =IF(ISBLANK(G57),1,IFERROR(VLOOKUP(G57,Tipo!$C$12:$C$27,1,FALSE),"NO")) -> Prestación de servicios profesionales y de apoyo a la gestión, o para la ejecución de trabajos artísticos que sólo puedan encomendarse a determinadas personas naturales; | AQ57: Inversión | AR57: =IF(ISBLANK(K57),1,IFERROR(VLOOKUP(K57,Eje_Pilar_Prop!C39:C140,1,FALSE),"NO")) -> 45 | AS57: SECOP II | AT57: 1 | AU57: Bogotá Mejor para Todos
A58: 47 | B58: 2020 | C58: SECOP II | D58: FDLC-CPS-047-2020 | E58: Suministro | F58: Contratación mínima cuantia | G58: No aplica | H58: SUMINISTRO DE BIENES Y SERVICIOS NECESARIOS PARA LA REALIZACIÓN DE UN EVENTO POR LA INTEGRACIÓN Y PARTICIPACIÓN DE LA COMUNIDAD LGTBI DE LA CANDELARIA Y FORMACIÓN EN PARTICIPACIÓN A TRAVÉS DE LAS TECNOLOGÍAS DE LA INFORMACIÓN Y LAS COMUNICACIONES "CANDELARIA MÁS DIVERSA 2.0" DIRIGIDO A POBLACIÓN LGBTI DE LA LOCALIDAD DE LA CANDELARIA. | I58: Inversión | J58: Bogotá Mejor para Todos | K58: 45 | L58: Gobernanza e influencia local, regional e internacional | M58: =IF(ISERROR(VLOOKUP(K58,Eje_Pilar_Prop!$C$2:$E$104,3,FALSE))," ",VLOOKUP(K58,Eje_Pilar_Prop!$C$2:$E$104,3,FALSE)) -> Eje Transversal 4 Gobierno Legitimo, Fortalecimiento Local y Eficiencia | N58: 1396 | O58: 9005217807 | P58: B2 NETWORKS SAS | Q58: 10334075 | V58: 10334075 | X58: 2020-03-19 | AA58: 120 | AH58: X | AL58: 0 | AM58: =IF(SUMPRODUCT((A$14:A78=A78)*(B$14:B78=B78)*(D$14:D78=D78))>1,0,1) -> 1
A59: 48 | B59: 2020 | C59: SECOP II | D59: FDLS-CPS-048-2020 | E59: Contratos de prestación de servicios profesionales y de apoyo a la gestión | F59: Contratación directa | G59: Prestación de servicios profesionales y de apoyo a la gestión, o para la ejecución de trabajos artísticos que sólo puedan encomendarse a determinadas personas naturales; | H59: PRESTACIÓN DE SERVICIOS PROFESIONALES PARA APOYAR LA GESTIÓN DEL ÁREA DE PLANEACIÓN EN LA FORMULACION, PRESENTACIÓN, EVALUACION Y SEGUIMIENTO DE LOS PROYECTOS SOCIALES Y DE SALUD EN LA LOCALIDAD Y DE COMPETENCIA DEL FONDO DE DESARROLLO LOCAL LA CANDELARIA | I59: Inversión | J59: Bogotá Mejor para Todos | K59: 45 | L59: =IF(ISERROR(VLOOKUP(K59,Eje_Pilar_Prop!$C$2:$E$104,2,FALSE))," ",VLOOKUP(K59,Eje_Pilar_Prop!$C$2:$E$104,2,FALSE)) -> Gobernanza e influencia local, regional e internacional | M59: =IF(ISERROR(VLOOKUP(K59,Eje_Pilar_Prop!$C$2:$E$104,3,FALSE))," ",VLOOKUP(K59,Eje_Pilar_Prop!$C$2:$E$104,3,FALSE)) -> Eje Transversal 4 Gobierno Legitimo, Fortalecimiento Local y Eficiencia | N59: 1395 | O59: 52472048 | P59: LISSETTE MARITZA RAMIREZ JARAMILLO | Q59: 21067272 | T59: 0 | V59: =+Q59+S59+U59 -> 21067272 | W59: 21066641 | X59: 2020-03-30 | Y59: 2020-04-02 | Z59: 2020-08-01 | AA59: 120 | AD59: 51614136 | AE59: ANA MERCEDES VASQUEZ | AF59: 2020-06-23 | AG59: 5969060 | AK59: X | AL59: 0.9999700483 | AM59: =IF(SUMPRODUCT((A$14:A59=A59)*(B$14:B59=B59)*(D$14:D59=D59))>1,0,1) -> 1 | AN59: Contratos de prestación de servicios profesionales y de apoyo a la gestión | AO59: Contratación directa | AP59: =IF(ISBLANK(G59),1,IFERROR(VLOOKUP(G59,Tipo!$C$12:$C$27,1,FALSE),"NO")) -> Prestación de servicios profesionales y de apoyo a la gestión, o para la ejecución de trabajos artísticos que sólo puedan encomendarse a determinadas personas naturales; | AQ59: Inversión | AR59: =IF(ISBLANK(K59),1,IFERROR(VLOOKUP(K59,Eje_Pilar_Prop!C40:C141,1,FALSE),"NO")) -> 45 | AS59: SECOP II | AT59: 1 | AU59: Bogotá Mejor para Todos
A60: 49 | B60: 2020 | C60: SECOP I | D60: ORDEN DE COMPRA 46537 | E60: Suministro | F60: Selección abreviada | G60: Acuerdo marco de precios | H60: SUMINISTRO INTEGRAL DEL SERVICIO DE ASEO Y CAFETERIA PARA LAS INSTALACIONES DE PROPIEDAD DEL FONDO DE DESARROLLO LOCAL DE LA CANDERIA | I60: Funcionamiento | J60: Bogotá Mejor para Todos | K60: No aplica | L60: No Aplica | M60: No Aplica | N60: No Aplica | O60: 901351411-8 | P60: Union Temporal ECOLIMPIEZA | Q60: 194908451 | T60: 0 | V60: 194908451 | W60: 127077884 | X60: 2020-03-25 | Y60: 2020-04-06 | Z60: 2021-03-05 | AA60: 330 | AI60: X | AL60: 0.6519875529 | AM60: =IF(SUMPRODUCT((A$14:A60=A60)*(B$14:B60=B60)*(D$14:D60=D60))>1,0,1) -> 1 | AN60: Suministro | AO60: Selección abreviada | AP60: =IF(ISBLANK(G60),1,IFERROR(VLOOKUP(G60,Tipo!$C$12:$C$27,1,FALSE),"NO")) -> Acuerdo marco de precios | AQ60: Funcionamiento | AR60: =IF(ISBLANK(K60),1,IFERROR(VLOOKUP(K60,Eje_Pilar_Prop!C41:C142,1,FALSE),"NO")) -> NO | AS60: SECOP I | AT60: 1 | AU60: Bogotá Mejor para Todos
A61: 50 | B61: 2020 | C61: SECOP II | D61: FDLC-CPS-050-2020 | E61: Contratos de prestación de servicios profesionales y de apoyo a la gestión | F61: Contratación directa | G61: Prestación de servicios profesionales y de apoyo a la gestión, o para la ejecución de trabajos artísticos que sólo puedan encomendarse a determinadas personas naturales; | H61: PRESTAR SERVICIOS PROFESIONALES AL AREA DEGESTION DE DESARROLLO LOCAL OFICINA DE PLANEACION, EN LA FORMULACIÓN, PRESENTACIÓN,EVALUACIÓN Y SEGUIMIENTO DE LOS PROYECTOS DE INFRAESTRUCTURA Y OBRAS CIVILES QUE DESARROLLE LA ENTIDAD, Y APOYO EN LOS REQUERMIENTOS DE INFRAESTRUCTURA CIVIL QUE TENGA ELFONDO DE DESARROLLO LOCAL LA CANDELARIA | I61: Inversión | J61: Bogotá Mejor para Todos | K61: 18 | L61: =IF(ISERROR(VLOOKUP(K61,Eje_Pilar_Prop!$C$2:$E$104,2,FALSE))," ",VLOOKUP(K61,Eje_Pilar_Prop!$C$2:$E$104,2,FALSE)) -> Mejor movilidad para todos | M61: =IF(ISERROR(VLOOKUP(K61,Eje_Pilar_Prop!$C$2:$E$104,3,FALSE))," ",VLOOKUP(K61,Eje_Pilar_Prop!$C$2:$E$104,3,FALSE)) -> Pilar 2 Democracía Urbana | N61: 1391 | O61: 1090435721 | P61: JORGE ENRIQUE ABREO REYES | Q61: 17907180 | T61: 0 | V61: =+Q61+S61+U61 -> 17907180 | W61: 17907180 | X61: 2020-03-31 | Y61: 2020-03-31 | Z61: 2020-07-30 | AA61: 120 | AK61: X | AL61: 1 | AM61: =IF(SUMPRODUCT((A$14:A61=A61)*(B$14:B61=B61)*(D$14:D61=D61))>1,0,1) -> 1 | AN61: Contratos de prestación de servicios profesionales y de apoyo a la gestión | AO61: Contratación directa | AP61: =IF(ISBLANK(G61),1,IFERROR(VLOOKUP(G61,Tipo!$C$12:$C$27,1,FALSE),"NO")) -> Prestación de servicios profesionales y de apoyo a la gestión, o para la ejecución de trabajos artísticos que sólo puedan encomendarse a determinadas personas naturales; | AQ61: Inversión | AR61: =IF(ISBLANK(K61),1,IFERROR(VLOOKUP(K61,Eje_Pilar_Prop!C42:C143,1,FALSE),"NO")) -> NO | AS61: SECOP II | AT61: 1 | AU61: Bogotá Mejor para Todos
A62: 51 | B62: 2020 | C62: SECOP II | D62: CONTRATO DE SUMINISTRO No.051-2020 | E62: Contratos de prestación de servicios | F62: Contratación directa | G62: Urgencia manifiesta | H62: REALIZAR ACCIONES DE ATENCIÓN HUMANITARIA A PERSONAS AFECTADAS POR EL ESTADO CALAMIDAD SANITARIA, ASÍ COMO EL SUMINISTRO DE BIENES Y SERVICIOS NECESARIOS PARA LA PRESERVACIÓN DE LA VIDA Y MITIGACIÓN DEL RIESGO ORIGINADO EN LA CRISIS PROVOCADA POR LA PANDEMIA DEL NUEVO CORONAVIRUS (COVID-19) | I62: Inversión | J62: Bogotá Mejor para Todos | K62: 3 | L62: =IF(ISERROR(VLOOKUP(K62,Eje_Pilar_Prop!$C$2:$E$104,2,FALSE))," ",VLOOKUP(K62,Eje_Pilar_Prop!$C$2:$E$104,2,FALSE)) -> Igualdad y autonomía para una Bogotá incluyente | M62: =IF(ISERROR(VLOOKUP(K62,Eje_Pilar_Prop!$C$2:$E$104,3,FALSE))," ",VLOOKUP(K62,Eje_Pilar_Prop!$C$2:$E$104,3,FALSE)) -> Pilar 1 Igualdad de Calidad de Vida | N62: 1386 | O62: 860070301-1 | P62: CRUZ ROJA BOGOTA SECCIONAL CUNDINAMRACA Y BOGOTA | Q62: 190.240.000 | T62: 0 | V62: 190240000 | W62: 171216000 | X62: 2020-04-01 | Y62: 2020-04-06 | Z62: 2020-05-05 | AA62: 30 | AJ62: X | AL62: 0.9 | AM62: =IF(SUMPRODUCT((A$14:A62=A62)*(B$14:B62=B62)*(D$14:D62=D62))>1,0,1) -> 1 | AN62: Contratos de prestación de servicios | AO62: Contratación directa | AP62: =IF(ISBLANK(G62),1,IFERROR(VLOOKUP(G62,Tipo!$C$12:$C$27,1,FALSE),"NO")) -> Urgencia manifiesta | AQ62: Inversión | AR62: =IF(ISBLANK(K62),1,IFERROR(VLOOKUP(K62,Eje_Pilar_Prop!C43:C144,1,FALSE),"NO")) -> NO | AS62: SECOP II | AT62: 1 | AU62: Bogotá Mejor para Todos
A63: 52 | B63: 2020 | C63: SECOP II | D63: FDLC-CPS-052-2020 | E63: Contratos de prestación de servicios profesionales y de apoyo a la gestión | F63: Contratación directa | G63: Prestación de servicios profesionales y de apoyo a la gestión, o para la ejecución de trabajos artísticos que sólo puedan encomendarse a determinadas personas naturales; | H63: PRESTACIÓN DE SERVICIOS PROFESIONALES PARA APOYAR Y FORTALECER LA OFICINA DE PLANEACION DEL FONDO DE DESARROLLO LOCAL EN LAS GESTIONES FINANCIERAS DE LA ENTIDAD | I63: Inversión | J63: Bogotá Mejor para Todos | K63: 45 | L63: =IF(ISERROR(VLOOKUP(K63,Eje_Pilar_Prop!$C$2:$E$104,2,FALSE))," ",VLOOKUP(K63,Eje_Pilar_Prop!$C$2:$E$104,2,FALSE)) -> Gobernanza e influencia local, regional e internacional | M63: =IF(ISERROR(VLOOKUP(K63,Eje_Pilar_Prop!$C$2:$E$104,3,FALSE))," ",VLOOKUP(K63,Eje_Pilar_Prop!$C$2:$E$104,3,FALSE)) -> Eje Transversal 4 Gobierno Legitimo, Fortalecimiento Local y Eficiencia | N63: 1395 | O63: 52520044 | P63: PAOLA ANDREA OYUELA VARGAS | Q63: 16000000 | T63: 0 | V63: 16000000 | W63: 16000000 | X63: 2020-04-02 | Y63: 2020-04-03 | Z63: 2020-08-02 | AA63: 120 | AK63: X | AL63: 1 | AM63: =IF(SUMPRODUCT((A$14:A63=A63)*(B$14:B63=B63)*(D$14:D63=D63))>1,0,1) -> 1 | AN63: Contratos de prestación de servicios profesionales y de apoyo a la gestión | AO63: Contratación directa | AP63: =IF(ISBLANK(G63),1,IFERROR(VLOOKUP(G63,Tipo!$C$12:$C$27,1,FALSE),"NO")) -> Prestación de servicios profesionales y de apoyo a la gestión, o para la ejecución de trabajos artísticos que sólo puedan encomendarse a determinadas personas naturales; | AQ63: Inversión | AR63: =IF(ISBLANK(K63),1,IFERROR(VLOOKUP(K63,Eje_Pilar_Prop!C44:C145,1,FALSE),"NO")) -> 45 | AS63: SECOP II | AT63: 1 | AU63: Bogotá Mejor para Todos
A64: 53 | B64: 2020 | C64: SECOP II | D64: FDLC-CPS-053-2020 | E64: Contratos de prestación de servicios profesionales y de apoyo a la gestión | F64: Contratación directa | G64: Prestación de servicios profesionales y de apoyo a la gestión, o para la ejecución de trabajos artísticos que sólo puedan encomendarse a determinadas personas naturales; | H64: PRESTACIÓN DE SERVICIOS PROFESIONALES PARA APOYAR LA GESTIÓN DEL ÁREA DE DESARROLLO LOCAL EN LA FORMULACION, PRESENTACIÓN, EVALUACION Y SEGUIMIENTO DE LOS PROYECTOS DE GESTION ARTISTICA Y CULTURAL DE LOS TERRITORIOS Y APOYAR EN GENERAL TODOS LOS PROCESOS DE GESTIONES CULTURALES EN LA LOCALIDAD Y DE COMPETENCIA DEL FONDO DE DESARROLLO LOCAL LA CANDELARIA | I64: Inversión | J64: Bogotá Mejor para Todos | K64: 45 | L64: =IF(ISERROR(VLOOKUP(K64,Eje_Pilar_Prop!$C$2:$E$104,2,FALSE))," ",VLOOKUP(K64,Eje_Pilar_Prop!$C$2:$E$104,2,FALSE)) -> Gobernanza e influencia local, regional e internacional | M64: =IF(ISERROR(VLOOKUP(K64,Eje_Pilar_Prop!$C$2:$E$104,3,FALSE))," ",VLOOKUP(K64,Eje_Pilar_Prop!$C$2:$E$104,3,FALSE)) -> Eje Transversal 4 Gobierno Legitimo, Fortalecimiento Local y Eficiencia | N64: 1395 | O64: 1026557848 | P64: LAURA ANDREA DAZA OCAMPO | Q64: 17907180 | T64: 0 | V64: 17907180 | W64: 7908975 | X64: 2020-04-03 | Y64: 2020-04-08 | Z64: 2020-08-07 | AA64: 120 | AJ64: X | AL64: 0.4416650193 | AM64: =IF(SUMPRODUCT((A$14:A64=A64)*(B$14:B64=B64)*(D$14:D64=D64))>1,0,1) -> 1 | AN64: Contratos de prestación de servicios profesionales y de apoyo a la gestión | AO64: Contratación directa | AP64: =IF(ISBLANK(G64),1,IFERROR(VLOOKUP(G64,Tipo!$C$12:$C$27,1,FALSE),"NO")) -> Prestación de servicios profesionales y de apoyo a la gestión, o para la ejecución de trabajos artísticos que sólo puedan encomendarse a determinadas personas naturales; | AQ64: Inversión | AR64: =IF(ISBLANK(K64),1,IFERROR(VLOOKUP(K64,Eje_Pilar_Prop!C45:C146,1,FALSE),"NO")) -> 45 | AS64: SECOP II | AT64: 1 | AU64: Bogotá Mejor para Todos
A65: 55 | B65: 2020 | C65: SECOP II | D65: FDLC-CPS-055-2020 | E65: Contratos de prestación de servicios profesionales y de apoyo a la gestión | F65: Contratación directa | G65: Prestación de servicios profesionales y de apoyo a la gestión, o para la ejecución de trabajos artísticos que sólo puedan encomendarse a determinadas personas naturales; | H65: PRESTAR SERVICIOS PROFESIONALES AL AREA DEGESTION DE DESARROLLO LOCAL OFICINA DE PLANEACION, EN LA FORMULACIÓN, PRESENTACIÓN,EVALUACIÓN Y SEGUIMIENTO DE LOS PROYECTOS DE INFRAESTRUCTURA Y OBRAS CIVILES QUE DESARROLLE LA ENTIDAD, Y APOYO EN LOS REQUERMIENTOS DE INFRAESTRUCTURA CIVIL QUE TENGA ELFONDO DE DESARROLLO LOCAL LA CANDELARIA | I65: Inversión | J65: Bogotá Mejor para Todos | K65: 18 | L65: =IF(ISERROR(VLOOKUP(K65,Eje_Pilar_Prop!$C$2:$E$104,2,FALSE))," ",VLOOKUP(K65,Eje_Pilar_Prop!$C$2:$E$104,2,FALSE)) -> Mejor movilidad para todos | M65: =IF(ISERROR(VLOOKUP(K65,Eje_Pilar_Prop!$C$2:$E$104,3,FALSE))," ",VLOOKUP(K65,Eje_Pilar_Prop!$C$2:$E$104,3,FALSE)) -> Pilar 2 Democracía Urbana | N65: 1391 | O65: 80071944 | P65: OLIVER BAEZ SANTIAGO | Q65: 17907180 | T65: 0 | V65: =+Q65+S65+U65 -> 17907180 | W65: 17011821 | X65: 2020-04-06 | Y65: 2020-04-07 | Z65: 2020-08-06 | AA65: 120 | AJ65: X | AL65: 0.95 | AM65: =IF(SUMPRODUCT((A$14:A65=A65)*(B$14:B65=B65)*(D$14:D65=D65))>1,0,1) -> 1 | AN65: Contratos de prestación de servicios profesionales y de apoyo a la gestión | AO65: Contratación directa | AP65: =IF(ISBLANK(G65),1,IFERROR(VLOOKUP(G65,Tipo!$C$12:$C$27,1,FALSE),"NO")) -> Prestación de servicios profesionales y de apoyo a la gestión, o para la ejecución de trabajos artísticos que sólo puedan encomendarse a determinadas personas naturales; | AQ65: Inversión | AR65: =IF(ISBLANK(K65),1,IFERROR(VLOOKUP(K65,Eje_Pilar_Prop!C46:C147,1,FALSE),"NO")) -> NO | AS65: SECOP II | AT65: 1 | AU65: Bogotá Mejor para Todos
A66: 56 | B66: 2020 | C66: SECOP II | D66: FDLC-CPS-056-2020 | E66: Contratos de prestación de servicios profesionales y de apoyo a la gestión | F66: Contratación directa | G66: Prestación de servicios profesionales y de apoyo a la gestión, o para la ejecución de trabajos artísticos que sólo puedan encomendarse a determinadas personas naturales; | H66: PRESTAR LOS SERVICIOS PROFESIONALES PARA LA OPERACIÓN, PRESTACIÓN, SEGUIMIENTO Y CUMPLIMIENTO DE LOS PROCEDIMIENTOS ADMINISTRATIVOS, OPERATIVOS Y PROGRAMÁTICOS DEL SERVICIO APOYO ECONÓMICO TIPO C, QUE CONTRIBUYAN A LA GARANTÍA DE LOS DERECHOS DE LA POBLACIÓN MAYOR EN EL MARCO DE LA POLÍTICA PÚBLICA SOCIAL PARA EL ENVEJECIMIENTO Y LA VEJEZ EN EL DISTRITO CAPITAL A CARGO DE LA ALCALDÍA LOCAL | I66: Inversión | J66: Bogotá Mejor para Todos | K66: 3 | L66: =IF(ISERROR(VLOOKUP(K66,Eje_Pilar_Prop!$C$2:$E$104,2,FALSE))," ",VLOOKUP(K66,Eje_Pilar_Prop!$C$2:$E$104,2,FALSE)) -> Igualdad y autonomía para una Bogotá incluyente | M66: =IF(ISERROR(VLOOKUP(K66,Eje_Pilar_Prop!$C$2:$E$104,3,FALSE))," ",VLOOKUP(K66,Eje_Pilar_Prop!$C$2:$E$104,3,FALSE)) -> Pilar 1 Igualdad de Calidad de Vida | N66: 1386 | O66: 52760226 | P66: NUBIA CONSUELO CHAVARRO GALINDO | Q66: 17.907.180 | T66: 0 | V66: 17907180 | W66: 16116462 | X66: 2020-04-07 | Y66: 2020-04-13 | Z66: 2020-08-12 | AA66: 120 | AJ66: X | AL66: 0.9 | AM66: =IF(SUMPRODUCT((A$14:A66=A66)*(B$14:B66=B66)*(D$14:D66=D66))>1,0,1) -> 1 | AN66: Contratos de prestación de servicios profesionales y de apoyo a la gestión | AO66: Contratación directa | AP66: =IF(ISBLANK(G66),1,IFERROR(VLOOKUP(G66,Tipo!$C$12:$C$27,1,FALSE),"NO")) -> Prestación de servicios profesionales y de apoyo a la gestión, o para la ejecución de trabajos artísticos que sólo puedan encomendarse a determinadas personas naturales; | AQ66: Inversión | AR66: =IF(ISBLANK(K66),1,IFERROR(VLOOKUP(K66,Eje_Pilar_Prop!C47:C148,1,FALSE),"NO")) -> NO | AS66: SECOP II | AT66: 1 | AU66: Bogotá Mejor para Todos
A67: 57 | B67: 2020 | C67: SECOP II | D67: FDLC-CPS-057-2020 | E67: Contratos de prestación de servicios profesionales y de apoyo a la gestión | F67: Contratación directa | G67: Prestación de servicios profesionales y de apoyo a la gestión, o para la ejecución de trabajos artísticos que sólo puedan encomendarse a determinadas personas naturales; | H67: PRESTACIÓN DE SERVICIOS PROFESIONALES PARA APOYAR AL EQUIPO DE PRENSA Y COMUNICACIONES DE LA ALCALDÍA LOCAL EN LA REALIZACIÓN DE PRODUCTOS Y PIEZAS DIGITALES, IMPRESAS Y PUBLICITARIAS DE GRAN FORMATO Y DE ANIMACIÓN GRÁFICA, ASÍ COMO APOYAR LA PRODUCCIÓN Y MONTAJE DE EVENTOS | I67: Inversión | J67: Bogotá Mejor para Todos | K67: 45 | L67: =IF(ISERROR(VLOOKUP(K67,Eje_Pilar_Prop!$C$2:$E$104,2,FALSE))," ",VLOOKUP(K67,Eje_Pilar_Prop!$C$2:$E$104,2,FALSE)) -> Gobernanza e influencia local, regional e internacional | M67: =IF(ISERROR(VLOOKUP(K67,Eje_Pilar_Prop!$C$2:$E$104,3,FALSE))," ",VLOOKUP(K67,Eje_Pilar_Prop!$C$2:$E$104,3,FALSE)) -> Eje Transversal 4 Gobierno Legitimo, Fortalecimiento Local y Eficiencia | N67: 1395 | O67: 80139300 80258118 | P67: WILSON ALFONSO NEIRA SALGADO CEDIDO | Q67: 16800000 | T67: 0 | V67: =+Q67+S67+U67 -> 16800000 | W67: 15120000 | X67: 2020-04-07 | Y67: 2020-04-14 | Z67: 2020-08-13 | AA67: 120 | AD67: 80258118 | AE67: IVAN DAVID PINTO GONZALEZ | AF67: 2020-07-17 | AG67: 3780000 | AJ67: X | AL67: 0.9 | AM67: =IF(SUMPRODUCT((A$14:A67=A67)*(B$14:B67=B67)*(D$14:D67=D67))>1,0,1) -> 1 | AN67: Contratos de prestación de servicios profesionales y de apoyo a la gestión | AO67: Contratación directa | AP67: =IF(ISBLANK(G67),1,IFERROR(VLOOKUP(G67,Tipo!$C$12:$C$27,1,FALSE),"NO")) -> Prestación de servicios profesionales y de apoyo a la gestión, o para la ejecución de trabajos artísticos que sólo puedan encomendarse a determinadas personas naturales; | AQ67: Inversión | AR67: =IF(ISBLANK(K67),1,IFERROR(VLOOKUP(K67,Eje_Pilar_Prop!C48:C149,1,FALSE),"NO")) -> NO | AS67: SECOP II | AT67: 1 | AU67: Bogotá Mejor para Todos
A68: 58 | B68: 2020 | C68: SECOP II | D68: FDLC-CPS-058-2020 | E68: Contratos de prestación de servicios profesionales y de apoyo a la gestión | F68: Contratación directa | G68: Prestación de servicios profesionales y de apoyo a la gestión, o para la ejecución de trabajos artísticos que sólo puedan encomendarse a determinadas personas naturales; | H68: PRESTACIÓN DE SERVICIOS TECNICOS DE APOYO EN LA VISIBILIZACION DE LA GESTIÓN TURISTICA Y CULTURAL DE LA CANDELARIA EN EL MARCO DE LA DECLARATORIA COMO AREA TURISTICA SOSTENIBLE | I68: Inversión | J68: Bogotá Mejor para Todos | K68: 11 | L68: =IF(ISERROR(VLOOKUP(K68,Eje_Pilar_Prop!$C$2:$E$104,2,FALSE))," ",VLOOKUP(K68,Eje_Pilar_Prop!$C$2:$E$104,2,FALSE)) -> Mejores oportunidades para el desarrollo a través de la cultura, la recreación y el deporte | M68: =IF(ISERROR(VLOOKUP(K68,Eje_Pilar_Prop!$C$2:$E$104,3,FALSE))," ",VLOOKUP(K68,Eje_Pilar_Prop!$C$2:$E$104,3,FALSE)) -> Pilar 1 Igualdad de Calidad de Vida | N68: 1389 | O68: 80249660 | P68: JHONNATAN ACOSTA HERRADA | Q68: 11600000 | T68: 0 | U68: 0 | V68: 11600000 | W68: 11600000 | X68: 2020-04-07 | Y68: 2020-04-13 | Z68: 2020-08-12 | AA68: 120 | AK68: X | AL68: 1 | AM68: =IF(SUMPRODUCT((A$14:A68=A68)*(B$14:B68=B68)*(D$14:D68=D68))>1,0,1) -> 1 | AN68: Contratos de prestación de servicios profesionales y de apoyo a la gestión | AO68: Contratación directa | AP68: =IF(ISBLANK(G68),1,IFERROR(VLOOKUP(G68,Tipo!$C$12:$C$27,1,FALSE),"NO")) -> Prestación de servicios profesionales y de apoyo a la gestión, o para la ejecución de trabajos artísticos que sólo puedan encomendarse a determinadas personas naturales; | AQ68: Inversión | AR68: =IF(ISBLANK(K68),1,IFERROR(VLOOKUP(K68,Eje_Pilar_Prop!C48:C150,1,FALSE),"NO")) -> NO | AS68: SECOP II | AT68: 1 | AU68: Bogotá Mejor para Todos
A69: 59 | B69: 2020 | C69: SECOP II | D69: FDLCP-CPS-059-2020 | E69: Contratos de prestación de servicios profesionales y de apoyo a la gestión | F69: Contratación directa | G69: Prestación de servicios profesionales y de apoyo a la gestión, o para la ejecución de trabajos artísticos que sólo puedan encomendarse a determinadas personas naturales; | H69: PRESTAR LOS SERVICIOS ADMINISTRATIVOS Y ASISTENCIALES AL ÁREA DE GESTIÓN POLICIVA DE LA ALCALDÍA LOCAL DE LA CANDELARIA EN LOS TEMAS DE COMPETENCIA DE LA OFICINA DE DESCONGESTIÓN OBRAS | I69: Inversión | J69: Bogotá Mejor para Todos | K69: 45 | L69: =IF(ISERROR(VLOOKUP(K69,Eje_Pilar_Prop!$C$2:$E$104,2,FALSE))," ",VLOOKUP(K69,Eje_Pilar_Prop!$C$2:$E$104,2,FALSE)) -> Gobernanza e influencia local, regional e internacional | M69: =IF(ISERROR(VLOOKUP(K69,Eje_Pilar_Prop!$C$2:$E$104,3,FALSE))," ",VLOOKUP(K69,Eje_Pilar_Prop!$C$2:$E$104,3,FALSE)) -> Eje Transversal 4 Gobierno Legitimo, Fortalecimiento Local y Eficiencia | N69: 1395 | O69: 79907754 | P69: JUAN ANGEL LOPEZ ARDILA | Q69: 7020000 | T69: 0 | V69: =+Q69+S69+U69 -> 7020000 | W69: 7020000 | X69: 2020-04-08 | Y69: 2020-04-13 | Z69: 2020-08-12 | AA69: 120 | AK69: X | AL69: 1 | AM69: =IF(SUMPRODUCT((A$14:A69=A69)*(B$14:B69=B69)*(D$14:D69=D69))>1,0,1) -> 1 | AN69: Contratos de prestación de servicios profesionales y de apoyo a la gestión | AO69: Contratación directa | AP69: =IF(ISBLANK(G69),1,IFERROR(VLOOKUP(G69,Tipo!$C$12:$C$27,1,FALSE),"NO")) -> Prestación de servicios profesionales y de apoyo a la gestión, o para la ejecución de trabajos artísticos que sólo puedan encomendarse a determinadas personas naturales; | AQ69: Inversión | AR69: =IF(ISBLANK(K69),1,IFERROR(VLOOKUP(K69,Eje_Pilar_Prop!C48:C151,1,FALSE),"NO")) -> NO | AS69: SECOP II | AT69: 1 | AU69: Bogotá Mejor para Todos
A70: 60 | B70: 2020 | C70: SECOP II | D70: FDLC-CPS-060-2020 | E70: Contratos de prestación de servicios profesionales y de apoyo a la gestión | F70: Contratación directa | G70: Prestación de servicios profesionales y de apoyo a la gestión, o para la ejecución de trabajos artísticos que sólo puedan encomendarse a determinadas personas naturales; | H70: PRESTACION DE SERVICIOS PARA LIDERAR Y GARANTIZAR LA IMPLEMENTACIÓN Y SEGUIMIENTO DE LOS PROCESOS Y PROCEDIMIENTOS DEL SERVICIO SOCIAL | I70: Inversión | J70: Bogotá Mejor para Todos | K70: 3 | L70: =IF(ISERROR(VLOOKUP(K70,Eje_Pilar_Prop!$C$2:$E$104,2,FALSE))," ",VLOOKUP(K70,Eje_Pilar_Prop!$C$2:$E$104,2,FALSE)) -> Igualdad y autonomía para una Bogotá incluyente | M70: =IF(ISERROR(VLOOKUP(K70,Eje_Pilar_Prop!$C$2:$E$104,3,FALSE))," ",VLOOKUP(K70,Eje_Pilar_Prop!$C$2:$E$104,3,FALSE)) -> Pilar 1 Igualdad de Calidad de Vida | N70: 1386 | O70: 1121834435 | P70: JUANITA DIAZ VILLALOBOS | Q70: 17907180 | T70: 0 | V70: 17907180 | W70: 15967235 | X70: 2020-04-08 | Y70: 2020-04-14 | Z70: 2020-08-13 | AA70: 120 | AJ70: X | AL70: 0.8916666387 | AM70: =IF(SUMPRODUCT((A$14:A70=A70)*(B$14:B70=B70)*(D$14:D70=D70))>1,0,1) -> 1 | AN70: Contratos de prestación de servicios profesionales y de apoyo a la gestión | AO70: Contratación directa | AP70: =IF(ISBLANK(G70),1,IFERROR(VLOOKUP(G70,Tipo!$C$12:$C$27,1,FALSE),"NO")) -> Prestación de servicios profesionales y de apoyo a la gestión, o para la ejecución de trabajos artísticos que sólo puedan encomendarse a determinadas personas naturales; | AQ70: Inversión | AR70: =IF(ISBLANK(K70),1,IFERROR(VLOOKUP(K70,Eje_Pilar_Prop!C48:C152,1,FALSE),"NO")) -> NO | AS70: SECOP II | AT70: 1 | AU70: Bogotá Mejor para Todos
A71: 61 | B71: 2020 | C71: SECOP II | D71: FDLC-CPS-061-2020 | E71: Contratos de prestación de servicios profesionales y de apoyo a la gestión | F71: Contratación directa | G71: Prestación de servicios profesionales y de apoyo a la gestión, o para la ejecución de trabajos artísticos que sólo puedan encomendarse a determinadas personas naturales; | H71: PRESTAR SERVICIOS PROFESIONALES AL FONDO DE DESARROLLO LOCAL LA CANDELARIA, PARA FORTALECER Y PROMOVER ESTRATEGIAS DE IMPLEMENTACION, APLICACION Y CAPACITACION A LA COMUNIDAD Y DIFERENTES SECTORES, EN MATERIA DE NORMATIVIDAD REFERENTE AL ESTATUTO DEL CONSUMIDOR LEY 1480 DE 2011 | I71: Inversión | J71: Bogotá Mejor para Todos | K71: 45 | L71: =IF(ISERROR(VLOOKUP(K71,Eje_Pilar_Prop!$C$2:$E$104,2,FALSE))," ",VLOOKUP(K71,Eje_Pilar_Prop!$C$2:$E$104,2,FALSE)) -> Gobernanza e influencia local, regional e internacional | M71: =IF(ISERROR(VLOOKUP(K71,Eje_Pilar_Prop!$C$2:$E$104,3,FALSE))," ",VLOOKUP(K71,Eje_Pilar_Prop!$C$2:$E$104,3,FALSE)) -> Eje Transversal 4 Gobierno Legitimo, Fortalecimiento Local y Eficiencia | N71: 1395 | O71: 19222361 | P71: FELIX ANTONIO NAMEN BELMONTE | Q71: 16000000 | T71: 0 | V71: 16000000 | W71: 16000000 | X71: 2020-04-08 | Y71: 2020-04-13 | Z71: 2020-08-12 | AA71: 120 | AK71: X | AL71: 1 | AM71: =IF(SUMPRODUCT((A$14:A71=A71)*(B$14:B71=B71)*(D$14:D71=D71))>1,0,1) -> 1 | AN71: Contratos de prestación de servicios profesionales y de apoyo a la gestión | AO71: Contratación directa | AP71: =IF(ISBLANK(G71),1,IFERROR(VLOOKUP(G71,Tipo!$C$12:$C$27,1,FALSE),"NO")) -> Prestación de servicios profesionales y de apoyo a la gestión, o para la ejecución de trabajos artísticos que sólo puedan encomendarse a determinadas personas naturales; | AQ71: Inversión | AR71: =IF(ISBLANK(K71),1,IFERROR(VLOOKUP(K71,Eje_Pilar_Prop!C48:C153,1,FALSE),"NO")) -> NO | AS71: SECOP II | AT71: 1 | AU71: Bogotá Mejor para Todos
A72: 62 | B72: 2020 | C72: SECOP II | D72: FDLC-CPS-062-2020 | E72: Contratos de prestación de servicios profesionales y de apoyo a la gestión | F72: Contratación directa | G72: Prestación de servicios profesionales y de apoyo a la gestión, o para la ejecución de trabajos artísticos que sólo puedan encomendarse a determinadas personas naturales; | H72: APOYAR ADMINISTRATIVA Y ASISTENCIALMENTE A LAS INSPECCIONES DE POLICÍA DE LA LOCALIDAD | I72: Inversión | J72: Bogotá Mejor para Todos | K72: 45 | L72: =IF(ISERROR(VLOOKUP(K72,Eje_Pilar_Prop!$C$2:$E$104,2,FALSE))," ",VLOOKUP(K72,Eje_Pilar_Prop!$C$2:$E$104,2,FALSE)) -> Gobernanza e influencia local, regional e internacional | M72: =IF(ISERROR(VLOOKUP(K72,Eje_Pilar_Prop!$C$2:$E$104,3,FALSE))," ",VLOOKUP(K72,Eje_Pilar_Prop!$C$2:$E$104,3,FALSE)) -> Eje Transversal 4 Gobierno Legitimo, Fortalecimiento Local y Eficiencia | N72: 1395 | O72: 51838961 | P72: María Adelaida Luna Buenaventura | Q72: 7020000 | T72: 0 | V72: 7020000 | W72: 7020000 | X72: 2020-04-08 | Y72: 2020-04-14 | Z72: 2020-08-13 | AA72: 120 | AK72: X | AL72: 1 | AM72: =IF(SUMPRODUCT((A$14:A72=A72)*(B$14:B72=B72)*(D$14:D72=D72))>1,0,1) -> 1 | AN72: Contratos de prestación de servicios profesionales y de apoyo a la gestión | AO72: Contratación directa | AP72: =IF(ISBLANK(G72),1,IFERROR(VLOOKUP(G72,Tipo!$C$12:$C$27,1,FALSE),"NO")) -> Prestación de servicios profesionales y de apoyo a la gestión, o para la ejecución de trabajos artísticos que sólo puedan encomendarse a determinadas personas naturales; | AQ72: Inversión | AR72: =IF(ISBLANK(K72),1,IFERROR(VLOOKUP(K72,Eje_Pilar_Prop!C49:C154,1,FALSE),"NO")) -> NO | AS72: SECOP II | AT72: 1 | AU72: Bogotá Mejor para Todos
A73: 64 | B73: 2020 | C73: SECOP II | D73: FDLC-CPS-064-2020 | E73: Contratos de prestación de servicios profesionales y de apoyo a la gestión | F73: Contratación directa | G73: Prestación de servicios profesionales y de apoyo a la gestión, o para la ejecución de trabajos artísticos que sólo puedan encomendarse a determinadas personas naturales; | H73: PRESTACIÓN DE SERVICIOS PROFESIONALES PARA APOYAR AL EQUIPO DE PRENSA Y COMUNICACIONES DE LA ALCALDÍA LOCAL EN LA REALIZACIÓN Y PUBLICACIÓN DE CONTENIDOS DE REDES SOCIALES Y CANALES DE DIVULGACIÓN DIGITAL (SITIO WEB) DE LA ALCALDÍA LOCAL | I73: Inversión | J73: Bogotá Mejor para Todos | K73: 45 | L73: =IF(ISERROR(VLOOKUP(K73,Eje_Pilar_Prop!$C$2:$E$104,2,FALSE))," ",VLOOKUP(K73,Eje_Pilar_Prop!$C$2:$E$104,2,FALSE)) -> Gobernanza e influencia local, regional e internacional | M73: =IF(ISERROR(VLOOKUP(K73,Eje_Pilar_Prop!$C$2:$E$104,3,FALSE))," ",VLOOKUP(K73,Eje_Pilar_Prop!$C$2:$E$104,3,FALSE)) -> Eje Transversal 4 Gobierno Legitimo, Fortalecimiento Local y Eficiencia | N73: 1395 | O73: 1033731738 | P73: NATALIA ANDREA RUBIANO FORERO | Q73: 17907180 | T73: 0 | U73: 0 | V73: 17907180 | W73: 17907180 | X73: 2020-04-14 | Y73: 2020-04-14 | Z73: 2020-08-13 | AA73: 120 | AK73: X | AL73: 1 | AM73: =IF(SUMPRODUCT((A$14:A73=A73)*(B$14:B73=B73)*(D$14:D73=D73))>1,0,1) -> 1 | AN73: Contratos de prestación de servicios profesionales y de apoyo a la gestión | AO73: Contratación directa | AP73: =IF(ISBLANK(G73),1,IFERROR(VLOOKUP(G73,Tipo!$C$12:$C$27,1,FALSE),"NO")) -> Prestación de servicios profesionales y de apoyo a la gestión, o para la ejecución de trabajos artísticos que sólo puedan encomendarse a determinadas personas naturales; | AQ73: Inversión | AR73: =IF(ISBLANK(K73),1,IFERROR(VLOOKUP(K73,Eje_Pilar_Prop!C51:C156,1,FALSE),"NO")) -> NO | AS73: SECOP II | AT73: 1 | AU73: Bogotá Mejor para Todos
A74: 65 | B74: 2020 | C74: SECOP II | D74: FDLC-CPS-065-2020 | E74: Contratos de prestación de servicios profesionales y de apoyo a la gestión | F74: Contratación directa | G74: Prestación de servicios profesionales y de apoyo a la gestión, o para la ejecución de trabajos artísticos que sólo puedan encomendarse a determinadas personas naturales; | H74: PRESTAR SERVICIOS PROFESIONALES PARA APOYAR AL PROMOTOR DE SEGURIDAD EN LA FORMUACIÓN, PRESENTACIÓN, EVALUACIÓN Y SEGUIMIENTO DE LOS PROYECTOS DE SEGURIDAD Y PARTICIPACION QUE SEAN LIDERADOS POR AL AREA DE GESTION DE DESARROLLO DEL FONDO LOCAL DE LA CANDELARIA | I74: Inversión | J74: Bogotá Mejor para Todos | K74: 45 | L74: =IF(ISERROR(VLOOKUP(K74,Eje_Pilar_Prop!$C$2:$E$104,2,FALSE))," ",VLOOKUP(K74,Eje_Pilar_Prop!$C$2:$E$104,2,FALSE)) -> Gobernanza e influencia local, regional e internacional | M74: =IF(ISERROR(VLOOKUP(K74,Eje_Pilar_Prop!$C$2:$E$104,3,FALSE))," ",VLOOKUP(K74,Eje_Pilar_Prop!$C$2:$E$104,3,FALSE)) -> Eje Transversal 4 Gobierno Legitimo, Fortalecimiento Local y Eficiencia | N74: 1395 | O74: 80037360 | P74: JOHN JAIRO GONZALEZ ARBOLEDA | Q74: 15452000 | T74: 0 | V74: 15452000 | W74: 13778033 | X74: 2020-04-14 | Y74: 2020-04-14 | Z74: 2020-08-13 | AA74: 120 | AJ74: X | AL74: 0.8916666451 | AM74: =IF(SUMPRODUCT((A$14:A74=A74)*(B$14:B74=B74)*(D$14:D74=D74))>1,0,1) -> 1 | AN74: Contratos de prestación de servicios profesionales y de apoyo a la gestión | AO74: Contratación directa | AP74: =IF(ISBLANK(G74),1,IFERROR(VLOOKUP(G74,Tipo!$C$12:$C$27,1,FALSE),"NO")) -> Prestación de servicios profesionales y de apoyo a la gestión, o para la ejecución de trabajos artísticos que sólo puedan encomendarse a determinadas personas naturales; | AQ74: Inversión | AR74: =IF(ISBLANK(K74),1,IFERROR(VLOOKUP(K74,Eje_Pilar_Prop!C52:C157,1,FALSE),"NO")) -> NO | AS74: SECOP II | AT74: 1 | AU74: Bogotá Mejor para Todos
A75: 67 | B75: 2020 | C75: SECOP II | D75: FDLC-CPS-067-2020 | E75: Contratos de prestación de servicios profesionales y de apoyo a la gestión | F75: Contratación directa | G75: Prestación de servicios profesionales y de apoyo a la gestión, o para la ejecución de trabajos artísticos que sólo puedan encomendarse a determinadas personas naturales; | H75: PRESTACION DE SERVICIOS PROFESIONALES PARA APOYAR LA FORMULACION, EVALUACION, PRESENTACION Y SEGUIMIENTO, ESPECIALMENTE DE LOS PROYECTOS AMBIENTALES Y DOTACIÓN INSTITUCIONES EDUCATIVAS DISTRITALES, LIDERADOS POR EL AREA de GESTION DELDESARROLLO LOCAL LA CANDELARIA | I75: Inversión | J75: Bogotá Mejor para Todos | K75: 45 | L75: =IF(ISERROR(VLOOKUP(K75,Eje_Pilar_Prop!$C$2:$E$104,2,FALSE))," ",VLOOKUP(K75,Eje_Pilar_Prop!$C$2:$E$104,2,FALSE)) -> Gobernanza e influencia local, regional e internacional | M75: =IF(ISERROR(VLOOKUP(K75,Eje_Pilar_Prop!$C$2:$E$104,3,FALSE))," ",VLOOKUP(K75,Eje_Pilar_Prop!$C$2:$E$104,3,FALSE)) -> Eje Transversal 4 Gobierno Legitimo, Fortalecimiento Local y Eficiencia | N75: 1395 | O75: 1024509446 | P75: Lizeth Nataly González Guaje | Q75: 15452000 | T75: 0 | V75: 15452000 | W75: 15452000 | X75: 2020-04-15 | Y75: 2020-04-23 | Z75: 2020-08-22 | AA75: 120 | AK75: X | AL75: 1 | AM75: =IF(SUMPRODUCT((A$14:A75=A75)*(B$14:B75=B75)*(D$14:D75=D75))>1,0,1) -> 1 | AN75: Contratos de prestación de servicios profesionales y de apoyo a la gestión | AO75: Contratación directa | AP75: =IF(ISBLANK(G75),1,IFERROR(VLOOKUP(G75,Tipo!$C$12:$C$27,1,FALSE),"NO")) -> Prestación de servicios profesionales y de apoyo a la gestión, o para la ejecución de trabajos artísticos que sólo puedan encomendarse a determinadas personas naturales; | AQ75: Inversión | AR75: =IF(ISBLANK(K75),1,IFERROR(VLOOKUP(K75,Eje_Pilar_Prop!C53:C158,1,FALSE),"NO")) -> NO | AS75: SECOP II | AT75: 1 | AU75: Bogotá Mejor para Todos
A76: 68 | B76: 2020 | C76: SECOP I | D76: CONTRATO INTERDMINISTRATIVO No. 068-2020 | E76: Contratos interadministrativos | F76: Contratación directa | G76: Contratos interadministrativos | H76: PRESTACIÓN DEL SERVICIO DE MENSAJERÍA Y DE CORREO CERTIFICADO QUE REQUIERA EL FONDO DE DESARROLLO LOCAL DE LA CANDELARIA | I76: Funcionamiento | J76: Bogotá Mejor para Todos | K76: No aplica | L76: No Aplica | M76: No Aplica | N76: No Aplica | O76: 900062917-9 | P76: SERVICIOS POSTALES NACIONALES S.A. | Q76: 8.000.000 | T76: 0 | V76: 8000000 | X76: 2020-05-13 | Y76: 2020-05-13 | Z76: 2021-05-12 | AA76: 360 | AJ76: X | AL76: 0 | AM76: =IF(SUMPRODUCT((A$14:A76=A76)*(B$14:B76=B76)*(D$14:D76=D76))>1,0,1) -> 1 | AN76: Contratos interadministrativos | AO76: Contratación directa | AP76: =IF(ISBLANK(G76),1,IFERROR(VLOOKUP(G76,Tipo!$C$12:$C$27,1,FALSE),"NO")) -> Contratos interadministrativos | AQ76: Funcionamiento | AR76: =IF(ISBLANK(K76),1,IFERROR(VLOOKUP(K76,Eje_Pilar_Prop!C54:C159,1,FALSE),"NO")) -> NO | AS76: SECOP I | AT76: 1 | AU76: Bogotá Mejor para Todos
A77: 69 | B77: 2020 | C77: SECOP II | D77: FDLC-CPS-068-2020 | E77: Contratos de prestación de servicios profesionales y de apoyo a la gestión | F77: Contratación directa | G77: Prestación de servicios profesionales y de apoyo a la gestión, o para la ejecución de trabajos artísticos que sólo puedan encomendarse a determinadas personas naturales; | H77: PRESTAR SUS SERVICIOS PROFESIONALES PARA APOYAR AL ALCALDE LOCAL EN LA GESTIÓN DE LOS ASUNTOS RELACIONADOS CON SEGURIDAD CIUDADANA, CONVIVENCIA Y PREVENCIÓN DE CONFLICTIVIDADES, VIOLENCIAS Y DELITOS EN LA LOCALIDAD, DE CONFORMIDAD CON EL MARCO NORMATIVO APLICABLE EN LA MATERIA | I77: Inversión | J77: Bogotá Mejor para Todos | K77: 45 | L77: =IF(ISERROR(VLOOKUP(K77,Eje_Pilar_Prop!$C$2:$E$104,2,FALSE))," ",VLOOKUP(K77,Eje_Pilar_Prop!$C$2:$E$104,2,FALSE)) -> Gobernanza e influencia local, regional e internacional | M77: =IF(ISERROR(VLOOKUP(K77,Eje_Pilar_Prop!$C$2:$E$104,3,FALSE))," ",VLOOKUP(K77,Eje_Pilar_Prop!$C$2:$E$104,3,FALSE)) -> Eje Transversal 4 Gobierno Legitimo, Fortalecimiento Local y Eficiencia | N77: 1395 | O77: 80239278 | P77: JOHN FREDY PULIDO RINCON | Q77: 20400000 | T77: 0 | V77: =+Q77+S77+U77 -> 20400000 | W77: 20400000 | X77: 2020-04-22 | Y77: 2020-04-22 | Z77: 2020-08-21 | AA77: 120 | AK77: X | AL77: 1 | AM77: =IF(SUMPRODUCT((A$14:A77=A77)*(B$14:B77=B77)*(D$14:D77=D77))>1,0,1) -> 1 | AN77: Contratos de prestación de servicios profesionales y de apoyo a la gestión | AO77: Contratación directa | AP77: =IF(ISBLANK(G77),1,IFERROR(VLOOKUP(G77,Tipo!$C$12:$C$27,1,FALSE),"NO")) -> Prestación de servicios profesionales y de apoyo a la gestión, o para la ejecución de trabajos artísticos que sólo puedan encomendarse a determinadas personas naturales; | AQ77: Inversión | AR77: =IF(ISBLANK(K77),1,IFERROR(VLOOKUP(K77,Eje_Pilar_Prop!C55:C160,1,FALSE),"NO")) -> NO | AS77: SECOP II | AT77: 1 | AU77: Bogotá Mejor para Todos
A78: 70 | B78: 2020 | C78: SECOP II | D78: FDLC-CPS-070-2020 | E78: Contratos de prestación de servicios profesionales y de apoyo a la gestión | F78: Contratación directa | G78: Prestación de servicios profesionales y de apoyo a la gestión, o para la ejecución de trabajos artísticos que sólo puedan encomendarse a determinadas personas naturales; | H78: PRESTACIÓN DE SERVICIOS PROFESIONALES PARA APOYAR AL ALCALDE(SA) LOCAL EN LA PROMOCIÓN, ACOMPAÑAMIENTO, COORDINACIÓN Y ATENCIÓN DE LAS INSTANCIAS DE COORDINACIÓN INTERINSTITUCIONALES Y LAS INSTANCIAS DE PARTICIPACIÓN LOCALES, ASÍ COMO LOS PROCESOS COMUNITARIOS EN LA LOCALIDAD | I78: Inversión | J78: Bogotá Mejor para Todos | K78: 45 | L78: =IF(ISERROR(VLOOKUP(K78,Eje_Pilar_Prop!$C$2:$E$104,2,FALSE))," ",VLOOKUP(K78,Eje_Pilar_Prop!$C$2:$E$104,2,FALSE)) -> Gobernanza e influencia local, regional e internacional | M78: =IF(ISERROR(VLOOKUP(K78,Eje_Pilar_Prop!$C$2:$E$104,3,FALSE))," ",VLOOKUP(K78,Eje_Pilar_Prop!$C$2:$E$104,3,FALSE)) -> Eje Transversal 4 Gobierno Legitimo, Fortalecimiento Local y Eficiencia | N78: 1396 | O78: 79318896 | P78: Haroldo Carin Calao Gonzalez | Q78: 16800000 | T78: 0 | V78: 16800000 | W78: 16800000 | X78: 2020-04-22 | Y78: 2020-04-22 | Z78: 2020-08-21 | AA78: 120 | AK78: X | AL78: 1 | AM78: =IF(SUMPRODUCT((A$14:A98=A98)*(B$14:B98=B98)*(D$14:D98=D98))>1,0,1) -> 1 | AN78: Contratos de prestación de servicios profesionales y de apoyo a la gestión | AO78: Contratación directa | AP78: =IF(ISBLANK(G78),1,IFERROR(VLOOKUP(G78,Tipo!$C$12:$C$27,1,FALSE),"NO")) -> Prestación de servicios profesionales y de apoyo a la gestión, o para la ejecución de trabajos artísticos que sólo puedan encomendarse a determinadas personas naturales; | AQ78: Inversión | AR78: =IF(ISBLANK(K78),1,IFERROR(VLOOKUP(K78,Eje_Pilar_Prop!C56:C161,1,FALSE),"NO")) -> NO | AS78: SECOP II | AT78: 1 | AU78: =IF(ISBLANK(J78),1,IFERROR(VLOOKUP(J78,pdd,1,FALSE),"NO")) -> Bogotá Mejor para Todos
A79: 71 | B79: 2020 | C79: SECOP II | D79: FDLC-IMC-005-2020 | E79: Seguros | F79: Contratación mínima cuantia | G79: No aplica | H79: CONTRATAR EL SEGURO DE VIDA GRUPO QUE AMPARE LOS EDILES DEL FONDO DE DESARROLLO LOCAL DE LA CANDELARIA | I79: Funcionamiento | J79: Bogotá Mejor para Todos | K79: No aplica | L79: No Aplica | M79: No Aplica | N79: No Aplica | O79: 860011153 | P79: POSITIVA COMPAÑIA DE SEGUROS S.A. | Q79: 5548593 | T79: 0 | V79: 5548593 | W79: 5548593 | X79: 2020-04-20 | Y79: 2020-04-20 | Z79: 2021-04-20 | AA79: 365 | AI79: X | AL79: 1 | AM79: =IF(SUMPRODUCT((A$14:A79=A79)*(B$14:B79=B79)*(D$14:D79=D79))>1,0,1) -> 1 | AN79: Seguros | AO79: Contratación mínima cuantia | AP79: =IF(ISBLANK(G79),1,IFERROR(VLOOKUP(G79,Tipo!$C$12:$C$27,1,FALSE),"NO")) -> NO | AQ79: Funcionamiento | AR79: =IF(ISBLANK(K79),1,IFERROR(VLOOKUP(K79,Eje_Pilar_Prop!C57:C162,1,FALSE),"NO")) -> NO | AS79: SECOP II | AT79: 1 | AU79: Bogotá Mejor para Todos
A80: 72 | B80: 2020 | C80: SECOP II | D80: FDLC-CPS-072-2020 | E80: Contratos de prestación de servicios profesionales y de apoyo a la gestión | F80: Contratación directa | G80: Prestación de servicios profesionales y de apoyo a la gestión, o para la ejecución de trabajos artísticos que sólo puedan encomendarse a determinadas personas naturales; | H80: PRESTACION DE SERVICIOS DE APOYO ASISTENCIAL A LA GESTION DEL DESPACHO Y LAS DIFERENTES AREAS DEL FONDO DE DESARROLLO LOCAL DE LA CANDELARIA | I80: Inversión | J80: Bogotá Mejor para Todos | K80: 45 | L80: =IF(ISERROR(VLOOKUP(K80,Eje_Pilar_Prop!$C$2:$E$104,2,FALSE))," ",VLOOKUP(K80,Eje_Pilar_Prop!$C$2:$E$104,2,FALSE)) -> Gobernanza e influencia local, regional e internacional | M80: =IF(ISERROR(VLOOKUP(K80,Eje_Pilar_Prop!$C$2:$E$104,3,FALSE))," ",VLOOKUP(K80,Eje_Pilar_Prop!$C$2:$E$104,3,FALSE)) -> Eje Transversal 4 Gobierno Legitimo, Fortalecimiento Local y Eficiencia | N80: 1395 | O80: 52305372 | P80: ELCY JANETH PULIDO | Q80: 9831392 | T80: 0 | V80: 9831392 | W80: 9831392 | X80: 2020-05-14 | Y80: 2020-05-15 | Z80: 2020-09-14 | AA80: 120 | AK80: X | AL80: 1 | AM80: =IF(SUMPRODUCT((A$14:A80=A80)*(B$14:B80=B80)*(D$14:D80=D80))>1,0,1) -> 1 | AN80: Contratos de prestación de servicios profesionales y de apoyo a la gestión | AO80: Contratación directa | AP80: =IF(ISBLANK(G80),1,IFERROR(VLOOKUP(G80,Tipo!$C$12:$C$27,1,FALSE),"NO")) -> Prestación de servicios profesionales y de apoyo a la gestión, o para la ejecución de trabajos artísticos que sólo puedan encomendarse a determinadas personas naturales; | AQ80: Inversión | AR80: =IF(ISBLANK(K80),1,IFERROR(VLOOKUP(K80,Eje_Pilar_Prop!C58:C163,1,FALSE),"NO")) -> NO | AS80: SECOP II | AT80: 1 | AU80: Bogotá Mejor para Todos
A81: 73 | B81: 2020 | C81: SECOP II | D81: FDLC-CPS-073-2020 | E81: Contratos de prestación de servicios profesionales y de apoyo a la gestión | F81: Contratación directa | G81: Prestación de servicios profesionales y de apoyo a la gestión, o para la ejecución de trabajos artísticos que sólo puedan encomendarse a determinadas personas naturales; | H81: PRESTAR SERVICIOS PROFESIONALES COMO ESPECIALIZADOS EN LA GESTIÓN JURÍDICA DEL DESPACHO Y DEL FONDO DE DESARROLLO LOCAL LA CANDELARIA EN MATERIA CONTRACTUAL Y EN TODOS LOS TEMAS DE ORDEN ADMINISTRATIVO QUE SE DAN EN DESARROLLO DE LAS GESTIONES DE LA ENTIDAD | I81: Inversión | J81: Bogotá Mejor para Todos | K81: 45 | L81: =IF(ISERROR(VLOOKUP(K81,Eje_Pilar_Prop!$C$2:$E$104,2,FALSE))," ",VLOOKUP(K81,Eje_Pilar_Prop!$C$2:$E$104,2,FALSE)) -> Gobernanza e influencia local, regional e internacional | M81: =IF(ISERROR(VLOOKUP(K81,Eje_Pilar_Prop!$C$2:$E$104,3,FALSE))," ",VLOOKUP(K81,Eje_Pilar_Prop!$C$2:$E$104,3,FALSE)) -> Eje Transversal 4 Gobierno Legitimo, Fortalecimiento Local y Eficiencia | N81: 1395 | O81: 79981034 | P81: ROLANDO NIÑO PALENCIA CESION DE CAMILO DEVIA NEIRA | Q81: 35600000 | T81: 0 | V81: 35600000 | W81: 22546666 | X81: 2020-05-14 | Y81: 2020-05-15 | Z81: 2020-09-14 | AA81: 120 | AD81: 79981034 | AE81: ROLANDO ALFONSO NIÑO PALENCIA, | AF81: 2020-08-10 | AG81: 10680000 | AJ81: X | AL81: 0.6333333146 | AM81: =IF(SUMPRODUCT((A$14:A81=A81)*(B$14:B81=B81)*(D$14:D81=D81))>1,0,1) -> 1 | AN81: Contratos de prestación de servicios profesionales y de apoyo a la gestión | AO81: Contratación directa | AP81: =IF(ISBLANK(G81),1,IFERROR(VLOOKUP(G81,Tipo!$C$12:$C$27,1,FALSE),"NO")) -> Prestación de servicios profesionales y de apoyo a la gestión, o para la ejecución de trabajos artísticos que sólo puedan encomendarse a determinadas personas naturales; | AQ81: Inversión | AR81: =IF(ISBLANK(K81),1,IFERROR(VLOOKUP(K81,Eje_Pilar_Prop!C59:C164,1,FALSE),"NO")) -> NO | AS81: SECOP II | AT81: 1 | AU81: Bogotá Mejor para Todos
A82: 74 | B82: 2020 | C82: SECOP II | D82: FDLC-CPS-074-2020 | E82: Contratos de prestación de servicios profesionales y de apoyo a la gestión | F82: Contratación directa | G82: Prestación de servicios profesionales y de apoyo a la gestión, o para la ejecución de trabajos artísticos que sólo puedan encomendarse a determinadas personas naturales; | H82: PRESTACIÓN DE SERVICIOS PROFESIONALES PARA COORDINAR, LIDERAR Y ASESORAR LOS PLANES Y ESTRATEGIAS DE COMUNICACIÓN INTERNA Y EXTERNA PARA LA DIVULGACIÓN DE LOS PROGRAMAS, PROYECTOS Y ACTIVIDADES DE LA ALCALDÍA LOCAL | I82: Inversión | J82: Bogotá Mejor para Todos | K82: 45 | L82: =IF(ISERROR(VLOOKUP(K82,Eje_Pilar_Prop!$C$2:$E$104,2,FALSE))," ",VLOOKUP(K82,Eje_Pilar_Prop!$C$2:$E$104,2,FALSE)) -> Gobernanza e influencia local, regional e internacional | M82: =IF(ISERROR(VLOOKUP(K82,Eje_Pilar_Prop!$C$2:$E$104,3,FALSE))," ",VLOOKUP(K82,Eje_Pilar_Prop!$C$2:$E$104,3,FALSE)) -> Eje Transversal 4 Gobierno Legitimo, Fortalecimiento Local y Eficiencia | N82: 1395 | O82: 1020729068 | P82: Valentina Ochoa Mayorga | Q82: 26000000 | T82: 0 | V82: 26000000 | W82: 26000000 | X82: 2020-05-14 | Y82: 2020-05-18 | Z82: 2020-09-17 | AA82: 120 | AK82: X | AL82: 1 | AM82: =IF(SUMPRODUCT((A$14:A82=A82)*(B$14:B82=B82)*(D$14:D82=D82))>1,0,1) -> 1 | AN82: Contratos de prestación de servicios profesionales y de apoyo a la gestión | AO82: Contratación directa | AP82: =IF(ISBLANK(G82),1,IFERROR(VLOOKUP(G82,Tipo!$C$12:$C$27,1,FALSE),"NO")) -> Prestación de servicios profesionales y de apoyo a la gestión, o para la ejecución de trabajos artísticos que sólo puedan encomendarse a determinadas personas naturales; | AQ82: Inversión | AR82: =IF(ISBLANK(K82),1,IFERROR(VLOOKUP(K82,Eje_Pilar_Prop!C60:C165,1,FALSE),"NO")) -> NO | AS82: SECOP II | AT82: 1 | AU82: Bogotá Mejor para Todos
A83: 75 | B83: 2020 | C83: SECOP II | D83: FDLC-IMC-006-2020 | E83: Contratos de prestación de servicios | F83: Contratación mínima cuantia | G83: No aplica | H83: PRESTACION DEL SERVICIO DE VIGILANCIA Y SEGURIDAD PRIVADA INTEGRAL PERMANENTE PARA TODOS LOS BIENES MUEBLES E INMUEBLES DE PROPIEDAD DE LA ENTIDAD, Y DE LOS QUE LEGALMENTE SEA O LLEGARE A SER RESPONSABLE EL FONDO DE DESARROLLO LOCAL DE LA CANDELARIA | I83: Funcionamiento | J83: Bogotá Mejor para Todos | K83: No aplica | L83: No Aplica | M83: No Aplica | N83: No Aplica | O83: 860517560 | P83: EMPRESA DE SEGURIDAD Y VIGILANCIA SERVICONFOR LIMITADA | Q83: 23064935 | T83: 1 | U83: 10763636 | V83: 33828571 | W83: 33828571 | X83: 2020-05-15 | Y83: 2020-05-19 | Z83: 2020-06-02 | AA83: 15 | AB83: 1 | AC83: 15 | AK83: X | AL83: 1 | AM83: =IF(SUMPRODUCT((A$14:A83=A83)*(B$14:B83=B83)*(D$14:D83=D83))>1,0,1) -> 1 | AN83: Contratos de prestación de servicios | AO83: Contratación mínima cuantia | AP83: =IF(ISBLANK(G83),1,IFERROR(VLOOKUP(G83,Tipo!$C$12:$C$27,1,FALSE),"NO")) -> NO | AQ83: Funcionamiento | AR83: =IF(ISBLANK(K83),1,IFERROR(VLOOKUP(K83,Eje_Pilar_Prop!C61:C166,1,FALSE),"NO")) -> NO | AS83: SECOP II | AT83: 1 | AU83: Bogotá Mejor para Todos
A84: 76 | B84: 2020 | C84: SECOP II | D84: FDLC-CPS-076-2020 | E84: Contratos de prestación de servicios profesionales y de apoyo a la gestión | F84: Contratación directa | G84: Prestación de servicios profesionales y de apoyo a la gestión, o para la ejecución de trabajos artísticos que sólo puedan encomendarse a determinadas personas naturales; | H84: PRESTACIÓN DE SERVICIOS PROFESIONALES DE APOYO AL FONDO DE DESARROLLO LOCAL LA CANDELARIA EN LO RELACIONADO CON LOS PROCESOS PRECONTRACTUALES, CONTRACTUALES Y POSCONTRALES DE MAYOR CUANTÍA Y DEMÁS PROCESOS QUE SE REQUIERAN | I84: Inversión | J84: Bogotá Mejor para Todos | K84: 45 | L84: =IF(ISERROR(VLOOKUP(K84,Eje_Pilar_Prop!$C$2:$E$104,2,FALSE))," ",VLOOKUP(K84,Eje_Pilar_Prop!$C$2:$E$104,2,FALSE)) -> Gobernanza e influencia local, regional e internacional | M84: =IF(ISERROR(VLOOKUP(K84,Eje_Pilar_Prop!$C$2:$E$104,3,FALSE))," ",VLOOKUP(K84,Eje_Pilar_Prop!$C$2:$E$104,3,FALSE)) -> Eje Transversal 4 Gobierno Legitimo, Fortalecimiento Local y Eficiencia | N84: 1395 | O84: 1032470720 | P84: YAISIR MARÍA VIDAL SANCHEZ | Q84: 21067272 | T84: 0 | V84: 21067272 | W84: 20540590 | X84: 2020-05-21 | Y84: 2020-05-26 | Z84: 2020-09-25 | AA84: 120 | AK84: X | AL84: 0.9749999905 | AM84: =IF(SUMPRODUCT((A$14:A84=A84)*(B$14:B84=B84)*(D$14:D84=D84))>1,0,1) -> 1 | AN84: Contratos de prestación de servicios profesionales y de apoyo a la gestión | AO84: Contratación directa | AP84: =IF(ISBLANK(G84),1,IFERROR(VLOOKUP(G84,Tipo!$C$12:$C$27,1,FALSE),"NO")) -> Prestación de servicios profesionales y de apoyo a la gestión, o para la ejecución de trabajos artísticos que sólo puedan encomendarse a determinadas personas naturales; | AQ84: Inversión | AR84: =IF(ISBLANK(K84),1,IFERROR(VLOOKUP(K84,Eje_Pilar_Prop!C62:C167,1,FALSE),"NO")) -> NO | AS84: SECOP II | AT84: 1 | AU84: Bogotá Mejor para Todos
A85: 77 | B85: 2020 | C85: SECOP II | D85: FDLC-CPS-077-2020 | E85: Contratos de prestación de servicios profesionales y de apoyo a la gestión | F85: Contratación directa | G85: Prestación de servicios profesionales y de apoyo a la gestión, o para la ejecución de trabajos artísticos que sólo puedan encomendarse a determinadas personas naturales; | H85: PRESTACION DE SERVICIOS PROFESIONALES COMO ABOGADO DE APOYO EN LA OFICINA DE DESPACHO EN LAS DIFERENTES ACTIVIDADES Y FUNCIONES QUE LE COMPETEN A ESTA DEPENDENCIA DEL FONDO DE DESARROLLO LOCAL LA CANDELARIA | I85: Inversión | J85: Bogotá Mejor para Todos | K85: 45 | L85: =IF(ISERROR(VLOOKUP(K85,Eje_Pilar_Prop!$C$2:$E$104,2,FALSE))," ",VLOOKUP(K85,Eje_Pilar_Prop!$C$2:$E$104,2,FALSE)) -> Gobernanza e influencia local, regional e internacional | M85: =IF(ISERROR(VLOOKUP(K85,Eje_Pilar_Prop!$C$2:$E$104,3,FALSE))," ",VLOOKUP(K85,Eje_Pilar_Prop!$C$2:$E$104,3,FALSE)) -> Eje Transversal 4 Gobierno Legitimo, Fortalecimiento Local y Eficiencia | N85: 1395 | O85: 52314352 | P85: CONSTANZA DEL PILAR LEYTON RICO | Q85: 16818680 | T85: 0 | V85: 16818680 | W85: 15977345 | X85: 2020-05-27 | Y85: 2020-05-29 | Z85: 2020-09-28 | AA85: 120 | AJ85: X | AL85: 0.9499761575 | AM85: =IF(SUMPRODUCT((A$14:A85=A85)*(B$14:B85=B85)*(D$14:D85=D85))>1,0,1) -> 1 | AN85: Contratos de prestación de servicios profesionales y de apoyo a la gestión | AO85: Contratación directa | AP85: =IF(ISBLANK(G85),1,IFERROR(VLOOKUP(G85,Tipo!$C$12:$C$27,1,FALSE),"NO")) -> Prestación de servicios profesionales y de apoyo a la gestión, o para la ejecución de trabajos artísticos que sólo puedan encomendarse a determinadas personas naturales; | AQ85: Inversión | AR85: =IF(ISBLANK(K85),1,IFERROR(VLOOKUP(K85,Eje_Pilar_Prop!C63:C168,1,FALSE),"NO")) -> NO | AS85: =IF(ISBLANK(C85),1,IFERROR(VLOOKUP(C85,SECOP,1,FALSE),"NO")) -> SECOP II | AT85: 1 | AU85: Bogotá Mejor para Todos
A86: 78 | B86: 2020 | C86: SECOP II | D86: FDLC-CPS-078-2020 | E86: Contratos de prestación de servicios profesionales y de apoyo a la gestión | F86: Contratación directa | G86: Prestación de servicios profesionales y de apoyo a la gestión, o para la ejecución de trabajos artísticos que sólo puedan encomendarse a determinadas personas naturales; | H86: PRESTACIÓN DE SERVICIOS PROFESIONALES AL ÁREA DE GESTIÓN DE DESARROLLO LOCAL DE LA ALCALDÍA LOCAL DE LA CANDELARIA PARA LA FORMULACIÓN Y APOYO TÉCNICO EN EL SEGUIMIENTO DE PLANES, POLÍTICAS, PROGRAMAS Y PROYECTOS EN EL MARCO DE LA CONSTRUCCIÓN DEL NUEVO PLAN DE DESARROLLO | I86: Inversión | J86: Bogotá Mejor para Todos | K86: 45 | L86: =IF(ISERROR(VLOOKUP(K86,Eje_Pilar_Prop!$C$2:$E$104,2,FALSE))," ",VLOOKUP(K86,Eje_Pilar_Prop!$C$2:$E$104,2,FALSE)) -> Gobernanza e influencia local, regional e internacional | M86: =IF(ISERROR(VLOOKUP(K86,Eje_Pilar_Prop!$C$2:$E$104,3,FALSE))," ",VLOOKUP(K86,Eje_Pilar_Prop!$C$2:$E$104,3,FALSE)) -> Eje Transversal 4 Gobierno Legitimo, Fortalecimiento Local y Eficiencia | N86: 1395 | O86: 80166444 | P86: yerney rolando rodriguez avila | Q86: 21067272 | T86: 0 | V86: 21067272 | W86: 20189469 | X86: 2020-05-27 | Y86: 2020-05-29 | Z86: 2020-09-28 | AA86: 120 | AJ86: X | AL86: 0.9583333333 | AM86: =IF(SUMPRODUCT((A$14:A86=A86)*(B$14:B86=B86)*(D$14:D86=D86))>1,0,1) -> 1 | AN86: Contratos de prestación de servicios profesionales y de apoyo a la gestión | AO86: Contratación directa | AP86: =IF(ISBLANK(G86),1,IFERROR(VLOOKUP(G86,Tipo!$C$12:$C$27,1,FALSE),"NO")) -> Prestación de servicios profesionales y de apoyo a la gestión, o para la ejecución de trabajos artísticos que sólo puedan encomendarse a determinadas personas naturales; | AQ86: Inversión | AR86: =IF(ISBLANK(K86),1,IFERROR(VLOOKUP(K86,Eje_Pilar_Prop!C64:C169,1,FALSE),"NO")) -> NO | AS86: SECOP II | AT86: 1 | AU86: Bogotá Mejor para Todos
A87: 79 | B87: 2020 | C87: SECOP II | D87: FDLC-CPS-079-2020 | E87: Contratos de prestación de servicios profesionales y de apoyo a la gestión | F87: Contratación directa | G87: Prestación de servicios profesionales y de apoyo a la gestión, o para la ejecución de trabajos artísticos que sólo puedan encomendarse a determinadas personas naturales; | H87: PRESTACION DE SERVICIOS PROFESIONALES PARA APOYAR AL ALCALDE LOCAL EN LOS PROYECTOS, ACCIONES Y ESTRATEGIAS CULTURALES, MUSICALES Y ARTISTICAS ENFOCADAS A LAS INSTANCIAS DE PARTICIPACIÓN DE LA LOCALIDAD LA CANDELARIA DE ACUEDO CON EL PROGRAMA GOBERNANZA E INFLUNCIA LOCAL, REGIONAL E INTERNACIONAL 1389 CANDELARIA CULTURAL Y DEPORTIVA MEJOR PARA TODOS | I87: Inversión | J87: Bogotá Mejor para Todos | K87: 11 | L87: =IF(ISERROR(VLOOKUP(K87,Eje_Pilar_Prop!$C$2:$E$104,2,FALSE))," ",VLOOKUP(K87,Eje_Pilar_Prop!$C$2:$E$104,2,FALSE)) -> Mejores oportunidades para el desarrollo a través de la cultura, la recreación y el deporte | M87: =IF(ISERROR(VLOOKUP(K87,Eje_Pilar_Prop!$C$2:$E$104,3,FALSE))," ",VLOOKUP(K87,Eje_Pilar_Prop!$C$2:$E$104,3,FALSE)) -> Pilar 1 Igualdad de Calidad de Vida | N87: 1389 | O87: 1010207254 | P87: Ely David Murillo Cordoba | Q87: 11589000 | T87: 0 | V87: 11589000 | W87: 3734233 | X87: 2020-06-01 | Y87: 2020-06-02 | Z87: 2020-09-01 | AA87: 90 | AJ87: X | AL87: 0.3222221935 | AM87: =IF(SUMPRODUCT((A$14:A87=A87)*(B$14:B87=B87)*(D$14:D87=D87))>1,0,1) -> 1 | AN87: Contratos de prestación de servicios profesionales y de apoyo a la gestión | AO87: Contratación directa | AP87: =IF(ISBLANK(G87),1,IFERROR(VLOOKUP(G87,Tipo!$C$12:$C$27,1,FALSE),"NO")) -> Prestación de servicios profesionales y de apoyo a la gestión, o para la ejecución de trabajos artísticos que sólo puedan encomendarse a determinadas personas naturales; | AQ87: Inversión | AR87: =IF(ISBLANK(K87),1,IFERROR(VLOOKUP(K87,Eje_Pilar_Prop!C65:C170,1,FALSE),"NO")) -> NO | AS87: SECOP II | AT87: 1 | AU87: Bogotá Mejor para Todos
A88: 80 | B88: 2020 | C88: SECOP II | D88: FDLC-CPS-080-2020 | E88: Contratos de prestación de servicios profesionales y de apoyo a la gestión | F88: Contratación directa | G88: Prestación de servicios profesionales y de apoyo a la gestión, o para la ejecución de trabajos artísticos que sólo puedan encomendarse a determinadas personas naturales; | H88: PRESTACIÓN DE SERVICIOS PROFESIONALES AL ÁREA DE GESTIÓN DE DESARROLLO LOCAL DE LA ALCALDÍA LOCAL DE LA CANDELARIA PARA LA FORMULACIÓN Y APOYO TÉCNICO EN EL SEGUIMIENTO DE PLANES, POLÍTICAS, PROGRAMAS Y PROYECTOS EN EL MARCO DE LA CONSTRUCCIÓN DEL NUEVO PLAN DE DESARROLLO | I88: Inversión | J88: Bogotá Mejor para Todos | K88: 45 | L88: =IF(ISERROR(VLOOKUP(K88,Eje_Pilar_Prop!$C$2:$E$104,2,FALSE))," ",VLOOKUP(K88,Eje_Pilar_Prop!$C$2:$E$104,2,FALSE)) -> Gobernanza e influencia local, regional e internacional | M88: =IF(ISERROR(VLOOKUP(K88,Eje_Pilar_Prop!$C$2:$E$104,3,FALSE))," ",VLOOKUP(K88,Eje_Pilar_Prop!$C$2:$E$104,3,FALSE)) -> Eje Transversal 4 Gobierno Legitimo, Fortalecimiento Local y Eficiencia | N88: 1395 | O88: 55242358 | P88: DIGNA LIANETT ARIAS CALDERIN | Q88: 21067272 | T88: 0 | V88: 21067272 | W88: 21067272 | X88: 2020-06-11 | Y88: 2020-06-11 | Z88: 2020-10-10 | AA88: 120 | AK88: X | AL88: 1 | AM88: =IF(SUMPRODUCT((A$14:A88=A88)*(B$14:B88=B88)*(D$14:D88=D88))>1,0,1) -> 1 | AN88: =IF(ISBLANK(E88),1,IFERROR(VLOOKUP(E88,tipo,1,FALSE),"NO")) -> Contratos de prestación de servicios profesionales y de apoyo a la gestión | AO88: =IF(ISBLANK(F88),1,IFERROR(VLOOKUP(F88,modal,1,FALSE),"NO")) -> Contratación directa | AP88: =IF(ISBLANK(G88),1,IFERROR(VLOOKUP(G88,Tipo!$C$12:$C$27,1,FALSE),"NO")) -> Prestación de servicios profesionales y de apoyo a la gestión, o para la ejecución de trabajos artísticos que sólo puedan encomendarse a determinadas personas naturales; | AQ88: =IF(ISBLANK(I88),1,IFERROR(VLOOKUP(I88,afectacion,1,FALSE),"NO")) -> Inversión | AR88: =IF(ISBLANK(K88),1,IFERROR(VLOOKUP(K88,Eje_Pilar_Prop!C66:C171,1,FALSE),"NO")) -> NO | AS88: SECOP II | AT88: 1 | AU88: Bogotá Mejor para Todos
A89: 81 | B89: 2020 | C89: SECOP II | D89: FDLC-CPS-081-2020 | E89: Contratos de prestación de servicios profesionales y de apoyo a la gestión | F89: Contratación directa | G89: Prestación de servicios profesionales y de apoyo a la gestión, o para la ejecución de trabajos artísticos que sólo puedan encomendarse a determinadas personas naturales; | H89: PRESTACIÓN DE SERVICIOS DE APOYO Y ASISTENCIA ADMINISTRATIVA A LA GESTION DE LA JUNTA ADMINISTRADORA LOCAL DE LA CANDELARIA | I89: Inversión | J89: Bogotá Mejor para Todos | K89: 45 | L89: =IF(ISERROR(VLOOKUP(K89,Eje_Pilar_Prop!$C$2:$E$104,2,FALSE))," ",VLOOKUP(K89,Eje_Pilar_Prop!$C$2:$E$104,2,FALSE)) -> Gobernanza e influencia local, regional e internacional | M89: =IF(ISERROR(VLOOKUP(K89,Eje_Pilar_Prop!$C$2:$E$104,3,FALSE))," ",VLOOKUP(K89,Eje_Pilar_Prop!$C$2:$E$104,3,FALSE)) -> Eje Transversal 4 Gobierno Legitimo, Fortalecimiento Local y Eficiencia | N89: 1395 | O89: 51879946 | P89: ISABEL CRISTINA BULLA RODRIGUEZ | Q89: 9831392 | T89: 0 | V89: 9831392 | W89: 9831392 | X89: 2020-06-11 | Y89: 2020-06-11 | Z89: 2020-10-10 | AA89: 120 | AK89: X | AL89: 1 | AM89: =IF(SUMPRODUCT((A$14:A89=A89)*(B$14:B89=B89)*(D$14:D89=D89))>1,0,1) -> 1 | AN89: Contratos de prestación de servicios profesionales y de apoyo a la gestión | AO89: Contratación directa | AP89: =IF(ISBLANK(G89),1,IFERROR(VLOOKUP(G89,Tipo!$C$12:$C$27,1,FALSE),"NO")) -> Prestación de servicios profesionales y de apoyo a la gestión, o para la ejecución de trabajos artísticos que sólo puedan encomendarse a determinadas personas naturales; | AQ89: Inversión | AR89: =IF(ISBLANK(K89),1,IFERROR(VLOOKUP(K89,Eje_Pilar_Prop!C67:C172,1,FALSE),"NO")) -> NO | AS89: SECOP II | AT89: 1 | AU89: Bogotá Mejor para Todos
A90: 82 | B90: 2020 | C90: SECOP II | D90: FDLC-CPS-082-2020 | E90: Contratos de prestación de servicios profesionales y de apoyo a la gestión | F90: Contratación directa | G90: Prestación de servicios profesionales y de apoyo a la gestión, o para la ejecución de trabajos artísticos que sólo puedan encomendarse a determinadas personas naturales; | H90: PRESTACIÓN DE SERVICIOS PROFESIONALES PARA APOYAR JURÍDICAMENTE LA EJECUCIÓN DE LAS ACCIONES REQUERIDAS PARA EL TRÁMITE E IMPULSO PROCESAL DE LAS ACTUACIONES CONTRAVENCIONALES Y/O QUERELLAS QUE CURSEN EN LAS INSPECCIÓN DE POLICÍA DE LA LOCALIDADDE LA CANDELARIA | I90: Inversión | J90: Bogotá Mejor para Todos | K90: 45 | L90: =IF(ISERROR(VLOOKUP(K90,Eje_Pilar_Prop!$C$2:$E$104,2,FALSE))," ",VLOOKUP(K90,Eje_Pilar_Prop!$C$2:$E$104,2,FALSE)) -> Gobernanza e influencia local, regional e internacional | M90: =IF(ISERROR(VLOOKUP(K90,Eje_Pilar_Prop!$C$2:$E$104,3,FALSE))," ",VLOOKUP(K90,Eje_Pilar_Prop!$C$2:$E$104,3,FALSE)) -> Eje Transversal 4 Gobierno Legitimo, Fortalecimiento Local y Eficiencia | N90: 1395 | O90: 1018443671 | P90: JOSE RICARDO PULGARIN ALVAREZ | Q90: 16000000 | T90: 0 | V90: 16000000 | W90: 16000000 | X90: 2020-06-11 | Y90: 2020-05-12 | Z90: 2020-10-11 | AA90: 120 | AK90: X | AL90: 1 | AM90: =IF(SUMPRODUCT((A$14:A90=A90)*(B$14:B90=B90)*(D$14:D90=D90))>1,0,1) -> 1 | AN90: Contratos de prestación de servicios profesionales y de apoyo a la gestión | AO90: Contratación directa | AP90: =IF(ISBLANK(G90),1,IFERROR(VLOOKUP(G90,Tipo!$C$12:$C$27,1,FALSE),"NO")) -> Prestación de servicios profesionales y de apoyo a la gestión, o para la ejecución de trabajos artísticos que sólo puedan encomendarse a determinadas personas naturales; | AQ90: Inversión | AR90: =IF(ISBLANK(K90),1,IFERROR(VLOOKUP(K90,Eje_Pilar_Prop!C68:C173,1,FALSE),"NO")) -> NO | AS90: SECOP II | AT90: 1 | AU90: Bogotá Mejor para Todos
A91: 83 | B91: 2020 | C91: SECOP II | D91: FDLC-IMC-009-2020 | E91: Contratos de prestación de servicios | F91: Contratación mínima cuantia | G91: No aplica | H91: PRESTACIÓN DEL SERVICIO DE VIGILANCIA Y SEGURIDAD PRIVADA INTEGRAL PERMANENTE PARA TODOS LOS BIENES MUEBLES E INMUEBLES DE PROPIEDAD DE LA ENTIDAD, Y DE LOS QUE LEGALMENTE SEA O LLEGARE A SER RESPONSABLE EL FONDO DE DESARROLLO LOCAL DE LA CANDELARIA | I91: Funcionamiento | J91: Bogotá Mejor para Todos | K91: No aplica | L91: No Aplica | M91: No Aplica | N91: No Aplica | O91: 860517560 | P91: EMPRESA DE SEGURIDAD Y VIGILANCIA SERVICONFOR LIMITADA | Q91: 24513784 | T91: 2 | U91: 11980754 | V91: 36494538 | W91: 36494538 | X91: 2020-06-12 | Y91: 2020-06-13 | Z91: 2020-07-07 | AA91: 25 | AB91: 1 | AC91: 9 | AK91: X | AL91: 1 | AM91: 2 | AN91: Contratos de prestación de servicios | AO91: Contratación mínima cuantia | AP91: =IF(ISBLANK(G91),1,IFERROR(VLOOKUP(G91,Tipo!$C$12:$C$27,1,FALSE),"NO")) -> NO | AQ91: Funcionamiento | AR91: =IF(ISBLANK(K91),1,IFERROR(VLOOKUP(K91,Eje_Pilar_Prop!C69:C174,1,FALSE),"NO")) -> NO | AS91: SECOP II | AT91: 1 | AU91: Bogotá Mejor para Todos
A92: 84 | B92: 2020 | C92: SECOP II | D92: FDLC-CPS-084-2020 | E92: Contratos de prestación de servicios profesionales y de apoyo a la gestión | F92: Contratación directa | G92: Prestación de servicios profesionales y de apoyo a la gestión, o para la ejecución de trabajos artísticos que sólo puedan encomendarse a determinadas personas naturales; | H92: PRESTACION DE SERVICIOS PROFESIONALES PARA EL SEGUIMIENTO JURIDICO DE LOS PROYECTOS DE MOVILIDAD Y ESPACIO PUBLICO EN LA LOCALIDAD DE LA CANDELARIA | I92: Inversión | J92: Bogotá Mejor para Todos | K92: 18 | L92: =IF(ISERROR(VLOOKUP(K92,Eje_Pilar_Prop!$C$2:$E$104,2,FALSE))," ",VLOOKUP(K92,Eje_Pilar_Prop!$C$2:$E$104,2,FALSE)) -> Mejor movilidad para todos | M92: =IF(ISERROR(VLOOKUP(K92,Eje_Pilar_Prop!$C$2:$E$104,3,FALSE))," ",VLOOKUP(K92,Eje_Pilar_Prop!$C$2:$E$104,3,FALSE)) -> Pilar 2 Democracía Urbana | N92: 1391 | O92: 53032699 | P92: KAREN ANDREA SARMIENTO CAMARGO CESION A JUAN CARLOS PUELLO | Q92: 23138800 | T92: 0 | V92: =+Q92+S92+U92 -> 23138800 | W92: 13304810 | X92: 2020-06-11 | Y92: 2020-06-12 | Z92: 2020-10-11 | AA92: 120 | AD92: 9237277 | AE92: JUAN CARLOS PUELLO ARRIETA, | AF92: 2020-08-20 | AG92: 10026813 | AJ92: X | AL92: 0.575 | AM92: 2 | AN92: Contratos de prestación de servicios profesionales y de apoyo a la gestión | AO92: Contratación directa | AP92: =IF(ISBLANK(G92),1,IFERROR(VLOOKUP(G92,Tipo!$C$12:$C$27,1,FALSE),"NO")) -> Prestación de servicios profesionales y de apoyo a la gestión, o para la ejecución de trabajos artísticos que sólo puedan encomendarse a determinadas personas naturales; | AQ92: Inversión | AR92: =IF(ISBLANK(K92),1,IFERROR(VLOOKUP(K92,Eje_Pilar_Prop!C74:C175,1,FALSE),"NO")) -> NO | AS92: SECOP II | AT92: =IF(OR(YEAR(X92)=2020,ISBLANK(X92)),1,"NO") -> 1 | AU92: Bogotá Mejor para Todos
A93: 85 | B93: 2020 | C93: SECOP II | D93: FDLC-IMC-008-2020 | E93: Seguros | F93: Contratación mínima cuantia | G93: No aplica | H93: CONTRATAR LOS SEGUROS QUE AMPAREN LOS INTERESES PATRIMONIALES ACTUALES Y FUTUROS, ASÍ COMO LOS BIENES DE PROPIEDAD DE EL FONDO DE DESARROLLO LOCAL DE LA CANDELARIA, QUE ESTÉN BAJO SU RESPONSABILIDAD Y CUSTODIA Y AQUELLOS QUE SEAN ADQUIRIDOS PARA DESARROLLAR LAS FUNCIONES INHERENTES A SU ACTIVIDAD Y CUALQUIER OTRA PÓLIZA DE SEGUROS QUE REQUIERA LA ENTIDAD EN EL DESARROLLO DE SU ACTIVIDAD | I93: Funcionamiento | J93: Bogotá Mejor para Todos | K93: No aplica | L93: No Aplica | M93: No Aplica | N93: No Aplica | O93: 8600024002 | P93: LA PREVISORA S.A. COMPAÑÍA DE SEGUROS | Q93: 21667820 | T93: 1 | U93: 11502862 | V93: =+Q93+S93+U93 -> 33170682 | W93: 32430019 | X93: 2020-06-17 | Y93: 2020-06-17 | Z93: 2020-09-27 | AA93: 102 | AB93: 1 | AK93: X | AL93: 0.9776711555 | AM93: 2 | AN93: Seguros | AO93: Contratación mínima cuantia | AP93: =IF(ISBLANK(G93),1,IFERROR(VLOOKUP(G93,Tipo!$C$12:$C$27,1,FALSE),"NO")) -> NO | AQ93: Funcionamiento | AR93: =IF(ISBLANK(K93),1,IFERROR(VLOOKUP(K93,Eje_Pilar_Prop!C75:C176,1,FALSE),"NO")) -> NO | AS93: SECOP II | AT93: 1 | AU93: Bogotá Mejor para Todos
A94: 86 | B94: 2020 | C94: SECOP II | D94: FDLC-IMC-010-2020 | E94: Suministro | F94: Contratación mínima cuantia | G94: No aplica | H94: CONTRATAR EL SUMINISTRO DE BIENES Y/O SERVICIOS PARA LA REALIZACIÓN DE LOS ENCUENTROS CIUDADANOS EN LA LOCALIDAD DE LA CANDELARIA, EN EL MARCO DEL PROCESO DE FORMULACIÓN DEL PLAN DE DESARROLLO LOCAL 2021-2024 A MONTO AGOTABLE MEDIANTE PRECIOS UNITARIOS FIJOS | I94: Inversión | J94: Bogotá Mejor para Todos | K94: 45 | L94: =IF(ISERROR(VLOOKUP(K94,Eje_Pilar_Prop!$C$2:$E$104,2,FALSE))," ",VLOOKUP(K94,Eje_Pilar_Prop!$C$2:$E$104,2,FALSE)) -> Gobernanza e influencia local, regional e internacional | M94: =IF(ISERROR(VLOOKUP(K94,Eje_Pilar_Prop!$C$2:$E$104,3,FALSE))," ",VLOOKUP(K94,Eje_Pilar_Prop!$C$2:$E$104,3,FALSE)) -> Eje Transversal 4 Gobierno Legitimo, Fortalecimiento Local y Eficiencia | N94: 1396 | O94: 900572437 | P94: FUNDACIÓN PAÍS HUMANO | Q94: 24000000 | T94: 0 | V94: 24000000 | W94: 20118500 | X94: 2020-06-19 | Y94: 2020-06-19 | Z94: 2020-12-18 | AA94: 120 | AB94: 1 | AC94: 90 | AJ94: X | AL94: =IF(ISERROR(W94/V94),"-",(W94/V94)) -> 0.8382708333 | AM94: 2 | AN94: Suministro | AO94: Contratación mínima cuantia | AP94: =IF(ISBLANK(G94),1,IFERROR(VLOOKUP(G94,Tipo!$C$12:$C$27,1,FALSE),"NO")) -> NO | AQ94: Inversión | AR94: =IF(ISBLANK(K94),1,IFERROR(VLOOKUP(K94,Eje_Pilar_Prop!C76:C177,1,FALSE),"NO")) -> NO | AS94: SECOP II | AT94: 1 | AU94: Bogotá Mejor para Todos
A95: 87 | B95: 2020 | C95: SECOP II | D95: FDLC-CPS-087-2020 | E95: Contratos de prestación de servicios profesionales y de apoyo a la gestión | F95: Contratación directa | G95: Prestación de servicios profesionales y de apoyo a la gestión, o para la ejecución de trabajos artísticos que sólo puedan encomendarse a determinadas personas naturales; | H95: PRESTACIÓN DE SERVICIOS PROFESIONALES COMO ADMINISTRADOR DE RED LOCAL Y ENLACE CON LA SECRETARIA DISTRITAL DE GOBIERNO, BRINDANDO SOPORTE EN MATERIA DE SISTEMAS (SOFTWARE Y HARDWARE) A LOS USUARIOS INTERNOS Y EXTERNOS DE LAS DIFERENTES ÁREAS DE LA ALCALDÍA LOCAL LA CANDELARIA | I95: Inversión | J95: Bogotá Mejor para Todos | K95: 45 | L95: =IF(ISERROR(VLOOKUP(K95,Eje_Pilar_Prop!$C$2:$E$104,2,FALSE))," ",VLOOKUP(K95,Eje_Pilar_Prop!$C$2:$E$104,2,FALSE)) -> Gobernanza e influencia local, regional e internacional | M95: =IF(ISERROR(VLOOKUP(K95,Eje_Pilar_Prop!$C$2:$E$104,3,FALSE))," ",VLOOKUP(K95,Eje_Pilar_Prop!$C$2:$E$104,3,FALSE)) -> Eje Transversal 4 Gobierno Legitimo, Fortalecimiento Local y Eficiencia | N95: 1395 | O95: 79814029 | P95: AGUSTIN LARA BELTRAN | Q95: 19978796 | T95: 0 | V95: =+Q95+S95+U95 -> 19978796 | W95: 19978796 | X95: 2020-06-19 | Y95: 2020-06-19 | Z95: 2020-10-18 | AA95: 120 | AK95: X | AL95: 1 | AM95: 2 | AN95: Contratos de prestación de servicios profesionales y de apoyo a la gestión | AO95: Contratación directa | AP95: =IF(ISBLANK(G95),1,IFERROR(VLOOKUP(G95,Tipo!$C$12:$C$27,1,FALSE),"NO")) -> Prestación de servicios profesionales y de apoyo a la gestión, o para la ejecución de trabajos artísticos que sólo puedan encomendarse a determinadas personas naturales; | AQ95: Inversión | AR95: =IF(ISBLANK(K95),1,IFERROR(VLOOKUP(K95,Eje_Pilar_Prop!C77:C178,1,FALSE),"NO")) -> NO | AS95: SECOP II | AT95: 1 | AU95: Bogotá Mejor para Todos
A96: 88 | B96: 2020 | C96: SECOP II | D96: FDLC-IMC-011-2020 | E96: Suministro | F96: Contratación mínima cuantia | G96: No aplica | H96: SUMINISTRO A MONTO AGOTABLE DE REFRIGERIOS A PRECIOS UNITARIOS FIJOS, PARA EL FORTALECIMIENTO DE LA PARTICIPACIÓN Y DE LAS ACTIVIDADES DE PROMOCIÓN INSTITUCIONAL DE LA ALCALDÍA LOCAL DE LA CANDELARIA | I96: Inversión | J96: Bogotá Mejor para Todos | K96: 45 | L96: =IF(ISERROR(VLOOKUP(K96,Eje_Pilar_Prop!$C$2:$E$104,2,FALSE))," ",VLOOKUP(K96,Eje_Pilar_Prop!$C$2:$E$104,2,FALSE)) -> Gobernanza e influencia local, regional e internacional | M96: =IF(ISERROR(VLOOKUP(K96,Eje_Pilar_Prop!$C$2:$E$104,3,FALSE))," ",VLOOKUP(K96,Eje_Pilar_Prop!$C$2:$E$104,3,FALSE)) -> Eje Transversal 4 Gobierno Legitimo, Fortalecimiento Local y Eficiencia | N96: 1396 | O96: 900893468 | P96: LOGISTICS & SERVICES S.A.S. | Q96: 12000000 | T96: 0 | V96: 12000000 | W96: 3816000 | X96: 2020-06-24 | Y96: 2020-06-24 | Z96: 2020-12-23 | AA96: 180 | AI96: X | AL96: 0.318 | AM96: 2 | AN96: Suministro | AO96: Contratación mínima cuantia | AP96: =IF(ISBLANK(G96),1,IFERROR(VLOOKUP(G96,Tipo!$C$12:$C$27,1,FALSE),"NO")) -> NO | AQ96: Inversión | AR96: =IF(ISBLANK(K96),1,IFERROR(VLOOKUP(K96,Eje_Pilar_Prop!C78:C179,1,FALSE),"NO")) -> NO | AS96: SECOP II | AT96: 1 | AU96: Bogotá Mejor para Todos
A97: 89 | B97: 2020 | C97: SECOP II | D97: FDLC-CPS-089-2020 | E97: Contratos de prestación de servicios profesionales y de apoyo a la gestión | F97: Contratación directa | G97: Prestación de servicios profesionales y de apoyo a la gestión, o para la ejecución de trabajos artísticos que sólo puedan encomendarse a determinadas personas naturales; | H97: PRESTAR SERVICIOS DE APOYO COMO CONDUCTOR DE LOS VEHICULOS QUE SE ENCUENTRAN A CARGO DEL FONDO DE DESARROLLO LOCAL LA CANDELARIA | I97: Inversión | J97: Bogotá Mejor para Todos | K97: 45 | L97: =IF(ISERROR(VLOOKUP(K97,Eje_Pilar_Prop!$C$2:$E$104,2,FALSE))," ",VLOOKUP(K97,Eje_Pilar_Prop!$C$2:$E$104,2,FALSE)) -> Gobernanza e influencia local, regional e internacional | M97: =IF(ISERROR(VLOOKUP(K97,Eje_Pilar_Prop!$C$2:$E$104,3,FALSE))," ",VLOOKUP(K97,Eje_Pilar_Prop!$C$2:$E$104,3,FALSE)) -> Eje Transversal 4 Gobierno Legitimo, Fortalecimiento Local y Eficiencia | N97: 1395 | O97: 1010187694 | P97: CHRISTIAM CAMILO ROMERO WALTEROS | Q97: 9838393 | T97: 0 | V97: 9838393 | W97: 9838393 | X97: 2020-06-23 | Y97: 2020-06-24 | Z97: 2020-10-23 | AA97: 120 | AK97: X | AL97: 1 | AM97: 2 | AN97: Contratos de prestación de servicios profesionales y de apoyo a la gestión | AO97: Contratación directa | AP97: =IF(ISBLANK(G97),1,IFERROR(VLOOKUP(G97,Tipo!$C$12:$C$27,1,FALSE),"NO")) -> Prestación de servicios profesionales y de apoyo a la gestión, o para la ejecución de trabajos artísticos que sólo puedan encomendarse a determinadas personas naturales; | AQ97: Inversión | AR97: =IF(ISBLANK(K97),1,IFERROR(VLOOKUP(K97,Eje_Pilar_Prop!C79:C180,1,FALSE),"NO")) -> NO | AS97: SECOP II | AT97: 1 | AU97: Bogotá Mejor para Todos
A98: 90 | B98: 2020 | C98: SECOP II | D98: FDLC-CPS-090-2020 | E98: Contratos de prestación de servicios profesionales y de apoyo a la gestión | F98: Contratación directa | G98: Prestación de servicios profesionales y de apoyo a la gestión, o para la ejecución de trabajos artísticos que sólo puedan encomendarse a determinadas personas naturales; | H98: PRESTAR SERVICIOS DE APOYO COMO CONDUCTOR DE LOS VEHICULOS QUE SE ENCUENTRAN A CARGO DEL FONDO DE DESARROLLO LOCAL LA CANDELARIA | I98: Inversión | J98: Bogotá Mejor para Todos | K98: 45 | L98: =IF(ISERROR(VLOOKUP(K98,Eje_Pilar_Prop!$C$2:$E$104,2,FALSE))," ",VLOOKUP(K98,Eje_Pilar_Prop!$C$2:$E$104,2,FALSE)) -> Gobernanza e influencia local, regional e internacional | M98: =IF(ISERROR(VLOOKUP(K98,Eje_Pilar_Prop!$C$2:$E$104,3,FALSE))," ",VLOOKUP(K98,Eje_Pilar_Prop!$C$2:$E$104,3,FALSE)) -> Eje Transversal 4 Gobierno Legitimo, Fortalecimiento Local y Eficiencia | N98: 1395 | O98: 79714948 | P98: OSCAR ANTONIO ZAMBRANO GUTIERREZ | Q98: 9838393 | T98: 0 | V98: 9838393 | W98: 9838393 | X98: 2020-06-24 | Y98: 2020-06-24 | Z98: 2020-10-23 | AA98: 120 | AK98: X | AL98: 1 | AM98: 3 | AN98: Contratos de prestación de servicios profesionales y de apoyo a la gestión | AO98: Contratación directa | AP98: =IF(ISBLANK(G98),1,IFERROR(VLOOKUP(G98,Tipo!$C$12:$C$27,1,FALSE),"NO")) -> Prestación de servicios profesionales y de apoyo a la gestión, o para la ejecución de trabajos artísticos que sólo puedan encomendarse a determinadas personas naturales; | AQ98: Inversión | AR98: =IF(ISBLANK(K98),1,IFERROR(VLOOKUP(K98,Eje_Pilar_Prop!C80:C181,1,FALSE),"NO")) -> NO | AS98: SECOP II | AT98: 1 | AU98: Bogotá Mejor para Todos
A99: 91 | B99: 2020 | C99: SECOP II | D99: FDLC-CPS-091-2020 | E99: Contratos de prestación de servicios profesionales y de apoyo a la gestión | F99: Contratación directa | G99: Prestación de servicios profesionales y de apoyo a la gestión, o para la ejecución de trabajos artísticos que sólo puedan encomendarse a determinadas personas naturales; | H99: PRESTAR SERVICIOS PROFESIONALES PARA COORDINAR LA ARTICULACIÓN, ASISTENCIA Y ACOMPAÑAMIENTO DE LOS PROCESOS DE PLANEACIÓN LOCAL, PARA LA PROMOCIÓN DE LA PARTICIPACIÓN DE LAS MUJERES Y DE LA EQUIDAD DE GÉNERO, PARA MATERIALIZAR EN LA LOCALIDAD LAS ESTRATEGIAS DE TERRITORIALIZACIÓN Y TRANSVERSALIZACIÓN DE LA POLÍTICA PUBLICA DE MUJERES Y EQUIDAD DE GÉNERO, PPMYEG | I99: Inversión | J99: Bogotá Mejor para Todos | K99: 45 | L99: =IF(ISERROR(VLOOKUP(K99,Eje_Pilar_Prop!$C$2:$E$104,2,FALSE))," ",VLOOKUP(K99,Eje_Pilar_Prop!$C$2:$E$104,2,FALSE)) -> Gobernanza e influencia local, regional e internacional | M99: =IF(ISERROR(VLOOKUP(K99,Eje_Pilar_Prop!$C$2:$E$104,3,FALSE))," ",VLOOKUP(K99,Eje_Pilar_Prop!$C$2:$E$104,3,FALSE)) -> Eje Transversal 4 Gobierno Legitimo, Fortalecimiento Local y Eficiencia | N99: 1395 | O99: 1106786140 | P99: MONICA ANDREA LEAL DIAZ | Q99: 16362248 | T99: 0 | V99: 16362248 | W99: 16362248 | X99: 2020-06-26 | Y99: 2020-06-26 | Z99: 2020-10-25 | AA99: 120 | AK99: X | AL99: 1 | AM99: 2 | AN99: Contratos de prestación de servicios profesionales y de apoyo a la gestión | AO99: Contratación directa | AP99: =IF(ISBLANK(G99),1,IFERROR(VLOOKUP(G99,Tipo!$C$12:$C$27,1,FALSE),"NO")) -> Prestación de servicios profesionales y de apoyo a la gestión, o para la ejecución de trabajos artísticos que sólo puedan encomendarse a determinadas personas naturales; | AQ99: Inversión | AR99: =IF(ISBLANK(K99),1,IFERROR(VLOOKUP(K99,Eje_Pilar_Prop!C81:C182,1,FALSE),"NO")) -> NO | AS99: SECOP II | AT99: 1 | AU99: Bogotá Mejor para Todos
A100: 92 | B100: 2020 | C100: SECOP II | D100: 092-2020 CONTRATO INTERADMINISTRATIVO | E100: Contratos interadministrativos | F100: Contratación directa | G100: Contratos interadministrativos | H100: PROVEER UNA PLATAFORMA VIRTUAL Y SERVICIOS TECNOLÓGICOS NECESARIOS A LOS FONDOS DE DESARROLLO LOCAL, EN LA REALIZACIÓN DE LAS ASAMBLEAS, EVENTOS Y FOROS DIGITALES, EN EL MARCO DE LOS ENCUENTROS CIUDADANOS Y PRESUPUESTOS PARTICIPATIVOS, DE ACUERDO CON LOS LINEAMIENTOS ESTRATÉGICOS QUE DETERMINEN LOS FDL | I100: Inversión | J100: Bogotá Mejor para Todos | K100: 45 | L100: =IF(ISERROR(VLOOKUP(K100,Eje_Pilar_Prop!$C$2:$E$104,2,FALSE))," ",VLOOKUP(K100,Eje_Pilar_Prop!$C$2:$E$104,2,FALSE)) -> Gobernanza e influencia local, regional e internacional | M100: =IF(ISERROR(VLOOKUP(K100,Eje_Pilar_Prop!$C$2:$E$104,3,FALSE))," ",VLOOKUP(K100,Eje_Pilar_Prop!$C$2:$E$104,3,FALSE)) -> Eje Transversal 4 Gobierno Legitimo, Fortalecimiento Local y Eficiencia | N100: 1396 | O100: 899999115 | P100: EMPRESA DE TELECOMUNICACIONES DE BOGOTA SA ESP | Q100: 23434653 | T100: 0 | V100: 23434653 | W100: 0 | X100: 2020-06-23 | Y100: 2020-06-23 | Z100: 2020-07-31 | AA100: 39 | AJ100: X | AL100: 0 | AM100: 2 | AN100: Contratos interadministrativos | AO100: Contratación directa | AP100: =IF(ISBLANK(G100),1,IFERROR(VLOOKUP(G100,Tipo!$C$12:$C$27,1,FALSE),"NO")) -> Contratos interadministrativos | AQ100: Inversión | AR100: =IF(ISBLANK(K100),1,IFERROR(VLOOKUP(K100,Eje_Pilar_Prop!C82:C183,1,FALSE),"NO")) -> NO | AS100: SECOP II | AT100: 1 | AU100: Bogotá Mejor para Todos
A101: 93 | B101: 2020 | C101: SECOP II | D101: FDLC-CPS-093-2020 | E101: Contratos de prestación de servicios profesionales y de apoyo a la gestión | F101: Contratación directa | G101: Prestación de servicios profesionales y de apoyo a la gestión, o para la ejecución de trabajos artísticos que sólo puedan encomendarse a determinadas personas naturales; | H101: APOYAR LA GESTION DOCUMENTAL DE LA ALCALDIA LOCAL, ACOMPAÑANDO EL EQUIPO JURIDICO DE DEPURACIÓN EN LAS LABOR ES OPERATIVAS QUE GENERA EL PROCESO DE IMPULSO DE LAS ACTUACIONES ADMINISTRATIVAS EXISTENTES EN LA ALCALDÍA LOCAL DE LA CANDELARIA | I101: Inversión | J101: Bogotá Mejor para Todos | K101: 45 | L101: =IF(ISERROR(VLOOKUP(K101,Eje_Pilar_Prop!$C$2:$E$104,2,FALSE))," ",VLOOKUP(K101,Eje_Pilar_Prop!$C$2:$E$104,2,FALSE)) -> Gobernanza e influencia local, regional e internacional | M101: =IF(ISERROR(VLOOKUP(K101,Eje_Pilar_Prop!$C$2:$E$104,3,FALSE))," ",VLOOKUP(K101,Eje_Pilar_Prop!$C$2:$E$104,3,FALSE)) -> Eje Transversal 4 Gobierno Legitimo, Fortalecimiento Local y Eficiencia | N101: 1395 | O101: 49729700 | P101: NEREIDA HERNANDEZ FLOREZ | Q101: 9831200 | T101: 0 | V101: 9831200 | W101: 9831200 | X101: 2020-06-26 | Y101: 2020-06-26 | Z101: 2020-10-25 | AA101: 120 | AK101: X | AL101: 1 | AM101: 2 | AN101: Contratos de prestación de servicios profesionales y de apoyo a la gestión | AO101: Contratación directa | AP101: =IF(ISBLANK(G101),1,IFERROR(VLOOKUP(G101,Tipo!$C$12:$C$27,1,FALSE),"NO")) -> Prestación de servicios profesionales y de apoyo a la gestión, o para la ejecución de trabajos artísticos que sólo puedan encomendarse a determinadas personas naturales; | AQ101: Inversión | AR101: =IF(ISBLANK(K101),1,IFERROR(VLOOKUP(K101,Eje_Pilar_Prop!C83:C184,1,FALSE),"NO")) -> NO | AS101: SECOP II | AT101: 1 | AU101: Bogotá Mejor para Todos
A102: 94 | B102: 2020 | C102: SECOP II | D102: FDLC-CPS-094-2020 | E102: Contratos de prestación de servicios profesionales y de apoyo a la gestión | F102: Contratación directa | G102: Prestación de servicios profesionales y de apoyo a la gestión, o para la ejecución de trabajos artísticos que sólo puedan encomendarse a determinadas personas naturales; | H102: PRESTAR SERVICIOS PROFESIONALES ESPECIALIZADOS PARA BRINDAR LINEAMIENTOS JURIDICOS, EVALUAR Y ORIENTAR TEMAS PRIORITARIOS DEL DESPACHO DE LA ALCALDÍA LOCAL DE LA CANDELARIA | I102: Inversión | J102: Bogotá Mejor para Todos | K102: 45 | L102: =IF(ISERROR(VLOOKUP(K102,Eje_Pilar_Prop!$C$2:$E$104,2,FALSE))," ",VLOOKUP(K102,Eje_Pilar_Prop!$C$2:$E$104,2,FALSE)) -> Gobernanza e influencia local, regional e internacional | M102: =IF(ISERROR(VLOOKUP(K102,Eje_Pilar_Prop!$C$2:$E$104,3,FALSE))," ",VLOOKUP(K102,Eje_Pilar_Prop!$C$2:$E$104,3,FALSE)) -> Eje Transversal 4 Gobierno Legitimo, Fortalecimiento Local y Eficiencia | N102: 1395 | O102: 52518431 | P102: DIANA CRISTINA PALACIOS NOVOA | Q102: 35568577 | T102: 0 | V102: 35568577 | W102: 35568577 | X102: 2020-06-26 | Y102: 2020-06-26 | Z102: 2020-10-25 | AA102: 120 | AK102: X | AL102: 1 | AM102: 2 | AN102: Contratos de prestación de servicios profesionales y de apoyo a la gestión | AO102: Contratación directa | AP102: =IF(ISBLANK(G102),1,IFERROR(VLOOKUP(G102,Tipo!$C$12:$C$27,1,FALSE),"NO")) -> Prestación de servicios profesionales y de apoyo a la gestión, o para la ejecución de trabajos artísticos que sólo puedan encomendarse a determinadas personas naturales; | AQ102: Inversión | AR102: =IF(ISBLANK(K102),1,IFERROR(VLOOKUP(K102,Eje_Pilar_Prop!C84:C185,1,FALSE),"NO")) -> NO | AS102: SECOP II | AT102: 1 | AU102: Bogotá Mejor para Todos
A103: 95 | B103: 2020 | C103: SECOP II | D103: FDLC-CPS-095-2020 | E103: Contratos de prestación de servicios profesionales y de apoyo a la gestión | F103: Contratación directa | G103: Prestación de servicios profesionales y de apoyo a la gestión, o para la ejecución de trabajos artísticos que sólo puedan encomendarse a determinadas personas naturales; | H103: PRESTAR SERVICIOS PROFESIONALES AL ÁREA DE GESTION POLICIVA DEL FONDO DE DESARROLLO LOCAL LA CANDELARIA, PARA FORTALECER Y PROMOVER ESTRATEGIAS DE IMPLEMENTACION, APLICACION Y CAPACITACION A LA COMUNIDAD Y DIFERENTES SECTORES, EN MATERIA DE NORMATIVIDAD REFERENTE AL CODIGO DE POLICIA Y FRENTES LOCALES DE SEGURIDAD | I103: Inversión | J103: Bogotá Mejor para Todos | K103: 45 | L103: =IF(ISERROR(VLOOKUP(K103,Eje_Pilar_Prop!$C$2:$E$104,2,FALSE))," ",VLOOKUP(K103,Eje_Pilar_Prop!$C$2:$E$104,2,FALSE)) -> Gobernanza e influencia local, regional e internacional | M103: =IF(ISERROR(VLOOKUP(K103,Eje_Pilar_Prop!$C$2:$E$104,3,FALSE))," ",VLOOKUP(K103,Eje_Pilar_Prop!$C$2:$E$104,3,FALSE)) -> Eje Transversal 4 Gobierno Legitimo, Fortalecimiento Local y Eficiencia | N103: 1395 | O103: 1077967370 | P103: EMERSON LINARES GORDILLO | Q103: 15905790 | T103: 0 | V103: 15905790 | W103: 15905790 | X103: 2020-06-24 | Y103: 2020-06-26 | Z103: 2020-10-25 | AA103: 120 | AK103: X | AL103: 1 | AM103: 2 | AN103: Contratos de prestación de servicios profesionales y de apoyo a la gestión | AO103: Contratación directa | AP103: =IF(ISBLANK(G103),1,IFERROR(VLOOKUP(G103,Tipo!$C$12:$C$27,1,FALSE),"NO")) -> Prestación de servicios profesionales y de apoyo a la gestión, o para la ejecución de trabajos artísticos que sólo puedan encomendarse a determinadas personas naturales; | AQ103: Inversión | AR103: =IF(ISBLANK(K103),1,IFERROR(VLOOKUP(K103,Eje_Pilar_Prop!C85:C186,1,FALSE),"NO")) -> NO | AS103: SECOP II | AT103: 1 | AU103: Bogotá Mejor para Todos
A104: 96 | B104: 2020 | C104: SECOP II | D104: FDLC-CPS-096-2020 | E104: Contratos de prestación de servicios profesionales y de apoyo a la gestión | F104: Contratación directa | G104: Prestación de servicios profesionales y de apoyo a la gestión, o para la ejecución de trabajos artísticos que sólo puedan encomendarse a determinadas personas naturales; | H104: PRESTACIÓN DE SERVICIOS DE APOYO TÉCNICO EN LA ADMINISTRACIÓN DE LAS CASAS COMUNITARIAS DE LA LOCALIDAD DE LA CANDELARIA DE CONFORMIDAD CON EL ACUERDO LOCAL 006 DE 2013 | I104: Inversión | J104: Bogotá Mejor para Todos | K104: 45 | L104: =IF(ISERROR(VLOOKUP(K104,Eje_Pilar_Prop!$C$2:$E$104,2,FALSE))," ",VLOOKUP(K104,Eje_Pilar_Prop!$C$2:$E$104,2,FALSE)) -> Gobernanza e influencia local, regional e internacional | M104: =IF(ISERROR(VLOOKUP(K104,Eje_Pilar_Prop!$C$2:$E$104,3,FALSE))," ",VLOOKUP(K104,Eje_Pilar_Prop!$C$2:$E$104,3,FALSE)) -> Eje Transversal 4 Gobierno Legitimo, Fortalecimiento Local y Eficiencia | N104: 1395 | O104: 41621560 | P104: NELLY PARRA TOCORA | Q104: 11587000 | T104: 0 | V104: 11587000 | W104: 11587000 | X104: 2020-06-26 | Y104: 2020-06-26 | Z104: 2020-10-25 | AA104: 120 | AK104: X | AL104: 1 | AM104: 2 | AN104: Contratos de prestación de servicios profesionales y de apoyo a la gestión | AO104: Contratación directa | AP104: =IF(ISBLANK(G104),1,IFERROR(VLOOKUP(G104,Tipo!$C$12:$C$27,1,FALSE),"NO")) -> Prestación de servicios profesionales y de apoyo a la gestión, o para la ejecución de trabajos artísticos que sólo puedan encomendarse a determinadas personas naturales; | AQ104: Inversión | AR104: =IF(ISBLANK(K104),1,IFERROR(VLOOKUP(K104,Eje_Pilar_Prop!C86:C187,1,FALSE),"NO")) -> NO | AS104: SECOP II | AT104: 1 | AU104: Bogotá Mejor para Todos
A105: 97 | B105: 2020 | C105: SECOP II | D105: FDLC-CPS-097-2020 | E105: Contratos de prestación de servicios profesionales y de apoyo a la gestión | F105: Contratación directa | G105: Prestación de servicios profesionales y de apoyo a la gestión, o para la ejecución de trabajos artísticos que sólo puedan encomendarse a determinadas personas naturales; | H105: PRESTACIÓN DE SERVICIOS PROFESIONALES AL ÁREA DE GESTIÓN DE DESARROLLO LOCAL DE LA ALCALDÍA LOCAL DE LA CANDELARIA EN TEMAS RELACIONADOS CON LAS DISTINTAS ACTUACIONES QUE ADELANTEN LOS ÓRGANOS DE CONTROL Y VIGILANCIA FISCAL EN EL MARCO DE LAS AUDITORÍAS, ACTUACIONES ESPECIALES DE FISCALIZACIÓN Y DEMÁS ACTIVIDADES EN LAS QUE SE EVALÚE Y VIGILE LA GESTIÓN | I105: Inversión | J105: Bogotá Mejor para Todos | K105: 45 | L105: =IF(ISERROR(VLOOKUP(K105,Eje_Pilar_Prop!$C$2:$E$104,2,FALSE))," ",VLOOKUP(K105,Eje_Pilar_Prop!$C$2:$E$104,2,FALSE)) -> Gobernanza e influencia local, regional e internacional | M105: =IF(ISERROR(VLOOKUP(K105,Eje_Pilar_Prop!$C$2:$E$104,3,FALSE))," ",VLOOKUP(K105,Eje_Pilar_Prop!$C$2:$E$104,3,FALSE)) -> Eje Transversal 4 Gobierno Legitimo, Fortalecimiento Local y Eficiencia | N105: 1395 | O105: 88136151 | P105: JAIRO ENRIQUE PEÑARANDA TORRADO | Q105: 21067272 | T105: 0 | V105: 21067272 | W105: 16678257 | X105: 2020-06-26 | Y105: 2020-06-26 | Z105: 2020-10-25 | AA105: 120 | AJ105: X | AL105: 0.7916666667 | AM105: 2 | AN105: Contratos de prestación de servicios profesionales y de apoyo a la gestión | AO105: Contratación directa | AP105: =IF(ISBLANK(G105),1,IFERROR(VLOOKUP(G105,Tipo!$C$12:$C$27,1,FALSE),"NO")) -> Prestación de servicios profesionales y de apoyo a la gestión, o para la ejecución de trabajos artísticos que sólo puedan encomendarse a determinadas personas naturales; | AQ105: Inversión | AR105: =IF(ISBLANK(K105),1,IFERROR(VLOOKUP(K105,Eje_Pilar_Prop!C87:C188,1,FALSE),"NO")) -> NO | AS105: SECOP II | AT105: 1 | AU105: Bogotá Mejor para Todos
A106: 98 | B106: 2020 | C106: SECOP II | D106: FDLC-CPS-098-2020 | E106: Contratos de prestación de servicios profesionales y de apoyo a la gestión | F106: Contratación directa | G106: Prestación de servicios profesionales y de apoyo a la gestión, o para la ejecución de trabajos artísticos que sólo puedan encomendarse a determinadas personas naturales; | H106: PRESTACIÓN DE SERVICIOS TÉCNICOS DE APOYO A LA OFICINA DEL ALMACÉN DEL FONDO DE DESARROLLO LOCAL LA CANDELARIA | I106: Inversión | J106: Bogotá Mejor para Todos | K106: 45 | L106: =IF(ISERROR(VLOOKUP(K106,Eje_Pilar_Prop!$C$2:$E$104,2,FALSE))," ",VLOOKUP(K106,Eje_Pilar_Prop!$C$2:$E$104,2,FALSE)) -> Gobernanza e influencia local, regional e internacional | M106: =IF(ISERROR(VLOOKUP(K106,Eje_Pilar_Prop!$C$2:$E$104,3,FALSE))," ",VLOOKUP(K106,Eje_Pilar_Prop!$C$2:$E$104,3,FALSE)) -> Eje Transversal 4 Gobierno Legitimo, Fortalecimiento Local y Eficiencia | N106: 1395 | O106: 79277986 | P106: JOSE EDYS ROJAS ROJAS | Q106: 12991484 | T106: 0 | V106: 12991484 | W106: 12991424 | X106: 2020-06-26 | Y106: 2020-06-26 | Z106: 2020-10-25 | AA106: 120 | AK106: X | AL106: 0.9999953816 | AM106: 2 | AN106: Contratos de prestación de servicios profesionales y de apoyo a la gestión | AO106: Contratación directa | AP106: =IF(ISBLANK(G106),1,IFERROR(VLOOKUP(G106,Tipo!$C$12:$C$27,1,FALSE),"NO")) -> Prestación de servicios profesionales y de apoyo a la gestión, o para la ejecución de trabajos artísticos que sólo puedan encomendarse a determinadas personas naturales; | AQ106: Inversión | AR106: =IF(ISBLANK(K106),1,IFERROR(VLOOKUP(K106,Eje_Pilar_Prop!C88:C189,1,FALSE),"NO")) -> NO | AS106: SECOP II | AT106: 1 | AU106: Bogotá Mejor para Todos
A107: 99 | B107: 2020 | C107: SECOP II | D107: FDLC-CPS-099-2020 | E107: Contratos de prestación de servicios profesionales y de apoyo a la gestión | F107: Contratación directa | G107: Prestación de servicios profesionales y de apoyo a la gestión, o para la ejecución de trabajos artísticos que sólo puedan encomendarse a determinadas personas naturales; | H107: PRESTACIÓN DE SERVICIOS PROFESIONALES PARA APOYAR JURÍDICAMENTE LA EJECUCIÓN DE LAS ACCIONES REQUERIDAS PARA LA DEPURACIÓN DE LAS ACTUACIONES ADMINISTRATIVAS QUE CURSAN EN LA ALCALDÍA LOCAL | I107: Inversión | J107: Bogotá Mejor para Todos | K107: 45 | L107: =IF(ISERROR(VLOOKUP(K107,Eje_Pilar_Prop!$C$2:$E$104,2,FALSE))," ",VLOOKUP(K107,Eje_Pilar_Prop!$C$2:$E$104,2,FALSE)) -> Gobernanza e influencia local, regional e internacional | M107: =IF(ISERROR(VLOOKUP(K107,Eje_Pilar_Prop!$C$2:$E$104,3,FALSE))," ",VLOOKUP(K107,Eje_Pilar_Prop!$C$2:$E$104,3,FALSE)) -> Eje Transversal 4 Gobierno Legitimo, Fortalecimiento Local y Eficiencia | N107: 1395 | O107: 1022973767 | P107: CAROLINA ROJAS CARVAJAL | Q107: 17907181 | T107: 0 | V107: 17907181 | W107: 17907181 | X107: 2020-06-26 | Y107: 2020-06-26 | Z107: 2020-10-25 | AA107: 120 | AK107: X | AL107: 1 | AM107: 2 | AN107: Contratos de prestación de servicios profesionales y de apoyo a la gestión | AO107: Contratación directa | AP107: =IF(ISBLANK(G107),1,IFERROR(VLOOKUP(G107,Tipo!$C$12:$C$27,1,FALSE),"NO")) -> Prestación de servicios profesionales y de apoyo a la gestión, o para la ejecución de trabajos artísticos que sólo puedan encomendarse a determinadas personas naturales; | AQ107: Inversión | AR107: =IF(ISBLANK(K107),1,IFERROR(VLOOKUP(K107,Eje_Pilar_Prop!C89:C190,1,FALSE),"NO")) -> NO | AS107: SECOP II | AT107: 1 | AU107: Bogotá Mejor para Todos
A108: 100 | B108: 2020 | C108: SECOP II | D108: FDLC-CPS-100-2020 | E108: Contratos de prestación de servicios profesionales y de apoyo a la gestión | F108: Contratación directa | G108: Prestación de servicios profesionales y de apoyo a la gestión, o para la ejecución de trabajos artísticos que sólo puedan encomendarse a determinadas personas naturales; | H108: PRESTACION DE SERVICIOS PROFESIONALES PARA APOYAR LA FORMULACIÓN, GESTIÓN Y SEGUIMIENTO DE ACTIVIDADES ENFOCADAS A LA GESTIÓN AMBIENTAL EXTERNA, ENCAMINADAS A LA MITIGACIÓN DE LOS DIFERENTES IMPACTOS AMBIENTALES Y LA CONSERVACIÓN DE LOS RECURSOS NATURALES DE LA LOCALIDAD | I108: Inversión | J108: Bogotá Mejor para Todos | K108: 45 | L108: =IF(ISERROR(VLOOKUP(K108,Eje_Pilar_Prop!$C$2:$E$104,2,FALSE))," ",VLOOKUP(K108,Eje_Pilar_Prop!$C$2:$E$104,2,FALSE)) -> Gobernanza e influencia local, regional e internacional | M108: =IF(ISERROR(VLOOKUP(K108,Eje_Pilar_Prop!$C$2:$E$104,3,FALSE))," ",VLOOKUP(K108,Eje_Pilar_Prop!$C$2:$E$104,3,FALSE)) -> Eje Transversal 4 Gobierno Legitimo, Fortalecimiento Local y Eficiencia | N108: 1395 | O108: 80194800 | P108: PEDRO ANDRES BARRERA ALVARADO | Q108: 16800000 | T108: 0 | V108: 16800000 | W108: 8400000 | X108: 2020-07-01 | Y108: 2020-07-01 | Z108: 2020-10-31 | AA108: 120 | AJ108: X | AL108: 0.5 | AM108: 2 | AN108: Contratos de prestación de servicios profesionales y de apoyo a la gestión | AO108: Contratación directa | AP108: =IF(ISBLANK(G108),1,IFERROR(VLOOKUP(G108,Tipo!$C$12:$C$27,1,FALSE),"NO")) -> Prestación de servicios profesionales y de apoyo a la gestión, o para la ejecución de trabajos artísticos que sólo puedan encomendarse a determinadas personas naturales; | AQ108: Inversión | AR108: =IF(ISBLANK(K108),1,IFERROR(VLOOKUP(K108,Eje_Pilar_Prop!C90:C191,1,FALSE),"NO")) -> NO | AS108: SECOP II | AT108: 1 | AU108: Bogotá Mejor para Todos
A109: 101 | B109: 2020 | C109: SECOP II | D109: FDLC-CPS-101-2020 | E109: Contratos de prestación de servicios profesionales y de apoyo a la gestión | F109: Contratación directa | G109: Prestación de servicios profesionales y de apoyo a la gestión, o para la ejecución de trabajos artísticos que sólo puedan encomendarse a determinadas personas naturales; | H109: PRESTACIÓN DE SERVICIOS PROFESIONALES PARA APOYAR Y FORTALECER LA OFICINA DE PRESUPUESTO DEL FONDO DE DESARROLLO LOCAL EN LAS GESTIONES ADMINISTRATIVAS Y FINANCIERAS DE LA ENTIDAD | I109: Inversión | J109: Bogotá Mejor para Todos | K109: 45 | L109: =IF(ISERROR(VLOOKUP(K109,Eje_Pilar_Prop!$C$2:$E$104,2,FALSE))," ",VLOOKUP(K109,Eje_Pilar_Prop!$C$2:$E$104,2,FALSE)) -> Gobernanza e influencia local, regional e internacional | M109: =IF(ISERROR(VLOOKUP(K109,Eje_Pilar_Prop!$C$2:$E$104,3,FALSE))," ",VLOOKUP(K109,Eje_Pilar_Prop!$C$2:$E$104,3,FALSE)) -> Eje Transversal 4 Gobierno Legitimo, Fortalecimiento Local y Eficiencia | N109: 1395 | O109: 41648295 | P109: ISABEL SANCHEZ RODRIGUEZ | Q109: 17345400 | T109: 0 | V109: 17345400 | W109: 17345400 | X109: 2020-07-01 | Y109: 2020-07-01 | Z109: 2020-10-31 | AA109: 120 | AK109: X | AL109: 1 | AM109: 2 | AN109: Contratos de prestación de servicios profesionales y de apoyo a la gestión | AO109: Contratación directa | AP109: =IF(ISBLANK(G109),1,IFERROR(VLOOKUP(G109,Tipo!$C$12:$C$27,1,FALSE),"NO")) -> Prestación de servicios profesionales y de apoyo a la gestión, o para la ejecución de trabajos artísticos que sólo puedan encomendarse a determinadas personas naturales; | AQ109: Inversión | AR109: =IF(ISBLANK(K109),1,IFERROR(VLOOKUP(K109,Eje_Pilar_Prop!C91:C192,1,FALSE),"NO")) -> NO | AS109: SECOP II | AT109: 1 | AU109: Bogotá Mejor para Todos
A110: 102 | B110: 2020 | C110: SECOP II | D110: FDLC-CPS-102-2020 | E110: Contratos de prestación de servicios profesionales y de apoyo a la gestión | F110: Contratación directa | G110: Prestación de servicios profesionales y de apoyo a la gestión, o para la ejecución de trabajos artísticos que sólo puedan encomendarse a determinadas personas naturales; | H110: PRESTACION DE SERVICIOS PROFESIONALES PARA APOYAR TÉCNICAMENTE LAS DISTINTAS ETAPAS DE LOS PROCESOS DE COMPETENCIA DE LA ALCALDÍA LOCAL PARA LA DEPURACIÓN DE ACTUACIONES ADMINISTRATIVAS | I110: Inversión | J110: Bogotá Mejor para Todos | K110: 45 | L110: =IF(ISERROR(VLOOKUP(K110,Eje_Pilar_Prop!$C$2:$E$104,2,FALSE))," ",VLOOKUP(K110,Eje_Pilar_Prop!$C$2:$E$104,2,FALSE)) -> Gobernanza e influencia local, regional e internacional | M110: =IF(ISERROR(VLOOKUP(K110,Eje_Pilar_Prop!$C$2:$E$104,3,FALSE))," ",VLOOKUP(K110,Eje_Pilar_Prop!$C$2:$E$104,3,FALSE)) -> Eje Transversal 4 Gobierno Legitimo, Fortalecimiento Local y Eficiencia | N110: 1395 | O110: 79507928 | P110: FRANCISCO JAVIER HIGUERA NOVA | Q110: 16818704 | T110: 0 | V110: 16818704 | W110: 16818703 | X110: 2020-07-03 | Y110: 2020-07-03 | Z110: 2020-11-02 | AA110: 120 | AK110: X | AL110: 0.9999999405 | AM110: 2 | AN110: Contratos de prestación de servicios profesionales y de apoyo a la gestión | AO110: Contratación directa | AP110: =IF(ISBLANK(G110),1,IFERROR(VLOOKUP(G110,Tipo!$C$12:$C$27,1,FALSE),"NO")) -> Prestación de servicios profesionales y de apoyo a la gestión, o para la ejecución de trabajos artísticos que sólo puedan encomendarse a determinadas personas naturales; | AQ110: Inversión | AR110: =IF(ISBLANK(K110),1,IFERROR(VLOOKUP(K110,Eje_Pilar_Prop!C92:C193,1,FALSE),"NO")) -> NO | AS110: SECOP II | AT110: 1 | AU110: Bogotá Mejor para Todos
A111: 103 | B111: 2020 | C111: SECOP II | D111: FDLC-CPS-103-2020 | E111: Contratos de prestación de servicios profesionales y de apoyo a la gestión | F111: Contratación directa | G111: Prestación de servicios profesionales y de apoyo a la gestión, o para la ejecución de trabajos artísticos que sólo puedan encomendarse a determinadas personas naturales; | H111: PRESTACION DE SERVICIOS PROFESIONALES DE APOYO EN LA ADMINISTRACION DEL PUNTO VIVE DIGITAL DE LA LOCALIDAD LA CANDELARIA PARA FOMENTAR EN LA COMUNIDAD LAS TICS | I111: Inversión | J111: Bogotá Mejor para Todos | K111: 45 | L111: =IF(ISERROR(VLOOKUP(K111,Eje_Pilar_Prop!$C$2:$E$104,2,FALSE))," ",VLOOKUP(K111,Eje_Pilar_Prop!$C$2:$E$104,2,FALSE)) -> Gobernanza e influencia local, regional e internacional | M111: =IF(ISERROR(VLOOKUP(K111,Eje_Pilar_Prop!$C$2:$E$104,3,FALSE))," ",VLOOKUP(K111,Eje_Pilar_Prop!$C$2:$E$104,3,FALSE)) -> Eje Transversal 4 Gobierno Legitimo, Fortalecimiento Local y Eficiencia | N111: 1395 | O111: 79322403 | P111: EDGAR YESID SILVA BUSTOS | Q111: 16000000 | T111: 0 | V111: 16000000 | W111: 16000000 | X111: 2020-07-06 | Y111: 2020-07-06 | Z111: 2020-11-05 | AA111: 120 | AK111: X | AL111: 1 | AM111: 3 | AN111: Contratos de prestación de servicios profesionales y de apoyo a la gestión | AO111: Contratación directa | AP111: =IF(ISBLANK(G111),1,IFERROR(VLOOKUP(G111,Tipo!$C$12:$C$27,1,FALSE),"NO")) -> Prestación de servicios profesionales y de apoyo a la gestión, o para la ejecución de trabajos artísticos que sólo puedan encomendarse a determinadas personas naturales; | AQ111: Inversión | AR111: =IF(ISBLANK(K111),1,IFERROR(VLOOKUP(K111,Eje_Pilar_Prop!C93:C194,1,FALSE),"NO")) -> NO | AS111: SECOP II | AT111: 1 | AU111: Bogotá Mejor para Todos
A112: 104 | B112: 2020 | C112: SECOP II | D112: FDLC-CPS-104-2020 | E112: Contratos de prestación de servicios profesionales y de apoyo a la gestión | F112: Contratación directa | G112: Prestación de servicios profesionales y de apoyo a la gestión, o para la ejecución de trabajos artísticos que sólo puedan encomendarse a determinadas personas naturales; | H112: PRESTACION DE SERVICIOS PROFESIONALES PARA APOYAR TÉCNICAMENTE LAS DISTINTAS ETAPAS DE LOS PROCESOS DE COMPETENCIA DE LA ALCALDÍA LOCAL PARA LA DEPURACIÓN DE ACTUACIONES ADMINISTRATIVAS | I112: Inversión | J112: Bogotá Mejor para Todos | K112: 45 | L112: =IF(ISERROR(VLOOKUP(K112,Eje_Pilar_Prop!$C$2:$E$104,2,FALSE))," ",VLOOKUP(K112,Eje_Pilar_Prop!$C$2:$E$104,2,FALSE)) -> Gobernanza e influencia local, regional e internacional | M112: =IF(ISERROR(VLOOKUP(K112,Eje_Pilar_Prop!$C$2:$E$104,3,FALSE))," ",VLOOKUP(K112,Eje_Pilar_Prop!$C$2:$E$104,3,FALSE)) -> Eje Transversal 4 Gobierno Legitimo, Fortalecimiento Local y Eficiencia | N112: 1395 | O112: 3023764906 | P112: PAOLA ANDREA RANGEL MARTINEZ | Q112: 16818704 | T112: 0 | V112: 16818704 | W112: 15837613 | X112: 2020-07-08 | Y112: 2020-07-08 | Z112: 2020-11-07 | AA112: 120 | AK112: X | AL112: 0.9416666706 | AM112: 2 | AN112: Contratos de prestación de servicios profesionales y de apoyo a la gestión | AO112: Contratación directa | AP112: =IF(ISBLANK(G112),1,IFERROR(VLOOKUP(G112,Tipo!$C$12:$C$27,1,FALSE),"NO")) -> Prestación de servicios profesionales y de apoyo a la gestión, o para la ejecución de trabajos artísticos que sólo puedan encomendarse a determinadas personas naturales; | AQ112: Inversión | AR112: =IF(ISBLANK(K112),1,IFERROR(VLOOKUP(K112,Eje_Pilar_Prop!C94:C195,1,FALSE),"NO")) -> NO | AS112: SECOP II | AT112: 1 | AU112: Bogotá Mejor para Todos
A113: 105 | B113: 2020 | C113: SECOP II | D113: FDLC-CPS-105-2020 | E113: Contratos de prestación de servicios profesionales y de apoyo a la gestión | F113: Contratación directa | G113: Prestación de servicios profesionales y de apoyo a la gestión, o para la ejecución de trabajos artísticos que sólo puedan encomendarse a determinadas personas naturales; | H113: PRESTACIÓN DE SERVICIOS ASISTENCIALES DE APOYO A LA GESTION DEL FONDO DE DESARROLLO LOCAL DE LA CANDELARIA CDI PARA EL MANEJO Y PROESO DE DISTRIBUCIÓN DE CORRESPONDENCIA EN GENERAL | I113: Inversión | J113: Bogotá Mejor para Todos | K113: 45 | L113: =IF(ISERROR(VLOOKUP(K113,Eje_Pilar_Prop!$C$2:$E$104,2,FALSE))," ",VLOOKUP(K113,Eje_Pilar_Prop!$C$2:$E$104,2,FALSE)) -> Gobernanza e influencia local, regional e internacional | M113: =IF(ISERROR(VLOOKUP(K113,Eje_Pilar_Prop!$C$2:$E$104,3,FALSE))," ",VLOOKUP(K113,Eje_Pilar_Prop!$C$2:$E$104,3,FALSE)) -> Eje Transversal 4 Gobierno Legitimo, Fortalecimiento Local y Eficiencia | N113: 1395 | O113: 1010227910 | P113: CARLOS ARMANDO GONZÁLEZ RASGO | Q113: 9831392 | T113: 0 | V113: 9831392 | W113: 9749463 | X113: 2020-07-09 | Y113: 2020-07-09 | Z113: 2020-11-08 | AA113: 120 | AK113: X | AL113: 0.9916665921 | AM113: 3 | AN113: Contratos de prestación de servicios profesionales y de apoyo a la gestión | AO113: Contratación directa | AP113: =IF(ISBLANK(G113),1,IFERROR(VLOOKUP(G113,Tipo!$C$12:$C$27,1,FALSE),"NO")) -> Prestación de servicios profesionales y de apoyo a la gestión, o para la ejecución de trabajos artísticos que sólo puedan encomendarse a determinadas personas naturales; | AQ113: Inversión | AR113: =IF(ISBLANK(K113),1,IFERROR(VLOOKUP(K113,Eje_Pilar_Prop!C95:C196,1,FALSE),"NO")) -> NO | AS113: SECOP II | AT113: 1 | AU113: Bogotá Mejor para Todos
A114: 106 | B114: 2020 | C114: SECOP II | D114: FDLC-IMC-012-2020 | E114: Suministro | F114: Contratación mínima cuantia | G114: No aplica | H114: ADQUIRIR A TODO COSTO, EL SERVICIO DE MANTENIMIENTO PREVENTIVO Y CORRECTIVO INTEGRAL CON SUMINISTRO DE REPUESTOS Y MANO DE OBRA PARA LOS VEHÍCULOS QUE CONFORMAN EL PARQUE AUTOMOTOR DEL FONDO DE DESARROLLO LOCAL DE LA CANDELARIA | I114: Funcionamiento | J114: Bogotá Mejor para Todos | K114: No aplica | L114: No Aplica | M114: No Aplica | N114: No Aplica | O114: 830134871 | P114: TECNI CENTRO AUTOMOTRIZ JJ LTDA | Q114: 19474650 | T114: 0 | V114: 19474650 | X114: 2020-07-10 | Y114: 2020-07-15 | Z114: 2021-02-14 | AA114: 210 | AI114: X | AL114: 0 | AM114: 2 | AN114: Suministro | AO114: Contratación mínima cuantia | AP114: =IF(ISBLANK(G114),1,IFERROR(VLOOKUP(G114,Tipo!$C$12:$C$27,1,FALSE),"NO")) -> NO | AQ114: Funcionamiento | AR114: =IF(ISBLANK(K114),1,IFERROR(VLOOKUP(K114,Eje_Pilar_Prop!C96:C197,1,FALSE),"NO")) -> NO | AS114: SECOP II | AT114: 1 | AU114: Bogotá Mejor para Todos
A115: 107 | B115: 2020 | C115: SECOP II | D115: FDLC-CPS-107-2020 | E115: Contratos de prestación de servicios profesionales y de apoyo a la gestión | F115: Contratación directa | G115: Prestación de servicios profesionales y de apoyo a la gestión, o para la ejecución de trabajos artísticos que sólo puedan encomendarse a determinadas personas naturales; | H115: PRESTACIÓN DE SERVICIOS PROFESIONALES PARA APOYAR JURÍDICAMENTE LA EJECUCIÓN DE LAS ACCIONES REQUERIDAS PARA LA DEPURACIÓN DE LAS ACTUACIONES ADMINISTRATIVAS QUE CURSAN EN LA ALCALDÍA LOCAL | I115: Inversión | J115: Bogotá Mejor para Todos | K115: 45 | L115: =IF(ISERROR(VLOOKUP(K115,Eje_Pilar_Prop!$C$2:$E$104,2,FALSE))," ",VLOOKUP(K115,Eje_Pilar_Prop!$C$2:$E$104,2,FALSE)) -> Gobernanza e influencia local, regional e internacional | M115: =IF(ISERROR(VLOOKUP(K115,Eje_Pilar_Prop!$C$2:$E$104,3,FALSE))," ",VLOOKUP(K115,Eje_Pilar_Prop!$C$2:$E$104,3,FALSE)) -> Eje Transversal 4 Gobierno Legitimo, Fortalecimiento Local y Eficiencia | N115: 1395 | O115: 51875915 | P115: LUZ SOFIA AMAYA CASTAÑEDA | Q115: 17907180 | T115: 0 | V115: 17907180 | W115: 17907180 | X115: 2020-07-10 | Y115: 2020-07-10 | Z115: 2020-11-09 | AA115: 120 | AK115: X | AL115: 1 | AM115: 2 | AN115: Contratos de prestación de servicios profesionales y de apoyo a la gestión | AO115: Contratación directa | AP115: =IF(ISBLANK(G115),1,IFERROR(VLOOKUP(G115,Tipo!$C$12:$C$27,1,FALSE),"NO")) -> Prestación de servicios profesionales y de apoyo a la gestión, o para la ejecución de trabajos artísticos que sólo puedan encomendarse a determinadas personas naturales; | AQ115: Inversión | AR115: =IF(ISBLANK(K115),1,IFERROR(VLOOKUP(K115,Eje_Pilar_Prop!C97:C198,1,FALSE),"NO")) -> NO | AS115: SECOP II | AT115: 1 | AU115: Bogotá Mejor para Todos
A116: 108 | B116: 2020 | C116: SECOP II | D116: FDLC-CPS-108-2020 | E116: Contratos de prestación de servicios profesionales y de apoyo a la gestión | F116: Contratación directa | G116: Prestación de servicios profesionales y de apoyo a la gestión, o para la ejecución de trabajos artísticos que sólo puedan encomendarse a determinadas personas naturales; | H116: PRESTACIÓN DE SERVICIOS PROFESIONALES PARA APOYAR JURÍDICAMENTE LA EJECUCIÓN DE LAS ACCIONES REQUERIDAS PARA LA DEPURACIÓN DE LAS ACTUACIONES ADMINISTRATIVAS QUE CURSAN EN LA ALCALDÍA LOCAL | I116: Inversión | J116: Bogotá Mejor para Todos | K116: 45 | L116: =IF(ISERROR(VLOOKUP(K116,Eje_Pilar_Prop!$C$2:$E$104,2,FALSE))," ",VLOOKUP(K116,Eje_Pilar_Prop!$C$2:$E$104,2,FALSE)) -> Gobernanza e influencia local, regional e internacional | M116: =IF(ISERROR(VLOOKUP(K116,Eje_Pilar_Prop!$C$2:$E$104,3,FALSE))," ",VLOOKUP(K116,Eje_Pilar_Prop!$C$2:$E$104,3,FALSE)) -> Eje Transversal 4 Gobierno Legitimo, Fortalecimiento Local y Eficiencia | N116: 1395 | O116: 41794885 | P116: TERESA HERREÑO SOLANO | Q116: 17907180 | T116: 0 | V116: 17907180 | W116: 17907180 | X116: 2020-07-10 | Y116: 2020-07-10 | Z116: 2020-11-09 | AA116: 120 | AK116: X | AL116: 1 | AM116: 2 | AN116: Contratos de prestación de servicios profesionales y de apoyo a la gestión | AO116: Contratación directa | AP116: =IF(ISBLANK(G116),1,IFERROR(VLOOKUP(G116,Tipo!$C$12:$C$27,1,FALSE),"NO")) -> Prestación de servicios profesionales y de apoyo a la gestión, o para la ejecución de trabajos artísticos que sólo puedan encomendarse a determinadas personas naturales; | AQ116: Inversión | AR116: =IF(ISBLANK(K116),1,IFERROR(VLOOKUP(K116,Eje_Pilar_Prop!C98:C199,1,FALSE),"NO")) -> NO | AS116: SECOP II | AT116: 1 | AU116: Bogotá Mejor para Todos
A117: 109 | B117: 2020 | C117: SECOP II | D117: FDLC-CPS-109-2020 | E117: Contratos de prestación de servicios profesionales y de apoyo a la gestión | F117: Contratación directa | G117: Prestación de servicios profesionales y de apoyo a la gestión, o para la ejecución de trabajos artísticos que sólo puedan encomendarse a determinadas personas naturales; | H117: PRESTACIÓN DE SERVICIOS PROFESIONALES PARA APOYAR JURÍDICAMENTE LA EJECUCIÓN DE LAS ACCIONES REQUERIDAS PARA LA DEPURACIÓN DE LAS ACTUACIONES ADMINISTRATIVAS QUE CURSAN EN LA ALCALDÍA LOCAL | I117: Inversión | J117: Bogotá Mejor para Todos | K117: 45 | L117: =IF(ISERROR(VLOOKUP(K117,Eje_Pilar_Prop!$C$2:$E$104,2,FALSE))," ",VLOOKUP(K117,Eje_Pilar_Prop!$C$2:$E$104,2,FALSE)) -> Gobernanza e influencia local, regional e internacional | M117: =IF(ISERROR(VLOOKUP(K117,Eje_Pilar_Prop!$C$2:$E$104,3,FALSE))," ",VLOOKUP(K117,Eje_Pilar_Prop!$C$2:$E$104,3,FALSE)) -> Eje Transversal 4 Gobierno Legitimo, Fortalecimiento Local y Eficiencia | N117: 1395 | O117: 79691880 | P117: JORGE ELIECER DURAN CONSUEGRA | Q117: 17907180 | T117: 0 | V117: 17907180 | W117: 17907180 | X117: 2020-07-10 | Y117: 2020-07-10 | Z117: 2020-11-09 | AA117: 120 | AK117: X | AL117: 1 | AM117: 2 | AN117: Contratos de prestación de servicios profesionales y de apoyo a la gestión | AO117: Contratación directa | AP117: =IF(ISBLANK(G117),1,IFERROR(VLOOKUP(G117,Tipo!$C$12:$C$27,1,FALSE),"NO")) -> Prestación de servicios profesionales y de apoyo a la gestión, o para la ejecución de trabajos artísticos que sólo puedan encomendarse a determinadas personas naturales; | AQ117: Inversión | AR117: =IF(ISBLANK(K117),1,IFERROR(VLOOKUP(K117,Eje_Pilar_Prop!C99:C200,1,FALSE),"NO")) -> NO | AS117: SECOP II | AT117: 1 | AU117: Bogotá Mejor para Todos
A118: 110 | B118: 2020 | C118: SECOP II | D118: FDLC-CPS-110-2020 | E118: Contratos de prestación de servicios profesionales y de apoyo a la gestión | F118: Contratación directa | G118: Prestación de servicios profesionales y de apoyo a la gestión, o para la ejecución de trabajos artísticos que sólo puedan encomendarse a determinadas personas naturales; | H118: PRESTACIÓN DE SERVICIOS PROFESIONALES AL FONDO DE DESARROLLO LOCAL DE LA CANDELARIA, EN LOS TRÁMITES RELACIONADOS CON LOS PROCESOS PRECONTRACTUALES, CONTRACTUALES Y POS CONTRACTUALES Y EN LAS DEMÁS ACTIVIDADES QUE ALLÍ SE REQUIERAN, DE CONFORMIDAD CON LOS ESTUDIOS PREVIOS | I118: Inversión | J118: Bogotá Mejor para Todos | K118: 45 | L118: =IF(ISERROR(VLOOKUP(K118,Eje_Pilar_Prop!$C$2:$E$104,2,FALSE))," ",VLOOKUP(K118,Eje_Pilar_Prop!$C$2:$E$104,2,FALSE)) -> Gobernanza e influencia local, regional e internacional | M118: =IF(ISERROR(VLOOKUP(K118,Eje_Pilar_Prop!$C$2:$E$104,3,FALSE))," ",VLOOKUP(K118,Eje_Pilar_Prop!$C$2:$E$104,3,FALSE)) -> Eje Transversal 4 Gobierno Legitimo, Fortalecimiento Local y Eficiencia | N118: 1395 | O118: 1032363826 | P118: PAOLA ANDREA PADILLA AYARZA | Q118: 16134016 | T118: 0 | V118: 16134016 | W118: 16134016 | X118: 2020-07-13 | Y118: 2020-07-13 | Z118: 2020-11-12 | AA118: 120 | AK118: X | AL118: 1 | AM118: 2 | AN118: Contratos de prestación de servicios profesionales y de apoyo a la gestión | AO118: Contratación directa | AP118: =IF(ISBLANK(G118),1,IFERROR(VLOOKUP(G118,Tipo!$C$12:$C$27,1,FALSE),"NO")) -> Prestación de servicios profesionales y de apoyo a la gestión, o para la ejecución de trabajos artísticos que sólo puedan encomendarse a determinadas personas naturales; | AQ118: Inversión | AR118: =IF(ISBLANK(K118),1,IFERROR(VLOOKUP(K118,Eje_Pilar_Prop!C100:C201,1,FALSE),"NO")) -> NO | AS118: SECOP II | AT118: 1 | AU118: Bogotá Mejor para Todos
A119: 111 | B119: 2020 | C119: SECOP II | D119: FDLC-IMC-013-2020 | E119: Contratos de prestación de servicios profesionales y de apoyo a la gestión | F119: Contratación directa | G119: No aplica | H119: ADQUIRIR A MONTO AGOTABLE LOS ELEMENTOS DE PROTECCIÓN PERSONAL Y DE BIOSEGURIDAD NECESARIOS PARA LA PROTECCIÓN DEL PERSONAL DE LA ALCALDÍA LOCAL DE LA CANDELARIA, CON OCASIÓN DEL CORONAVIRUS COVID 19 | I119: Inversión | J119: Bogotá Mejor para Todos | K119: 45 | L119: =IF(ISERROR(VLOOKUP(K119,Eje_Pilar_Prop!$C$2:$E$104,2,FALSE))," ",VLOOKUP(K119,Eje_Pilar_Prop!$C$2:$E$104,2,FALSE)) -> Gobernanza e influencia local, regional e internacional | M119: =IF(ISERROR(VLOOKUP(K119,Eje_Pilar_Prop!$C$2:$E$104,3,FALSE))," ",VLOOKUP(K119,Eje_Pilar_Prop!$C$2:$E$104,3,FALSE)) -> Eje Transversal 4 Gobierno Legitimo, Fortalecimiento Local y Eficiencia | N119: 1395 | O119: 8600532749 | P119: GRUPO LOS LAGOS SAS | Q119: 16600158 | T119: 0 | V119: 16600158 | W119: 0 | X119: 2020-07-15 | Y119: 2020-07-29 | Z119: 2020-08-28 | AA119: 30 | AH119: X | AL119: 0 | AM119: 2 | AN119: Contratos de prestación de servicios profesionales y de apoyo a la gestión | AO119: Contratación directa | AP119: =IF(ISBLANK(G119),1,IFERROR(VLOOKUP(G119,Tipo!$C$12:$C$27,1,FALSE),"NO")) -> NO | AQ119: Inversión | AR119: =IF(ISBLANK(K119),1,IFERROR(VLOOKUP(K119,Eje_Pilar_Prop!C101:C202,1,FALSE),"NO")) -> NO | AS119: SECOP II | AT119: 1 | AU119: Bogotá Mejor para Todos
A120: 112 | B120: 2020 | C120: SECOP II | D120: FDLC-CPS-112-2020 | E120: Contratos de prestación de servicios profesionales y de apoyo a la gestión | F120: Contratación directa | G120: Prestación de servicios profesionales y de apoyo a la gestión, o para la ejecución de trabajos artísticos que sólo puedan encomendarse a determinadas personas naturales; | H120: APOYAR ADMINISTRATIVA Y ASISTENCIALMENTE A LAS INSPECCIONES DE POLICÍA DE LA LOCALIDAD | I120: Inversión | J120: Bogotá Mejor para Todos | K120: 45 | L120: =IF(ISERROR(VLOOKUP(K120,Eje_Pilar_Prop!$C$2:$E$104,2,FALSE))," ",VLOOKUP(K120,Eje_Pilar_Prop!$C$2:$E$104,2,FALSE)) -> Gobernanza e influencia local, regional e internacional | M120: =IF(ISERROR(VLOOKUP(K120,Eje_Pilar_Prop!$C$2:$E$104,3,FALSE))," ",VLOOKUP(K120,Eje_Pilar_Prop!$C$2:$E$104,3,FALSE)) -> Eje Transversal 4 Gobierno Legitimo, Fortalecimiento Local y Eficiencia | N120: 1395 | O120: 1022956077 | P120: JARRY EMERSON RIAÑO DELGADO | Q120: 7549104 | T120: 0 | V120: 7549104 | W120: 7549104 | X120: 2020-07-23 | Y120: 2020-07-29 | Z120: 2020-11-28 | AA120: 120 | AK120: X | AL120: 1 | AM120: 2 | AN120: Contratos de prestación de servicios profesionales y de apoyo a la gestión | AO120: Contratación directa | AP120: =IF(ISBLANK(G120),1,IFERROR(VLOOKUP(G120,Tipo!$C$12:$C$27,1,FALSE),"NO")) -> Prestación de servicios profesionales y de apoyo a la gestión, o para la ejecución de trabajos artísticos que sólo puedan encomendarse a determinadas personas naturales; | AQ120: Inversión | AR120: =IF(ISBLANK(K120),1,IFERROR(VLOOKUP(K120,Eje_Pilar_Prop!C102:C203,1,FALSE),"NO")) -> NO | AS120: SECOP II | AT120: 1 | AU120: Bogotá Mejor para Todos
A121: 113 | B121: 2020 | C121: SECOP II | D121: FDLC-CPS-113-2020 | E121: Contratos de prestación de servicios profesionales y de apoyo a la gestión | F121: Contratación Directa | G121: Prestación de servicios profesionales y de apoyo a la gestión, o para la ejecución de trabajos artísticos que sólo puedan encomendarse a determinadas personas naturales; | H121: PRESTAR SERVICIO ASISTENCIAL DE APOYO EN EL ÁREA DE GESTIÓN DE DESARROLLO LOCAL—CDI, PARA LA NOTIFICACIÓN DE CORRESPONDENCIA EN GENERAL. | I121: Inversión | J121: Bogotá Mejor para Todos | K121: 45 | L121: =IF(ISERROR(VLOOKUP(K121,Eje_Pilar_Prop!$C$2:$E$104,2,FALSE))," ",VLOOKUP(K121,Eje_Pilar_Prop!$C$2:$E$104,2,FALSE)) -> Gobernanza e influencia local, regional e internacional | M121: =IF(ISERROR(VLOOKUP(K121,Eje_Pilar_Prop!$C$2:$E$104,3,FALSE))," ",VLOOKUP(K121,Eje_Pilar_Prop!$C$2:$E$104,3,FALSE)) -> Eje Transversal 4 Gobierno Legitimo, Fortalecimiento Local y Eficiencia | N121: 1395 | O121: 1121855155 | P121: HERNAN EDUARDO RODRIGUEZ BEDOYA | Q121: 8075788 | T121: 1 | U121: 4037894 | V121: 12113682 | W121: 10229331 | X121: 2020-07-23 | Y121: 2020-07-29 | Z121: 27/ 01/ 2021 | AA121: 120 | AB121: 1 | AC121: 60 | AJ121: X | AL121: 0.8444444059 | AM121: 2
A122: 114 | B122: 2020 | C122: SECOP II | D122: FDLC-CPS-114-2020 | E122: Contratos de prestación de servicios profesionales y de apoyo a la gestión | F122: Contratación directa | G122: Prestación de servicios profesionales y de apoyo a la gestión, o para la ejecución de trabajos artísticos que sólo puedan encomendarse a determinadas personas naturales; | H122: PRESTAR SERVICIO ASISTENCIAL DE APOYO EN EL ÁREA DE GESTIÓN DE DESARROLLO LOCAL—CDI, PARA LA NOTIFICACIÓN DE CORRESPONDENCIA EN GENERAL. | I122: Inversión | J122: Bogotá Mejor para Todos | K122: 45 | L122: =IF(ISERROR(VLOOKUP(K122,Eje_Pilar_Prop!$C$2:$E$104,2,FALSE))," ",VLOOKUP(K122,Eje_Pilar_Prop!$C$2:$E$104,2,FALSE)) -> Gobernanza e influencia local, regional e internacional | M122: =IF(ISERROR(VLOOKUP(K122,Eje_Pilar_Prop!$C$2:$E$104,3,FALSE))," ",VLOOKUP(K122,Eje_Pilar_Prop!$C$2:$E$104,3,FALSE)) -> Eje Transversal 4 Gobierno Legitimo, Fortalecimiento Local y Eficiencia | N122: 1395 | O122: 1122727530 | P122: JESSE JOSE VILLEGAS CABRERA | Q122: 8075788 | T122: 0 | V122: 8075788 | W122: 8075787 | X122: 2020-07-23 | Y122: 2020-07-29 | Z122: 2020-11-28 | AA122: 120 | AK122: X | AL122: 0.9999998762 | AM122: 2 | AN122: Contratos de prestación de servicios profesionales y de apoyo a la gestión | AO122: Contratación directa | AP122: =IF(ISBLANK(G122),1,IFERROR(VLOOKUP(G122,Tipo!$C$12:$C$27,1,FALSE),"NO")) -> Prestación de servicios profesionales y de apoyo a la gestión, o para la ejecución de trabajos artísticos que sólo puedan encomendarse a determinadas personas naturales; | AQ122: Inversión | AR122: =IF(ISBLANK(K122),1,IFERROR(VLOOKUP(K122,Eje_Pilar_Prop!C103:C204,1,FALSE),"NO")) -> NO | AS122: SECOP II | AT122: 1 | AU122: Bogotá Mejor para Todos
A123: 115 | B123: 2020 | C123: SECOP II | D123: FDLC-CPS-115-2020 | E123: Contratos de prestación de servicios profesionales y de apoyo a la gestión | F123: Contratación directa | G123: Prestación de servicios profesionales y de apoyo a la gestión, o para la ejecución de trabajos artísticos que sólo puedan encomendarse a determinadas personas naturales; | H123: PRESTACIÓN DE SERVICIOS PROFESIONALES PARA APOYAR JURÍDICAMENTE LA EJECUCIÓN DE LAS ACCIONES REQUERIDAS PARA LA DEPURACIÓN DE LAS ACTUACIONES ADMINISTRATIVAS QUE CURSAN EN LA ALCALDÍA LOCA | I123: Inversión | J123: Bogotá Mejor para Todos | K123: 45 | L123: =IF(ISERROR(VLOOKUP(K123,Eje_Pilar_Prop!$C$2:$E$104,2,FALSE))," ",VLOOKUP(K123,Eje_Pilar_Prop!$C$2:$E$104,2,FALSE)) -> Gobernanza e influencia local, regional e internacional | M123: =IF(ISERROR(VLOOKUP(K123,Eje_Pilar_Prop!$C$2:$E$104,3,FALSE))," ",VLOOKUP(K123,Eje_Pilar_Prop!$C$2:$E$104,3,FALSE)) -> Eje Transversal 4 Gobierno Legitimo, Fortalecimiento Local y Eficiencia | N123: 1395 | O123: 32645897 | P123: Miryam Esther Lopez Rodriguez | Q123: 17907180 | T123: 0 | V123: 17907180 | W123: 17907180 | X123: 2020-07-22 | Y123: 2020-07-29 | Z123: 2020-11-28 | AA123: 120 | AK123: X | AL123: 1 | AM123: =IF(SUMPRODUCT((A$14:A123=A123)*(B$14:B123=B123)*(D$14:D123=D123))>1,0,1) -> 1 | AN123: Contratos de prestación de servicios profesionales y de apoyo a la gestión | AO123: Contratación directa | AP123: =IF(ISBLANK(G123),1,IFERROR(VLOOKUP(G123,Tipo!$C$12:$C$27,1,FALSE),"NO")) -> Prestación de servicios profesionales y de apoyo a la gestión, o para la ejecución de trabajos artísticos que sólo puedan encomendarse a determinadas personas naturales; | AQ123: Inversión | AR123: =IF(ISBLANK(K123),1,IFERROR(VLOOKUP(K123,Eje_Pilar_Prop!C104:C205,1,FALSE),"NO")) -> NO | AS123: SECOP II | AT123: 1 | AU123: Bogotá Mejor para Todos
A124: 116 | B124: 2020 | C124: SECOP II | D124: FDLC-CPS-116-2020 | E124: Contratos de prestación de servicios profesionales y de apoyo a la gestión | F124: Contratación directa | G124: Prestación de servicios profesionales y de apoyo a la gestión, o para la ejecución de trabajos artísticos que sólo puedan encomendarse a determinadas personas naturales; | H124: PRESTACIÓN DE SERVICIOS PROFESIONALES PARA LA IMPLEMENTACIÓN Y FORTALECIMIENTO DEL TURISMO CULTURAL EN LA LOCALIDAD 17 DE LA CANDELARIA A TRAVÉS DE LA GESTIÓN, ARTICULACIÓN E INTERLOCUCIÓN CON CIUDADANÍA Y ENTIDADES PÚBLICAS Y PRIVADAS | I124: Inversión | J124: Bogotá Mejor para Todos | K124: 45 | L124: =IF(ISERROR(VLOOKUP(K124,Eje_Pilar_Prop!$C$2:$E$104,2,FALSE))," ",VLOOKUP(K124,Eje_Pilar_Prop!$C$2:$E$104,2,FALSE)) -> Gobernanza e influencia local, regional e internacional | M124: =IF(ISERROR(VLOOKUP(K124,Eje_Pilar_Prop!$C$2:$E$104,3,FALSE))," ",VLOOKUP(K124,Eje_Pilar_Prop!$C$2:$E$104,3,FALSE)) -> Eje Transversal 4 Gobierno Legitimo, Fortalecimiento Local y Eficiencia | N124: 1395 | O124: 1036628060 | P124: Steffy Rossmary Zemanate Mora | Q124: 15449332 | T124: 0 | V124: 15449332 | W124: 11586999 | X124: 2020-07-22 | Y124: 2020-07-31 | Z124: 2020-11-30 | AA124: 120 | AJ124: X | AL124: 0.75 | AM124: =IF(SUMPRODUCT((A$14:A124=A124)*(B$14:B124=B124)*(D$14:D124=D124))>1,0,1) -> 1 | AN124: Contratos de prestación de servicios profesionales y de apoyo a la gestión | AO124: Contratación directa | AP124: =IF(ISBLANK(G124),1,IFERROR(VLOOKUP(G124,Tipo!$C$12:$C$27,1,FALSE),"NO")) -> Prestación de servicios profesionales y de apoyo a la gestión, o para la ejecución de trabajos artísticos que sólo puedan encomendarse a determinadas personas naturales; | AQ124: Inversión | AR124: =IF(ISBLANK(K124),1,IFERROR(VLOOKUP(K124,Eje_Pilar_Prop!C105:C206,1,FALSE),"NO")) -> NO | AS124: SECOP II | AT124: 1 | AU124: Bogotá Mejor para Todos
A125: 117 | B125: 2020 | C125: SECOP II | D125: FDLC-LP-007-2020 | E125: Contratos de prestación de servicios | F125: Licitación pública | G125: No aplica | H125: PRESTACION DEL SERVICIO DE VIGILANCIA Y SEGURIDAD PRIVADA INTEGRAL PERMANENTE PARA TODOS LOS BIENES MUEBLES E INMUEBLES DE PROPIEDAD DE LA ENTIDAD, Y DE LOS QUE LEGALMENTE SEA O LLEGARE A SER RESPONSABLE EL FONDO DE DESARROLLO LOCAL DE LA CANDELARIA | I125: Funcionamiento | J125: Bogotá Mejor para Todos | K125: No aplica | L125: No Aplica | M125: No Aplica | N125: No Aplica | O125: 860011268 | P125: ASOCIACIÓN MODERNA COLOMBIANA DE VIGILANCIA TÉCNICA - AMCOVIT LTDA | Q125: 457431395 | T125: 2 | U125: 109317205 | V125: 566748600 | W125: 350061490 | X125: 2020-07-24 | Y125: 2020-07-24 | Z125: 2021-04-01 | AA125: 180 | AB125: 2 | AC125: 71 | AI125: X | AL125: 0.6176662633 | AM125: 2 | AN125: Contratos de prestación de servicios | AO125: Licitación pública | AP125: =IF(ISBLANK(G125),1,IFERROR(VLOOKUP(G125,Tipo!$C$12:$C$27,1,FALSE),"NO")) -> NO | AQ125: Funcionamiento | AR125: =IF(ISBLANK(K125),1,IFERROR(VLOOKUP(K125,Eje_Pilar_Prop!C106:C207,1,FALSE),"NO")) -> NO | AS125: SECOP II | AT125: 1 | AU125: Bogotá Mejor para Todos
A126: 118 | B126: 2020 | C126: SECOP II | D126: FDLC-CPS-118-2020 | E126: Contratos de prestación de servicios profesionales y de apoyo a la gestión | F126: Contratación directa | G126: Prestación de servicios profesionales y de apoyo a la gestión, o para la ejecución de trabajos artísticos que sólo puedan encomendarse a determinadas personas naturales; | H126: PRESTAR SERVICIOS DE APOYO COMO CONDUCTOR DE LOS VEHICULOS QUE SE ENCUENTRAN A CARGO DEL FONDO DE DESARROLLO LOCAL LA CANDELARIA | I126: Inversión | J126: Bogotá Mejor para Todos | K126: 45 | L126: =IF(ISERROR(VLOOKUP(K126,Eje_Pilar_Prop!$C$2:$E$104,2,FALSE))," ",VLOOKUP(K126,Eje_Pilar_Prop!$C$2:$E$104,2,FALSE)) -> Gobernanza e influencia local, regional e internacional | M126: =IF(ISERROR(VLOOKUP(K126,Eje_Pilar_Prop!$C$2:$E$104,3,FALSE))," ",VLOOKUP(K126,Eje_Pilar_Prop!$C$2:$E$104,3,FALSE)) -> Eje Transversal 4 Gobierno Legitimo, Fortalecimiento Local y Eficiencia | N126: 1395 | O126: 79381970 | P126: FERNANDO FORERO BRESNEIDER | Q126: 9831392 | T126: 0 | V126: 9831392 | W126: 9831392 | X126: 2020-07-23 | Y126: 2020-07-29 | Z126: 2020-11-28 | AA126: 120 | AK126: X | AL126: 1 | AM126: 2 | AN126: Contratos de prestación de servicios profesionales y de apoyo a la gestión | AO126: Contratación directa | AP126: =IF(ISBLANK(G126),1,IFERROR(VLOOKUP(G126,Tipo!$C$12:$C$27,1,FALSE),"NO")) -> Prestación de servicios profesionales y de apoyo a la gestión, o para la ejecución de trabajos artísticos que sólo puedan encomendarse a determinadas personas naturales; | AQ126: Inversión | AR126: =IF(ISBLANK(K126),1,IFERROR(VLOOKUP(K126,Eje_Pilar_Prop!C107:C208,1,FALSE),"NO")) -> NO | AS126: SECOP II | AT126: 1 | AU126: Bogotá Mejor para Todos
A127: 119 | B127: 2020 | C127: SECOP II | D127: FDLC-CPS-119-2020 | E127: Contratos de prestación de servicios profesionales y de apoyo a la gestión | F127: Contratación directa | G127: Prestación de servicios profesionales y de apoyo a la gestión, o para la ejecución de trabajos artísticos que sólo puedan encomendarse a determinadas personas naturales; | H127: PRESTAR LOS SERVICIOS DE APOYO LOGÍSTICO EN TODOS LOS EVENTOS Y ACTIVIDADES DE LA ADMINISTRACIÓN LOCAL DE LA LOCALIDAD 17 DE LA CANDELARIA | I127: Inversión | J127: Bogotá Mejor para Todos | K127: 45 | L127: =IF(ISERROR(VLOOKUP(K127,Eje_Pilar_Prop!$C$2:$E$104,2,FALSE))," ",VLOOKUP(K127,Eje_Pilar_Prop!$C$2:$E$104,2,FALSE)) -> Gobernanza e influencia local, regional e internacional | M127: =IF(ISERROR(VLOOKUP(K127,Eje_Pilar_Prop!$C$2:$E$104,3,FALSE))," ",VLOOKUP(K127,Eje_Pilar_Prop!$C$2:$E$104,3,FALSE)) -> Eje Transversal 4 Gobierno Legitimo, Fortalecimiento Local y Eficiencia | N127: 1395 | O127: 65788328 | P127: Emperatriz Gonzalez Palencia | Q127: 8075788 | T127: 0 | V127: 8075788 | W127: 8075788 | X127: 2020-07-23 | Y127: 2020-07-29 | Z127: 2020-11-28 | AA127: 120 | AK127: X | AL127: 1 | AM127: 2 | AN127: Contratos de prestación de servicios profesionales y de apoyo a la gestión | AO127: Contratación directa | AP127: =IF(ISBLANK(G127),1,IFERROR(VLOOKUP(G127,Tipo!$C$12:$C$27,1,FALSE),"NO")) -> Prestación de servicios profesionales y de apoyo a la gestión, o para la ejecución de trabajos artísticos que sólo puedan encomendarse a determinadas personas naturales; | AQ127: Inversión | AR127: =IF(ISBLANK(K127),1,IFERROR(VLOOKUP(K127,Eje_Pilar_Prop!C108:C209,1,FALSE),"NO")) -> NO | AS127: SECOP II | AT127: 1 | AU127: Bogotá Mejor para Todos
A128: 120 | B128: 2020 | C128: SECOP II | D128: FDLC-CPS-120-2020 | E128: Contratos de prestación de servicios profesionales y de apoyo a la gestión | F128: Contratación directa | G128: Prestación de servicios profesionales y de apoyo a la gestión, o para la ejecución de trabajos artísticos que sólo puedan encomendarse a determinadas personas naturales; | H128: PRESTACIÓN DE SERVICIOS DE APOYO TÉCNICO EN LA ADMINISTRACIÓN DE LAS CASAS COMUNITARIAS DE LA LOCALIDAD DE LA CANDELARIA DE CONFORMIDAD CON EL ACUERDO LOCAL 006 DE 2013 | I128: Inversión | J128: Bogotá Mejor para Todos | K128: 45 | L128: =IF(ISERROR(VLOOKUP(K128,Eje_Pilar_Prop!$C$2:$E$104,2,FALSE))," ",VLOOKUP(K128,Eje_Pilar_Prop!$C$2:$E$104,2,FALSE)) -> Gobernanza e influencia local, regional e internacional | M128: =IF(ISERROR(VLOOKUP(K128,Eje_Pilar_Prop!$C$2:$E$104,3,FALSE))," ",VLOOKUP(K128,Eje_Pilar_Prop!$C$2:$E$104,3,FALSE)) -> Eje Transversal 4 Gobierno Legitimo, Fortalecimiento Local y Eficiencia | N128: 1395 | O128: 51653505 | P128: DORA CECILIA JIMENEZ MORENO | Q128: 11587000 | T128: 0 | V128: 11587000 | W128: 8690250 | X128: 2020-07-23 | Y128: 2020-07-29 | Z128: 2020-11-28 | AA128: 120 | AJ128: X | AL128: 0.75 | AM128: 2 | AN128: Contratos de prestación de servicios profesionales y de apoyo a la gestión | AO128: Contratación directa | AP128: =IF(ISBLANK(G128),1,IFERROR(VLOOKUP(G128,Tipo!$C$12:$C$27,1,FALSE),"NO")) -> Prestación de servicios profesionales y de apoyo a la gestión, o para la ejecución de trabajos artísticos que sólo puedan encomendarse a determinadas personas naturales; | AQ128: Inversión | AR128: =IF(ISBLANK(K128),1,IFERROR(VLOOKUP(K128,Eje_Pilar_Prop!C109:C210,1,FALSE),"NO")) -> NO | AS128: SECOP II | AT128: 1 | AU128: Bogotá Mejor para Todos
A129: 121 | B129: 2020 | C129: SECOP II | D129: FDLC-CPS-121-2020 | E129: Contratos de prestación de servicios profesionales y de apoyo a la gestión | F129: Contratación directa | G129: Prestación de servicios profesionales y de apoyo a la gestión, o para la ejecución de trabajos artísticos que sólo puedan encomendarse a determinadas personas naturales; | H129: PRESTAR SUS SERVICIOS PROFESIONALES PARA APOYAR LA EJECUCIÓN, SEGUIMIENTO Y EVALUACIÓN DEL CONJUNTO DE ACTIVIDADES PARA EL DESARROLLO DE LOS ENCUENTROS CIUDADANOS DE LA LOCALIDAD DE LA CANDELARIA | I129: Inversión | J129: Bogotá Mejor para Todos | K129: 45 | L129: =IF(ISERROR(VLOOKUP(K129,Eje_Pilar_Prop!$C$2:$E$104,2,FALSE))," ",VLOOKUP(K129,Eje_Pilar_Prop!$C$2:$E$104,2,FALSE)) -> Gobernanza e influencia local, regional e internacional | M129: =IF(ISERROR(VLOOKUP(K129,Eje_Pilar_Prop!$C$2:$E$104,3,FALSE))," ",VLOOKUP(K129,Eje_Pilar_Prop!$C$2:$E$104,3,FALSE)) -> Eje Transversal 4 Gobierno Legitimo, Fortalecimiento Local y Eficiencia | N129: 1396 | O129: 39650075 | P129: LUZ ADRIANA GUTIÉRREZ BERNAL | Q129: 12614028 | T129: 0 | V129: 12614028 | W129: 8409352 | X129: 2020-07-27 | Y129: 2020-07-31 | Z129: 2020-10-30 | AA129: 90 | AJ129: X | AL129: 0.6666666667 | AM129: 2 | AN129: Contratos de prestación de servicios profesionales y de apoyo a la gestión | AO129: Contratación directa | AP129: =IF(ISBLANK(G129),1,IFERROR(VLOOKUP(G129,Tipo!$C$12:$C$27,1,FALSE),"NO")) -> Prestación de servicios profesionales y de apoyo a la gestión, o para la ejecución de trabajos artísticos que sólo puedan encomendarse a determinadas personas naturales; | AQ129: Inversión | AR129: =IF(ISBLANK(K129),1,IFERROR(VLOOKUP(K129,Eje_Pilar_Prop!C110:C211,1,FALSE),"NO")) -> NO | AS129: SECOP II | AT129: 1 | AU129: Bogotá Mejor para Todos
A130: 122 | B130: 2020 | C130: SECOP II | D130: FDLC-CPS-122-2020 | E130: Contratos de prestación de servicios profesionales y de apoyo a la gestión | F130: Contratación directa | G130: Prestación de servicios profesionales y de apoyo a la gestión, o para la ejecución de trabajos artísticos que sólo puedan encomendarse a determinadas personas naturales; | H130: PRESTACIÓN DE SERVICIOS PROFESIONALES AL ÁREA DE GESTIÓN DE DESARROLLO LOCAL EN LA IMPLEMENTACIÓN, CARGE, MANEJO, VALIDACIÓN Y ACTUALIZACIÓN DE LA INFORMACIÓN PRE CONTRACTUAL EN EL APLICATIVO SIPSE | I130: Inversión | J130: Bogotá Mejor para Todos | K130: 45 | L130: =IF(ISERROR(VLOOKUP(K130,Eje_Pilar_Prop!$C$2:$E$104,2,FALSE))," ",VLOOKUP(K130,Eje_Pilar_Prop!$C$2:$E$104,2,FALSE)) -> Gobernanza e influencia local, regional e internacional | M130: =IF(ISERROR(VLOOKUP(K130,Eje_Pilar_Prop!$C$2:$E$104,3,FALSE))," ",VLOOKUP(K130,Eje_Pilar_Prop!$C$2:$E$104,3,FALSE)) -> Eje Transversal 4 Gobierno Legitimo, Fortalecimiento Local y Eficiencia | N130: 1395 | O130: 1010198763 | P130: Carlos Mauricio Palomar Covaleda | Q130: 15449332 | T130: 1 | U130: 7724666 | V130: 23173998 | W130: 15706820 | X130: 2020-07-27 | Y130: 2020-07-29 | Z130: 2021-01-27 | AA130: 120 | AB130: 1 | AC130: 60 | AJ130: X | AL130: 0.6777777404 | AM130: 2 | AN130: Contratos de prestación de servicios profesionales y de apoyo a la gestión | AO130: Contratación directa | AP130: =IF(ISBLANK(G130),1,IFERROR(VLOOKUP(G130,Tipo!$C$12:$C$27,1,FALSE),"NO")) -> Prestación de servicios profesionales y de apoyo a la gestión, o para la ejecución de trabajos artísticos que sólo puedan encomendarse a determinadas personas naturales; | AQ130: Inversión | AR130: =IF(ISBLANK(K130),1,IFERROR(VLOOKUP(K130,Eje_Pilar_Prop!C111:C212,1,FALSE),"NO")) -> NO | AS130: SECOP II | AT130: 1 | AU130: Bogotá Mejor para Todos
A131: 123 | B131: 2020 | C131: SECOP II | D131: FDLC-CPS-123-2020 | E131: Contratos de prestación de servicios profesionales y de apoyo a la gestión | F131: Contratación directa | G131: Prestación de servicios profesionales y de apoyo a la gestión, o para la ejecución de trabajos artísticos que sólo puedan encomendarse a determinadas personas naturales; | H131: PRESTACIÓN DE SERVICIOS PROFESIONALES PARA APOYAR AL ÁREA DE GESTIÓN DE DESARROLLO LOCAL, EN TEMAS SEGUIMIENTO DE LOS PROGRAMAS Y PROYECTOS DEL PLAN DE DESARROLLO LOCAL, ASÍ COMO DE LOS PROCESOS DE OBLIGACIONES POR PAGAR DEL FDLC | I131: Inversión | J131: Bogotá Mejor para Todos | K131: 45 | L131: =IF(ISERROR(VLOOKUP(K131,Eje_Pilar_Prop!$C$2:$E$104,2,FALSE))," ",VLOOKUP(K131,Eje_Pilar_Prop!$C$2:$E$104,2,FALSE)) -> Gobernanza e influencia local, regional e internacional | M131: =IF(ISERROR(VLOOKUP(K131,Eje_Pilar_Prop!$C$2:$E$104,3,FALSE))," ",VLOOKUP(K131,Eje_Pilar_Prop!$C$2:$E$104,3,FALSE)) -> Eje Transversal 4 Gobierno Legitimo, Fortalecimiento Local y Eficiencia | N131: 1395 | O131: 52803510 | P131: LILIANA CAÑAVERAL DEL RIO | Q131: 15905790 | T131: 0 | V131: 15905790 | W131: 0 | X131: 2020-07-27 | Y131: 2020-07-31 | Z131: 2020-11-30 | AA131: 120 | AJ131: X | AL131: 0 | AM131: 3 | AN131: Contratos de prestación de servicios profesionales y de apoyo a la gestión | AO131: Contratación directa | AP131: =IF(ISBLANK(G131),1,IFERROR(VLOOKUP(G131,Tipo!$C$12:$C$27,1,FALSE),"NO")) -> Prestación de servicios profesionales y de apoyo a la gestión, o para la ejecución de trabajos artísticos que sólo puedan encomendarse a determinadas personas naturales; | AQ131: Inversión | AR131: =IF(ISBLANK(K131),1,IFERROR(VLOOKUP(K131,Eje_Pilar_Prop!C112:C213,1,FALSE),"NO")) -> NO | AS131: SECOP II | AT131: 1 | AU131: Bogotá Mejor para Todos
A132: 124 | B132: 2020 | C132: SECOP II | D132: FDLC-CPS-124-2020 | E132: Contratos de prestación de servicios profesionales y de apoyo a la gestión | F132: Contratación directa | G132: Prestación de servicios profesionales y de apoyo a la gestión, o para la ejecución de trabajos artísticos que sólo puedan encomendarse a determinadas personas naturales; | H132: PRESTAR LOS SERVICIOS DE APOYO LOGÍSTICO EN TODOS LOS EVENTOS Y ACTIVIDADES DE LA ADMINISTRACIÓN LOCAL DE LA LOCALIDAD 17 DE LA CANDELARIA | I132: Inversión | J132: Bogotá Mejor para Todos | K132: 45 | L132: =IF(ISERROR(VLOOKUP(K132,Eje_Pilar_Prop!$C$2:$E$104,2,FALSE))," ",VLOOKUP(K132,Eje_Pilar_Prop!$C$2:$E$104,2,FALSE)) -> Gobernanza e influencia local, regional e internacional | M132: =IF(ISERROR(VLOOKUP(K132,Eje_Pilar_Prop!$C$2:$E$104,3,FALSE))," ",VLOOKUP(K132,Eje_Pilar_Prop!$C$2:$E$104,3,FALSE)) -> Eje Transversal 4 Gobierno Legitimo, Fortalecimiento Local y Eficiencia | N132: 1395 | O132: 1085280532 | P132: DEIVIS ARAVIT GORDILLO GUTIERREZ | Q132: 8075788 | T132: 0 | V132: 8075788 | W132: 4105192 | X132: 2020-07-29 | Y132: 2020-07-30 | Z132: 2020-11-29 | AA132: 120 | AJ132: X | AL132: 0.5083333044 | AM132: 2 | AN132: Contratos de prestación de servicios profesionales y de apoyo a la gestión | AO132: Contratación directa | AP132: =IF(ISBLANK(G132),1,IFERROR(VLOOKUP(G132,Tipo!$C$12:$C$27,1,FALSE),"NO")) -> Prestación de servicios profesionales y de apoyo a la gestión, o para la ejecución de trabajos artísticos que sólo puedan encomendarse a determinadas personas naturales; | AQ132: Inversión | AR132: =IF(ISBLANK(K132),1,IFERROR(VLOOKUP(K132,Eje_Pilar_Prop!C113:C214,1,FALSE),"NO")) -> NO | AS132: SECOP II | AT132: 1 | AU132: Bogotá Mejor para Todos
A133: 125 | B133: 2020 | C133: SECOP II | D133: FDLC-CPS-125-2020 | E133: Contratos de prestación de servicios profesionales y de apoyo a la gestión | F133: Contratación directa | G133: Prestación de servicios profesionales y de apoyo a la gestión, o para la ejecución de trabajos artísticos que sólo puedan encomendarse a determinadas personas naturales; | H133: PRESTACIÓN DE SERVICIOS DE APOYO TÉCNICO EN LA ADMINISTRACIÓN DE LAS CASAS COMUNITARIAS DE LA LOCALIDAD DE LA CANDELARIA DE CONFORMIDAD CON EL ACUERDO LOCAL 006 DE 2013 | I133: Inversión | J133: Bogotá Mejor para Todos | K133: 45 | L133: =IF(ISERROR(VLOOKUP(K133,Eje_Pilar_Prop!$C$2:$E$104,2,FALSE))," ",VLOOKUP(K133,Eje_Pilar_Prop!$C$2:$E$104,2,FALSE)) -> Gobernanza e influencia local, regional e internacional | M133: =IF(ISERROR(VLOOKUP(K133,Eje_Pilar_Prop!$C$2:$E$104,3,FALSE))," ",VLOOKUP(K133,Eje_Pilar_Prop!$C$2:$E$104,3,FALSE)) -> Eje Transversal 4 Gobierno Legitimo, Fortalecimiento Local y Eficiencia | N133: 1395 | O133: 52219649 | P133: INDIRA BETANCOURT MACUASE | Q133: 11587000 | T133: 0 | V133: 11587000 | W133: 11587000 | X133: 2020-07-27 | Y133: 2020-07-30 | Z133: 2020-11-29 | AA133: 120 | AK133: X | AL133: 1 | AM133: 2 | AN133: Contratos de prestación de servicios profesionales y de apoyo a la gestión | AO133: Contratación directa | AP133: =IF(ISBLANK(G133),1,IFERROR(VLOOKUP(G133,Tipo!$C$12:$C$27,1,FALSE),"NO")) -> Prestación de servicios profesionales y de apoyo a la gestión, o para la ejecución de trabajos artísticos que sólo puedan encomendarse a determinadas personas naturales; | AQ133: Inversión | AR133: =IF(ISBLANK(K133),1,IFERROR(VLOOKUP(K133,Eje_Pilar_Prop!C114:C215,1,FALSE),"NO")) -> NO | AS133: SECOP II | AT133: 1 | AU133: Bogotá Mejor para Todos
A134: 126 | B134: 2020 | C134: SECOP II | D134: FDLC-CPS-126-2020 | E134: Contratos de prestación de servicios profesionales y de apoyo a la gestión | F134: Contratación directa | G134: Prestación de servicios profesionales y de apoyo a la gestión, o para la ejecución de trabajos artísticos que sólo puedan encomendarse a determinadas personas naturales; | H134: PRESTACIÓN DE SERVICIOS PROFESIONALES AL FONDO DE DESARROLLO LOCAL DE LA CANDELARIA PARA ATENDER LAS PETICIONES PRESENTADAS POR LOS CIUDADANOS EN EJERCICIO DEL DERECHO DE PETICIÓN Y DAR RESPUESTA EN LOS TÉRMINOS LEGALES ESTABLECIDOS | I134: Inversión | J134: Bogotá Mejor para Todos | K134: 45 | L134: =IF(ISERROR(VLOOKUP(K134,Eje_Pilar_Prop!$C$2:$E$104,2,FALSE))," ",VLOOKUP(K134,Eje_Pilar_Prop!$C$2:$E$104,2,FALSE)) -> Gobernanza e influencia local, regional e internacional | M134: =IF(ISERROR(VLOOKUP(K134,Eje_Pilar_Prop!$C$2:$E$104,3,FALSE))," ",VLOOKUP(K134,Eje_Pilar_Prop!$C$2:$E$104,3,FALSE)) -> Eje Transversal 4 Gobierno Legitimo, Fortalecimiento Local y Eficiencia | N134: 1395 | O134: 52863482 | P134: CLARA ELÍZABETH PACHON SALAZAR | Q134: 15905790 | T134: 0 | V134: 15905790 | W134: 15905790 | X134: 2020-07-30 | Y134: 2020-08-03 | Z134: 2020-12-02 | AA134: 120 | AK134: X | AL134: 1 | AM134: 2 | AN134: Contratos de prestación de servicios profesionales y de apoyo a la gestión | AO134: Contratación directa | AP134: =IF(ISBLANK(G134),1,IFERROR(VLOOKUP(G134,Tipo!$C$12:$C$27,1,FALSE),"NO")) -> Prestación de servicios profesionales y de apoyo a la gestión, o para la ejecución de trabajos artísticos que sólo puedan encomendarse a determinadas personas naturales; | AQ134: Inversión | AR134: =IF(ISBLANK(K134),1,IFERROR(VLOOKUP(K134,Eje_Pilar_Prop!C115:C216,1,FALSE),"NO")) -> NO | AS134: SECOP II | AT134: 1 | AU134: Bogotá Mejor para Todos
A135: 127 | B135: 2020 | C135: SECOP II | D135: FDLC-CPS-127-2020 | E135: Contratos de prestación de servicios profesionales y de apoyo a la gestión | F135: Contratación directa | G135: Prestación de servicios profesionales y de apoyo a la gestión, o para la ejecución de trabajos artísticos que sólo puedan encomendarse a determinadas personas naturales; | H135: APOYAR TÉCNICAMENTE A LOS RESPONSABLES E INTEGRANTES DE LOS PROCESOS EN LA IMPLEMENTACIÓN DE HERRAMIENTAS DE GESTIÓN, SIGUIENDO LOS LINEAMIENTOS METODOLÓGICOS ESTABLECIDOS POR LA OFICINA ASESORA DE PLANEACIÓN DE LA SECRETARÍA DISTRITAL DE GOBIERNO | I135: Inversión | J135: Bogotá Mejor para Todos | K135: 45 | L135: =IF(ISERROR(VLOOKUP(K135,Eje_Pilar_Prop!$C$2:$E$104,2,FALSE))," ",VLOOKUP(K135,Eje_Pilar_Prop!$C$2:$E$104,2,FALSE)) -> Gobernanza e influencia local, regional e internacional | M135: =IF(ISERROR(VLOOKUP(K135,Eje_Pilar_Prop!$C$2:$E$104,3,FALSE))," ",VLOOKUP(K135,Eje_Pilar_Prop!$C$2:$E$104,3,FALSE)) -> Eje Transversal 4 Gobierno Legitimo, Fortalecimiento Local y Eficiencia | N135: 1395 | O135: 1026266066 | P135: KATHERIN JOHANA MORENO CASTAÑEDA | Q135: 16818704 | T135: 0 | V135: 16818704 | W135: 16818704 | X135: 2020-07-30 | Y135: 2020-07-31 | Z135: 2020-11-30 | AA135: 120 | AK135: X | AL135: 1 | AM135: 2 | AN135: Contratos de prestación de servicios profesionales y de apoyo a la gestión | AO135: Contratación directa | AP135: =IF(ISBLANK(G135),1,IFERROR(VLOOKUP(G135,Tipo!$C$12:$C$27,1,FALSE),"NO")) -> Prestación de servicios profesionales y de apoyo a la gestión, o para la ejecución de trabajos artísticos que sólo puedan encomendarse a determinadas personas naturales; | AQ135: Inversión | AR135: =IF(ISBLANK(K135),1,IFERROR(VLOOKUP(K135,Eje_Pilar_Prop!C116:C217,1,FALSE),"NO")) -> NO | AS135: SECOP II | AT135: 1 | AU135: Bogotá Mejor para Todos
A136: 128 | B136: 2020 | C136: SECOP II | D136: FDLC-CPS-128-2020 | E136: Contratos de prestación de servicios profesionales y de apoyo a la gestión | F136: Contratación directa | G136: Prestación de servicios profesionales y de apoyo a la gestión, o para la ejecución de trabajos artísticos que sólo puedan encomendarse a determinadas personas naturales; | H136: PRESTACIÓN DE SERVICIOS PROFESIONALES EN EL ÁREA DE GESTIÓN DEL DESARROLLO LOCAL DE LA ALCAL DIA LOCAL DE LA CANDELARIA, EN EL ACOMPAÑAMIENTO JURÍDICO A LA FORMULACIÓN, EJECUCIÓN, SEGUIMIENTO Y EVALUACIÓN JURÍDICA DE LAS POLITICAS, PLANES, PROGRAMAS Y PROYECTOS, PARA LOGRAR EL CUMPLIMIENTO DE LAS METAS DEL PLAN DE DESARROLLO LOCAL | I136: Inversión | J136: Bogotá Mejor para Todos | K136: 45 | L136: =IF(ISERROR(VLOOKUP(K136,Eje_Pilar_Prop!$C$2:$E$104,2,FALSE))," ",VLOOKUP(K136,Eje_Pilar_Prop!$C$2:$E$104,2,FALSE)) -> Gobernanza e influencia local, regional e internacional | M136: =IF(ISERROR(VLOOKUP(K136,Eje_Pilar_Prop!$C$2:$E$104,3,FALSE))," ",VLOOKUP(K136,Eje_Pilar_Prop!$C$2:$E$104,3,FALSE)) -> Eje Transversal 4 Gobierno Legitimo, Fortalecimiento Local y Eficiencia | N136: 1395 | O136: 797533637 | P136: FABIAN ALFONSO BELNAVIS BARREIRO | Q136: 16134016 | T136: 0 | V136: 16134016 | W136: 10890460 | X136: 2020-07-30 | Y136: 2020-08-10 | Z136: 2020-12-09 | AA136: 120 | AJ136: X | AL136: 0.6749999504 | AM136: 2 | AN136: Contratos de prestación de servicios profesionales y de apoyo a la gestión | AO136: Contratación directa | AP136: =IF(ISBLANK(G136),1,IFERROR(VLOOKUP(G136,Tipo!$C$12:$C$27,1,FALSE),"NO")) -> Prestación de servicios profesionales y de apoyo a la gestión, o para la ejecución de trabajos artísticos que sólo puedan encomendarse a determinadas personas naturales; | AQ136: Inversión | AR136: =IF(ISBLANK(K136),1,IFERROR(VLOOKUP(K136,Eje_Pilar_Prop!C117:C218,1,FALSE),"NO")) -> NO | AS136: SECOP II | AT136: 1 | AU136: Bogotá Mejor para Todos
A137: 129 | B137: 2020 | C137: SECOP II | D137: FDLC-CPS-129-2020 | E137: Contratos de prestación de servicios profesionales y de apoyo a la gestión | F137: Contratación directa | G137: Prestación de servicios profesionales y de apoyo a la gestión, o para la ejecución de trabajos artísticos que sólo puedan encomendarse a determinadas personas naturales; | H137: PRESTACIÓN DE SERVICIOS DE APOYO TÉCNICO EN LA ADMINISTRACIÓN DE LAS CASAS COMUNITARIAS DE LA LOCALIDAD DE LA CANDELARIA DE CONFORMIDAD CON EL ACUERDO LOCAL 006 DE 2013 | I137: Inversión | J137: Bogotá Mejor para Todos | K137: 45 | L137: =IF(ISERROR(VLOOKUP(K137,Eje_Pilar_Prop!$C$2:$E$104,2,FALSE))," ",VLOOKUP(K137,Eje_Pilar_Prop!$C$2:$E$104,2,FALSE)) -> Gobernanza e influencia local, regional e internacional | M137: =IF(ISERROR(VLOOKUP(K137,Eje_Pilar_Prop!$C$2:$E$104,3,FALSE))," ",VLOOKUP(K137,Eje_Pilar_Prop!$C$2:$E$104,3,FALSE)) -> Eje Transversal 4 Gobierno Legitimo, Fortalecimiento Local y Eficiencia | N137: 1395 | O137: 41503480 | P137: AURA ALICIA ZAMBRANO LOPEZ | Q137: 11587000 | T137: 1 | U137: 2510516 | V137: 14097516 | W137: 11200767 | X137: 2020-08-04 | Y137: 2020-08-05 | Z137: 2020-12-30 | AA137: 120 | AB137: 1 | AC137: 26 | AJ137: X | AL137: 0.7945206092 | AM137: 2 | AN137: Contratos de prestación de servicios profesionales y de apoyo a la gestión | AO137: Contratación directa | AP137: =IF(ISBLANK(G137),1,IFERROR(VLOOKUP(G137,Tipo!$C$12:$C$27,1,FALSE),"NO")) -> Prestación de servicios profesionales y de apoyo a la gestión, o para la ejecución de trabajos artísticos que sólo puedan encomendarse a determinadas personas naturales; | AQ137: Inversión | AR137: =IF(ISBLANK(K137),1,IFERROR(VLOOKUP(K137,Eje_Pilar_Prop!C118:C219,1,FALSE),"NO")) -> NO | AS137: SECOP II | AT137: 1 | AU137: Bogotá Mejor para Todos
A138: 130 | B138: 2020 | C138: SECOP II | D138: FDLC-CPS-130-2020 | E138: Contratos de prestación de servicios profesionales y de apoyo a la gestión | F138: Contratación directa | G138: Prestación de servicios profesionales y de apoyo a la gestión, o para la ejecución de trabajos artísticos que sólo puedan encomendarse a determinadas personas naturales; | H138: PRESTACIÓN DE SERVICIOS PROFESIONALES PARA APOYAR Y FORTALECER EL ÁREA DE GESTIÓN DEL DESARROLLO DEL FONDO DE DESARROLLO LOCAL EN LAS GESTIONES ADMINISTRATIVAS Y FINANCIERAS DE LA ENTIDAD EN MATERIA DE CONTABILIDAD | I138: Inversión | J138: Bogotá Mejor para Todos | K138: 45 | L138: =IF(ISERROR(VLOOKUP(K138,Eje_Pilar_Prop!$C$2:$E$104,2,FALSE))," ",VLOOKUP(K138,Eje_Pilar_Prop!$C$2:$E$104,2,FALSE)) -> Gobernanza e influencia local, regional e internacional | M138: =IF(ISERROR(VLOOKUP(K138,Eje_Pilar_Prop!$C$2:$E$104,3,FALSE))," ",VLOOKUP(K138,Eje_Pilar_Prop!$C$2:$E$104,3,FALSE)) -> Eje Transversal 4 Gobierno Legitimo, Fortalecimiento Local y Eficiencia | N138: 1395 | O138: 52520044 | P138: PAOLA ANDREA OYUELA VARGAS | Q138: 16362240 | T138: 2 | U138: 7635712 | V138: 23997952 | W138: 19907392 | X138: 2020-08-05 | Y138: 2020-08-05 | Z138: 2021-01-30 | AA138: 120 | AB138: 2 | AC138: 56 | AJ138: X | AL138: 0.8295454545 | AM138: 2 | AN138: Contratos de prestación de servicios profesionales y de apoyo a la gestión | AO138: Contratación directa | AP138: =IF(ISBLANK(G138),1,IFERROR(VLOOKUP(G138,Tipo!$C$12:$C$27,1,FALSE),"NO")) -> Prestación de servicios profesionales y de apoyo a la gestión, o para la ejecución de trabajos artísticos que sólo puedan encomendarse a determinadas personas naturales; | AQ138: Inversión | AR138: =IF(ISBLANK(K138),1,IFERROR(VLOOKUP(K138,Eje_Pilar_Prop!C119:C220,1,FALSE),"NO")) -> NO | AS138: SECOP II | AT138: 1 | AU138: Bogotá Mejor para Todos
A139: 131 | B139: 2020 | C139: SECOP II | D139: FDLC-CPS-131-2020 | E139: Contratos de prestación de servicios profesionales y de apoyo a la gestión | F139: Contratación directa | G139: Prestación de servicios profesionales y de apoyo a la gestión, o para la ejecución de trabajos artísticos que sólo puedan encomendarse a determinadas personas naturales; | H139: PRESTAR SUS SERVICIOS PARA APOYAR EN LAS TAREAS OPERATIVAS DE CARÁCTER ARCHIVÍSTICO DESARROLLADAS EN LA ALCALDÍA LOCAL PARA GARANTIZAR LA APLICACIÓN CORRECTA DE LOS PROCEDIMIENTOS TÉCNICOS | I139: Inversión | J139: Bogotá Mejor para Todos | K139: 45 | L139: =IF(ISERROR(VLOOKUP(K139,Eje_Pilar_Prop!$C$2:$E$104,2,FALSE))," ",VLOOKUP(K139,Eje_Pilar_Prop!$C$2:$E$104,2,FALSE)) -> Gobernanza e influencia local, regional e internacional | M139: =IF(ISERROR(VLOOKUP(K139,Eje_Pilar_Prop!$C$2:$E$104,3,FALSE))," ",VLOOKUP(K139,Eje_Pilar_Prop!$C$2:$E$104,3,FALSE)) -> Eje Transversal 4 Gobierno Legitimo, Fortalecimiento Local y Eficiencia | N139: 1395 | O139: 1010175770 | P139: TEOFILO LEONARDO RAMIREZ HERNANDEZ | Q139: 12517468 | T139: 2 | U139: 6258734 | V139: 18776202 | W139: 15229580 | X139: 2020-08-05 | Y139: 2020-08-05 | Z139: 2021-02-04 | AA139: 120 | AB139: 2 | AC139: 60 | AJ139: X | AL139: 0.811110788 | AM139: 2 | AN139: Contratos de prestación de servicios profesionales y de apoyo a la gestión | AO139: Contratación directa | AP139: =IF(ISBLANK(G139),1,IFERROR(VLOOKUP(G139,Tipo!$C$12:$C$27,1,FALSE),"NO")) -> Prestación de servicios profesionales y de apoyo a la gestión, o para la ejecución de trabajos artísticos que sólo puedan encomendarse a determinadas personas naturales; | AQ139: Inversión | AR139: =IF(ISBLANK(K139),1,IFERROR(VLOOKUP(K139,Eje_Pilar_Prop!C120:C221,1,FALSE),"NO")) -> NO | AS139: SECOP II | AT139: 1 | AU139: Bogotá Mejor para Todos
A140: 132 | B140: 2020 | C140: SECOP II | D140: FDLC-CPS-132-2020 | E140: Contratos de prestación de servicios profesionales y de apoyo a la gestión | F140: Contratación directa | G140: Prestación de servicios profesionales y de apoyo a la gestión, o para la ejecución de trabajos artísticos que sólo puedan encomendarse a determinadas personas naturales; | H140: APOYAR AL ALCALDE LOCAL EN LA FORMULACIÓN, SEGUIMIENTO E IMPLEMENTACIÓN DE LA ESTRATEGIA LOCAL PARA LA TERMINACIÓN JURÍDICA DE LAS ACTUACIONES ADMINISTRATIVAS QUE CURSAN EN LA ALCALDÍA LOCAL | I140: Inversión | J140: Bogotá Mejor para Todos | K140: 45 | L140: =IF(ISERROR(VLOOKUP(K140,Eje_Pilar_Prop!$C$2:$E$104,2,FALSE))," ",VLOOKUP(K140,Eje_Pilar_Prop!$C$2:$E$104,2,FALSE)) -> Gobernanza e influencia local, regional e internacional | M140: =IF(ISERROR(VLOOKUP(K140,Eje_Pilar_Prop!$C$2:$E$104,3,FALSE))," ",VLOOKUP(K140,Eje_Pilar_Prop!$C$2:$E$104,3,FALSE)) -> Eje Transversal 4 Gobierno Legitimo, Fortalecimiento Local y Eficiencia | N140: 1395 | O140: 1032356337 | P140: ANDRES FERNANDO RIVERA SOLINA | Q140: 26334088 | T140: 1 | U140: 10533635 | V140: 36867723 | W140: 30284201 | X140: 2020-08-13 | Y140: 2020-08-13 | Z140: 2021-01-29 | AA140: 120 | AB140: 1 | AC140: 48 | AJ140: X | AL140: 0.8214285705 | AM140: 2 | AN140: Contratos de prestación de servicios profesionales y de apoyo a la gestión | AO140: Contratación directa | AP140: =IF(ISBLANK(G140),1,IFERROR(VLOOKUP(G140,Tipo!$C$12:$C$27,1,FALSE),"NO")) -> Prestación de servicios profesionales y de apoyo a la gestión, o para la ejecución de trabajos artísticos que sólo puedan encomendarse a determinadas personas naturales; | AQ140: Inversión | AR140: =IF(ISBLANK(K140),1,IFERROR(VLOOKUP(K140,Eje_Pilar_Prop!C121:C222,1,FALSE),"NO")) -> NO | AS140: SECOP II | AT140: 1 | AU140: Bogotá Mejor para Todos
A141: 133 | B141: 2020 | C141: SECOP II | D141: FDLC-CPS-133-2020 | E141: Contratos de prestación de servicios profesionales y de apoyo a la gestión | F141: Contratación directa | G141: Prestación de servicios profesionales y de apoyo a la gestión, o para la ejecución de trabajos artísticos que sólo puedan encomendarse a determinadas personas naturales; | H141: PRESTACIÓN DE SERVICIOS DE APOYO PROFESIONAL ÁL ÁREA DE GESTIÓN DEL DESARROLLO EN TEMAS RELACIONADOS CON PLANEACIÓN, PARA LA PRESENTACIÓN Y SEGUIMIENTO DE LOS PROYECTOS ENCAMINADOS A LA GESTIÓN DE RIESGOS Y CAMBIO CLIMÁTICO, ASI COMO BRINDAR APOYO A DICHO COMITÉ. | I141: Inversión | J141: Bogotá Mejor para Todos | K141: 45 | L141: =IF(ISERROR(VLOOKUP(K141,Eje_Pilar_Prop!$C$2:$E$104,2,FALSE))," ",VLOOKUP(K141,Eje_Pilar_Prop!$C$2:$E$104,2,FALSE)) -> Gobernanza e influencia local, regional e internacional | M141: =IF(ISERROR(VLOOKUP(K141,Eje_Pilar_Prop!$C$2:$E$104,3,FALSE))," ",VLOOKUP(K141,Eje_Pilar_Prop!$C$2:$E$104,3,FALSE)) -> Eje Transversal 4 Gobierno Legitimo, Fortalecimiento Local y Eficiencia | N141: 1395 | O141: 80826902 | P141: DIEGO CAMILO PLAZAS OLAYA CESION A JUAN PABLO LEAL BERNAL | Q141: 19978796 | T141: 0 | V141: 19978796 | W141: 11154827 | X141: 2020-08-10 | Y141: 2020-08-14 | Z141: 2020-12-13 | AA141: 120 | AD141: 79950957 | AE141: JUAN PABLO LEAL BERNAL, | AF141: 2020-10-21 | AG141: 8823968 | AJ141: X | AL141: 0.558333295 | AM141: 2 | AN141: Contratos de prestación de servicios profesionales y de apoyo a la gestión | AO141: Contratación directa | AP141: =IF(ISBLANK(G141),1,IFERROR(VLOOKUP(G141,Tipo!$C$12:$C$27,1,FALSE),"NO")) -> Prestación de servicios profesionales y de apoyo a la gestión, o para la ejecución de trabajos artísticos que sólo puedan encomendarse a determinadas personas naturales; | AQ141: Inversión | AR141: =IF(ISBLANK(K141),1,IFERROR(VLOOKUP(K141,Eje_Pilar_Prop!C122:C223,1,FALSE),"NO")) -> NO | AS141: SECOP II | AT141: 1 | AU141: Bogotá Mejor para Todos
A142: 134 | B142: 2020 | C142: SECOP II | D142: FDLC-CPS-134-2020 | E142: Contratos de prestación de servicios profesionales y de apoyo a la gestión | F142: Contratación directa | G142: Prestación de servicios profesionales y de apoyo a la gestión, o para la ejecución de trabajos artísticos que sólo puedan encomendarse a determinadas personas naturales; | H142: PRESTACIÓN DE SERVICIOS PROFESIONALES AL FONDO DE DESARROLLO LOCAL DE LA CANDELARIA, EN LOS TRÁMITES RELACIONADOS CON LOS PROCESOS PRECONTRACTUALES, CONTRACTUALES Y POS CONTRACTUALES Y EN LAS DEMÁS ACTIVIDADES QUE ALLÍ SE REQUIERAN, DE CONFORMIDAD CON LOS ESTUDIOS PREVIOS | I142: Inversión | J142: Bogotá Mejor para Todos | K142: 45 | L142: =IF(ISERROR(VLOOKUP(K142,Eje_Pilar_Prop!$C$2:$E$104,2,FALSE))," ",VLOOKUP(K142,Eje_Pilar_Prop!$C$2:$E$104,2,FALSE)) -> Gobernanza e influencia local, regional e internacional | M142: =IF(ISERROR(VLOOKUP(K142,Eje_Pilar_Prop!$C$2:$E$104,3,FALSE))," ",VLOOKUP(K142,Eje_Pilar_Prop!$C$2:$E$104,3,FALSE)) -> Eje Transversal 4 Gobierno Legitimo, Fortalecimiento Local y Eficiencia | N142: 1395 | O142: 1049611013 | P142: JAIRO ALONSO VIASUS HIGUERA | Q142: 16134016 | T142: 0 | V142: 16134016 | W142: 13579463 | X142: 2020-08-10 | Y142: 2020-08-20 | Z142: 2020-12-19 | AA142: 120 | AJ142: X | AL142: 0.8416666377 | AM142: 2 | AN142: Contratos de prestación de servicios profesionales y de apoyo a la gestión | AO142: Contratación directa | AP142: =IF(ISBLANK(G142),1,IFERROR(VLOOKUP(G142,Tipo!$C$12:$C$27,1,FALSE),"NO")) -> Prestación de servicios profesionales y de apoyo a la gestión, o para la ejecución de trabajos artísticos que sólo puedan encomendarse a determinadas personas naturales; | AQ142: Inversión | AR142: =IF(ISBLANK(K142),1,IFERROR(VLOOKUP(K142,Eje_Pilar_Prop!C123:C224,1,FALSE),"NO")) -> NO | AS142: SECOP II | AT142: 1 | AU142: Bogotá Mejor para Todos
A143: 135 | B143: 2020 | C143: SECOP II | D143: FDLC-CPS-135-2020 | E143: Contratos de prestación de servicios profesionales y de apoyo a la gestión | F143: Contratación directa | G143: Prestación de servicios profesionales y de apoyo a la gestión, o para la ejecución de trabajos artísticos que sólo puedan encomendarse a determinadas personas naturales; | H143: PRESTACIÓN DE SERVICIOS PROFESIONALES AL ÁREA DE GESTIÓN DE DESARROLLO LOCAL DE LA ALCALDÍA LOCAL PARA EL SEGUIMIENTO E IMPLEMENTACIÓN DE LAS MEDIDAS ESTABLECIDAS Y QUE SE ESTABLEZCAN POR PARTE DEL GOBIERNO NACIONAL Y DISTRITAL EN RELACIÓN CON LA REACTIVACION ECONOMICA EN LA LOCALIDAD | I143: Inversión | J143: Bogotá Mejor para Todos | K143: 45 | L143: =IF(ISERROR(VLOOKUP(K143,Eje_Pilar_Prop!$C$2:$E$104,2,FALSE))," ",VLOOKUP(K143,Eje_Pilar_Prop!$C$2:$E$104,2,FALSE)) -> Gobernanza e influencia local, regional e internacional | M143: =IF(ISERROR(VLOOKUP(K143,Eje_Pilar_Prop!$C$2:$E$104,3,FALSE))," ",VLOOKUP(K143,Eje_Pilar_Prop!$C$2:$E$104,3,FALSE)) -> Eje Transversal 4 Gobierno Legitimo, Fortalecimiento Local y Eficiencia | N143: 1395 | O143: 80236435 | P143: JORGE ELIECER GARCÍA NEVA | Q143: 16362244 | T143: 2 | U143: 6408545 | V143: 22770789 | W143: 18680228 | X143: 2020-08-14 | Y143: 2020-08-14 | Z143: 2021-01-30 | AA143: 120 | AB143: 2 | AC143: 47 | AJ143: X | AL143: 0.820359277 | AM143: 2 | AN143: Contratos de prestación de servicios profesionales y de apoyo a la gestión | AO143: Contratación directa | AP143: =IF(ISBLANK(G143),1,IFERROR(VLOOKUP(G143,Tipo!$C$12:$C$27,1,FALSE),"NO")) -> Prestación de servicios profesionales y de apoyo a la gestión, o para la ejecución de trabajos artísticos que sólo puedan encomendarse a determinadas personas naturales; | AQ143: Inversión | AR143: =IF(ISBLANK(K143),1,IFERROR(VLOOKUP(K143,Eje_Pilar_Prop!C124:C225,1,FALSE),"NO")) -> NO | AS143: SECOP II | AT143: 1 | AU143: =IF(ISBLANK(J143),1,IFERROR(VLOOKUP(J143,pdd,1,FALSE),"NO")) -> Bogotá Mejor para Todos
A144: 136 | B144: 2020 | C144: SECOP II | D144: FDLC-CPS-136-2020 | E144: Contratos de prestación de servicios profesionales y de apoyo a la gestión | F144: Contratación directa | G144: Prestación de servicios profesionales y de apoyo a la gestión, o para la ejecución de trabajos artísticos que sólo puedan encomendarse a determinadas personas naturales; | H144: PRESTACIÓN DE SERVICIOS PROFESIONALES PARA APOYAR A LA ALCALDESA LOCAL EN EL FORTALECIMIENTO E INCLUSIÓN DE LAS COMUNIDADES NEGRAS, AFROCOLOMBIANAS Y PALENQUERAS EN EL MARCO DE LA POLÍTICA PÚBLICA DISTRITAL RELACIONADA CON AFRODESCENDIENTES Y ESPACIOS DE PARTICIPACIÓN. | I144: Inversión | J144: Bogotá Mejor para Todos | K144: 45 | L144: =IF(ISERROR(VLOOKUP(K144,Eje_Pilar_Prop!$C$2:$E$104,2,FALSE))," ",VLOOKUP(K144,Eje_Pilar_Prop!$C$2:$E$104,2,FALSE)) -> Gobernanza e influencia local, regional e internacional | M144: =IF(ISERROR(VLOOKUP(K144,Eje_Pilar_Prop!$C$2:$E$104,3,FALSE))," ",VLOOKUP(K144,Eje_Pilar_Prop!$C$2:$E$104,3,FALSE)) -> Eje Transversal 4 Gobierno Legitimo, Fortalecimiento Local y Eficiencia | N144: 1395 | O144: 1131185112 | P144: SAMIRA ROMAÑA CUESTA | Q144: 16362248 | T144: 0 | V144: 16362248 | W144: 14415671 | X144: 2020-08-14 | Y144: 2020-08-14 | Z144: 2020-12-13 | AA144: 120 | AJ144: X | AL144: 0.8810324229 | AM144: 3 | AN144: Contratos de prestación de servicios profesionales y de apoyo a la gestión | AO144: Contratación directa | AP144: =IF(ISBLANK(G144),1,IFERROR(VLOOKUP(G144,Tipo!$C$12:$C$27,1,FALSE),"NO")) -> Prestación de servicios profesionales y de apoyo a la gestión, o para la ejecución de trabajos artísticos que sólo puedan encomendarse a determinadas personas naturales; | AQ144: Inversión | AR144: =IF(ISBLANK(K144),1,IFERROR(VLOOKUP(K144,Eje_Pilar_Prop!C125:C226,1,FALSE),"NO")) -> NO | AS144: SECOP II | AT144: 1 | AU144: Bogotá Mejor para Todos
A145: 137 | B145: 2020 | C145: SECOP II | D145: FDLC-CPS-137-2020 | E145: Contratos de prestación de servicios profesionales y de apoyo a la gestión | F145: Contratación directa | G145: Prestación de servicios profesionales y de apoyo a la gestión, o para la ejecución de trabajos artísticos que sólo puedan encomendarse a determinadas personas naturales; | H145: PRESTACIÓN DE SERVICIOS PROFESIONALES PARA APOYAR AL ÁREA DE GESTIÓN DEL DESARROLLO LOCAL EN LA FORMULACION, PRESENTACIÓN, EVALUACION Y SEGUIMIENTO DE LOS PROYECTOS SOCIALES Y DE SALUD EN LA LOCALIDAD Y DE COMPETENCIA DEL FONDO DE DESARROLLO LOCAL LA CANDELARIA. | I145: Inversión | J145: Bogotá Mejor para Todos | K145: 45 | L145: =IF(ISERROR(VLOOKUP(K145,Eje_Pilar_Prop!$C$2:$E$104,2,FALSE))," ",VLOOKUP(K145,Eje_Pilar_Prop!$C$2:$E$104,2,FALSE)) -> Gobernanza e influencia local, regional e internacional | M145: =IF(ISERROR(VLOOKUP(K145,Eje_Pilar_Prop!$C$2:$E$104,3,FALSE))," ",VLOOKUP(K145,Eje_Pilar_Prop!$C$2:$E$104,3,FALSE)) -> Eje Transversal 4 Gobierno Legitimo, Fortalecimiento Local y Eficiencia | N145: 1395 | O145: 1098688455 | P145: SERGIO ALEJANDRO CORDOBA MORENO CESION A CLARA MILENA MONTENEGRO CARDENAS | Q145: 18398720 | T145: 0 | V145: 18398720 | W145: 14412330 | X145: 2020-08-18 | Y145: 2020-08-20 | Z145: 2020-12-19 | AA145: 120 | AD145: 52516340 | AE145: CLARA MILENA MONTENEGRO CARDENAS, | AF145: 2020-11-02 | AG145: 3986389 | AJ145: X | AL145: 0.7833332971 | AM145: 2 | AN145: Contratos de prestación de servicios profesionales y de apoyo a la gestión | AO145: Contratación directa | AP145: =IF(ISBLANK(G145),1,IFERROR(VLOOKUP(G145,Tipo!$C$12:$C$27,1,FALSE),"NO")) -> Prestación de servicios profesionales y de apoyo a la gestión, o para la ejecución de trabajos artísticos que sólo puedan encomendarse a determinadas personas naturales; | AQ145: Inversión | AR145: =IF(ISBLANK(K145),1,IFERROR(VLOOKUP(K145,Eje_Pilar_Prop!C126:C227,1,FALSE),"NO")) -> NO | AS145: SECOP II | AT145: 1 | AU145: Bogotá Mejor para Todos
A146: 138 | B146: 2020 | C146: SECOP II | D146: FDLC-CPS-138-2020 | E146: Contratos de prestación de servicios profesionales y de apoyo a la gestión | F146: Contratación directa | G146: Prestación de servicios profesionales y de apoyo a la gestión, o para la ejecución de trabajos artísticos que sólo puedan encomendarse a determinadas personas naturales; | H146: PRESTAR SUS SERVICIOS PROFESIONALES EN LA PROMOCIÓN, ACOMPAÑAMIENTO Y ATENCIÓN EN LAS INSTANCIAS DE PARTICIPACIÓN, ASÍ COMO LOS PROCESOS COMUNITARIOS EN LA LOCALIDAD LA CANDELARIA | I146: Inversión | J146: Bogotá Mejor para Todos | K146: 45 | L146: =IF(ISERROR(VLOOKUP(K146,Eje_Pilar_Prop!$C$2:$E$104,2,FALSE))," ",VLOOKUP(K146,Eje_Pilar_Prop!$C$2:$E$104,2,FALSE)) -> Gobernanza e influencia local, regional e internacional | M146: =IF(ISERROR(VLOOKUP(K146,Eje_Pilar_Prop!$C$2:$E$104,3,FALSE))," ",VLOOKUP(K146,Eje_Pilar_Prop!$C$2:$E$104,3,FALSE)) -> Eje Transversal 4 Gobierno Legitimo, Fortalecimiento Local y Eficiencia | N146: 1395 | O146: 80037360 | P146: JOHN JAIRO GONZALEZ ARBOLEDA | Q146: 12614028 | T146: 0 | V146: 12614028 | W146: 11625034 | X146: 2020-08-20 | Y146: 2020-08-20 | Z146: 2020-12-19 | AA146: 120 | AJ146: X | AL146: 0.9215957028 | AM146: 3 | AN146: Contratos de prestación de servicios profesionales y de apoyo a la gestión | AO146: Contratación directa | AP146: =IF(ISBLANK(G146),1,IFERROR(VLOOKUP(G146,Tipo!$C$12:$C$27,1,FALSE),"NO")) -> Prestación de servicios profesionales y de apoyo a la gestión, o para la ejecución de trabajos artísticos que sólo puedan encomendarse a determinadas personas naturales; | AQ146: Inversión | AR146: =IF(ISBLANK(K146),1,IFERROR(VLOOKUP(K146,Eje_Pilar_Prop!C127:C228,1,FALSE),"NO")) -> NO | AS146: SECOP II | AT146: 1 | AU146: Bogotá Mejor para Todos
A147: 139 | B147: 2020 | C147: SECOP II | D147: FDLC-CPS-139-2020 | E147: Contratos de prestación de servicios profesionales y de apoyo a la gestión | F147: Contratación directa | G147: Prestación de servicios profesionales y de apoyo a la gestión, o para la ejecución de trabajos artísticos que sólo puedan encomendarse a determinadas personas naturales; | H147: PRESTAR SERVICIOS DE APOYO ADMINISTRATIVO Y ASISTENCIAL AL ÁREA DE GESTIÓN DE DESARROLLO LOCAL, EN LOS PROCESOS DE COMPETENCIA DE LA OFICINA DE PLANEACIÓN DE LA ALCALDÍA LOCAL DE LA CANDELARIA | I147: Inversión | J147: Bogotá Mejor para Todos | K147: 45 | L147: =IF(ISERROR(VLOOKUP(K147,Eje_Pilar_Prop!$C$2:$E$104,2,FALSE))," ",VLOOKUP(K147,Eje_Pilar_Prop!$C$2:$E$104,2,FALSE)) -> Gobernanza e influencia local, regional e internacional | M147: =IF(ISERROR(VLOOKUP(K147,Eje_Pilar_Prop!$C$2:$E$104,3,FALSE))," ",VLOOKUP(K147,Eje_Pilar_Prop!$C$2:$E$104,3,FALSE)) -> Eje Transversal 4 Gobierno Legitimo, Fortalecimiento Local y Eficiencia | N147: 1395 | O147: 79984961 | P147: JOHN TIMBERLAKE OSORIO | Q147: 6729820 | T147: 0 | V147: 6729820 | W147: 6729820 | X147: 2020-08-20 | Y147: 2020-08-20 | Z147: 2020-12-19 | AA147: 120 | AK147: X | AL147: 1 | AM147: 2 | AN147: Contratos de prestación de servicios profesionales y de apoyo a la gestión | AO147: Contratación directa | AP147: =IF(ISBLANK(G147),1,IFERROR(VLOOKUP(G147,Tipo!$C$12:$C$27,1,FALSE),"NO")) -> Prestación de servicios profesionales y de apoyo a la gestión, o para la ejecución de trabajos artísticos que sólo puedan encomendarse a determinadas personas naturales; | AQ147: Inversión | AR147: =IF(ISBLANK(K147),1,IFERROR(VLOOKUP(K147,Eje_Pilar_Prop!C128:C229,1,FALSE),"NO")) -> NO | AS147: SECOP II | AT147: 1 | AU147: Bogotá Mejor para Todos
A148: 140 | B148: 2020 | C148: SECOP II | D148: FDLC-CPS-140-2020 | E148: Contratos de prestación de servicios profesionales y de apoyo a la gestión | F148: Contratación directa | G148: Prestación de servicios profesionales y de apoyo a la gestión, o para la ejecución de trabajos artísticos que sólo puedan encomendarse a determinadas personas naturales; | H148: APOYAR AL EQUIPO DE PRENSA Y COMUNICACIONES DE LA ALCALDÍA LOCAL EN LA REALIZACIÓN DE PRODUCTOS Y PIEZAS DIGITALES, IMPRESAS Y PUBLICITARIAS DE GRAN FORMATO Y DE ANIMACIÓN GRÁFICA, ASÍ COMO APOYAR LA PRODUCCIÓN Y MONTAJE DE EVENTOS | I148: Inversión | J148: Bogotá Mejor para Todos | K148: 45 | L148: =IF(ISERROR(VLOOKUP(K148,Eje_Pilar_Prop!$C$2:$E$104,2,FALSE))," ",VLOOKUP(K148,Eje_Pilar_Prop!$C$2:$E$104,2,FALSE)) -> Gobernanza e influencia local, regional e internacional | M148: =IF(ISERROR(VLOOKUP(K148,Eje_Pilar_Prop!$C$2:$E$104,3,FALSE))," ",VLOOKUP(K148,Eje_Pilar_Prop!$C$2:$E$104,3,FALSE)) -> Eje Transversal 4 Gobierno Legitimo, Fortalecimiento Local y Eficiencia | N148: 1395 | O148: 80258118 | P148: IVAN DAVID PINTO GONZALEZ | Q148: 16362248 | T148: 0 | V148: 16362248 | W148: 15315206 | X148: 2020-08-21 | Y148: 2020-08-22 | Z148: 2020-12-21 | AA148: 120 | AJ148: X | AL148: 0.9360086707 | AM148: 2 | AN148: Contratos de prestación de servicios profesionales y de apoyo a la gestión | AO148: Contratación directa | AP148: =IF(ISBLANK(G148),1,IFERROR(VLOOKUP(G148,Tipo!$C$12:$C$27,1,FALSE),"NO")) -> Prestación de servicios profesionales y de apoyo a la gestión, o para la ejecución de trabajos artísticos que sólo puedan encomendarse a determinadas personas naturales; | AQ148: Inversión | AR148: =IF(ISBLANK(K148),1,IFERROR(VLOOKUP(K148,Eje_Pilar_Prop!C129:C230,1,FALSE),"NO")) -> NO | AS148: SECOP II | AT148: 1 | AU148: Bogotá Mejor para Todos
A149: 141 | B149: 2020 | C149: SECOP II | D149: FDLC-CPS-141-2020 | E149: Contratos de prestación de servicios profesionales y de apoyo a la gestión | F149: Contratación directa | G149: Prestación de servicios profesionales y de apoyo a la gestión, o para la ejecución de trabajos artísticos que sólo puedan encomendarse a determinadas personas naturales; | H149: PRESTACIÓN DE SERVICIOS PROFESIONALES PARA APOYAR LA GESTIÓN DEL ÁREA DE GESTIÓN DEL DESARROLLO LOCAL EN LA FORMULACION, PRESENTACIÓN, EVALUACION Y SEGUIMIENTO DE LOS PROYECTOS DE GESTION ARTÍSTICA Y CULTURAL DE LOS TERRITORIOS Y APOYAR EN GENERAL TODOS LOS PROCESOS DE GESTIONES CULTURALES EN LA LOCALIDAD Y DE COMPETENCIA DEL FONDO DE DESARROLLO LOCAL LA CANDELARIA | I149: Inversión | J149: Bogotá Mejor para Todos | K149: 45 | L149: =IF(ISERROR(VLOOKUP(K149,Eje_Pilar_Prop!$C$2:$E$104,2,FALSE))," ",VLOOKUP(K149,Eje_Pilar_Prop!$C$2:$E$104,2,FALSE)) -> Gobernanza e influencia local, regional e internacional | M149: =IF(ISERROR(VLOOKUP(K149,Eje_Pilar_Prop!$C$2:$E$104,3,FALSE))," ",VLOOKUP(K149,Eje_Pilar_Prop!$C$2:$E$104,3,FALSE)) -> Eje Transversal 4 Gobierno Legitimo, Fortalecimiento Local y Eficiencia | N149: 1395 | O149: 1026557848 | P149: LAURA ANDREA DAZA OCAMPO CESION A WILSONVALENCIA ARIZA | Q149: 18398720 | T149: 1 | U149: 6132907 | V149: 24531627 | W149: 14259006 | X149: 2020-08-21 | Y149: 2020-08-22 | Z149: 2021-01-30 | AA149: 120 | AB149: 1 | AC149: 40 | AD149: 79670761 | AE149: WILSON VALENCIA ARIZA, | AF149: 2020-08-28 | AG149: 17325461 | AJ149: X | AL149: 0.5812499106 | AM149: 2 | AN149: Contratos de prestación de servicios profesionales y de apoyo a la gestión | AO149: Contratación directa | AP149: =IF(ISBLANK(G149),1,IFERROR(VLOOKUP(G149,Tipo!$C$12:$C$27,1,FALSE),"NO")) -> Prestación de servicios profesionales y de apoyo a la gestión, o para la ejecución de trabajos artísticos que sólo puedan encomendarse a determinadas personas naturales; | AQ149: Inversión | AR149: =IF(ISBLANK(K149),1,IFERROR(VLOOKUP(K149,Eje_Pilar_Prop!C130:C231,1,FALSE),"NO")) -> NO | AS149: SECOP II | AT149: 1 | AU149: Bogotá Mejor para Todos
A150: 142 | B150: 2020 | C150: SECOP II | D150: FDLC-CPS-142-2020 | E150: Contratos de prestación de servicios profesionales y de apoyo a la gestión | F150: Contratación directa | G150: Prestación de servicios profesionales y de apoyo a la gestión, o para la ejecución de trabajos artísticos que sólo puedan encomendarse a determinadas personas naturales; | H150: APOYAR AL EQUIPO DE PRENSA Y COMUNICACIONES DE LA ALCALDÍA LOCAL EN LA REALIZACIÓN Y PUBLICACIÓN DE CONTENIDOS DE REDES SOCIALES Y CANALES DE DIVULGACIÓN DIGITAL (SITIO WEB) DE LA ALCALDÍA LOCAL. | I150: Inversión | J150: Bogotá Mejor para Todos | K150: 45 | L150: =IF(ISERROR(VLOOKUP(K150,Eje_Pilar_Prop!$C$2:$E$104,2,FALSE))," ",VLOOKUP(K150,Eje_Pilar_Prop!$C$2:$E$104,2,FALSE)) -> Gobernanza e influencia local, regional e internacional | M150: =IF(ISERROR(VLOOKUP(K150,Eje_Pilar_Prop!$C$2:$E$104,3,FALSE))," ",VLOOKUP(K150,Eje_Pilar_Prop!$C$2:$E$104,3,FALSE)) -> Eje Transversal 4 Gobierno Legitimo, Fortalecimiento Local y Eficiencia | N150: 1395 | O150: 1033731738 | P150: NATALIA ANDREA RUBIANO FORERO | Q150: 18398751 | T150: 1 | U150: 9199375 | V150: 27598126 | W150: 19931972 | X150: 2020-08-21 | Y150: 2020-08-22 | Z150: 2021-02-21 | AA150: 120 | AB150: 1 | AC150: 60 | AJ150: X | AL150: 0.7222219364 | AM150: 2 | AN150: Contratos de prestación de servicios profesionales y de apoyo a la gestión | AO150: Contratación directa | AP150: =IF(ISBLANK(G150),1,IFERROR(VLOOKUP(G150,Tipo!$C$12:$C$27,1,FALSE),"NO")) -> Prestación de servicios profesionales y de apoyo a la gestión, o para la ejecución de trabajos artísticos que sólo puedan encomendarse a determinadas personas naturales; | AQ150: Inversión | AR150: =IF(ISBLANK(K150),1,IFERROR(VLOOKUP(K150,Eje_Pilar_Prop!C131:C232,1,FALSE),"NO")) -> NO | AS150: =IF(ISBLANK(C150),1,IFERROR(VLOOKUP(C150,SECOP,1,FALSE),"NO")) -> SECOP II | AT150: 1 | AU150: Bogotá Mejor para Todos
A151: 143 | B151: 2020 | C151: SECOP II | D151: FDLC-CPS-143-2020 | E151: Contratos de prestación de servicios profesionales y de apoyo a la gestión | F151: Contratación directa | G151: Prestación de servicios profesionales y de apoyo a la gestión, o para la ejecución de trabajos artísticos que sólo puedan encomendarse a determinadas personas naturales; | H151: PRESTAR SERVICIOS DE APOYO EN LAS ACTIVIDADES DE SEGURIDAD Y CONVIVENCIA CIUDADANA, DE ACUERDO A LAS NECESIDADES Y ESTRATEGIAS EMANADAS POR EL ÁREA DE SEGURIDAD Y CONVIVENCIA DE LA ALCALDÍA LOCAL DE LA CANDELARIA | I151: Inversión | J151: Bogotá Mejor para Todos | K151: 19 | L151: =IF(ISERROR(VLOOKUP(K151,Eje_Pilar_Prop!$C$2:$E$104,2,FALSE))," ",VLOOKUP(K151,Eje_Pilar_Prop!$C$2:$E$104,2,FALSE)) -> Seguridad y convivencia para todos | M151: =IF(ISERROR(VLOOKUP(K151,Eje_Pilar_Prop!$C$2:$E$104,3,FALSE))," ",VLOOKUP(K151,Eje_Pilar_Prop!$C$2:$E$104,3,FALSE)) -> Pilar 3 Construcción de Comunidad y Cultura Ciudadana | N151: 1392 | O151: 52219688 | P151: ENIT QUIÑONES | Q151: 6000000 | T151: 1 | U151: 1850000 | V151: =+Q151+S151+U151 -> 7850000 | W151: 6400000 | X151: 2020-08-24 | Y151: 2020-08-24 | Z151: 2021-01-29 | AA151: 120 | AB151: 1 | AC151: 37 | AJ151: X | AL151: 0.8152866242 | AM151: 2 | AN151: Contratos de prestación de servicios profesionales y de apoyo a la gestión | AO151: Contratación directa | AP151: =IF(ISBLANK(G151),1,IFERROR(VLOOKUP(G151,Tipo!$C$12:$C$27,1,FALSE),"NO")) -> Prestación de servicios profesionales y de apoyo a la gestión, o para la ejecución de trabajos artísticos que sólo puedan encomendarse a determinadas personas naturales; | AQ151: Inversión | AR151: =IF(ISBLANK(K151),1,IFERROR(VLOOKUP(K151,Eje_Pilar_Prop!C132:C233,1,FALSE),"NO")) -> NO | AS151: SECOP II | AT151: 1 | AU151: Bogotá Mejor para Todos
A152: 144 | B152: 2020 | C152: SECOP II | D152: FDLC-CPS-144-2020 | E152: Contratos de prestación de servicios profesionales y de apoyo a la gestión | F152: Contratación directa | G152: Prestación de servicios profesionales y de apoyo a la gestión, o para la ejecución de trabajos artísticos que sólo puedan encomendarse a determinadas personas naturales; | H152: PRESTAR LOS SERVICIOS ADMINISTRATIVOS Y ASISTENCIALES AL ÁREA DE GESTIÓN POLICIVA DE LA ALCALDÍA LOCAL DE LA CANDELARIA EN LOS TEMAS DE COMPETENCIA DE LA OFICINA DE DESCONGESTIÓN OBRAS. | I152: Inversión | J152: Bogotá Mejor para Todos | K152: 45 | L152: =IF(ISERROR(VLOOKUP(K152,Eje_Pilar_Prop!$C$2:$E$104,2,FALSE))," ",VLOOKUP(K152,Eje_Pilar_Prop!$C$2:$E$104,2,FALSE)) -> Gobernanza e influencia local, regional e internacional | M152: =IF(ISERROR(VLOOKUP(K152,Eje_Pilar_Prop!$C$2:$E$104,3,FALSE))," ",VLOOKUP(K152,Eje_Pilar_Prop!$C$2:$E$104,3,FALSE)) -> Eje Transversal 4 Gobierno Legitimo, Fortalecimiento Local y Eficiencia | N152: 1395 | O152: 79907754 | P152: JUAN ANGEL LOPEZ ARDILA | Q152: 6729800 | T152: 0 | V152: =+Q152+S152+U152 -> 6729800 | W152: 6729800 | X152: 2020-08-21 | Y152: 2020-08-22 | Z152: 2020-12-21 | AA152: 120 | AK152: X | AL152: 1 | AM152: 2 | AN152: Contratos de prestación de servicios profesionales y de apoyo a la gestión | AO152: Contratación directa | AP152: =IF(ISBLANK(G152),1,IFERROR(VLOOKUP(G152,Tipo!$C$12:$C$27,1,FALSE),"NO")) -> Prestación de servicios profesionales y de apoyo a la gestión, o para la ejecución de trabajos artísticos que sólo puedan encomendarse a determinadas personas naturales; | AQ152: Inversión | AR152: =IF(ISBLANK(K152),1,IFERROR(VLOOKUP(K152,Eje_Pilar_Prop!C133:C234,1,FALSE),"NO")) -> NO | AS152: SECOP II | AT152: 1 | AU152: Bogotá Mejor para Todos
A153: 145 | B153: 2020 | C153: SECOP II | D153: FDLC-CPS-145-2020 | E153: Contratos de prestación de servicios profesionales y de apoyo a la gestión | F153: Contratación directa | G153: Prestación de servicios profesionales y de apoyo a la gestión, o para la ejecución de trabajos artísticos que sólo puedan encomendarse a determinadas personas naturales; | H153: PRESTAR SERVICIOS DE APOYO EN LAS ACTIVIDADES DE SEGURIDAD Y CONVIVENCIA CIUDADANA, DE ACUERDO A LAS NECESIDADES Y ESTRATEGIAS EMANADAS POR EL ÁREA DE SEGURIDAD Y CONVIVENCIA DE LA ALCALDIA LOCAL DE LA CANDELARIA | I153: Inversión | J153: Bogotá Mejor para Todos | K153: 19 | L153: =IF(ISERROR(VLOOKUP(K153,Eje_Pilar_Prop!$C$2:$E$104,2,FALSE))," ",VLOOKUP(K153,Eje_Pilar_Prop!$C$2:$E$104,2,FALSE)) -> Seguridad y convivencia para todos | M153: =IF(ISERROR(VLOOKUP(K153,Eje_Pilar_Prop!$C$2:$E$104,3,FALSE))," ",VLOOKUP(K153,Eje_Pilar_Prop!$C$2:$E$104,3,FALSE)) -> Pilar 3 Construcción de Comunidad y Cultura Ciudadana | N153: 1392 | O153: 39781586 | P153: ALEXI NORVEI OSORIO | Q153: 6000000 | T153: 1 | U153: 1850000 | V153: 7850000 | W153: 6400000 | X153: 2020-08-24 | Y153: 2020-08-24 | Z153: 2021-01-29 | AA153: 120 | AB153: 1 | AC153: 37 | AJ153: X | AL153: 0.8152866242 | AM153: 2 | AN153: =IF(ISBLANK(E153),1,IFERROR(VLOOKUP(E153,tipo,1,FALSE),"NO")) -> Contratos de prestación de servicios profesionales y de apoyo a la gestión | AO153: =IF(ISBLANK(F153),1,IFERROR(VLOOKUP(F153,modal,1,FALSE),"NO")) -> Contratación directa | AP153: =IF(ISBLANK(G153),1,IFERROR(VLOOKUP(G153,Tipo!$C$12:$C$27,1,FALSE),"NO")) -> Prestación de servicios profesionales y de apoyo a la gestión, o para la ejecución de trabajos artísticos que sólo puedan encomendarse a determinadas personas naturales; | AQ153: =IF(ISBLANK(I153),1,IFERROR(VLOOKUP(I153,afectacion,1,FALSE),"NO")) -> Inversión | AR153: =IF(ISBLANK(K153),1,IFERROR(VLOOKUP(K153,Eje_Pilar_Prop!C134:C235,1,FALSE),"NO")) -> NO | AS153: SECOP II | AT153: 1 | AU153: Bogotá Mejor para Todos
A154: 146 | B154: 2020 | C154: SECOP II | D154: FDLC-CPS-146-2020 | E154: Contratos de prestación de servicios profesionales y de apoyo a la gestión | F154: Contratación directa | G154: Prestación de servicios profesionales y de apoyo a la gestión, o para la ejecución de trabajos artísticos que sólo puedan encomendarse a determinadas personas naturales; | H154: PRESTAR SERVICIOS DE APOYO EN LAS ACTIVIDADES DE SEGURIDAD Y CONVIVENCIA CIUDADANA, DE ACUERDO A LAS NECESIDADES Y ESTRATEGIAS EMANADAS POR EL ÁREA DE SEGURIDAD Y CONVIVENCIA DE LA ALCALDÍA LOCAL DE LA CANDELARIA | I154: Inversión | J154: Bogotá Mejor para Todos | K154: 19 | L154: =IF(ISERROR(VLOOKUP(K154,Eje_Pilar_Prop!$C$2:$E$104,2,FALSE))," ",VLOOKUP(K154,Eje_Pilar_Prop!$C$2:$E$104,2,FALSE)) -> Seguridad y convivencia para todos | M154: =IF(ISERROR(VLOOKUP(K154,Eje_Pilar_Prop!$C$2:$E$104,3,FALSE))," ",VLOOKUP(K154,Eje_Pilar_Prop!$C$2:$E$104,3,FALSE)) -> Pilar 3 Construcción de Comunidad y Cultura Ciudadana | N154: 1392 | O154: 1000575536 | P154: JUAN CAMILO HERRERA FRANCO | Q154: 6000000 | T154: 0 | V154: 6000000 | W154: 4850000 | X154: 2020-08-24 | Y154: 2020-08-24 | Z154: 2020-12-23 | AA154: 120 | AJ154: X | AL154: 0.8083333333 | AM154: 2 | AN154: Contratos de prestación de servicios profesionales y de apoyo a la gestión | AO154: Contratación directa | AP154: =IF(ISBLANK(G154),1,IFERROR(VLOOKUP(G154,Tipo!$C$12:$C$27,1,FALSE),"NO")) -> Prestación de servicios profesionales y de apoyo a la gestión, o para la ejecución de trabajos artísticos que sólo puedan encomendarse a determinadas personas naturales; | AQ154: Inversión | AR154: =IF(ISBLANK(K154),1,IFERROR(VLOOKUP(K154,Eje_Pilar_Prop!C135:C236,1,FALSE),"NO")) -> NO | AS154: SECOP II | AT154: 1 | AU154: Bogotá Mejor para Todos
A155: 147 | B155: 2020 | C155: SECOP II | D155: FDLC-CPS-147-2020 | E155: Contratos de prestación de servicios profesionales y de apoyo a la gestión | F155: Contratación directa | G155: Prestación de servicios profesionales y de apoyo a la gestión, o para la ejecución de trabajos artísticos que sólo puedan encomendarse a determinadas personas naturales; | H155: PRESTAR SUS SERVICIOS PROFESIONALES PARA APOYAR AL ALCALDE LOCAL EN LA GESTIÓN DE LOS ASUNTOS RELACIONADOS CON SEGURIDAD CIUDADANA, CONVIVENCIA Y PREVENCIÓN DE CONFLICTIVIDADES, VIOLENCIAS Y DELITOS EN LA LOCALIDAD, DE CONFORMIDAD CON EL MARCO NORMATIVO APLICABLE EN LA MATERIA | I155: Inversión | J155: Bogotá Mejor para Todos | K155: 45 | L155: =IF(ISERROR(VLOOKUP(K155,Eje_Pilar_Prop!$C$2:$E$104,2,FALSE))," ",VLOOKUP(K155,Eje_Pilar_Prop!$C$2:$E$104,2,FALSE)) -> Gobernanza e influencia local, regional e internacional | M155: =IF(ISERROR(VLOOKUP(K155,Eje_Pilar_Prop!$C$2:$E$104,3,FALSE))," ",VLOOKUP(K155,Eje_Pilar_Prop!$C$2:$E$104,3,FALSE)) -> Eje Transversal 4 Gobierno Legitimo, Fortalecimiento Local y Eficiencia | N155: 1395 | O155: 80239278 | P155: JOHN FREDY PULIDO RINCON | Q155: 22000000 | T155: 1 | U155: 6783334 | V155: =+Q155+S155+U155 -> 28783334 | W155: 17783333 | X155: 2020-08-24 | Y155: 2020-08-24 | Z155: 2021-01-29 | AA155: 120 | AB155: 1 | AC155: 37 | AJ155: X | AL155: 0.617834369 | AM155: 2 | AN155: Contratos de prestación de servicios profesionales y de apoyo a la gestión | AO155: Contratación directa | AP155: =IF(ISBLANK(G155),1,IFERROR(VLOOKUP(G155,Tipo!$C$12:$C$27,1,FALSE),"NO")) -> Prestación de servicios profesionales y de apoyo a la gestión, o para la ejecución de trabajos artísticos que sólo puedan encomendarse a determinadas personas naturales; | AQ155: Inversión | AR155: =IF(ISBLANK(K155),1,IFERROR(VLOOKUP(K155,Eje_Pilar_Prop!C136:C237,1,FALSE),"NO")) -> NO | AS155: SECOP II | AT155: 1 | AU155: Bogotá Mejor para Todos
A156: 148 | B156: 2020 | C156: SECOP II | D156: FDLC-CPS-148-2020 | E156: Contratos de prestación de servicios profesionales y de apoyo a la gestión | F156: Contratación directa | G156: Prestación de servicios profesionales y de apoyo a la gestión, o para la ejecución de trabajos artísticos que sólo puedan encomendarse a determinadas personas naturales; | H156: PRESTAR SERVICIOS DE APOYO EN LAS ACTIVIDADES DE SEGURIDAD Y CONVIVENCIA CIUDADANA, DE ACUERDO A LAS NECESIDADES Y ESTRATEGIAS EMANADAS POR EL ÁREA DE SEGURIDAD Y CONVIVENCIA DE LA ALCALDÍA LOCAL DE LA CANDELARIA | I156: Inversión | J156: Bogotá Mejor para Todos | K156: 19 | L156: =IF(ISERROR(VLOOKUP(K156,Eje_Pilar_Prop!$C$2:$E$104,2,FALSE))," ",VLOOKUP(K156,Eje_Pilar_Prop!$C$2:$E$104,2,FALSE)) -> Seguridad y convivencia para todos | M156: =IF(ISERROR(VLOOKUP(K156,Eje_Pilar_Prop!$C$2:$E$104,3,FALSE))," ",VLOOKUP(K156,Eje_Pilar_Prop!$C$2:$E$104,3,FALSE)) -> Pilar 3 Construcción de Comunidad y Cultura Ciudadana | N156: 1392 | O156: 1010223608 | P156: LAURA CAMILA QUIROGA MILLAN | Q156: 6000000 | T156: 1 | U156: 1850000 | V156: 7850000 | W156: 6400000 | X156: 2020-08-24 | Y156: 2020-08-24 | Z156: 2021-01-29 | AA156: 120 | AB156: 1 | AC156: 37 | AJ156: X | AL156: 0.8152866242 | AM156: =IF(SUMPRODUCT((A$14:A156=A156)*(B$14:B156=B156)*(D$14:D156=D156))>1,0,1) -> 1 | AN156: Contratos de prestación de servicios profesionales y de apoyo a la gestión | AO156: Contratación directa | AP156: =IF(ISBLANK(G156),1,IFERROR(VLOOKUP(G156,Tipo!$C$12:$C$27,1,FALSE),"NO")) -> Prestación de servicios profesionales y de apoyo a la gestión, o para la ejecución de trabajos artísticos que sólo puedan encomendarse a determinadas personas naturales; | AQ156: Inversión | AR156: =IF(ISBLANK(K156),1,IFERROR(VLOOKUP(K156,Eje_Pilar_Prop!C137:C238,1,FALSE),"NO")) -> NO | AS156: SECOP II | AT156: 1 | AU156: Bogotá Mejor para Todos
A157: 149 | B157: 2020 | C157: SECOP II | D157: FDLC-CPS-149-2020 | E157: Contratos de prestación de servicios profesionales y de apoyo a la gestión | F157: Contratación directa | G157: Prestación de servicios profesionales y de apoyo a la gestión, o para la ejecución de trabajos artísticos que sólo puedan encomendarse a determinadas personas naturales; | H157: PRESTAR SERVICIOS DE APOYO EN LAS ACTIVIDADES DE SEGURIDAD Y CONVIVENCIA CIUDADANA, DE ACUERDO A LAS NECESIDADES Y ESTRATEGIAS EMANADAS POR EL ÁREA DE SEGURIDAD Y CONVIVENCIA DE LA ALCALDÍA LOCAL DE LA CANDELARIA | I157: Inversión | J157: Bogotá Mejor para Todos | K157: 19 | L157: =IF(ISERROR(VLOOKUP(K157,Eje_Pilar_Prop!$C$2:$E$104,2,FALSE))," ",VLOOKUP(K157,Eje_Pilar_Prop!$C$2:$E$104,2,FALSE)) -> Seguridad y convivencia para todos | M157: =IF(ISERROR(VLOOKUP(K157,Eje_Pilar_Prop!$C$2:$E$104,3,FALSE))," ",VLOOKUP(K157,Eje_Pilar_Prop!$C$2:$E$104,3,FALSE)) -> Pilar 3 Construcción de Comunidad y Cultura Ciudadana | N157: 1392 | O157: 79914457 | P157: TARCISIO TORO ZAMBRANO | Q157: 6000000 | T157: 1 | U157: 1850000 | V157: 7850000 | W157: 6700000 | X157: 2020-08-24 | Y157: 2020-08-24 | Z157: 2021-01-29 | AA157: 120 | AB157: 1 | AC157: 37 | AJ157: X | AL157: 0.8535031847 | AM157: =IF(SUMPRODUCT((A$14:A157=A157)*(B$14:B157=B157)*(D$14:D157=D157))>1,0,1) -> 1 | AN157: Contratos de prestación de servicios profesionales y de apoyo a la gestión | AO157: Contratación directa | AP157: =IF(ISBLANK(G157),1,IFERROR(VLOOKUP(G157,Tipo!$C$12:$C$27,1,FALSE),"NO")) -> Prestación de servicios profesionales y de apoyo a la gestión, o para la ejecución de trabajos artísticos que sólo puedan encomendarse a determinadas personas naturales; | AQ157: Inversión | AR157: =IF(ISBLANK(K157),1,IFERROR(VLOOKUP(K157,Eje_Pilar_Prop!C138:C239,1,FALSE),"NO")) -> NO | AS157: SECOP II | AT157: =IF(OR(YEAR(X157)=2020,ISBLANK(X157)),1,"NO") -> 1 | AU157: Bogotá Mejor para Todos
A158: 150 | B158: 2020 | C158: SECOP II | D158: FDLC-CPS-150-2020 | E158: Contratos de prestación de servicios profesionales y de apoyo a la gestión | F158: Contratación directa | G158: Prestación de servicios profesionales y de apoyo a la gestión, o para la ejecución de trabajos artísticos que sólo puedan encomendarse a determinadas personas naturales; | H158: PRESTAR SERVICIOS DE APOYO EN LAS ACTIVIDADES DE SEGURIDAD Y CONVIVENCIA CIUDADANA, DE ACUERDO A LAS NECESIDADES Y ESTRATEGIAS EMANADAS POR EL ÁREA DE SEGURIDAD Y CONVIVENCIA DE LA ALCALDÍA LOCAL DE LA CANDELARIA | I158: Inversión | J158: Bogotá Mejor para Todos | K158: 19 | L158: =IF(ISERROR(VLOOKUP(K158,Eje_Pilar_Prop!$C$2:$E$104,2,FALSE))," ",VLOOKUP(K158,Eje_Pilar_Prop!$C$2:$E$104,2,FALSE)) -> Seguridad y convivencia para todos | M158: =IF(ISERROR(VLOOKUP(K158,Eje_Pilar_Prop!$C$2:$E$104,3,FALSE))," ",VLOOKUP(K158,Eje_Pilar_Prop!$C$2:$E$104,3,FALSE)) -> Pilar 3 Construcción de Comunidad y Cultura Ciudadana | N158: 1392 | O158: 52060667 | P158: NELLY CONTRERAS ROJAS | Q158: 6000000 | T158: 1 | U158: 1850000 | V158: 7850000 | W158: 6400000 | X158: 2020-08-24 | Y158: 2020-08-24 | Z158: 2021-01-29 | AA158: 120 | AB158: 1 | AC158: 37 | AJ158: X | AL158: 0.8152866242 | AM158: =IF(SUMPRODUCT((A$14:A158=A158)*(B$14:B158=B158)*(D$14:D158=D158))>1,0,1) -> 1 | AN158: Contratos de prestación de servicios profesionales y de apoyo a la gestión | AO158: Contratación directa | AP158: =IF(ISBLANK(G158),1,IFERROR(VLOOKUP(G158,Tipo!$C$12:$C$27,1,FALSE),"NO")) -> Prestación de servicios profesionales y de apoyo a la gestión, o para la ejecución de trabajos artísticos que sólo puedan encomendarse a determinadas personas naturales; | AQ158: Inversión | AR158: =IF(ISBLANK(K158),1,IFERROR(VLOOKUP(K158,Eje_Pilar_Prop!C139:C240,1,FALSE),"NO")) -> NO | AS158: SECOP II | AT158: 1 | AU158: Bogotá Mejor para Todos
A159: 151 | B159: 2020 | C159: SECOP II | D159: FDLC-CPS-151-2020 | E159: Contratos de prestación de servicios profesionales y de apoyo a la gestión | F159: Contratación directa | G159: Prestación de servicios profesionales y de apoyo a la gestión, o para la ejecución de trabajos artísticos que sólo puedan encomendarse a determinadas personas naturales; | H159: PRESTAR SERVICIOS DE APOYO EN LAS ACTIVIDADES DE SEGURIDAD Y CONVIVENCIA CIUDADANA, DE ACUERDO A LAS NECESIDADES Y ESTRATEGIAS EMANADAS POR EL ÁREA DE SEGURIDAD Y CONVIVENCIA DE LA ALCALDÍA LOCAL DE LA CANDELARIA | I159: Inversión | J159: Bogotá Mejor para Todos | K159: 19 | L159: =IF(ISERROR(VLOOKUP(K159,Eje_Pilar_Prop!$C$2:$E$104,2,FALSE))," ",VLOOKUP(K159,Eje_Pilar_Prop!$C$2:$E$104,2,FALSE)) -> Seguridad y convivencia para todos | M159: =IF(ISERROR(VLOOKUP(K159,Eje_Pilar_Prop!$C$2:$E$104,3,FALSE))," ",VLOOKUP(K159,Eje_Pilar_Prop!$C$2:$E$104,3,FALSE)) -> Pilar 3 Construcción de Comunidad y Cultura Ciudadana | N159: 1392 | O159: 93086512 | P159: BLADIMIR OVIEDO RUIZ | Q159: 6000000 | T159: 1 | U159: 1800000 | V159: 7800000 | W159: 6350000 | X159: 2020-08-24 | Y159: 2020-08-24 | Z159: 2021-01-28 | AA159: 120 | AB159: 1 | AC159: 36 | AJ159: X | AL159: =IF(ISERROR(W159/V159),"-",(W159/V159)) -> 0.8141025641 | AM159: =IF(SUMPRODUCT((A$14:A159=A159)*(B$14:B159=B159)*(D$14:D159=D159))>1,0,1) -> 1 | AN159: Contratos de prestación de servicios profesionales y de apoyo a la gestión | AO159: Contratación directa | AP159: =IF(ISBLANK(G159),1,IFERROR(VLOOKUP(G159,Tipo!$C$12:$C$27,1,FALSE),"NO")) -> Prestación de servicios profesionales y de apoyo a la gestión, o para la ejecución de trabajos artísticos que sólo puedan encomendarse a determinadas personas naturales; | AQ159: Inversión | AR159: =IF(ISBLANK(K159),1,IFERROR(VLOOKUP(K159,Eje_Pilar_Prop!C140:C241,1,FALSE),"NO")) -> NO | AS159: SECOP II | AT159: 1 | AU159: Bogotá Mejor para Todos
A160: 153 | B160: 2020 | C160: SECOP I | D160: 20-22-18422 | E160: Contratos interadministrativos | F160: Contratación directa | G160: Contratos interadministrativos | H160: Aunar esfuerzos para desarrollar acciones de manera articulada entre las partes, para el fortalecimiento de los procesos de creación, producción, distribución, exhibición, comercialización y promoción de bienes y servicios culturales y creativos de los agentes del sector cultura, recreación y deporte de las localidades de Bogotá D.C., que se prioricen en el Eje Adaptación y Transformación Productiva de la Estrategia de Reactivación Económica Local- EMRE LOCAL, Programa Apoyo y Fortalecimiento de las Industrias Creativas y Culturales para la Adaptación y Transformación Productiva, en el marco de un proceso de fomento. | I160: Inversión | J160: Bogotá Mejor para Todos | K160: 45 | L160: =IF(ISERROR(VLOOKUP(K160,Eje_Pilar_Prop!$C$2:$E$104,2,FALSE))," ",VLOOKUP(K160,Eje_Pilar_Prop!$C$2:$E$104,2,FALSE)) -> Gobernanza e influencia local, regional e internacional | M160: =IF(ISERROR(VLOOKUP(K160,Eje_Pilar_Prop!$C$2:$E$104,3,FALSE))," ",VLOOKUP(K160,Eje_Pilar_Prop!$C$2:$E$104,3,FALSE)) -> Eje Transversal 4 Gobierno Legitimo, Fortalecimiento Local y Eficiencia | N160: 1396 | O160: 860044113 | P160: FUNDACION GILBERTO ALZATE AVENDAÑO - IDRD | Q160: 543478261 | T160: 0 | V160: =+Q160+S160+U160 -> 543478261 | W160: 543478261 | X160: 2020-08-24 | Y160: 2020-08-28 | Z160: 2021-11-30 | AA160: =+Z160-X160 -> 463 | AI160: X | AL160: 1 | AM160: =IF(SUMPRODUCT((A$14:A160=A160)*(B$14:B160=B160)*(D$14:D160=D160))>1,0,1) -> 1 | AN160: Contratos interadministrativos | AO160: Contratación directa | AP160: =IF(ISBLANK(G160),1,IFERROR(VLOOKUP(G160,Tipo!$C$12:$C$27,1,FALSE),"NO")) -> Contratos interadministrativos | AQ160: Inversión | AR160: =IF(ISBLANK(K160),1,IFERROR(VLOOKUP(K160,Eje_Pilar_Prop!C141:C242,1,FALSE),"NO")) -> NO | AS160: SECOP I | AT160: 1 | AU160: Bogotá Mejor para Todos
A161: 153 | B161: 2020 | C161: SECOP I | D161: 20-22-18422 | E161: Contratos interadministrativos | F161: Contratación directa | G161: Contratos interadministrativos | H161: Aunar esfuerzos para desarrollar acciones de manera articulada entre las partes, para el fortalecimiento de los procesos de creación, producción, distribución, exhibición, comercialización y promoción de bienes y servicios culturales y creativos de los agentes del sector cultura, recreación y deporte de las localidades de Bogotá D.C., que se prioricen en el Eje Adaptación y Transformación Productiva de la Estrategia de Reactivación Económica Local- EMRE LOCAL, Programa Apoyo y Fortalecimiento de las Industrias Creativas y Culturales para la Adaptación y Transformación Productiva, en el marco de un proceso de fomento. | I161: Inversión | J161: Bogotá Mejor para Todos | K161: 45 | L161: =IF(ISERROR(VLOOKUP(K161,Eje_Pilar_Prop!$C$2:$E$104,2,FALSE))," ",VLOOKUP(K161,Eje_Pilar_Prop!$C$2:$E$104,2,FALSE)) -> Gobernanza e influencia local, regional e internacional | M161: =IF(ISERROR(VLOOKUP(K161,Eje_Pilar_Prop!$C$2:$E$104,3,FALSE))," ",VLOOKUP(K161,Eje_Pilar_Prop!$C$2:$E$104,3,FALSE)) -> Eje Transversal 4 Gobierno Legitimo, Fortalecimiento Local y Eficiencia | N161: 1396 | O161: 899999061 | P161: SECRETARIA DISTRITAL DE CULTURA RECREACION Y DEPORTE | Q161: 46968479 | V161: 46968479 | X161: 2020-08-24 | Y161: 2020-08-28 | Z161: 2021-11-30 | AA161: =+Z161-X161 -> 463 | AI161: X | AL161: 0 | AM161: =IF(SUMPRODUCT((A$14:A161=A161)*(B$14:B161=B161)*(D$14:D161=D161))>1,0,1) -> 0
A162: 155 | B162: 2020 | C162: SECOP I | D162: 20-22-18421 | E162: Contratos de prestación de servicios | F162: Contratación directa | G162: Urgencia manifiesta | H162: COMPENSAR se obliga a prestar los servicios requeridos para operar el Programa de Incentivos para el Empleo con el cual se busca apoyar al tejido productivo de las localidades de Bogotá D.C., con especial énfasis en los empresarios, e incluir y/o mantener laboralmente a trabajadores mayores de 50 años, mujeres y jóvenes (18-28 años) principalmente, a través de la transferencia de incentivos a la nómina, en el marco de la contención y mitigación de los efectos del Covid-19, la declaratoria de emergencia sanitaria en todo el territorio nacional y la calamidad pública declarada en la ciudad de Bogotá D.C. | I162: Inversión | J162: Bogotá Mejor para Todos | K162: 45 | L162: =IF(ISERROR(VLOOKUP(K162,Eje_Pilar_Prop!$C$2:$E$104,2,FALSE))," ",VLOOKUP(K162,Eje_Pilar_Prop!$C$2:$E$104,2,FALSE)) -> Gobernanza e influencia local, regional e internacional | M162: =IF(ISERROR(VLOOKUP(K162,Eje_Pilar_Prop!$C$2:$E$104,3,FALSE))," ",VLOOKUP(K162,Eje_Pilar_Prop!$C$2:$E$104,3,FALSE)) -> Eje Transversal 4 Gobierno Legitimo, Fortalecimiento Local y Eficiencia | N162: 1396 | O162: 860066942 | P162: CAJA DE COMPENSACION FAMILIAR COMPENSAR | Q162: 1016265664 | T162: 0 | V162: 1016265664 | W162: 338843663 | X162: 2020-08-27 | Y162: 2020-09-14 | Z162: 2021-07-13 | AA162: 300 | AI162: X | AL162: 0.3334203595 | AM162: =IF(SUMPRODUCT((A$14:A162=A162)*(B$14:B162=B162)*(D$14:D162=D162))>1,0,1) -> 1 | AN162: Contratos de prestación de servicios | AO162: Contratación directa | AP162: =IF(ISBLANK(G162),1,IFERROR(VLOOKUP(G162,Tipo!$C$12:$C$27,1,FALSE),"NO")) -> Urgencia manifiesta | AQ162: Inversión | AR162: =IF(ISBLANK(K162),1,IFERROR(VLOOKUP(K162,Eje_Pilar_Prop!C142:C243,1,FALSE),"NO")) -> NO | AS162: SECOP I | AT162: 1 | AU162: Bogotá Mejor para Todos
A163: 156 | B163: 2020 | C163: SECOP I | D163: 20-22-18419 | E163: Contratos interadministrativos | F163: Contratación directa | G163: Contratos interadministrativos | H163: Aunar esfuerzos técnicos, administrativos y financieros, que contribuyan al cumplimiento de los protocolos de bioseguridad para la reactivación económica de las localidades de Bogotá, a través de acciones de Información, Educación y Comunicación en Salud ¿ IEC, enfocadas a orientar a los trabajadores respecto al uso adecuado de los elementos de bioseguridad contenidos en los kits, actividades que serán desarrolladas por perfiles idóneos en seguridad y salud en el trabajo, así como la entrega de los Kits de elementos de bioseguridad a microempresas, establecimientos, locales comerciales y vendedores informales; en el marco del Programa Cumplimiento de Protocolos de Bioseguridad para la Adaptación y Reactivación Económica del Eje Adaptación y Transformación Productiva de la Estrategia de Reactivación Económica Local- EMRE LOCAL | I163: Inversión | J163: Bogotá Mejor para Todos | K163: 19 | L163: =IF(ISERROR(VLOOKUP(K163,Eje_Pilar_Prop!$C$2:$E$104,2,FALSE))," ",VLOOKUP(K163,Eje_Pilar_Prop!$C$2:$E$104,2,FALSE)) -> Seguridad y convivencia para todos | M163: =IF(ISERROR(VLOOKUP(K163,Eje_Pilar_Prop!$C$2:$E$104,3,FALSE))," ",VLOOKUP(K163,Eje_Pilar_Prop!$C$2:$E$104,3,FALSE)) -> Pilar 3 Construcción de Comunidad y Cultura Ciudadana | N163: 1392 | O163: 900959051 | P163: SUBRED INTEGRADA DE SERVICIOS DE SALUD CENTRO ORIENTE | Q163: 161616299 | T163: 0 | V163: 161616299 | W163: 80808150 | X163: 2020-08-27 | Y163: 2020-08-28 | Z163: 2021-11-30 | AA163: 180 | AI163: X | AL163: 0.5000000031 | AM163: =IF(SUMPRODUCT((A$14:A163=A163)*(B$14:B163=B163)*(D$14:D163=D163))>1,0,1) -> 1 | AN163: Contratos interadministrativos | AO163: Contratación directa | AP163: =IF(ISBLANK(G163),1,IFERROR(VLOOKUP(G163,Tipo!$C$12:$C$27,1,FALSE),"NO")) -> Contratos interadministrativos | AQ163: Inversión | AR163: =IF(ISBLANK(K163),1,IFERROR(VLOOKUP(K163,Eje_Pilar_Prop!C143:C244,1,FALSE),"NO")) -> NO | AS163: SECOP I | AT163: 1 | AU163: Bogotá Mejor para Todos
A164: 157 | B164: 2020 | C164: SECOP II | D164: FDLC-CPS-157-2020 | E164: Contratos de prestación de servicios profesionales y de apoyo a la gestión | F164: Contratación directa | G164: Prestación de servicios profesionales y de apoyo a la gestión, o para la ejecución de trabajos artísticos que sólo puedan encomendarse a determinadas personas naturales; | H164: PRESTAR SERVICIOS DE APOYO ADMINISTRATIVO Y ASISTENCIAL AL ÁREA DE GESTIÓN DE DESARROLLO LOCAL, EN LOS PROCESOS DE COMPETENCIA DE LA OFICINA DE PLANEACIÓN DE LA ALCALDÍA LOCAL DE LA CANDELARIA | I164: Inversión | J164: Bogotá Mejor para Todos | K164: 45 | L164: =IF(ISERROR(VLOOKUP(K164,Eje_Pilar_Prop!$C$2:$E$104,2,FALSE))," ",VLOOKUP(K164,Eje_Pilar_Prop!$C$2:$E$104,2,FALSE)) -> Gobernanza e influencia local, regional e internacional | M164: =IF(ISERROR(VLOOKUP(K164,Eje_Pilar_Prop!$C$2:$E$104,3,FALSE))," ",VLOOKUP(K164,Eje_Pilar_Prop!$C$2:$E$104,3,FALSE)) -> Eje Transversal 4 Gobierno Legitimo, Fortalecimiento Local y Eficiencia | N164: 1395 | O164: 1010236602 | P164: IVAN FELIPE SIERRA SANCHEZ | Q164: 5888592 | T164: 0 | V164: 5888592 | W164: 4710871 | X164: 2020-09-07 | Y164: 2020-09-07 | Z164: 2020-12-21 | AA164: 105 | AJ164: X | AL164: 0.7999995585 | AM164: =IF(SUMPRODUCT((A$14:A164=A164)*(B$14:B164=B164)*(D$14:D164=D164))>1,0,1) -> 1 | AN164: Contratos de prestación de servicios profesionales y de apoyo a la gestión | AO164: Contratación directa | AP164: =IF(ISBLANK(G164),1,IFERROR(VLOOKUP(G164,Tipo!$C$12:$C$27,1,FALSE),"NO")) -> Prestación de servicios profesionales y de apoyo a la gestión, o para la ejecución de trabajos artísticos que sólo puedan encomendarse a determinadas personas naturales; | AQ164: Inversión | AR164: =IF(ISBLANK(K164),1,IFERROR(VLOOKUP(K164,Eje_Pilar_Prop!C144:C245,1,FALSE),"NO")) -> NO | AS164: SECOP II | AT164: 1 | AU164: Bogotá Mejor para Todos
A165: 158 | B165: 2020 | C165: SECOP II | D165: FDLC-CPS-158-2020 | E165: Contratos de prestación de servicios profesionales y de apoyo a la gestión | F165: Contratación directa | G165: Prestación de servicios profesionales y de apoyo a la gestión, o para la ejecución de trabajos artísticos que sólo puedan encomendarse a determinadas personas naturales; | H165: PRESTACIÓN DE SERVICIOS PARA APOYAR LAS TAREAS OPERATIVAS DE CARÁCTER ARCHIVISTICO DESARROLLADAS EN LA ALCALDIA LOCAL PARA GARANTIZAR LA APLICACIÓN CORRECTA DE LOS PROCEDIMIENTOS TÉCNICOS | I165: Inversión | J165: Bogotá Mejor para Todos | K165: 45 | L165: =IF(ISERROR(VLOOKUP(K165,Eje_Pilar_Prop!$C$2:$E$104,2,FALSE))," ",VLOOKUP(K165,Eje_Pilar_Prop!$C$2:$E$104,2,FALSE)) -> Gobernanza e influencia local, regional e internacional | M165: =IF(ISERROR(VLOOKUP(K165,Eje_Pilar_Prop!$C$2:$E$104,3,FALSE))," ",VLOOKUP(K165,Eje_Pilar_Prop!$C$2:$E$104,3,FALSE)) -> Eje Transversal 4 Gobierno Legitimo, Fortalecimiento Local y Eficiencia | N165: 1395 | O165: 1022352287 | P165: CINDY CATALINA OJEDA LOPEZ | Q165: 10952784 | T165: 0 | V165: 10952784 | W165: 10952784 | X165: 2020-09-08 | Y165: 2020-09-08 | Z165: 2020-12-22 | AA165: 105 | AK165: X | AL165: 1 | AM165: =IF(SUMPRODUCT((A$14:A165=A165)*(B$14:B165=B165)*(D$14:D165=D165))>1,0,1) -> 1 | AN165: Contratos de prestación de servicios profesionales y de apoyo a la gestión | AO165: Contratación directa | AP165: =IF(ISBLANK(G165),1,IFERROR(VLOOKUP(G165,Tipo!$C$12:$C$27,1,FALSE),"NO")) -> Prestación de servicios profesionales y de apoyo a la gestión, o para la ejecución de trabajos artísticos que sólo puedan encomendarse a determinadas personas naturales; | AQ165: Inversión | AR165: =IF(ISBLANK(K165),1,IFERROR(VLOOKUP(K165,Eje_Pilar_Prop!C145:C246,1,FALSE),"NO")) -> NO | AS165: SECOP II | AT165: 1 | AU165: Bogotá Mejor para Todos
A166: 159 | B166: 2020 | C166: SECOP II | D166: FDLC-CPS-159-2020 | E166: Contratos de prestación de servicios profesionales y de apoyo a la gestión | F166: Contratación directa | G166: Prestación de servicios profesionales y de apoyo a la gestión, o para la ejecución de trabajos artísticos que sólo puedan encomendarse a determinadas personas naturales; | H166: APOYAR EN LAS TAREAS OPERATIVAS DE CARÁCTER ARCHIVÍSTICO DESARROLLADAS EN LA ALCALDÍA LOCAL PARA GARANTIZAR LA APLICACIÓN CORRECTA DE LOS PROCEDIMIENTOS TÉCNICOS. | I166: Inversión | J166: Bogotá Mejor para Todos | K166: 45 | L166: =IF(ISERROR(VLOOKUP(K166,Eje_Pilar_Prop!$C$2:$E$104,2,FALSE))," ",VLOOKUP(K166,Eje_Pilar_Prop!$C$2:$E$104,2,FALSE)) -> Gobernanza e influencia local, regional e internacional | M166: =IF(ISERROR(VLOOKUP(K166,Eje_Pilar_Prop!$C$2:$E$104,3,FALSE))," ",VLOOKUP(K166,Eje_Pilar_Prop!$C$2:$E$104,3,FALSE)) -> Eje Transversal 4 Gobierno Legitimo, Fortalecimiento Local y Eficiencia | N166: 1395 | O166: 1026255127 | P166: DELIO ALCIBIADES LADINO PEÑA | Q166: 14117266 | T166: 1 | U166: 6050256 | V166: 20167522 | W166: 10083762 | X166: 2020-09-16 | Y166: 2020-09-16 | Z166: 2021-02-14 | AA166: 105 | AB166: 1 | AC166: 45 | AJ166: X | AL166: 0.5000000496 | AM166: =IF(SUMPRODUCT((A$14:A166=A166)*(B$14:B166=B166)*(D$14:D166=D166))>1,0,1) -> 1 | AN166: Contratos de prestación de servicios profesionales y de apoyo a la gestión | AO166: Contratación directa | AP166: =IF(ISBLANK(G166),1,IFERROR(VLOOKUP(G166,Tipo!$C$12:$C$27,1,FALSE),"NO")) -> Prestación de servicios profesionales y de apoyo a la gestión, o para la ejecución de trabajos artísticos que sólo puedan encomendarse a determinadas personas naturales; | AQ166: Inversión | AR166: =IF(ISBLANK(K166),1,IFERROR(VLOOKUP(K166,Eje_Pilar_Prop!C146:C247,1,FALSE),"NO")) -> NO | AS166: SECOP II | AT166: 1 | AU166: Bogotá Mejor para Todos
A167: 160 | B167: 2020 | C167: SECOP II | D167: FDLC-CPS-160-2020 | E167: Contratos de prestación de servicios profesionales y de apoyo a la gestión | F167: Contratación directa | G167: Prestación de servicios profesionales y de apoyo a la gestión, o para la ejecución de trabajos artísticos que sólo puedan encomendarse a determinadas personas naturales; | H167: PRESTAR LOS SERVICIOS PROFESIONALES PARA LA OPERACIÓN, PRESTACIÓN, SEGUIMIENTO Y CUMPLIMIENTO DE LOS PROCEDIMIENTOS ADMINISTRATIVOS, OPERATIVOS Y PROGRAMÁTICOS DEL SERVICIO APOYO ECONÓMICO TIPO C, QUE CONTRIBUYAN A LA GARANTÍA DE LOS DERECHOS DE LA POBLACIÓN MAYOR EN EL MARCO DE LA POLÍTICA PÚBLICA SOCIAL PARA EL ENVEJECIMIENTO Y LA VEJEZ EN EL DISTRITO CAPITAL A CARGO DE LA ALCALDÍA LOCAL. | I167: Inversión | J167: Bogotá Mejor para Todos | K167: 3 | L167: =IF(ISERROR(VLOOKUP(K167,Eje_Pilar_Prop!$C$2:$E$104,2,FALSE))," ",VLOOKUP(K167,Eje_Pilar_Prop!$C$2:$E$104,2,FALSE)) -> Igualdad y autonomía para una Bogotá incluyente | M167: =IF(ISERROR(VLOOKUP(K167,Eje_Pilar_Prop!$C$2:$E$104,3,FALSE))," ",VLOOKUP(K167,Eje_Pilar_Prop!$C$2:$E$104,3,FALSE)) -> Pilar 1 Igualdad de Calidad de Vida | N167: 1386 | O167: 1033749239 | P167: AZUCENA SALAZAR GIRALDO | Q167: 13635200 | T167: 1 | U167: 4449000 | V167: 18084200 | W167: 9953696 | X167: 2020-09-18 | Y167: 2020-09-18 | Z167: 2021-01-29 | AA167: 100 | AB167: 1 | AC167: 33 | AJ167: X | AL167: 0.5504084228 | AM167: =IF(SUMPRODUCT((A$14:A167=A167)*(B$14:B167=B167)*(D$14:D167=D167))>1,0,1) -> 1 | AN167: Contratos de prestación de servicios profesionales y de apoyo a la gestión | AO167: Contratación directa | AP167: =IF(ISBLANK(G167),1,IFERROR(VLOOKUP(G167,Tipo!$C$12:$C$27,1,FALSE),"NO")) -> Prestación de servicios profesionales y de apoyo a la gestión, o para la ejecución de trabajos artísticos que sólo puedan encomendarse a determinadas personas naturales; | AQ167: Inversión | AR167: =IF(ISBLANK(K167),1,IFERROR(VLOOKUP(K167,Eje_Pilar_Prop!C147:C248,1,FALSE),"NO")) -> NO | AS167: SECOP II | AT167: 1 | AU167: Bogotá Mejor para Todos
A168: 160 | B168: 2020 | C168: SECOP II | D168: FDLC-CPS-160-2020 | E168: Contratos de prestación de servicios profesionales y de apoyo a la gestión | F168: Contratación Directa | G168: Prestación de servicios profesionales y de apoyo a la gestión, o para la ejecución de trabajos artísticos que sólo puedan encomendarse a determinadas personas naturales; | H168: PRESTAR LOS SERVICIOS PROFESIONALES PARA LA OPERACIÓN, PRESTACIÓN, SEGUIMIENTO Y CUMPLIMIENTO DE LOS PROCEDIMIENTOS ADMINISTRATIVOS, OPERATIVOS Y PROGRAMÁTICOS DEL SERVICIO APOYO ECONÓMICO TIPO C, QUE CONTRIBUYAN A LA GARANTÍA DE LOS DERECHOS DE LA POBLACIÓN MAYOR EN EL MARCO DE LA POLÍTICA PÚBLICA SOCIAL PARA EL ENVEJECIMIENTO Y LA VEJEZ EN EL DISTRITO CAPITAL A CARGO DE LA ALCALDÍA LOCAL. | I168: Inversión | J168: Bogotá Mejor para Todos | K168: 45 | L168: =IF(ISERROR(VLOOKUP(K168,Eje_Pilar_Prop!$C$2:$E$104,2,FALSE))," ",VLOOKUP(K168,Eje_Pilar_Prop!$C$2:$E$104,2,FALSE)) -> Gobernanza e influencia local, regional e internacional | M168: =IF(ISERROR(VLOOKUP(K168,Eje_Pilar_Prop!$C$2:$E$104,3,FALSE))," ",VLOOKUP(K168,Eje_Pilar_Prop!$C$2:$E$104,3,FALSE)) -> Eje Transversal 4 Gobierno Legitimo, Fortalecimiento Local y Eficiencia | N168: 1395 | O168: 1033749239 | P168: AZUCENA SALAZAR GIRALDO | Q168: 4499616 | V168: 4499616 | W168: 4226912 | X168: 2020-09-18 | Y168: 2020-09-18 | Z168: 2021-01-29 | AA168: 100 | AJ168: X | AL168: 0.9393939394 | AM168: =IF(SUMPRODUCT((A$14:A168=A168)*(B$14:B168=B168)*(D$14:D168=D168))>1,0,1) -> 0
A169: 161 | B169: 2020 | C169: SECOP II | D169: FDLC-CPS-161-2020 | E169: Contratos de prestación de servicios profesionales y de apoyo a la gestión | F169: Contratación directa | G169: Prestación de servicios profesionales y de apoyo a la gestión, o para la ejecución de trabajos artísticos que sólo puedan encomendarse a determinadas personas naturales; | H169: PRESTAR LOS SERVICIOS TECNICOS ADMINISTRATIVOS EN LAS DISTINTAS ETAPAS DE LOS PROCESOS CONTRACTUALES DE COMPETENCIA DE LA ALCALDIA LOCAL DE LA CANDELARIA | I169: Inversión | J169: Bogotá Mejor para Todos | K169: 45 | L169: =IF(ISERROR(VLOOKUP(K169,Eje_Pilar_Prop!$C$2:$E$104,2,FALSE))," ",VLOOKUP(K169,Eje_Pilar_Prop!$C$2:$E$104,2,FALSE)) -> Gobernanza e influencia local, regional e internacional | M169: =IF(ISERROR(VLOOKUP(K169,Eje_Pilar_Prop!$C$2:$E$104,3,FALSE))," ",VLOOKUP(K169,Eje_Pilar_Prop!$C$2:$E$104,3,FALSE)) -> Eje Transversal 4 Gobierno Legitimo, Fortalecimiento Local y Eficiencia | N169: 1395 | O169: 52305372 | P169: ELCY JEANETH PULIDO AMORTEGUI | Q169: 7663221 | T169: 1 | U169: 3405876 | V169: 11069097 | W169: 8599826 | X169: 2020-09-21 | Y169: 2020-09-21 | Z169: 2021-01-29 | AA169: 90 | AB169: 1 | AC169: 40 | AJ169: X | AL169: 0.7769220922 | AM169: =IF(SUMPRODUCT((A$14:A169=A169)*(B$14:B169=B169)*(D$14:D169=D169))>1,0,1) -> 1 | AN169: Contratos de prestación de servicios profesionales y de apoyo a la gestión | AO169: Contratación directa | AP169: =IF(ISBLANK(G169),1,IFERROR(VLOOKUP(G169,Tipo!$C$12:$C$27,1,FALSE),"NO")) -> Prestación de servicios profesionales y de apoyo a la gestión, o para la ejecución de trabajos artísticos que sólo puedan encomendarse a determinadas personas naturales; | AQ169: Inversión | AR169: =IF(ISBLANK(K169),1,IFERROR(VLOOKUP(K169,Eje_Pilar_Prop!C148:C249,1,FALSE),"NO")) -> NO | AS169: SECOP II | AT169: 1 | AU169: Bogotá Mejor para Todos
A170: 162 | B170: 2020 | C170: SECOP II | D170: FDLC-CPS-162-2020 | E170: Contratos de prestación de servicios profesionales y de apoyo a la gestión | F170: Contratación directa | G170: Prestación de servicios profesionales y de apoyo a la gestión, o para la ejecución de trabajos artísticos que sólo puedan encomendarse a determinadas personas naturales; | H170: PRESTAR SERVICIOS DE APOYO EN LAS ACTIVIDADES DE SEGURIDAD Y CONVIVENCIA CIUDADANA, DE ACUERDO A LAS NECESIDADES Y ESTRATEGIAS EMANADAS POR EL ÁREA DE SEGURIDAD Y CONVIVENCIA DE LA ALCALDÍA LOCAL DE LA CANDELARIA | I170: Inversión | J170: Bogotá Mejor para Todos | K170: 19 | L170: =IF(ISERROR(VLOOKUP(K170,Eje_Pilar_Prop!$C$2:$E$104,2,FALSE))," ",VLOOKUP(K170,Eje_Pilar_Prop!$C$2:$E$104,2,FALSE)) -> Seguridad y convivencia para todos | M170: =IF(ISERROR(VLOOKUP(K170,Eje_Pilar_Prop!$C$2:$E$104,3,FALSE))," ",VLOOKUP(K170,Eje_Pilar_Prop!$C$2:$E$104,3,FALSE)) -> Pilar 3 Construcción de Comunidad y Cultura Ciudadana | N170: 1392 | O170: 1010203707 | P170: MICHAEL FELIPE RAMIREZ GARCIA | Q170: 5250000 | T170: 1 | U170: 2000000 | V170: 7250000 | W170: 5050000 | X170: 2020-09-21 | Y170: 2020-09-21 | Z170: 2021-01-29 | AA170: 90 | AB170: 1 | AC170: 40 | AJ170: X | AL170: 0.6965517241 | AM170: =IF(SUMPRODUCT((A$14:A170=A170)*(B$14:B170=B170)*(D$14:D170=D170))>1,0,1) -> 1 | AN170: Contratos de prestación de servicios profesionales y de apoyo a la gestión | AO170: Contratación directa | AP170: =IF(ISBLANK(G170),1,IFERROR(VLOOKUP(G170,Tipo!$C$12:$C$27,1,FALSE),"NO")) -> Prestación de servicios profesionales y de apoyo a la gestión, o para la ejecución de trabajos artísticos que sólo puedan encomendarse a determinadas personas naturales; | AQ170: Inversión | AR170: =IF(ISBLANK(K170),1,IFERROR(VLOOKUP(K170,Eje_Pilar_Prop!C149:C250,1,FALSE),"NO")) -> NO | AS170: SECOP II | AT170: 1 | AU170: Bogotá Mejor para Todos
A171: 163 | B171: 2020 | C171: SECOP II | D171: FDLC-CPS-163-2020 | E171: Contratos de prestación de servicios profesionales y de apoyo a la gestión | F171: Contratación directa | G171: Prestación de servicios profesionales y de apoyo a la gestión, o para la ejecución de trabajos artísticos que sólo puedan encomendarse a determinadas personas naturales; | H171: PRESTAR SERVICIOS PROFESIONALES ESPECIALIZADOS EN LA GESTIÓN JURÍDICA DEL DESPACHO Y DEL FONDO DE DESARROLLO LOCAL LA CANDELARIA EN MATERIA CONTRACTUAL Y EN TODOS LOS TEMAS DE ORDEN ADMINISTRATIVO QUE SE DAN EN DESARROLLO DE LAS GESTIONES DE LA ENTIDAD. | I171: Inversión | J171: Bogotá Mejor para Todos | K171: 45 | L171: =IF(ISERROR(VLOOKUP(K171,Eje_Pilar_Prop!$C$2:$E$104,2,FALSE))," ",VLOOKUP(K171,Eje_Pilar_Prop!$C$2:$E$104,2,FALSE)) -> Gobernanza e influencia local, regional e internacional | M171: =IF(ISERROR(VLOOKUP(K171,Eje_Pilar_Prop!$C$2:$E$104,3,FALSE))," ",VLOOKUP(K171,Eje_Pilar_Prop!$C$2:$E$104,3,FALSE)) -> Eje Transversal 4 Gobierno Legitimo, Fortalecimiento Local y Eficiencia | N171: 1395 | O171: 13543982/80763536 | P171: ROLANDO ALFONSO NIÑO PALENCIA CESION A OSCAR JAVIER FONSECA GOMEZ | Q171: 26700000 | T171: 1 | U171: 11866667 | V171: 38566667 | W171: 0 | X171: 2020-09-21 | Y171: 2020-09-21 | Z171: 2021-01-29 | AA171: 90 | AB171: 1 | AC171: 40 | AD171: 80763536 | AE171: OSCAR JAVIER FONSECA | AF171: 2020-10-16 | AG171: 19876666 | AJ171: X | AL171: 0 | AM171: =IF(SUMPRODUCT((A$14:A171=A171)*(B$14:B171=B171)*(D$14:D171=D171))>1,0,1) -> 1 | AN171: Contratos de prestación de servicios profesionales y de apoyo a la gestión | AO171: Contratación directa | AP171: =IF(ISBLANK(G171),1,IFERROR(VLOOKUP(G171,Tipo!$C$12:$C$27,1,FALSE),"NO")) -> Prestación de servicios profesionales y de apoyo a la gestión, o para la ejecución de trabajos artísticos que sólo puedan encomendarse a determinadas personas naturales; | AQ171: Inversión | AR171: =IF(ISBLANK(K171),1,IFERROR(VLOOKUP(K171,Eje_Pilar_Prop!C150:C251,1,FALSE),"NO")) -> NO | AS171: SECOP II | AT171: 1 | AU171: Bogotá Mejor para Todos
A172: 164 | B172: 2020 | C172: SECOP II | D172: FDLC-CPS-164-2020 | E172: Contratos de prestación de servicios profesionales y de apoyo a la gestión | F172: Contratación directa | G172: Prestación de servicios profesionales y de apoyo a la gestión, o para la ejecución de trabajos artísticos que sólo puedan encomendarse a determinadas personas naturales; | H172: PRESTACIÓN DE SERVICIOS PROFESIONALES AL ÁREA DE GESTIÓN DE DESARROLLO LOCAL EN LA FORMULACIÓN, PRESENTACIÓN, EVALUACIÓN, SEGUIMIENTO Y APOYO EN LOS REQUERIMIENTOS DE LOS PROYECTOS DE INFRAESTRUCTURA Y OBRAS CIVILES QUE DESARROLLE LA ALCALDÍA LOCAL DE LA CANDELARIA A TRAVES DEL AREA DE PLANEACIÓN | I172: Inversión | J172: Bogotá Mejor para Todos | K172: 45 | L172: =IF(ISERROR(VLOOKUP(K172,Eje_Pilar_Prop!$C$2:$E$104,2,FALSE))," ",VLOOKUP(K172,Eje_Pilar_Prop!$C$2:$E$104,2,FALSE)) -> Gobernanza e influencia local, regional e internacional | M172: =IF(ISERROR(VLOOKUP(K172,Eje_Pilar_Prop!$C$2:$E$104,3,FALSE))," ",VLOOKUP(K172,Eje_Pilar_Prop!$C$2:$E$104,3,FALSE)) -> Eje Transversal 4 Gobierno Legitimo, Fortalecimiento Local y Eficiencia | N172: 1395 | O172: 79889548 | P172: EDGAR HERNAN CARDOZO VARGAS | Q172: 13635200 | T172: 0 | V172: 13635200 | W172: 9408288 | X172: 2020-09-22 | Y172: 2020-09-22 | Z172: 2020-12-21 | AA172: 90 | AJ172: X | AL172: 0.69 | AM172: =IF(SUMPRODUCT((A$14:A172=A172)*(B$14:B172=B172)*(D$14:D172=D172))>1,0,1) -> 1 | AN172: Contratos de prestación de servicios profesionales y de apoyo a la gestión | AO172: Contratación directa | AP172: =IF(ISBLANK(G172),1,IFERROR(VLOOKUP(G172,Tipo!$C$12:$C$27,1,FALSE),"NO")) -> Prestación de servicios profesionales y de apoyo a la gestión, o para la ejecución de trabajos artísticos que sólo puedan encomendarse a determinadas personas naturales; | AQ172: Inversión | AR172: =IF(ISBLANK(K172),1,IFERROR(VLOOKUP(K172,Eje_Pilar_Prop!C151:C252,1,FALSE),"NO")) -> NO | AS172: SECOP II | AT172: 1 | AU172: Bogotá Mejor para Todos
A173: 165 | B173: 2020 | C173: SECOP II | D173: FDLC-CPS-165-2020 | E173: Contratos de prestación de servicios profesionales y de apoyo a la gestión | F173: Contratación directa | G173: Prestación de servicios profesionales y de apoyo a la gestión, o para la ejecución de trabajos artísticos que sólo puedan encomendarse a determinadas personas naturales; | H173: COORDINAR, LIDERAR Y ASESORAR LOS PLANES Y ESTRATEGIAS DE COMUNICACIÓN INTERNA Y EXTERNA PARA LA DIVULGACIÓN DE LOS PROGRAMAS, PROYECTOS Y ACTIVIDADES DE LA ALCALDÍA LOCAL DE LA CANDELARIA | I173: Inversión | J173: Bogotá Mejor para Todos | K173: 45 | L173: =IF(ISERROR(VLOOKUP(K173,Eje_Pilar_Prop!$C$2:$E$104,2,FALSE))," ",VLOOKUP(K173,Eje_Pilar_Prop!$C$2:$E$104,2,FALSE)) -> Gobernanza e influencia local, regional e internacional | M173: =IF(ISERROR(VLOOKUP(K173,Eje_Pilar_Prop!$C$2:$E$104,3,FALSE))," ",VLOOKUP(K173,Eje_Pilar_Prop!$C$2:$E$104,3,FALSE)) -> Eje Transversal 4 Gobierno Legitimo, Fortalecimiento Local y Eficiencia | N173: 1395 | O173: 1020729068 | P173: VALENTINA OCHOA MAYORGA | Q173: 19500000 | T173: 1 | U173: 8450000 | V173: 27950000 | W173: 21450000 | X173: 2020-09-22 | Y173: 2020-09-22 | Z173: 29/ 01/ 2021 | AA173: 90 | AB173: 1 | AC173: 90 | AJ173: X | AL173: 0.7674418605 | AM173: =IF(SUMPRODUCT((A$14:A173=A173)*(B$14:B173=B173)*(D$14:D173=D173))>1,0,1) -> 1
A174: 166 | B174: 2020 | C174: SECOP II | D174: FDLC-CPS-166-2020 | E174: Contratos de prestación de servicios profesionales y de apoyo a la gestión | F174: Contratación directa | G174: Prestación de servicios profesionales y de apoyo a la gestión, o para la ejecución de trabajos artísticos que sólo puedan encomendarse a determinadas personas naturales; | H174: PRESTACIÓN DE SERVICIOS TÉCNICOS DE APOYO EN LA VISIBILIZACIÓN DE LA GESTIÓN TURÍSTICA Y CULTURAL DE LA CANDELARIA EN EL MARCO DEL PLAN DE REACTIVACIÓN ECONÓMICA | I174: Inversión | J174: Bogotá Mejor para Todos | K174: 45 | L174: =IF(ISERROR(VLOOKUP(K174,Eje_Pilar_Prop!$C$2:$E$104,2,FALSE))," ",VLOOKUP(K174,Eje_Pilar_Prop!$C$2:$E$104,2,FALSE)) -> Gobernanza e influencia local, regional e internacional | M174: =IF(ISERROR(VLOOKUP(K174,Eje_Pilar_Prop!$C$2:$E$104,3,FALSE))," ",VLOOKUP(K174,Eje_Pilar_Prop!$C$2:$E$104,3,FALSE)) -> Eje Transversal 4 Gobierno Legitimo, Fortalecimiento Local y Eficiencia | N174: 1395 | O174: 80249660 | P174: JHONNATAN ACOSTA HERRADA | Q174: 9822615 | T174: 1 | U174: 4038187 | V174: 13860802 | W174: 10695736 | X174: 2020-09-23 | Y174: 2020-09-23 | Z174: 2021-01-29 | AA174: 90 | AB174: 1 | AC174: 37 | AJ174: X | AL174: 0.7716534729 | AM174: =IF(SUMPRODUCT((A$14:A174=A174)*(B$14:B174=B174)*(D$14:D174=D174))>1,0,1) -> 1 | AN174: Contratos de prestación de servicios profesionales y de apoyo a la gestión | AO174: Contratación directa | AP174: =IF(ISBLANK(G174),1,IFERROR(VLOOKUP(G174,Tipo!$C$12:$C$27,1,FALSE),"NO")) -> Prestación de servicios profesionales y de apoyo a la gestión, o para la ejecución de trabajos artísticos que sólo puedan encomendarse a determinadas personas naturales; | AQ174: Inversión | AR174: =IF(ISBLANK(K174),1,IFERROR(VLOOKUP(K174,Eje_Pilar_Prop!C152:C253,1,FALSE),"NO")) -> NO | AS174: SECOP II | AT174: 1 | AU174: Bogotá Mejor para Todos
A175: 167 | B175: 2020 | C175: SECOP II | D175: FDLC-CPS-167-2020 | E175: Contratos de prestación de servicios profesionales y de apoyo a la gestión | F175: Contratación directa | G175: Prestación de servicios profesionales y de apoyo a la gestión, o para la ejecución de trabajos artísticos que sólo puedan encomendarse a determinadas personas naturales; | H175: PRESTACIÓN DE SERVICIOS PROFESIONALES PARA FORTALECER LA ETAPA CONTRACTUAL Y POSCONTRACTUAL DE LOS CONTRATOS CELEBRADOS POR EL FONDO DE DESARROLLO LOCAL DE LA CANDELARIA, APOYANDO SU SUPERVISIÓN Y LIQUIDACIÓN DE ACUERDO CON LOS PROCEDIMIENTOS ESTABLECIDOS EN LA NORMATIVIDAD VIGENTE. | I175: Inversión | J175: Bogotá Mejor para Todos | K175: 45 | L175: =IF(ISERROR(VLOOKUP(K175,Eje_Pilar_Prop!$C$2:$E$104,2,FALSE))," ",VLOOKUP(K175,Eje_Pilar_Prop!$C$2:$E$104,2,FALSE)) -> Gobernanza e influencia local, regional e internacional | M175: =IF(ISERROR(VLOOKUP(K175,Eje_Pilar_Prop!$C$2:$E$104,3,FALSE))," ",VLOOKUP(K175,Eje_Pilar_Prop!$C$2:$E$104,3,FALSE)) -> Eje Transversal 4 Gobierno Legitimo, Fortalecimiento Local y Eficiencia | N175: 1395 | O175: 1026283569 | P175: ELVIS MIGUEL GARCIA OVALLE | Q175: 12271680 | T175: 0 | V175: 12271680 | W175: 5181376 | X175: 2020-09-23 | Y175: 2020-09-23 | Z175: 2020-12-22 | AA175: 90 | AJ175: X | AL175: 0.4222222222 | AM175: =IF(SUMPRODUCT((A$14:A175=A175)*(B$14:B175=B175)*(D$14:D175=D175))>1,0,1) -> 1 | AN175: Contratos de prestación de servicios profesionales y de apoyo a la gestión | AO175: Contratación directa | AP175: =IF(ISBLANK(G175),1,IFERROR(VLOOKUP(G175,Tipo!$C$12:$C$27,1,FALSE),"NO")) -> Prestación de servicios profesionales y de apoyo a la gestión, o para la ejecución de trabajos artísticos que sólo puedan encomendarse a determinadas personas naturales; | AQ175: Inversión | AR175: =IF(ISBLANK(K175),1,IFERROR(VLOOKUP(K175,Eje_Pilar_Prop!C153:C254,1,FALSE),"NO")) -> NO | AS175: SECOP II | AT175: 1 | AU175: Bogotá Mejor para Todos
A176: 168 | B176: 2020 | C176: SECOP II | D176: FDLC-CPS-168-2020 | E176: Contratos de prestación de servicios profesionales y de apoyo a la gestión | F176: Contratación directa | G176: Prestación de servicios profesionales y de apoyo a la gestión, o para la ejecución de trabajos artísticos que sólo puedan encomendarse a determinadas personas naturales; | H176: PRESTAR SERVICIOS DE APOYO EN LAS ACTIVIDADES DE SEGURIDAD Y CONVIVENCIA CIUDADANA, DE ACUERDO A LAS NECESIDADES Y ESTRATEGIAS EMANADAS POR EL ÁREA DE SEGURIDAD Y CONVIVENCIA DE LA ALCALDÍA LOCAL DE LA CANDELARIA .CLÁUSULA SEGUNDA.- OBLIGACIONES DE EL CONTRATISTA: GENERALES | I176: Inversión | J176: Bogotá Mejor para Todos | K176: 19 | L176: =IF(ISERROR(VLOOKUP(K176,Eje_Pilar_Prop!$C$2:$E$104,2,FALSE))," ",VLOOKUP(K176,Eje_Pilar_Prop!$C$2:$E$104,2,FALSE)) -> Seguridad y convivencia para todos | M176: =IF(ISERROR(VLOOKUP(K176,Eje_Pilar_Prop!$C$2:$E$104,3,FALSE))," ",VLOOKUP(K176,Eje_Pilar_Prop!$C$2:$E$104,3,FALSE)) -> Pilar 3 Construcción de Comunidad y Cultura Ciudadana | N176: 1392 | O176: 11810899 | P176: WALFRAN PRENS MARTINEZ | Q176: 4500000 | T176: 0 | V176: 4500000 | W176: 3400000 | X176: 2020-09-23 | Y176: 2020-09-25 | Z176: 2020-12-24 | AA176: 90 | AJ176: X | AL176: 0.7555555556 | AM176: =IF(SUMPRODUCT((A$14:A176=A176)*(B$14:B176=B176)*(D$14:D176=D176))>1,0,1) -> 1 | AN176: Contratos de prestación de servicios profesionales y de apoyo a la gestión | AO176: Contratación directa | AP176: =IF(ISBLANK(G176),1,IFERROR(VLOOKUP(G176,Tipo!$C$12:$C$27,1,FALSE),"NO")) -> Prestación de servicios profesionales y de apoyo a la gestión, o para la ejecución de trabajos artísticos que sólo puedan encomendarse a determinadas personas naturales; | AQ176: Inversión | AR176: =IF(ISBLANK(K176),1,IFERROR(VLOOKUP(K176,Eje_Pilar_Prop!C154:C255,1,FALSE),"NO")) -> NO | AS176: SECOP II | AT176: 1 | AU176: Bogotá Mejor para Todos
A177: 169 | B177: 2020 | C177: SECOP II | D177: FDLC-CPS-169-2020 | E177: Contratos de prestación de servicios profesionales y de apoyo a la gestión | F177: Contratación directa | G177: Prestación de servicios profesionales y de apoyo a la gestión, o para la ejecución de trabajos artísticos que sólo puedan encomendarse a determinadas personas naturales; | H177: PRESTACION DE SERVICIOS PROFESIONALES COMO ABOGADO DE APOYO AL DESPACHO, EN LAS DIFERENTES ACTIVIDADES Y FUNCIONES QUE LE COMPETEN A ESTA DEPENDENCIA DEL FONDO DE DESARROLLO LOCAL LA CANDELARIA | I177: Inversión | J177: Bogotá Mejor para Todos | K177: 45 | L177: =IF(ISERROR(VLOOKUP(K177,Eje_Pilar_Prop!$C$2:$E$104,2,FALSE))," ",VLOOKUP(K177,Eje_Pilar_Prop!$C$2:$E$104,2,FALSE)) -> Gobernanza e influencia local, regional e internacional | M177: =IF(ISERROR(VLOOKUP(K177,Eje_Pilar_Prop!$C$2:$E$104,3,FALSE))," ",VLOOKUP(K177,Eje_Pilar_Prop!$C$2:$E$104,3,FALSE)) -> Eje Transversal 4 Gobierno Legitimo, Fortalecimiento Local y Eficiencia | N177: 1395 | O177: 52314352 | P177: CONSTANZA DEL PILAR LEYTON RICO | Q177: 14984100 | U177: 6326620 | V177: 21310720 | W177: 16316020 | X177: 2020-09-23 | Y177: 2020-09-23 | Z177: 29/ 01/ 2021 | AA177: 90 | AB177: 1 | AC177: 38 | AJ177: X | AL177: 0.765625 | AM177: =IF(SUMPRODUCT((A$14:A177=A177)*(B$14:B177=B177)*(D$14:D177=D177))>1,0,1) -> 1
A178: 170 | B178: 2020 | C178: SECOP II | D178: FDLC-CPS-170-2020 | E178: Contratos de prestación de servicios profesionales y de apoyo a la gestión | F178: Contratación directa | G178: Prestación de servicios profesionales y de apoyo a la gestión, o para la ejecución de trabajos artísticos que sólo puedan encomendarse a determinadas personas naturales; | H178: PRESTACIÓN DE SERVICIOS PROFESIONALES ESPECIALIZADOS AL FONDO DE DESARROLLO LOCAL LA CANDELARIA EN LO RELACIONADO CON LOS PROCESOS PRECONTRACTUALES, CONTRACTUALES Y POSCONTRALES DE MAYOR CUANTÍA Y DEMÁS PROCESOS QUE SE REQUIERA | I178: Inversión | J178: Bogotá Mejor para Todos | K178: 45 | L178: =IF(ISERROR(VLOOKUP(K178,Eje_Pilar_Prop!$C$2:$E$104,2,FALSE))," ",VLOOKUP(K178,Eje_Pilar_Prop!$C$2:$E$104,2,FALSE)) -> Gobernanza e influencia local, regional e internacional | M178: =IF(ISERROR(VLOOKUP(K178,Eje_Pilar_Prop!$C$2:$E$104,3,FALSE))," ",VLOOKUP(K178,Eje_Pilar_Prop!$C$2:$E$104,3,FALSE)) -> Eje Transversal 4 Gobierno Legitimo, Fortalecimiento Local y Eficiencia | N178: 1395 | O178: 1032470720 | P178: YAISIR MARÍA VIDAL SANCHEZ | Q178: 19757142 | U178: 8341905 | V178: 28099047 | W178: 14927618 | X178: 2020-09-23 | Y178: 2020-09-23 | Z178: 29/ 01/ 2021 | AA178: 90 | AB178: 1 | AC178: 38 | AJ178: X | AL178: 0.5312499744 | AM178: =IF(SUMPRODUCT((A$14:A178=A178)*(B$14:B178=B178)*(D$14:D178=D178))>1,0,1) -> 1
A179: 171 | B179: 2020 | C179: SECOP II | D179: FDLC-CPS-171-2020 | E179: Contratos de prestación de servicios profesionales y de apoyo a la gestión | F179: Contratación directa | G179: Prestación de servicios profesionales y de apoyo a la gestión, o para la ejecución de trabajos artísticos que sólo puedan encomendarse a determinadas personas naturales; | H179: APOYAR ADMINISTRATIVA Y ASISTENCIALMENTE A LAS INSPECCIONES DE POLICÍA DE LA LOCALIDAD | I179: Inversión | J179: Bogotá Mejor para Todos | K179: 45 | L179: =IF(ISERROR(VLOOKUP(K179,Eje_Pilar_Prop!$C$2:$E$104,2,FALSE))," ",VLOOKUP(K179,Eje_Pilar_Prop!$C$2:$E$104,2,FALSE)) -> Gobernanza e influencia local, regional e internacional | M179: =IF(ISERROR(VLOOKUP(K179,Eje_Pilar_Prop!$C$2:$E$104,3,FALSE))," ",VLOOKUP(K179,Eje_Pilar_Prop!$C$2:$E$104,3,FALSE)) -> Eje Transversal 4 Gobierno Legitimo, Fortalecimiento Local y Eficiencia | N179: 1395 | O179: 51838961 | P179: MARIA ADELAIDA LUNA BUENAVENTURA | Q179: 5661828 | T179: 0 | V179: 5661828 | W179: 5661825 | X179: 2020-09-25 | Y179: 2020-09-25 | Z179: 2020-12-24 | AA179: 90 | AK179: X | AL179: 0.9999994701 | AM179: =IF(SUMPRODUCT((A$14:A179=A179)*(B$14:B179=B179)*(D$14:D179=D179))>1,0,1) -> 1 | AN179: Contratos de prestación de servicios profesionales y de apoyo a la gestión | AO179: Contratación directa | AP179: =IF(ISBLANK(G179),1,IFERROR(VLOOKUP(G179,Tipo!$C$12:$C$27,1,FALSE),"NO")) -> Prestación de servicios profesionales y de apoyo a la gestión, o para la ejecución de trabajos artísticos que sólo puedan encomendarse a determinadas personas naturales; | AQ179: Inversión | AR179: =IF(ISBLANK(K179),1,IFERROR(VLOOKUP(K179,Eje_Pilar_Prop!C155:C256,1,FALSE),"NO")) -> NO | AS179: SECOP II | AT179: 1 | AU179: Bogotá Mejor para Todos
A180: 172 | B180: 2020 | C180: SECOP II | D180: FDLC-CPS-172-2020 | E180: Contratos de prestación de servicios profesionales y de apoyo a la gestión | F180: Contratación directa | G180: Prestación de servicios profesionales y de apoyo a la gestión, o para la ejecución de trabajos artísticos que sólo puedan encomendarse a determinadas personas naturales; | H180: PRESTACIÓN DE SERVICIOS PROFESIONALES AL ÁREA DE GESTIÓN DE DESARROLLO LOCAL DE LA ALCALDÍA LOCAL DE LA CANDELARIA, PARA AFECTUAR APOYO EN LA COORDINACION TÉCNICA EN EL SEGUIMIENTO DE PLANES, POLÍTICAS, PROGRAMAS Y PROYECTOS DE INFRAESTRUCTURA EN EL MARCO DE LA CONSTRUCCIÓN DEL NUEVO PLAN DE DESARROLLO | I180: Inversión | J180: Bogotá Mejor para Todos | K180: 45 | L180: =IF(ISERROR(VLOOKUP(K180,Eje_Pilar_Prop!$C$2:$E$104,2,FALSE))," ",VLOOKUP(K180,Eje_Pilar_Prop!$C$2:$E$104,2,FALSE)) -> Gobernanza e influencia local, regional e internacional | M180: =IF(ISERROR(VLOOKUP(K180,Eje_Pilar_Prop!$C$2:$E$104,3,FALSE))," ",VLOOKUP(K180,Eje_Pilar_Prop!$C$2:$E$104,3,FALSE)) -> Eje Transversal 4 Gobierno Legitimo, Fortalecimiento Local y Eficiencia | N180: 1395 | O180: 80166444 | P180: YERNEY ROLANDO RODRIGUEZ AVILA | Q180: 17354857 | T180: 1 | U180: 7134657 | V180: 24489514 | W180: 12919676 | X180: 2020-09-24 | Y180: 2020-09-24 | Z180: 2021-01-29 | AA180: 90 | AC180: 37 | AJ180: X | AL180: 0.5275595098 | AM180: =IF(SUMPRODUCT((A$14:A180=A180)*(B$14:B180=B180)*(D$14:D180=D180))>1,0,1) -> 1 | AN180: Contratos de prestación de servicios profesionales y de apoyo a la gestión | AO180: Contratación directa | AP180: =IF(ISBLANK(G180),1,IFERROR(VLOOKUP(G180,Tipo!$C$12:$C$27,1,FALSE),"NO")) -> Prestación de servicios profesionales y de apoyo a la gestión, o para la ejecución de trabajos artísticos que sólo puedan encomendarse a determinadas personas naturales; | AQ180: Inversión | AR180: =IF(ISBLANK(K180),1,IFERROR(VLOOKUP(K180,Eje_Pilar_Prop!C156:C257,1,FALSE),"NO")) -> NO | AS180: SECOP II | AT180: 1 | AU180: Bogotá Mejor para Todos
A181: 173 | B181: 2020 | C181: SECOP II | D181: FDLC-CPS-173-2020 | E181: Contratos de prestación de servicios profesionales y de apoyo a la gestión | F181: Contratación directa | G181: Prestación de servicios profesionales y de apoyo a la gestión, o para la ejecución de trabajos artísticos que sólo puedan encomendarse a determinadas personas naturales; | H181: PRESTAR SERVICIOS DE APOYO EN LAS ACTIVIDADES DE SEGURIDAD Y CONVIVENCIA CIUDADANA, DE ACUERDO A LAS NECESIDADES Y ESTRATEGIAS EMANADAS POR EL ÁREA DE SEGURIDAD Y CONVIVENCIA DE LA ALCALDIA LOCAL DE LA CANDELARIA | I181: Inversión | J181: Bogotá Mejor para Todos | K181: 19 | L181: =IF(ISERROR(VLOOKUP(K181,Eje_Pilar_Prop!$C$2:$E$104,2,FALSE))," ",VLOOKUP(K181,Eje_Pilar_Prop!$C$2:$E$104,2,FALSE)) -> Seguridad y convivencia para todos | M181: =IF(ISERROR(VLOOKUP(K181,Eje_Pilar_Prop!$C$2:$E$104,3,FALSE))," ",VLOOKUP(K181,Eje_Pilar_Prop!$C$2:$E$104,3,FALSE)) -> Pilar 3 Construcción de Comunidad y Cultura Ciudadana | N181: 1392 | O181: 1.051.654.292/1040744991 | P181: JESUS DAVID GONZALEZ SOTO | Q181: 4500000 | T181: 1 | U181: 1850000 | V181: 6350000 | W181: 4600000 | X181: 2020-09-25 | Y181: 2020-09-25 | Z181: 2021-01-29 | AA181: 90 | AC181: 36 | AD181: 1051654292 | AE181: TITO JOSÉ MUTIS VALEST | AF181: 2020-09-30 | AG181: 4250000 | AJ181: X | AL181: 0.7244094488 | AM181: =IF(SUMPRODUCT((A$14:A181=A181)*(B$14:B181=B181)*(D$14:D181=D181))>1,0,1) -> 1 | AN181: Contratos de prestación de servicios profesionales y de apoyo a la gestión | AO181: Contratación directa | AP181: =IF(ISBLANK(G181),1,IFERROR(VLOOKUP(G181,Tipo!$C$12:$C$27,1,FALSE),"NO")) -> Prestación de servicios profesionales y de apoyo a la gestión, o para la ejecución de trabajos artísticos que sólo puedan encomendarse a determinadas personas naturales; | AQ181: Inversión | AR181: =IF(ISBLANK(K181),1,IFERROR(VLOOKUP(K181,Eje_Pilar_Prop!C157:C258,1,FALSE),"NO")) -> NO | AS181: SECOP II | AT181: 1 | AU181: Bogotá Mejor para Todos
